Workbook

Sheet IntInf4anos (hidden)
A2: Técnico Integrado em Informática (4 anos) - copiado da Mecânica | D2: Núm. de semanas: | F2: 38
B3: Componente Curricular | C3: Códigos | D3: Teoria/ | E3: Nº | F3: Aulas/semana | G3: Total | H3: Total | I3: Área (docente) | J3: Ambiente
D4: Prática | E4: Prof. | F4: 1º | G4: Aulas | H4: Horas
A5: 1° Ano | B5: Tecnologia dos Materiais | C5: TCM | D5: T | E5: 1 | F5: 2 | G5: =F5*$F$2 -> 76 | H5: =(G5)*$C$67/60 -> 63.33333333 | I5: Informática | J5: Sala de aula
B6: Metrologia e Ensaios Mecânicos | C6: MEM | D6: T/P | E6: 2 | F6: 4 | G6: 152 | H6: 126.6666667 | I6: Informática | J6: Laboratório existente
B7: Língua Portuguesa e Literatura | C7: LPL | D7: T | E7: 1 | F7: 4 | G7: 152 | H7: 126.6666667 | I7: Português | J7: Sala de aula
B8: Educação Física | C8: EFI | D8: T/P | E8: 1 | F8: 2 | G8: 76 | H8: 63.33333333 | I8: Educação física | J8: Sala de aula
B9: Inglês | C9: ING | D9: T/P | E9: 1 | F9: 2 | G9: 76 | H9: 63.33333333 | I9: Inglês | J9: Sala de aula
B10: Matemática | C10: MAT | D10: T | E10: 1 | F10: 4 | G10: 152 | H10: 126.6666667 | I10: Matemática | J10: Sala de aula
B11: Física | C11: FIS | D11: T | E11: 1 | F11: 2 | G11: 76 | H11: 63.33333333 | I11: Física | J11: Sala de aula
B12: Química | C12: Qui | D12: T | E12: 1 | F12: 2 | G12: 76 | H12: 63.33333333 | I12: Química | J12: Sala de aula
B13: História | C13: HIS | D13: T | E13: 1 | F13: 2 | G13: 76 | H13: 63.33333333 | I13: História | J13: Sala de aula
B14: Desenho Mecânico e Assistido por Computador | C14: DTM | D14: T/P | E14: 2 | F14: 4 | G14: 152 | H14: 126.6666667 | I14: Informática | J14: Laboratório de informática
B15: Organização e Segurança e Gestão Empresarial | C15: OSG | D15: T | E15: 2 | F15: 2 | G15: 76 | H15: 63.33333333 | I15: Informática | J15: Sala de aula
A16: 2º Ano | B16: Processos de Usinagem | C16: USI | D16: T/P | E16: 2 | F16: 4 | G16: 152 | H16: 126.6666667 | I16: Informática | J16: Laboratório existente
B17: Processos Metalúrgicos de Fabricação | C17: PMF | D17: T/P | E17: 2 | F17: 2 | G17: 76 | H17: 63.33333333 | I17: Informática | J17: Laboratório existente
B18: Língua Portuguesa e Literatura | C18: LPL | D18: T | E18: 1 | F18: 2 | G18: 76 | H18: 63.33333333 | I18: Português | J18: Sala de aula
B19: Arte | C19: ART | D19: T/P | E19: 1 | F19: 2 | G19: 76 | H19: 63.33333333 | I19: Artes | J19: Sala de aula
B20: Educação Física | C20: EFI | D20: T/P | E20: 1 | F20: 2 | G20: 76 | H20: 63.33333333 | I20: Educação física | J20: Sala de aula
B21: Inglês | C21: ING | D21: T/P | E21: 1 | F21: 2 | G21: 76 | H21: 63.33333333 | I21: Inglês | J21: Sala de aula
B22: Matemática | C22: MAT | D22: T | E22: 1 | F22: 2 | G22: 76 | H22: 63.33333333 | I22: Matemática | J22: Sala de aula
B23: Biologia | C23: BIO | D23: T | E23: 1 | F23: 2 | G23: 76 | H23: 63.33333333 | I23: Biologia | J23: Sala de aula
B24: Física | C24: FIS | D24: T | E24: 1 | F24: 2 | G24: 76 | H24: 63.33333333 | I24: Física | J24: Sala de aula
B25: Química | C25: Qui | D25: T | E25: 1 | F25: 2 | G25: 76 | H25: 63.33333333 | I25: Química | J25: Sala de aula
B26: História | C26: HIS | D26: T | E26: 1 | F26: 2 | G26: 76 | H26: 63.33333333 | I26: História | J26: Sala de aula
B27: Geografia | C27: GEO | D27: T | E27: 1 | F27: 2 | G27: 76 | H27: 63.33333333 | I27: Geografia | J27: Sala de aula
B28: Filosofia | C28: FIL | D28: T | E28: 1 | F28: 2 | G28: 76 | H28: 63.33333333 | I28: Filosofia | J28: Sala de aula
B29: Sociologia | C29: SOC | D29: T | E29: 1 | F29: 2 | G29: 76 | H29: 63.33333333 | I29: Sociologia | J29: Sala de aula
B30: Hidráulica e Pneumática | C30: HEP | D30: T/P | E30: 2 | F30: 4 | G30: 152 | H30: 126.6666667 | I30: Informática | J30: Laboratório existente
B31: Tratamentos Térmicos e Metalografia | C31: TTM | D31: T/P | E31: 1 | F31: 2 | G31: 76 | H31: 63.33333333 | I31: Informática | J31: Laboratório existente
B32: Processo de Soldagem | C32: SOL | D32: T/P | E32: 2 | F32: 2 | G32: 76 | H32: 63.33333333 | I32: Informática | J32: Laboratório existente
A33: 3° Ano | B33: Eletrotécnica Industrial e Automação | C33: EIA | D33: T/P | E33: 1 | F33: 2 | G33: 76 | H33: 63.33333333 | I33: Informática | J33: Laboratório existente
B34: Comando Numérico Computadorizado | C34: CNC | D34: T/P | E34: 2 | F34: 4 | G34: 152 | H34: 126.6666667 | I34: Informática | J34: Laboratório existente
B35: Resistência dos Materiais e Elementos de Máquinas | C35: REM | D35: T | E35: 1 | F35: 4 | G35: 152 | H35: 126.6666667 | I35: Informática | J35: Sala de aula
B36: Língua Portuguesa e Literatura | C36: LPL | D36: T | E36: 1 | F36: 2 | G36: 76 | H36: 63.33333333 | I36: Português | J36: Sala de aula
B37: Arte | C37: ART | D37: T/P | E37: 1 | F37: 2 | G37: 76 | H37: 63.33333333 | I37: Artes | J37: Sala de aula
B38: Inglês | C38: ING | D38: T/P | E38: 1 | F38: 2 | G38: 76 | H38: 63.33333333 | I38: Inglês | J38: Sala de aula
B39: Matemática | C39: MAT | D39: T | E39: 1 | F39: 2 | G39: 76 | H39: 63.33333333 | I39: Matemática | J39: Sala de aula
B40: Biologia | C40: BIO | D40: T | E40: 1 | F40: 2 | G40: 76 | H40: 63.33333333 | I40: Biologia | J40: Sala de aula
B41: Física | C41: FIS | D41: T | E41: 1 | F41: 1 | G41: 38 | H41: 31.66666667 | I41: Física | J41: Sala de aula
B42: Geografia | C42: GEO | D42: T | E42: 1 | F42: 2 | G42: 76 | H42: 63.33333333 | I42: Geografia | J42: Sala de aula
B43: Filosofia | C43: FIL | D43: T | E43: 1 | F43: 2 | G43: 76 | H43: 63.33333333 | I43: Filosofia | J43: Sala de aula
B44: Sociologia | C44: SOC | D44: T | E44: 1 | F44: 2 | G44: 76 | H44: 63.33333333 | I44: Sociologia | J44: Sala de aula
B45: Língua Portuguesa e Literatura | C45: LPL | D45: T | E45: 1 | F45: 4 | G45: 152 | H45: 126.6666667 | I45: Português | J45: Sala de aula
B46: Arte | C46: ART | D46: T/P | E46: 1 | F46: 2 | G46: 76 | H46: 63.33333333 | I46: Artes | J46: Sala de aula
B47: Educação Física | C47: EFI | D47: T/P | E47: 1 | F47: 2 | G47: 76 | H47: 63.33333333 | I47: Educação física | J47: Sala de aula
B48: Matemática | C48: MAT | D48: T | E48: 1 | F48: 2 | G48: 76 | H48: 63.33333333 | I48: Matemática | J48: Sala de aula
B49: Biologia | C49: BIO | D49: T | E49: 1 | F49: 2 | G49: 76 | H49: 63.33333333 | I49: Biologia | J49: Sala de aula
B50: Física | C50: FIS | D50: T | E50: 1 | F50: 2 | G50: 76 | H50: 63.33333333 | I50: Física | J50: Sala de aula
B51: Química | C51: Qui | D51: T | E51: 1 | F51: 2 | G51: 76 | H51: 63.33333333 | I51: Química | J51: Sala de aula
B52: História | C52: HIS | D52: T | E52: 1 | F52: 2 | G52: 76 | H52: 63.33333333 | I52: História | J52: Sala de aula
B53: Geografia | C53: GEO | D53: T | E53: 1 | F53: 2 | G53: 76 | H53: 63.33333333 | I53: Geografia | J53: Sala de aula
B54: Filosofia | C54: FIL | D54: T | E54: 1 | F54: 1 | G54: 38 | H54: 31.66666667 | I54: Filosofia | J54: Sala de aula
B55: Sociologia | C55: SOC | D55: T | E55: 1 | F55: 1 | G55: 38 | H55: 31.66666667 | I55: Sociologia | J55: Sala de aula
B56: Robótica/CAE/CAM | C56: RCC | D56: T/P | E56: 2 | F56: 2 | G56: 76 | H56: 63.33333333 | I56: Informática | J56: Laboratório de informática
B57: Manutenção e Máquinas Térmicas | C57: MMT | D57: T/P | E57: 1 | F57: 2 | G57: 76 | H57: 63.33333333 | I57: Informática | J57: Laboratório existente
B58: Projeto Integrador | C58: PJI | D58: T/P | E58: 2 | F58: 2 | G58: 76 | H58: 63.33333333 | I58: Informática | J58: Laboratório existente
A59: LIBRAS (optativo) | C59: LIB | D59: T/P | E59: 1 | G59: 0 | H59: 0 | I59: LIBRAS | J59: Sala de aula
A60: Espanhol (optativo) | C60: ESP | D60: T/P | E60: 1 | G60: 0 | H60: 0 | I60: Espanhol | J60: Sala de aula
A61: Total acumulado de aulas | F61: =SUM(F5:F44) -> 95 | G61: =SUM(G5:G60) -> 4674 | H61: 3895
A62: Total acumulado de horas | F62: =(F61*#REF!*$C$67)/60 -> #REF! | G62: - | H62: =SUM(F62+#REF!+#REF!) -> #REF!
A63: Carga Horária Total Mínima Obrigatória (Sem estágio) | H63: =H62 -> #REF!
A64: Estágio Supervisionado (optativo) | H64: 360
A65: Trabalho de Conclusão de Curso (TCC) (Optativo) | H65: 80
A66: Carga Horária Total Máxima: | H66: =ROUNDDOWN(SUM(H63:H65,H59:H60),0) -> #REF!
A67: Observações: As aulas serão de: | C67: 50 | D67: minutos.

Sheet IntAut4anos (hidden)
A2: Técnico Integrado em Automação (4 anos) - copiado da Mecânica | D2: Núm. de semanas: | F2: 38
B3: Componente Curricular | C3: Códigos | D3: Teoria/ | E3: Nº | F3: Aulas/semana | G3: Total | H3: Total | I3: Área (docente) | J3: Ambiente
D4: Prática | E4: Prof. | F4: 1º | G4: Aulas | H4: Horas
A5: 1° Ano | B5: Tecnologia dos Materiais | C5: TCM | D5: T | E5: 1 | F5: 2 | G5: =F5*$F$2 -> 76 | H5: =(G5)*$C$67/60 -> 63.33333333 | I5: Automação | J5: Sala de aula
B6: Metrologia e Ensaios Mecânicos | C6: MEM | D6: T/P | E6: 2 | F6: 4 | G6: 152 | H6: 126.6666667 | I6: Automação | J6: Laboratório existente
B7: Língua Portuguesa e Literatura | C7: LPL | D7: T | E7: 1 | F7: 4 | G7: 152 | H7: 126.6666667 | I7: Português | J7: Sala de aula
B8: Educação Física | C8: EFI | D8: T/P | E8: 1 | F8: 2 | G8: 76 | H8: 63.33333333 | I8: Educação física | J8: Sala de aula
B9: Inglês | C9: ING | D9: T/P | E9: 1 | F9: 2 | G9: 76 | H9: 63.33333333 | I9: Inglês | J9: Sala de aula
B10: Matemática | C10: MAT | D10: T | E10: 1 | F10: 4 | G10: 152 | H10: 126.6666667 | I10: Matemática | J10: Sala de aula
B11: Física | C11: FIS | D11: T | E11: 1 | F11: 2 | G11: 76 | H11: 63.33333333 | I11: Física | J11: Sala de aula
B12: Química | C12: Qui | D12: T | E12: 1 | F12: 2 | G12: 76 | H12: 63.33333333 | I12: Química | J12: Sala de aula
B13: História | C13: HIS | D13: T | E13: 1 | F13: 2 | G13: 76 | H13: 63.33333333 | I13: História | J13: Sala de aula
B14: Desenho Mecânico e Assistido por Computador | C14: DTM | D14: T/P | E14: 2 | F14: 4 | G14: 152 | H14: 126.6666667 | I14: Automação | J14: Laboratório de informática
B15: Organização e Segurança e Gestão Empresarial | C15: OSG | D15: T | E15: 2 | F15: 2 | G15: 76 | H15: 63.33333333 | I15: Automação | J15: Sala de aula
A16: 2º Ano | B16: Processos de Usinagem | C16: USI | D16: T/P | E16: 2 | F16: 4 | G16: 152 | H16: 126.6666667 | I16: Automação | J16: Laboratório existente
B17: Processos Metalúrgicos de Fabricação | C17: PMF | D17: T/P | E17: 2 | F17: 2 | G17: 76 | H17: 63.33333333 | I17: Automação | J17: Laboratório existente
B18: Língua Portuguesa e Literatura | C18: LPL | D18: T | E18: 1 | F18: 2 | G18: 76 | H18: 63.33333333 | I18: Português | J18: Sala de aula
B19: Arte | C19: ART | D19: T/P | E19: 1 | F19: 2 | G19: 76 | H19: 63.33333333 | I19: Artes | J19: Sala de aula
B20: Educação Física | C20: EFI | D20: T/P | E20: 1 | F20: 2 | G20: 76 | H20: 63.33333333 | I20: Educação física | J20: Sala de aula
B21: Inglês | C21: ING | D21: T/P | E21: 1 | F21: 2 | G21: 76 | H21: 63.33333333 | I21: Inglês | J21: Sala de aula
B22: Matemática | C22: MAT | D22: T | E22: 1 | F22: 2 | G22: 76 | H22: 63.33333333 | I22: Matemática | J22: Sala de aula
B23: Biologia | C23: BIO | D23: T | E23: 1 | F23: 2 | G23: 76 | H23: 63.33333333 | I23: Biologia | J23: Sala de aula
B24: Física | C24: FIS | D24: T | E24: 1 | F24: 2 | G24: 76 | H24: 63.33333333 | I24: Física | J24: Sala de aula
B25: Química | C25: Qui | D25: T | E25: 1 | F25: 2 | G25: 76 | H25: 63.33333333 | I25: Química | J25: Sala de aula
B26: História | C26: HIS | D26: T | E26: 1 | F26: 2 | G26: 76 | H26: 63.33333333 | I26: História | J26: Sala de aula
B27: Geografia | C27: GEO | D27: T | E27: 1 | F27: 2 | G27: 76 | H27: 63.33333333 | I27: Geografia | J27: Sala de aula
B28: Filosofia | C28: FIL | D28: T | E28: 1 | F28: 2 | G28: 76 | H28: 63.33333333 | I28: Filosofia | J28: Sala de aula
B29: Sociologia | C29: SOC | D29: T | E29: 1 | F29: 2 | G29: 76 | H29: 63.33333333 | I29: Sociologia | J29: Sala de aula
B30: Hidráulica e Pneumática | C30: HEP | D30: T/P | E30: 2 | F30: 4 | G30: 152 | H30: 126.6666667 | I30: Automação | J30: Laboratório existente
B31: Tratamentos Térmicos e Metalografia | C31: TTM | D31: T/P | E31: 1 | F31: 2 | G31: 76 | H31: 63.33333333 | I31: Automação | J31: Laboratório existente
B32: Processo de Soldagem | C32: SOL | D32: T/P | E32: 2 | F32: 2 | G32: 76 | H32: 63.33333333 | I32: Automação | J32: Laboratório existente
A33: 3° Ano | B33: Eletrotécnica Industrial e Automação | C33: EIA | D33: T/P | E33: 1 | F33: 2 | G33: 76 | H33: 63.33333333 | I33: Automação | J33: Laboratório existente
B34: Comando Numérico Computadorizado | C34: CNC | D34: T/P | E34: 2 | F34: 4 | G34: 152 | H34: 126.6666667 | I34: Automação | J34: Laboratório existente
B35: Resistência dos Materiais e Elementos de Máquinas | C35: REM | D35: T | E35: 1 | F35: 4 | G35: 152 | H35: 126.6666667 | I35: Automação | J35: Sala de aula
B36: Língua Portuguesa e Literatura | C36: LPL | D36: T | E36: 1 | F36: 2 | G36: 76 | H36: 63.33333333 | I36: Português | J36: Sala de aula
B37: Arte | C37: ART | D37: T/P | E37: 1 | F37: 2 | G37: 76 | H37: 63.33333333 | I37: Artes | J37: Sala de aula
B38: Inglês | C38: ING | D38: T/P | E38: 1 | F38: 2 | G38: 76 | H38: 63.33333333 | I38: Inglês | J38: Sala de aula
B39: Matemática | C39: MAT | D39: T | E39: 1 | F39: 2 | G39: 76 | H39: 63.33333333 | I39: Matemática | J39: Sala de aula
B40: Biologia | C40: BIO | D40: T | E40: 1 | F40: 2 | G40: 76 | H40: 63.33333333 | I40: Biologia | J40: Sala de aula
B41: Física | C41: FIS | D41: T | E41: 1 | F41: 1 | G41: 38 | H41: 31.66666667 | I41: Física | J41: Sala de aula
B42: Geografia | C42: GEO | D42: T | E42: 1 | F42: 2 | G42: 76 | H42: 63.33333333 | I42: Geografia | J42: Sala de aula
B43: Filosofia | C43: FIL | D43: T | E43: 1 | F43: 2 | G43: 76 | H43: 63.33333333 | I43: Filosofia | J43: Sala de aula
B44: Sociologia | C44: SOC | D44: T | E44: 1 | F44: 2 | G44: 76 | H44: 63.33333333 | I44: Sociologia | J44: Sala de aula
B45: Língua Portuguesa e Literatura | C45: LPL | D45: T | E45: 1 | F45: 4 | G45: 152 | H45: 126.6666667 | I45: Português | J45: Sala de aula
B46: Arte | C46: ART | D46: T/P | E46: 1 | F46: 2 | G46: 76 | H46: 63.33333333 | I46: Artes | J46: Sala de aula
B47: Educação Física | C47: EFI | D47: T/P | E47: 1 | F47: 2 | G47: 76 | H47: 63.33333333 | I47: Educação física | J47: Sala de aula
B48: Matemática | C48: MAT | D48: T | E48: 1 | F48: 2 | G48: 76 | H48: 63.33333333 | I48: Matemática | J48: Sala de aula
B49: Biologia | C49: BIO | D49: T | E49: 1 | F49: 2 | G49: 76 | H49: 63.33333333 | I49: Biologia | J49: Sala de aula
B50: Física | C50: FIS | D50: T | E50: 1 | F50: 2 | G50: 76 | H50: 63.33333333 | I50: Física | J50: Sala de aula
B51: Química | C51: Qui | D51: T | E51: 1 | F51: 2 | G51: 76 | H51: 63.33333333 | I51: Química | J51: Sala de aula
B52: História | C52: HIS | D52: T | E52: 1 | F52: 2 | G52: 76 | H52: 63.33333333 | I52: História | J52: Sala de aula
B53: Geografia | C53: GEO | D53: T | E53: 1 | F53: 2 | G53: 76 | H53: 63.33333333 | I53: Geografia | J53: Sala de aula
B54: Filosofia | C54: FIL | D54: T | E54: 1 | F54: 1 | G54: 38 | H54: 31.66666667 | I54: Filosofia | J54: Sala de aula
B55: Sociologia | C55: SOC | D55: T | E55: 1 | F55: 1 | G55: 38 | H55: 31.66666667 | I55: Sociologia | J55: Sala de aula
B56: Robótica/CAE/CAM | C56: RCC | D56: T/P | E56: 2 | F56: 2 | G56: 76 | H56: 63.33333333 | I56: Automação | J56: Laboratório de informática
B57: Manutenção e Máquinas Térmicas | C57: MMT | D57: T/P | E57: 1 | F57: 2 | G57: 76 | H57: 63.33333333 | I57: Automação | J57: Laboratório existente
B58: Projeto Integrador | C58: PJI | D58: T/P | E58: 2 | F58: 2 | G58: 76 | H58: 63.33333333 | I58: Automação | J58: Laboratório existente
A59: LIBRAS (optativo) | C59: LIB | D59: T/P | E59: 1 | G59: 0 | H59: 0 | I59: LIBRAS | J59: Sala de aula
A60: Espanhol (optativo) | C60: ESP | D60: T/P | E60: 1 | G60: 0 | H60: 0 | I60: Espanhol | J60: Sala de aula
A61: Total acumulado de aulas | F61: =SUM(F5:F44) -> 95 | G61: =SUM(G5:G60) -> 4674 | H61: 3895
A62: Total acumulado de horas | F62: =(F61*#REF!*$C$67)/60 -> #REF! | G62: - | H62: =SUM(F62+#REF!+#REF!) -> #REF!
A63: Carga Horária Total Mínima Obrigatória (Sem estágio) | H63: =H62 -> #REF!
A64: Estágio Supervisionado (optativo) | H64: 360
A65: Trabalho de Conclusão de Curso (TCC) (Optativo) | H65: 80
A66: Carga Horária Total Máxima: | H66: =ROUNDDOWN(SUM(H63:H65,H59:H60),0) -> #REF!
A67: Observações: As aulas serão de: | C67: 50 | D67: minutos.

Sheet IntMec4anos (hidden)
A2: Técnico Integrado em Mecânica (4 anos) | D2: Núm. de semanas: | F2: 38
B3: Componente Curricular | C3: Códigos | D3: Teoria/ | E3: Nº | F3: Aulas/semana | G3: Total | H3: Total | I3: Área (docente) | J3: Ambiente
D4: Prática | E4: Prof. | F4: 1º | G4: Aulas | H4: Horas
A5: 1° Ano | B5: Tecnologia dos Materiais | C5: TCM | D5: T | E5: 1 | F5: 2 | G5: =F5*$F$2 -> 76 | H5: =(G5)*$C$67/60 -> 63.33333333 | I5: Mecânica | J5: Sala de aula
B6: Metrologia e Ensaios Mecânicos | C6: MEM | D6: T/P | E6: 2 | F6: 4 | G6: 152 | H6: 126.6666667 | I6: Mecânica | J6: Laboratório existente
B7: Língua Portuguesa e Literatura | C7: LPL | D7: T | E7: 1 | F7: 4 | G7: 152 | H7: 126.6666667 | I7: Português | J7: Sala de aula
B8: Educação Física | C8: EFI | D8: T/P | E8: 1 | F8: 2 | G8: 76 | H8: 63.33333333 | I8: Educação física | J8: Sala de aula
B9: Inglês | C9: ING | D9: T/P | E9: 1 | F9: 2 | G9: 76 | H9: 63.33333333 | I9: Inglês | J9: Sala de aula
B10: Matemática | C10: MAT | D10: T | E10: 1 | F10: 4 | G10: 152 | H10: 126.6666667 | I10: Matemática | J10: Sala de aula
B11: Física | C11: FIS | D11: T | E11: 1 | F11: 2 | G11: 76 | H11: 63.33333333 | I11: Física | J11: Sala de aula
B12: Química | C12: Qui | D12: T | E12: 1 | F12: 2 | G12: 76 | H12: 63.33333333 | I12: Química | J12: Sala de aula
B13: História | C13: HIS | D13: T | E13: 1 | F13: 2 | G13: 76 | H13: 63.33333333 | I13: História | J13: Sala de aula
B14: Desenho Mecânico e Assistido por Computador | C14: DTM | D14: T/P | E14: 2 | F14: 4 | G14: 152 | H14: 126.6666667 | I14: Mecânica | J14: Laboratório de informática
B15: Organização e Segurança e Gestão Empresarial | C15: OSG | D15: T | E15: 2 | F15: 2 | G15: 76 | H15: 63.33333333 | I15: Mecânica | J15: Sala de aula
A16: 2º Ano | B16: Processos de Usinagem | C16: USI | D16: T/P | E16: 2 | F16: 4 | G16: 152 | H16: 126.6666667 | I16: Mecânica | J16: Laboratório existente
B17: Processos Metalúrgicos de Fabricação | C17: PMF | D17: T/P | E17: 2 | F17: 2 | G17: 76 | H17: 63.33333333 | I17: Mecânica | J17: Laboratório existente
B18: Língua Portuguesa e Literatura | C18: LPL | D18: T | E18: 1 | F18: 2 | G18: 76 | H18: 63.33333333 | I18: Português | J18: Sala de aula
B19: Arte | C19: ART | D19: T/P | E19: 1 | F19: 2 | G19: 76 | H19: 63.33333333 | I19: Artes | J19: Sala de aula
B20: Educação Física | C20: EFI | D20: T/P | E20: 1 | F20: 2 | G20: 76 | H20: 63.33333333 | I20: Educação física | J20: Sala de aula
B21: Inglês | C21: ING | D21: T/P | E21: 1 | F21: 2 | G21: 76 | H21: 63.33333333 | I21: Inglês | J21: Sala de aula
B22: Matemática | C22: MAT | D22: T | E22: 1 | F22: 2 | G22: 76 | H22: 63.33333333 | I22: Matemática | J22: Sala de aula
B23: Biologia | C23: BIO | D23: T | E23: 1 | F23: 2 | G23: 76 | H23: 63.33333333 | I23: Biologia | J23: Sala de aula
B24: Física | C24: FIS | D24: T | E24: 1 | F24: 2 | G24: 76 | H24: 63.33333333 | I24: Física | J24: Sala de aula
B25: Química | C25: Qui | D25: T | E25: 1 | F25: 2 | G25: 76 | H25: 63.33333333 | I25: Química | J25: Sala de aula
B26: História | C26: HIS | D26: T | E26: 1 | F26: 2 | G26: 76 | H26: 63.33333333 | I26: História | J26: Sala de aula
B27: Geografia | C27: GEO | D27: T | E27: 1 | F27: 2 | G27: 76 | H27: 63.33333333 | I27: Geografia | J27: Sala de aula
B28: Filosofia | C28: FIL | D28: T | E28: 1 | F28: 2 | G28: 76 | H28: 63.33333333 | I28: Filosofia | J28: Sala de aula
B29: Sociologia | C29: SOC | D29: T | E29: 1 | F29: 2 | G29: 76 | H29: 63.33333333 | I29: Sociologia | J29: Sala de aula
B30: Hidráulica e Pneumática | C30: HEP | D30: T/P | E30: 2 | F30: 4 | G30: 152 | H30: 126.6666667 | I30: Mecânica | J30: Laboratório existente
B31: Tratamentos Térmicos e Metalografia | C31: TTM | D31: T/P | E31: 1 | F31: 2 | G31: 76 | H31: 63.33333333 | I31: Mecânica | J31: Laboratório existente
B32: Processo de Soldagem | C32: SOL | D32: T/P | E32: 2 | F32: 2 | G32: 76 | H32: 63.33333333 | I32: Mecânica | J32: Laboratório existente
A33: 3° Ano | B33: Eletrotécnica Industrial e Automação | C33: EIA | D33: T/P | E33: 1 | F33: 2 | G33: 76 | H33: 63.33333333 | I33: Mecânica | J33: Laboratório existente
B34: Comando Numérico Computadorizado | C34: CNC | D34: T/P | E34: 2 | F34: 4 | G34: 152 | H34: 126.6666667 | I34: Mecânica | J34: Laboratório existente
B35: Resistência dos Materiais e Elementos de Máquinas | C35: REM | D35: T | E35: 1 | F35: 4 | G35: 152 | H35: 126.6666667 | I35: Mecânica | J35: Sala de aula
B36: Língua Portuguesa e Literatura | C36: LPL | D36: T | E36: 1 | F36: 2 | G36: 76 | H36: 63.33333333 | I36: Português | J36: Sala de aula
B37: Arte | C37: ART | D37: T/P | E37: 1 | F37: 2 | G37: 76 | H37: 63.33333333 | I37: Artes | J37: Sala de aula
B38: Inglês | C38: ING | D38: T/P | E38: 1 | F38: 2 | G38: 76 | H38: 63.33333333 | I38: Inglês | J38: Sala de aula
B39: Matemática | C39: MAT | D39: T | E39: 1 | F39: 2 | G39: 76 | H39: 63.33333333 | I39: Matemática | J39: Sala de aula
B40: Biologia | C40: BIO | D40: T | E40: 1 | F40: 2 | G40: 76 | H40: 63.33333333 | I40: Biologia | J40: Sala de aula
B41: Física | C41: FIS | D41: T | E41: 1 | F41: 1 | G41: 38 | H41: 31.66666667 | I41: Física | J41: Sala de aula
B42: Geografia | C42: GEO | D42: T | E42: 1 | F42: 2 | G42: 76 | H42: 63.33333333 | I42: Geografia | J42: Sala de aula
B43: Filosofia | C43: FIL | D43: T | E43: 1 | F43: 2 | G43: 76 | H43: 63.33333333 | I43: Filosofia | J43: Sala de aula
B44: Sociologia | C44: SOC | D44: T | E44: 1 | F44: 2 | G44: 76 | H44: 63.33333333 | I44: Sociologia | J44: Sala de aula
B45: Língua Portuguesa e Literatura | C45: LPL | D45: T | E45: 1 | F45: 4 | G45: 152 | H45: 126.6666667 | I45: Português | J45: Sala de aula
B46: Arte | C46: ART | D46: T/P | E46: 1 | F46: 2 | G46: 76 | H46: 63.33333333 | I46: Artes | J46: Sala de aula
B47: Educação Física | C47: EFI | D47: T/P | E47: 1 | F47: 2 | G47: 76 | H47: 63.33333333 | I47: Educação física | J47: Sala de aula
B48: Matemática | C48: MAT | D48: T | E48: 1 | F48: 2 | G48: 76 | H48: 63.33333333 | I48: Matemática | J48: Sala de aula
B49: Biologia | C49: BIO | D49: T | E49: 1 | F49: 2 | G49: 76 | H49: 63.33333333 | I49: Biologia | J49: Sala de aula
B50: Física | C50: FIS | D50: T | E50: 1 | F50: 2 | G50: 76 | H50: 63.33333333 | I50: Física | J50: Sala de aula
B51: Química | C51: Qui | D51: T | E51: 1 | F51: 2 | G51: 76 | H51: 63.33333333 | I51: Química | J51: Sala de aula
B52: História | C52: HIS | D52: T | E52: 1 | F52: 2 | G52: 76 | H52: 63.33333333 | I52: História | J52: Sala de aula
B53: Geografia | C53: GEO | D53: T | E53: 1 | F53: 2 | G53: 76 | H53: 63.33333333 | I53: Geografia | J53: Sala de aula
B54: Filosofia | C54: FIL | D54: T | E54: 1 | F54: 1 | G54: 38 | H54: 31.66666667 | I54: Filosofia | J54: Sala de aula
B55: Sociologia | C55: SOC | D55: T | E55: 1 | F55: 1 | G55: 38 | H55: 31.66666667 | I55: Sociologia | J55: Sala de aula
B56: Robótica/CAE/CAM | C56: RCC | D56: T/P | E56: 2 | F56: 2 | G56: 76 | H56: 63.33333333 | I56: Mecânica | J56: Laboratório de informática
B57: Manutenção e Máquinas Térmicas | C57: MMT | D57: T/P | E57: 1 | F57: 2 | G57: 76 | H57: 63.33333333 | I57: Mecânica | J57: Laboratório existente
B58: Projeto Integrador | C58: PJI | D58: T/P | E58: 2 | F58: 2 | G58: 76 | H58: 63.33333333 | I58: Mecânica | J58: Laboratório existente
A59: LIBRAS (optativo) | C59: LIB | D59: T/P | E59: 1 | G59: 0 | H59: 0 | I59: LIBRAS | J59: Sala de aula
A60: Espanhol (optativo) | C60: ESP | D60: T/P | E60: 1 | G60: 0 | H60: 0 | I60: Espanhol | J60: Sala de aula
A61: Total acumulado de aulas | F61: =SUM(F5:F44) -> 95 | G61: =SUM(G5:G60) -> 4674 | H61: 3895
A62: Total acumulado de horas | F62: =(F61*#REF!*$C$67)/60 -> #REF! | G62: - | H62: =SUM(F62+#REF!+#REF!) -> #REF!
A63: Carga Horária Total Mínima Obrigatória (Sem estágio) | H63: =H62 -> #REF!
A64: Estágio Supervisionado (optativo) | H64: 360
A65: Trabalho de Conclusão de Curso (TCC) (Optativo) | H65: 80
A66: Carga Horária Total Máxima: | H66: =ROUNDDOWN(SUM(H63:H65,H59:H60),0) -> #REF!
A67: Observações: As aulas serão de: | C67: 50 | D67: minutos.

Sheet IntInfo (2018)
A2: Técnico Integrado em Informática (grade 2019+) | D2: Núm. de semanas: | F2: 38
B3: Componente Curricular | C3: Códigos | D3: Teoria/ | E3: Nº | F3: Aulas/semana | G3: Total | H3: Total | I3: Área (docente) | J3: Ambiente
D4: Prática | E4: Prof. | F4: 1º | G4: Aulas | H4: Horas
A5: 1º Ano | B5: Língua Portuguesa e Literatura | C5: LPL | D5: T | E5: 1 | F5: 4 | G5: =F5*$F$2 -> 152 | H5: =(G5)*$C$86/60 -> 126.6666667 | I5: Português | J5: Sala de aula
B6: Artes | C6: ART | D6: T/P | E6: 1 | F6: 0 | G6: 0 | H6: 0 | I6: Artes | J6: Sala de aula
B7: Corpo e Arte | C7: CPA | D7: T/P | E7: 1 | F7: 2 | G7: 76 | H7: 63.33333333 | I7: Educação física | J7: Ginásio
B8: Educação Física e Esportes | C8: EFE | D8: T/P | E8: 1 | F8: 2 | G8: 76 | H8: 63.33333333 | I8: Educação física | J8: Ginásio
B9: Educação física e saúde | C9: EFS | D9: T/P | E9: 1 | F9: 0 | G9: 0 | H9: 0 | I9: Educação física | J9: Ginásio
B10: Inglês | C10: ING | D10: T/P | E10: 1 | F10: 2 | G10: 76 | H10: 63.33333333 | I10: Inglês | J10: Sala de aula
B11: Matemática A | C11: MAA | D11: T | E11: 1 | F11: 2 | G11: 76 | H11: 63.33333333 | I11: Matemática | J11: Sala de aula
B12: Matemática B | C12: MAB | D12: T | E12: 1 | F12: 2 | G12: 76 | H12: 63.33333333 | I12: Matemática | J12: Sala de aula
B13: Biologia | C13: BIO | D13: T | E13: 1 | F13: 0 | G13: 0 | H13: 0 | I13: Biologia | J13: Sala de aula
B14: Física | C14: FIS | D14: T | E14: 1 | F14: 2 | G14: 76 | H14: 63.33333333 | I14: Física | J14: Sala de aula
B15: Química | C15: QUI | D15: T | E15: 1 | F15: 2 | G15: 76 | H15: 63.33333333 | I15: Química | J15: Sala de aula
B16: História | C16: HIS | D16: T | E16: 1 | F16: 0 | G16: 0 | H16: 0 | I16: História | J16: Sala de aula
B17: Geografia | C17: GEO | D17: T | E17: 1 | F17: 0 | G17: 0 | H17: 0 | I17: Geografia | J17: Sala de aula
B18: Filosofia | C18: FIL | D18: T | E18: 1 | F18: 0 | G18: 0 | H18: 0 | I18: Filosofia | J18: Sala de aula
B19: Sociologia | C19: SOC | D19: T | E19: 1 | F19: 0 | G19: 0 | H19: 0 | I19: Sociologia | J19: Sala de aula
B20: Estudos sobre o Trabalho - Frente A | C20: ETA | D20: T | E20: 1 | F20: 2 | G20: 76 | H20: 63.33333333 | I20: História | J20: Sala de aula
B21: Métodos científicos | C21: MCN | D21: T | E21: 1 | F21: 2 | G21: 76 | H21: 63.33333333 | I21: Química | J21: Sala de aula
B22: Estudos sobre o Trabalho - Frente B | C22: ETB | D22: T | E22: 1 | F22: 2 | G22: 76 | H22: 63.33333333 | I22: História | J22: Sala de aula
B23: Gestão e empreendedorismo | C23: GEM | D23: T | E23: 1 | F23: 0 | G23: 0 | H23: 0 | I23: Gestão | J23: Sala de aula
B24: Inglês para fins específicos | C24: IFE | D24: T | E24: 1 | F24: 0 | G24: 0 | H24: 0 | I24: Inglês | J24: Sala de aula
B25: Algortimos e programação | C25: ALP | D25: T/P | E25: 2 | F25: 4 | G25: 152 | H25: 126.6666667 | I25: Programação | J25: Laboratório de informática | L25: =H25*E25 -> 253.3333333
B26: Organização de computadores e sistemas operacionais | C26: OCS | D26: T/P | E26: 2 | F26: 4 | G26: 152 | H26: 126.6666667 | I26: Redes | J26: Laboratório de informática | L26: 253.3333333
B27: Programação para Web I | C27: PWA | D27: T/P | E27: 2 | F27: 2 | G27: 76 | H27: 63.33333333 | I27: Programação | J27: Laboratório de informática | L27: 126.6666667
B28: Rede de computadores | C28: RDC | D28: T/P | E28: 2 | F28: 2 | G28: 76 | H28: 63.33333333 | I28: Redes | J28: Laboratório de informática | L28: 126.6666667
A29: 2º Ano | B29: Língua Portuguesa e Literatura | C29: LPL | D29: T | E29: 1 | F29: 4 | G29: 152 | H29: 126.6666667 | I29: Português | J29: Sala de aula
B30: Artes | C30: ART | D30: T/P | E30: 1 | F30: 2 | G30: 76 | H30: 63.33333333 | I30: Artes | J30: Sala de aula
B31: Corpo e Arte | C31: CPA | D31: T/P | E31: 1 | F31: 0 | G31: 0 | H31: 0 | I31: Educação física | J31: Ginásio
B32: Educação Física e Esportes | C32: EFE | D32: T/P | E32: 1 | F32: 0 | G32: 0 | H32: 0 | I32: Educação física | J32: Ginásio
B33: Educação física e saúde | C33: EFS | D33: T/P | E33: 1 | F33: 2 | G33: 76 | H33: 63.33333333 | I33: Educação física | J33: Ginásio
B34: Inglês | C34: ING | D34: T/P | E34: 1 | F34: 0 | G34: 0 | H34: 0 | I34: Inglês | J34: Sala de aula
B35: Matemática A | C35: MAA | D35: T | E35: 1 | F35: 2 | G35: 76 | H35: 63.33333333 | I35: Matemática | J35: Sala de aula
B36: Matemática B | C36: MAB | D36: T | E36: 1 | F36: 2 | G36: 76 | H36: 63.33333333 | I36: Matemática | J36: Sala de aula
B37: Biologia e Programa da Saúde | C37: BIO | D37: T | E37: 1 | F37: 2 | G37: 76 | H37: 63.33333333 | I37: Biologia | J37: Sala de aula
B38: Física | C38: FIS | D38: T | E38: 1 | F38: 2 | G38: 76 | H38: 63.33333333 | I38: Física | J38: Sala de aula
B39: Química | C39: QUI | D39: T | E39: 1 | F39: 2 | G39: 76 | H39: 63.33333333 | I39: Química | J39: Sala de aula
B40: História | C40: HIS | D40: T | E40: 1 | F40: 2 | G40: 76 | H40: 63.33333333 | I40: História | J40: Sala de aula
B41: Geografia | C41: GEO | D41: T | E41: 1 | F41: 2 | G41: 76 | H41: 63.33333333 | I41: Geografia | J41: Sala de aula
B42: Filosofia | C42: FIL | D42: T | E42: 1 | F42: 2 | G42: 76 | H42: 63.33333333 | I42: Filosofia | J42: Sala de aula
B43: Sociologia | C43: SOC | D43: T | E43: 1 | F43: 2 | G43: 76 | H43: 63.33333333 | I43: Sociologia | J43: Sala de aula
B44: Estudos sobre o Trabalho - Frente A | C44: ETA | D44: T | E44: 1 | F44: 0 | G44: 0 | H44: 0 | I44: História | J44: Sala de aula
B45: Métodos científicos | C45: MCN | D45: T | E45: 1 | F45: 0 | G45: 0 | H45: 0 | I45: Química | J45: Sala de aula
B46: Estudos sobre o Trabalho - Frente B | C46: ETB | D46: T | E46: 1 | F46: 0 | G46: 0 | H46: 0 | I46: História | J46: Sala de aula
B47: Gestão e empreendedorismo | C47: GEM | D47: T | E47: 1 | F47: 0 | G47: 0 | H47: 0 | I47: Gestão | J47: Sala de aula
B48: Inglês para fins específicos | C48: IFE | D48: T | E48: 1 | F48: 0 | G48: 0 | H48: 0 | I48: Inglês | J48: Sala de aula
B49: Banco de dados | C49: BDD | D49: T/P | E49: 2 | F49: 2 | G49: 76 | H49: 63.33333333 | I49: Programação | J49: Laboratório de informática | L49: =H49*E49 -> 126.6666667
B50: Análise e projeto de sistemas | C50: APS | D50: T/P | E50: 2 | F50: 2 | G50: 76 | H50: 63.33333333 | I50: Programação | J50: Laboratório de informática | L50: 126.6666667
B51: Linguagem de programação I | C51: LPA | D51: T/P | E51: 2 | F51: 4 | G51: 152 | H51: 126.6666667 | I51: Programação | J51: Laboratório de informática | L51: 253.3333333
B52: Programação para Web II | C52: PWB | D52: T | E52: 2 | F52: 2 | G52: 76 | H52: 63.33333333 | I52: Programação | J52: Laboratório de informática | L52: 126.6666667
B53: Projeto integrador | C53: PJT | D53: T/P | E53: 2 | F53: 2 | G53: 76 | H53: 63.33333333 | I53: Programação | J53: Laboratório de informática | L53: 126.6666667
A54: 3º Ano | B54: Língua Portuguesa e Literatura | C54: LPL | D54: T | E54: 1 | F54: 4 | G54: 152 | H54: 126.6666667 | I54: Português | J54: Sala de aula
B55: Artes | C55: ART | D55: T/P | E55: 1 | F55: 2 | G55: 76 | H55: 63.33333333 | I55: Artes | J55: Sala de aula
B56: Corpo e Arte | C56: CPA | D56: T/P | E56: 1 | F56: 2 | G56: 76 | H56: 63.33333333 | I56: Educação física | J56: Ginásio
B57: Educação Física e Esportes | C57: EFE | D57: T/P | E57: 1 | F57: 0 | G57: 0 | H57: 0 | I57: Educação física | J57: Ginásio
B58: Educação física e saúde | C58: EFS | D58: T/P | E58: 1 | F58: 0 | G58: 0 | H58: 0 | I58: Educação física | J58: Ginásio
B59: Inglês | C59: ING | D59: T/P | E59: 1 | F59: 0 | G59: 0 | H59: 0 | I59: Inglês | J59: Sala de aula
B60: Matemática A | C60: MAA | D60: T | E60: 1 | F60: 2 | G60: 76 | H60: 63.33333333 | I60: Matemática | J60: Sala de aula
B61: Matemática B | C61: MAB | D61: T | E61: 1 | F61: 2 | G61: 76 | H61: 63.33333333 | I61: Matemática | J61: Sala de aula
B62: Biologia e Programa da Saúde | C62: BIO | D62: T | E62: 1 | F62: 2 | G62: 76 | H62: 63.33333333 | I62: Biologia | J62: Sala de aula
B63: Física | C63: FIS | D63: T | E63: 1 | F63: 2 | G63: 76 | H63: 63.33333333 | I63: Física | J63: Sala de aula
B64: Química | C64: QUI | D64: T | E64: 1 | F64: 2 | G64: 76 | H64: 63.33333333 | I64: Química | J64: Sala de aula
B65: História | C65: HIS | D65: T | E65: 1 | F65: 2 | G65: 76 | H65: 63.33333333 | I65: História | J65: Sala de aula
B66: Geografia | C66: GEO | D66: T | E66: 1 | F66: 2 | G66: 76 | H66: 63.33333333 | I66: Geografia | J66: Sala de aula
B67: Filosofia | C67: FIL | D67: T | E67: 1 | F67: 2 | G67: 76 | H67: 63.33333333 | I67: Filosofia | J67: Sala de aula
B68: Sociologia | C68: SOC | D68: T | E68: 1 | F68: 2 | G68: 76 | H68: 63.33333333 | I68: Sociologia | J68: Sala de aula
B69: Estudos sobre o Trabalho - Frente A | C69: ETA | D69: T | E69: 1 | F69: 0 | G69: 0 | H69: 0 | I69: História | J69: Sala de aula
B70: Métodos científicos | C70: MCN | D70: T | E70: 1 | F70: 0 | G70: 0 | H70: 0 | I70: Química | J70: Sala de aula
B71: Estudos sobre o Trabalho - Frente B | C71: ETB | D71: T | E71: 1 | F71: 0 | G71: 0 | H71: 0 | I71: História | J71: Sala de aula
B72: Gestão e empreendedorismo | C72: GEM | D72: T | E72: 1 | F72: 2 | G72: 76 | H72: 63.33333333 | I72: Gestão | J72: Sala de aula
B73: Inglês para fins específicos | C73: IFE | D73: T | E73: 1 | F73: 2 | G73: 76 | H73: 63.33333333 | I73: Inglês | J73: Sala de aula
B74: Linguagem de programação II | C74: LPB | D74: T/P | E74: 2 | F74: 4 | G74: 152 | H74: 126.6666667 | I74: Programação | J74: Laboratório de informática | L74: =H74*E74 -> 253.3333333
B75: Programação da dispositivos móveis | C75: PDM | D75: T/P | E75: 2 | F75: 2 | G75: 76 | H75: 63.33333333 | I75: Programação | J75: Laboratório de informática | L75: 126.6666667
B76: Projeto integrador | C76: PJT | D76: T/P | E76: 2 | F76: 2 | G76: 76 | H76: 63.33333333 | I76: Programação | J76: Laboratório de informática | L76: 126.6666667
A77: LIBRAS (optativo) | C77: LIB | D77: T | E77: 1 | F77: 2 | G77: 76 | H77: 63.33333333 | I77: LIBRAS | J77: Sala de aula | L77: 63.33333333
L78: 0
A79: Espanhol (optativo) | C79: ESP | D79: T | E79: 1 | F79: 2 | G79: =F79*$F$2 -> 76 | H79: =(G79)*$C$86/60 -> 63.33333333 | I79: Espanhol | J79: Sala de aula | L79: 63.33333333
A80: Total acumulado de aulas | F80: =SUM(F5:F76)*F2 -> 4256 | G80: =SUM(G5:G79) -> 4408
A81: Total acumulado de horas | F81: =(F80*$C$86)/60 -> 3546.666667 | G81: - | H81: =SUM(F81+#REF!+#REF!) -> #REF!
A82: Carga Horária Total Mínima Obrigatória (Sem estágio) | H82: =H81 -> #REF!
A83: Estágio Supervisionado (optativo) | H83: 150
A84: Pesquisa e extensão | H84: 80
A85: Carga Horária Total Máxima: | H85: =ROUNDDOWN(SUM(H82:H84,H77:H79),0) -> #REF!
A86: Observações: As aulas serão de: | C86: 50 | D86: minutos.
F88: =SUMPRODUCT(H5:H76,E5:E76)/F81 -> 1.285714286

Sheet IntAuto (2018)
A2: Técnico Integrado em Automação Industrial (grade 2019+) | D2: Núm. de semanas: | F2: 38
B3: Componente Curricular | C3: Códigos | D3: Teoria/ | E3: Nº | F3: Aulas/semana | G3: Total | H3: Total | I3: Área (docente) | J3: Ambiente
D4: Prática | E4: Prof. | F4: 1º | G4: Aulas | H4: Horas
A5: 1º Ano | B5: Língua Portuguesa e Literaturas | C5: LPL | D5: T | E5: 1 | F5: 4 | G5: =F5*$F$2 -> 152 | H5: =(G5)*$C$97/60 -> 126.6666667 | I5: Português | J5: Sala de aula
B6: Língua Estrangeira Moderna - Inglês | C6: ING | D6: T/P | E6: 1 | F6: 2 | G6: 76 | H6: 63.33333333 | I6: Inglês | J6: Sala de aula
B7: Artes | C7: ART | D7: T/P | E7: 1 | F7: 0 | G7: 0 | H7: 0 | I7: Artes | J7: Ginásio
B8: Corpo e Arte | C8: CPA | D8: T/P | E8: 1 | F8: 2 | G8: 76 | H8: 63.33333333 | I8: Educação física | J8: Ginásio
B9: Educação Física e Saúde | C9: EFS | D9: T/P | E9: 1 | F9: 0 | G9: 0 | H9: 0 | I9: Educação física | J9: Ginásio
B10: Educação Física e Esportes | C10: EFE | D10: T/P | E10: 1 | F10: 2 | G10: 76 | H10: 63.33333333 | I10: Educação física | J10: Sala de aula
B11: Matemática A | C11: MAA | D11: T | E11: 1 | F11: 2 | G11: 76 | H11: 63.33333333 | I11: Matemática | J11: Sala de aula
B12: Matemática B | C12: MAB | D12: T | E12: 1 | F12: 2 | G12: 76 | H12: 63.33333333 | I12: Matemática | J12: Sala de aula
B13: Métodos Cientificos | C13: MCN | D13: T | E13: 1 | F13: 2 | G13: 76 | H13: 63.33333333 | I13: Biologia | J13: Sala de aula
B14: Biologia | C14: BIO | D14: T | E14: 1 | F14: 0 | G14: 0 | H14: 0 | I14: Biologia | J14: Sala de aula
B15: Física | C15: FIS | D15: T | E15: 1 | F15: 2 | G15: 76 | H15: 63.33333333 | I15: Física | J15: Sala de aula | O15: Língua Portuguesa e Literaturas | P15: LPL | Q15: T | R15: 1 | S15: 4
B16: Química | C16: QUI | D16: T | E16: 1 | F16: 2 | G16: 76 | H16: 63.33333333 | I16: Química | J16: Sala de aula | O16: Língua Estrangeira Moderna - Inglês | P16: ING | Q16: T/P | R16: 1 | S16: 2
B17: História | C17: HIS | D17: T | E17: 1 | F17: 0 | G17: 0 | H17: 0 | I17: História | J17: Sala de aula | O17: Artes | P17: ART | Q17: T/P | R17: 1 | S17: 0
B18: Geografia | C18: GEO | D18: T | E18: 1 | F18: 0 | G18: 0 | H18: 0 | I18: Geografia | J18: Sala de aula | O18: Corpo e Arte | P18: CPA | Q18: T/P | R18: 1 | S18: 2
B19: Filosofia | C19: FIL | D19: T | E19: 1 | F19: 0 | G19: 0 | H19: 0 | I19: Filosofia | J19: Sala de aula | O19: Educação Física e Saúde | P19: EFS | Q19: T/P | R19: 1 | S19: 0
B20: Sociologia | C20: SOC | D20: T | E20: 1 | F20: 0 | G20: 0 | H20: 0 | I20: Sociologia | J20: Sala de aula | O20: Educação Física e Esportes | P20: EFE | Q20: T/P | R20: 1 | S20: 2
B21: Estudos sobre o trabalho A | C21: ETA | D21: T | E21: 1 | F21: 2 | G21: 76 | H21: 63.33333333 | I21: História | J21: Sala de aula | O21: Matemática A | P21: MAA | Q21: T | R21: 1 | S21: 2
B22: Inglês para fins específicos | C22: IFE | D22: T | E22: 1 | F22: 0 | G22: 0 | H22: 0 | I22: Inglês | J22: Sala de aula | O22: Matemática B | P22: MAB | Q22: T | R22: 1 | S22: 2
B23: Eletricidade teórica | C23: ELT | D23: T | E23: 1 | F23: 2 | G23: 76 | H23: 63.33333333 | I23: Automação | J23: Sala de aula
B24: Eletricidade prática | C24: ELP | D24: P | E24: 2 | F24: 2 | G24: 76 | H24: 63.33333333 | I24: Automação | J24: Laboratório existente
B25: Metrologia e processos industriais | C25: MPI | D25: T | E25: 1 | F25: 2 | G25: 76 | H25: 63.33333333 | I25: Automação | J25: Sala de aula
B26: Estudos sobre o trabalho B | C26: ETB | D26: T | E26: 1 | F26: 2 | G26: 76 | H26: 63.33333333 | I26: História | J26: Sala de aula | O26: Biologia | P26: BIO | Q26: T | R26: 1 | S26: 0
B27: Sistemas digitais | C27: ELD | D27: T/P | E27: 1 | F27: 2 | G27: 76 | H27: 63.33333333 | I27: Automação | J27: Laboratório existente | O27: Física | P27: FIS | Q27: T | R27: 1 | S27: 2
B28: Comandos hidráulico, elétrico e pneumático | C28: CHP | D28: T/P | E28: 2 | F28: 2 | G28: 76 | H28: 63.33333333 | I28: Automação | J28: Laboratório de informática | O28: História | P28: HIS | Q28: T | R28: 1 | S28: 0
A29: 2º Ano | B29: Língua Portuguesa e Literaturas | C29: LPL | D29: T | E29: 1 | F29: 4 | G29: 152 | H29: 126.6666667 | I29: Português | J29: Sala de aula | O29: Filosofia | P29: FIL | Q29: T | R29: 1 | S29: 0
B30: Língua Estrangeira Moderna - Inglês | C30: ING | D30: T/P | E30: 1 | F30: 0 | G30: 0 | H30: 0 | I30: Inglês | J30: Sala de aula | O30: Sociologia | P30: SOC | Q30: T | R30: 1 | S30: 0
B31: Artes | C31: ART | D31: T/P | E31: 1 | F31: 2 | G31: 76 | H31: 63.33333333 | I31: Artes | J31: Sala de aula | O31: Estudos sobre o trabalho A | P31: ETA | Q31: T | R31: 1 | S31: 2
B32: Corpo e Arte | C32: CPA | D32: T/P | E32: 1 | F32: 0 | G32: 0 | H32: 0 | I32: Educação física | J32: Ginásio
B33: Educação Física e Saúde | C33: EFS | D33: T/P | E33: 1 | F33: 2 | G33: 76 | H33: 63.33333333 | I33: Educação física | J33: Ginásio
B34: Educação Física e Esportes | C34: EFE | D34: T/P | E34: 1 | F34: 0 | G34: 0 | H34: 0 | I34: Educação física | J34: Sala de aula
B35: Matemática A | C35: MAA | D35: T | E35: 1 | F35: 2 | G35: 76 | H35: 63.33333333 | I35: Matemática | J35: Sala de aula
B36: Matemática B | C36: MAB | D36: T | E36: 1 | F36: 2 | G36: 76 | H36: 63.33333333 | I36: Matemática | J36: Sala de aula
B37: Métodos Cientificos | C37: MCN | D37: T | E37: 1 | F37: 0 | G37: 0 | H37: 0 | I37: Biologia | J37: Sala de aula
B38: Biologia | C38: BIO | D38: T | E38: 1 | F38: 2 | G38: 76 | H38: 63.33333333 | I38: Biologia | J38: Sala de aula
B39: Física | C39: FIS | D39: T | E39: 1 | F39: 2 | G39: 76 | H39: 63.33333333 | I39: Física | J39: Sala de aula
B40: Química | C40: QUI | D40: T | E40: 1 | F40: 2 | G40: 76 | H40: 63.33333333 | I40: Química | J40: Sala de aula
B41: História | C41: HIS | D41: T | E41: 1 | F41: 2 | G41: 76 | H41: 63.33333333 | I41: História | J41: Sala de aula
B42: Geografia | C42: GEO | D42: T | E42: 1 | F42: 2 | G42: 76 | H42: 63.33333333 | I42: Geografia | J42: Sala de aula
B43: Filosofia | C43: FIL | D43: T | E43: 1 | F43: 2 | G43: 76 | H43: 63.33333333 | I43: Filosofia | J43: Sala de aula
B44: Sociologia | C44: SOC | D44: T | E44: 1 | F44: 2 | G44: 76 | H44: 63.33333333 | I44: Sociologia | J44: Sala de aula
B45: Estudos sobre o trabalho A | C45: ETA | D45: T | E45: 1 | F45: 0 | G45: 0 | H45: 0 | I45: História | J45: Sala de aula
B46: Inglês para fins específicos | C46: IFE | D46: T | E46: 1 | F46: 0 | G46: 0 | H46: 0 | I46: Inglês | J46: Sala de aula
B47: Gestão e empreendedorismo | C47: GEM | D47: T | E47: 1 | F47: 0 | G47: 0 | H47: 0 | I47: Gestão | J47: Sala de aula
B48: Eletricidade teórica | C48: ELT | D48: T | E48: 1 | F48: 0 | G48: 0 | H48: 0 | I48: Automação | J48: Sala de aula
B49: Eletricidade prática | C49: ELP | D49: P | E49: 2 | F49: 0 | G49: 0 | H49: 0 | I49: Automação | J49: Laboratório existente
B50: Física | C50: FIS | D50: T | E50: 1 | F50: 0 | G50: 0 | H50: 0 | I50: Automação | J50: Sala de aula
B51: Metrologia e processos industriais | C51: MPI | D51: T | E51: 1 | F51: 0 | G51: 0 | H51: 0 | I51: Automação | J51: Sala de aula
B52: Projeto integrador | C52: PJI | D52: P | E52: 2 | F52: 0 | G52: 0 | H52: 0 | I52: Automação | J52: Sala de aula
B53: Estudos sobre o trabalho B | C53: ETB | D53: T | E53: 1 | F53: 0 | G53: 0 | H53: 0 | I53: História | J53: Sala de aula
B54: Algoritmos e programação | C54: AFP | D54: T/P | E54: 2 | F54: 2 | G54: 76 | H54: 63.33333333 | I54: Automação | J54: Laboratório de informática | O54: Química | P54: QUI | Q54: T | R54: 1 | S54: 2
B55: Comandos hidráulico, elétrico e pneumático | C55: IEP | D55: P | E55: 2 | F55: 2 | G55: 76 | H55: 63.33333333 | I55: Automação | J55: Laboratório existente
B56: Eletrônica analógica | C56: EAT | D56: T | E56: 1 | F56: 2 | G56: 76 | H56: 63.33333333 | I56: AUtomação | J56: Sala de aula
B57: Eletrônica analógica prática | C57: EAP | D57: P | E57: 2 | F57: 2 | G57: 76 | H57: 63.33333333 | I57: Automação | J57: Laboratório existente
B58: Instrumentação | C58: INS | D58: T/P | E58: 2 | F58: 2 | G58: 76 | H58: 63.33333333 | I58: Automação | J58: Laboratório inexistente
B59: Máquinas e Comandos Elétricos | C59: MIC | D59: T/P | E59: 2 | F59: 2 | G59: 76 | H59: 63.33333333 | I59: Automação | J59: Laboratório de informática
A60: 3º Ano | B60: Língua Portuguesa e Literaturas | C60: LPL | D60: T | E60: 1 | F60: 4 | G60: 152 | H60: 126.6666667 | I60: Português | J60: Sala de aula
B61: Língua Estrangeira Moderna - Inglês | C61: ING | D61: T/P | E61: 1 | F61: 0 | G61: 0 | H61: 0 | I61: Inglês | J61: Sala de aula
B62: Artes | C62: ART | D62: T/P | E62: 1 | F62: 2 | G62: 76 | H62: 63.33333333 | I62: Artes | J62: Sala de aula
B63: Corpo e Arte | C63: CPA | D63: T/P | E63: 1 | F63: 2 | G63: 76 | H63: 63.33333333 | I63: Educação física | J63: Ginásio
B64: Educação Física e Saúde | C64: EFS | D64: T/P | E64: 1 | F64: 0 | G64: 0 | H64: 0 | I64: Educação física | J64: Ginásio
B65: Educação Física e Esportes | C65: EFE | D65: T/P | E65: 1 | F65: 0 | G65: 0 | H65: 0 | I65: Educação física | J65: Sala de aula
B66: Matemática A | C66: MAA | D66: T | E66: 1 | F66: 2 | G66: 76 | H66: 63.33333333 | I66: Matemática | J66: Sala de aula
B67: Matemática B | C67: MAB | D67: T | E67: 1 | F67: 2 | G67: 76 | H67: 63.33333333 | I67: Matemática | J67: Sala de aula
B68: Métodos Cientificos | C68: MCN | D68: T | E68: 1 | F68: 0 | G68: 0 | H68: 0 | I68: Biologia | J68: Sala de aula
B69: Biologia | C69: BIO | D69: T | E69: 1 | F69: 2 | G69: 76 | H69: 63.33333333 | I69: Biologia | J69: Sala de aula
B70: Física | C70: FIS | D70: T | E70: 1 | F70: 0 | G70: 0 | H70: 0 | I70: Física | J70: Sala de aula
B71: Química | C71: QUI | D71: T | E71: 1 | F71: 2 | G71: 76 | H71: 63.33333333 | I71: Química | J71: Sala de aula
B72: História | C72: HIS | D72: T | E72: 1 | F72: 2 | G72: 76 | H72: 63.33333333 | I72: História | J72: Sala de aula
B73: Geografia | C73: GEO | D73: T | E73: 1 | F73: 2 | G73: 76 | H73: 63.33333333 | I73: Geografia | J73: Sala de aula
B74: Filosofia | C74: FIL | D74: T | E74: 1 | F74: 2 | G74: 76 | H74: 63.33333333 | I74: Filosofia | J74: Sala de aula
B75: Sociologia | C75: SOC | D75: T | E75: 1 | F75: 2 | G75: 76 | H75: 63.33333333 | I75: Sociologia | J75: Sala de aula
B76: Estudos sobre o trabalho A | C76: ETA | D76: T | E76: 1 | F76: 0 | G76: 0 | H76: 0 | I76: História | J76: Sala de aula
B77: Inglês para fins específicos | C77: IFE | D77: T | E77: 1 | F77: 2 | G77: 76 | H77: 63.33333333 | I77: Inglês | J77: Sala de aula
B78: Gestão e empreendedorismo | C78: GEM | D78: T | E78: 1 | F78: 2 | G78: 76 | H78: 63.33333333 | I78: Gestão | J78: Sala de aula
B79: Eletricidade teórica | C79: ELT | D79: T | E79: 1 | F79: 0 | G79: 0 | H79: 0 | I79: Automação | J79: Sala de aula
B80: Eletricidade prática | C80: ELP | D80: P | E80: 2 | F80: 0 | G80: 0 | H80: 0 | I80: Automação | J80: Laboratório existente
B81: Física | C81: FIS | D81: T | E81: 1 | F81: 2 | G81: 76 | H81: 63.33333333 | I81: Física | J81: Sala de aula
B82: Metrologia e processos industriais | C82: MPI | D82: T | E82: 1 | F82: 0 | G82: 0 | H82: 0 | I82: Automação | J82: Sala de aula
B83: Projeto integrador | C83: PJI | D83: P | E83: 2 | F83: 2 | G83: 76 | H83: 63.33333333 | I83: Automação | J83: Sala de aula
B84: Estudos sobre o trabalho B | C84: ETB | D84: T | E84: 1 | F84: 0 | G84: 0 | H84: 0 | I84: História | J84: Sala de aula
B85: Sistemas Microcontrolados | C85: COP | D85: T/P | E85: 2 | F85: 2 | G85: 76 | H85: 63.33333333 | I85: Automação | J85: Laboratório de informática
B86: Gestão e empreendedorismo | C86: RPI | D86: T/P | E86: 1 | F86: 2 | G86: 76 | H86: 63.33333333 | I86: Automação | J86: Laboratório de informática
B87: Sistemas programáveis de controle | C87: SPC | D87: T/P | E87: 2 | F87: 4 | G87: 152 | H87: 126.6666667 | I87: Automação | J87: Laboratório de informática
A88: LIBRAS (optativo) | C88: LIB | D88: T | E88: 1 | F88: 2 | G88: 76 | H88: 63.33333333 | I88: LIBRAS | J88: Sala de aula
A90: Espanhol (optativo) | C90: ESP | D90: T | E90: 1 | F90: 2 | G90: =F90*$F$2 -> 76 | H90: =(G90)*$C$97/60 -> 63.33333333 | I90: Espanhol | J90: Sala de aula
A91: Total acumulado de aulas | F91: =SUM(F5:F87)*F2 -> 4256 | G91: =SUM(G5:G90) -> 4408
A92: Total acumulado de horas | F92: =(F91*$C$97)/60 -> 3546.666667 | G92: - | H92: =SUM(F92+#REF!+#REF!) -> #REF!
A93: Carga Horária Total Mínima Obrigatória (Sem estágio) | H93: =H92 -> #REF!
A94: Estágio Supervisionado (optativo) | H94: 150
A95: Pesquisa e extensão | H95: 80
A96: Carga Horária Total Máxima: | H96: =ROUNDDOWN(SUM(H93:H95,H88:H90),0) -> #REF!
A97: Observações: As aulas serão de: | C97: 50 | D97: minutos.
F99: =SUMPRODUCT(H5:H87,E5:E87)/F92 -> 1.196428571

Sheet IntMec (2018)
A2: Técnico Integrado em Mecânica (grade 2019+) | D2: Núm. de semanas: | F2: 38
B3: Componente Curricular | C3: Códigos | D3: Teoria/ | E3: Nº | F3: Aulas/semana | G3: Total | H3: Total | I3: Área (docente) | J3: Ambiente
D4: Prática | E4: Prof. | F4: 1º | G4: Aulas | H4: Horas
A5: 1º Ano | B5: Língua Portuguesa e Literatura | C5: LPL | D5: T | E5: 1 | F5: 4 | G5: =F5*$F$2 -> 152 | H5: =(G5)*$C$85/60 -> 126.6666667 | I5: Português | J5: Sala de aula
B6: Artes | C6: ART | D6: T/P | E6: 1 | F6: 0 | G6: 0 | H6: 0 | I6: Artes | J6: Sala de aula
B7: Corpo e Arte | C7: CPA | D7: T/P | E7: 1 | F7: 2 | G7: 76 | H7: 63.33333333 | I7: Artes | J7: Ginásio
B8: Educação Física e Esportes | C8: EFE | D8: T/P | E8: 1 | F8: 2 | G8: 76 | H8: 63.33333333 | I8: Educação física | J8: Ginásio
B9: Inglês | C9: ING | D9: T/P | E9: 1 | F9: 2 | G9: 76 | H9: 63.33333333 | I9: Inglês | J9: Sala de aula
B10: Matemática A | C10: MAA | D10: T | E10: 1 | F10: 2 | G10: 76 | H10: 63.33333333 | I10: Matemática | J10: Sala de aula
B11: Matemática B | C11: MAB | D11: T | E11: 1 | F11: 2 | G11: 76 | H11: 63.33333333 | I11: Matemática | J11: Sala de aula
B12: Métodos científicos | C12: MTC | D12: T | E12: 1 | F12: 2 | G12: 76 | H12: 63.33333333 | I12: Química | J12: Sala de aula
B13: Biologia e Programa da Saúde | C13: BIO | D13: T | E13: 1 | F13: 0 | G13: 0 | H13: 0 | I13: Biologia | J13: Sala de aula
B14: Física | C14: FIS | D14: T | E14: 1 | F14: 2 | G14: 76 | H14: 63.33333333 | I14: Física | J14: Sala de aula
B15: Química | C15: QUI | D15: T | E15: 1 | F15: 2 | G15: 76 | H15: 63.33333333 | I15: Química | J15: Sala de aula
B16: História | C16: HIS | D16: T | E16: 1 | F16: 0 | G16: 0 | H16: 0 | I16: História | J16: Sala de aula
B17: Geografia | C17: GEO | D17: T | E17: 1 | F17: 0 | G17: 0 | H17: 0 | I17: Geografia | J17: Sala de aula
B18: Filosofia | C18: FIL | D18: T | E18: 1 | F18: 0 | G18: 0 | H18: 0 | I18: Filosofia | J18: Sala de aula
B19: Sociologia | C19: SOC | D19: T | E19: 1 | F19: 0 | G19: 0 | H19: 0 | I19: Sociologia | J19: Sala de aula
B20: Inglês para fins específicos | C20: IFE | D20: T | E20: 1 | F20: 0 | G20: 0 | H20: 0 | I20: Inglês | J20: Sala de aula
B21: Estudos sobre o Trabalho | C21: EST | D21: T | E21: 1 | F21: 4 | G21: 152 | H21: 126.6666667 | I21: História | J21: Sala de aula
B22: Tópicos em Matemática e Ciências da Natureza Aplicados à Mecânica | C22: TMC | D22: T | E22: 1 | F22: 2 | G22: 76 | H22: 63.33333333 | I22: Mecânica | J22: Sala de aula
B23: Educação física, saúde e segurança do trabalhador | C23: EFT | D23: T | E23: 1 | F23: 0 | G23: 0 | H23: 0 | I23: Educação física | J23: Sala de aula
B24: Siderurgia e fundição | C24: SEF | D24: T | E24: 1 | F24: 2 | G24: 76 | H24: 63.33333333 | I24: Mecânica | J24: Sala de aula
B25: Metrologia e lógica de programação | C25: MEM | D25: T/P | E25: 2 | F25: 2 | G25: 76 | H25: 63.33333333 | I25: Mecânica | J25: Laboratório existente
B26: Desenho Técnico Mecânico, CAD e Prototipagem | C26: DTP | D26: T/P | E26: 2 | F26: 4 | G26: 152 | H26: 126.6666667 | I26: Mecânica | J26: Laboratório de informática
B27: Ensaios Mecânicos | C27: ESM | D27: T/P | E27: 1 | F27: 2 | G27: 76 | H27: 63.33333333 | I27: Mecânica | J27: Laboratório existente
A28: 2º Ano | B28: Língua Portuguesa e Literatura | C28: LPL | D28: T | E28: 1 | F28: 4 | G28: 152 | H28: 126.6666667 | I28: Português | J28: Sala de aula
B29: Artes | C29: ART | D29: T/P | E29: 1 | F29: 2 | G29: 76 | H29: 63.33333333 | I29: Artes | J29: Sala de aula
B30: Corpo e Arte | C30: CPA | D30: T/P | E30: 1 | F30: 0 | G30: 0 | H30: 0 | I30: Educação física | J30: Ginásio
B31: Educação Física e Esportes | C31: EFE | D31: T/P | E31: 1 | F31: 0 | G31: 0 | H31: 0 | I31: Educação física | J31: Ginásio
B32: Inglês | C32: ING | D32: T/P | E32: 1 | F32: 0 | G32: 0 | H32: 0 | I32: Inglês | J32: Sala de aula
B33: Matemática A | C33: MAA | D33: T | E33: 1 | F33: 2 | G33: 76 | H33: 63.33333333 | I33: Matemática | J33: Sala de aula
B34: Matemática B | C34: MAB | D34: T | E34: 1 | F34: 2 | G34: 76 | H34: 63.33333333 | I34: Matemática | J34: Sala de aula
B35: Métodos científicos | C35: MTC | D35: T | E35: 1 | F35: 0 | G35: 0 | H35: 0 | I35: Química | J35: Sala de aula
B36: Biologia e Programa da Saúde | C36: BIO | D36: T | E36: 1 | F36: 2 | G36: 76 | H36: 63.33333333 | I36: Biologia | J36: Sala de aula
B37: Física | C37: FIS | D37: T | E37: 1 | F37: 2 | G37: 76 | H37: 63.33333333 | I37: Física | J37: Sala de aula
B38: Química | C38: QUI | D38: T | E38: 1 | F38: 2 | G38: 76 | H38: 63.33333333 | I38: Química | J38: Sala de aula
B39: História | C39: HIS | D39: T | E39: 1 | F39: 2 | G39: 76 | H39: 63.33333333 | I39: História | J39: Sala de aula
B40: Geografia | C40: GEO | D40: T | E40: 1 | F40: 2 | G40: 76 | H40: 63.33333333 | I40: Geografia | J40: Sala de aula
B41: Filosofia | C41: FIL | D41: T | E41: 1 | F41: 2 | G41: 76 | H41: 63.33333333 | I41: Filosofia | J41: Sala de aula
B42: Sociologia | C42: SOC | D42: T | E42: 1 | F42: 2 | G42: 76 | H42: 63.33333333 | I42: Sociologia | J42: Sala de aula
B43: Inglês para fins específicos | C43: IFE | D43: T | E43: 1 | F43: 0 | G43: 0 | H43: 0 | I43: Inglês | J43: Sala de aula
B44: Estudos sobre o Trabalho | C44: EST | D44: T | E44: 1 | F44: 0 | G44: 0 | H44: 0 | I44: História | J44: Sala de aula
B45: Tópicos em Matemática e Ciências da Natureza Aplicados à Mecânica | C45: TMC | D45: T | E45: 1 | F45: 0 | G45: 0 | H45: 0 | I45: Mecânica | J45: Sala de aula
B46: Educação física, saúde e segurança do trabalhador | C46: EFT | D46: T | E46: 1 | F46: 2 | G46: 76 | H46: 63.33333333 | I46: Educação física | J46: Sala de aula
B47: Processos de usinagem | C47: USI | D47: T/P | E47: 2 | F47: 4 | G47: 152 | H47: 126.6666667 | I47: Mecânica | J47: Sala de aula
B48: Conformação mecânica e tratamentos térmicos | C48: CMT | D48: T | E48: 1 | F48: 2 | G48: 76 | H48: 63.33333333 | I48: Mecânica | J48: Sala de aula
B49: Hidráulica e pneumática | C49: HEP | D49: T/P | E49: 2 | F49: 4 | G49: 152 | H49: 126.6666667 | I49: Mecânica | J49: Laboratório existente
B50: Gestão e empreendedorismo | C50: GEP | D50: T | E50: 1 | F50: 2 | G50: 76 | H50: 63.33333333 | I50: Gestão | J50: Sala de aula
B51: Processos de soldagem | C51: SOL | D51: T/P | E51: 2 | F51: 2 | G51: 76 | H51: 63.33333333 | I51: Mecânica | J51: Laboratório existente
A52: 3º Ano | B52: Língua Portuguesa e Literatura | C52: LPL | D52: T | E52: 1 | F52: 4 | G52: 152 | H52: 126.6666667 | I52: Português | J52: Sala de aula
B53: Artes | C53: ART | D53: T/P | E53: 1 | F53: 2 | G53: 76 | H53: 63.33333333 | I53: Artes | J53: Sala de aula
B54: Corpo e Arte | C54: CPA | D54: T/P | E54: 1 | F54: 2 | G54: 76 | H54: 63.33333333 | I54: Educação física | J54: Ginásio
B55: Educação Física e Esportes | C55: EFE | D55: T/P | E55: 1 | F55: 0 | G55: 0 | H55: 0 | I55: Educação física | J55: Ginásio
B56: Inglês | C56: ING | D56: T/P | E56: 1 | F56: 0 | G56: 0 | H56: 0 | I56: Inglês | J56: Sala de aula
B57: Matemática A | C57: MAA | D57: T | E57: 1 | F57: 2 | G57: 76 | H57: 63.33333333 | I57: Matemática | J57: Sala de aula
B58: Matemática B | C58: MAB | D58: T | E58: 1 | F58: 2 | G58: 76 | H58: 63.33333333 | I58: Matemática | J58: Sala de aula
B59: Métodos científicos | C59: MTC | D59: T | E59: 1 | F59: 0 | G59: 0 | H59: 0 | I59: Química | J59: Sala de aula
B60: Biologia e Programa da Saúde | C60: BIO | D60: T | E60: 1 | F60: 2 | G60: 76 | H60: 63.33333333 | I60: Biologia | J60: Sala de aula
B61: Física | C61: FIS | D61: T | E61: 1 | F61: 2 | G61: 76 | H61: 63.33333333 | I61: Física | J61: Sala de aula
B62: Química | C62: QUI | D62: T | E62: 1 | F62: 2 | G62: 76 | H62: 63.33333333 | I62: Química | J62: Sala de aula
B63: História | C63: HIS | D63: T | E63: 1 | F63: 2 | G63: 76 | H63: 63.33333333 | I63: História | J63: Sala de aula
B64: Geografia | C64: GEO | D64: T | E64: 1 | F64: 2 | G64: 76 | H64: 63.33333333 | I64: Geografia | J64: Sala de aula
B65: Filosofia | C65: FIL | D65: T | E65: 1 | F65: 2 | G65: 76 | H65: 63.33333333 | I65: Filosofia | J65: Sala de aula
B66: Sociologia | C66: SOC | D66: T | E66: 1 | F66: 2 | G66: 76 | H66: 63.33333333 | I66: Sociologia | J66: Sala de aula
B67: Inglês para fins específicos | C67: IFE | D67: T | E67: 1 | F67: 2 | G67: 76 | H67: 63.33333333 | I67: Inglês | J67: Sala de aula
B68: Estudos sobre o Trabalho | C68: EST | D68: T | E68: 1 | F68: 0 | G68: 0 | H68: 0 | I68: História | J68: Sala de aula
B69: Tópicos em Matemática e Ciências da Natureza Aplicados à Mecânica | C69: TMC | D69: T | E69: 1 | F69: 0 | G69: 0 | H69: 0 | I69: Mecânica | J69: Sala de aula
B70: Educação física, saúde e segurança do trabalhador | C70: EFT | D70: T | E70: 1 | F70: 0 | G70: 0 | H70: 0 | I70: Educação física | J70: Sala de aula
B71: CNC e CAM | C71: CNC | D71: T/P | E71: 2 | F71: 3 | G71: 114 | H71: 95 | I71: Mecânica | J71: Sala de aula
B72: Automação e Robótica | C72: ERA | D72: T/P | E72: 2 | F72: 2 | G72: 76 | H72: 63.33333333 | I72: Mecânica | J72: Laboratório de informática
B73: Manutenção Mecânica e Máquinas Térmicas | C73: MMT | D73: T | E73: 1 | F73: 2 | G73: 76 | H73: 63.33333333 | I73: Mecânica | J73: Sala de aula
B74: Resistência dos Materiais, Elementos de Máquinas e CAE | C74: REM | D74: T | E74: 1 | F74: 3 | G74: 114 | H74: 95 | I74: Mecânica | J74: Sala de aula
B75: Projeto Integrador | C75: PJI | D75: T/P | E75: 2 | F75: 2 | G75: 76 | H75: 63.33333333 | I75: Mecânica | J75: Laboratório de informática
A76: LIBRAS (optativo) | C76: LIB | D76: T | E76: 1 | F76: 2 | G76: 76 | H76: 63.33333333 | I76: LIBRAS | J76: Sala de aula
A78: Espanhol (optativo) | C78: ESP | D78: T | E78: 1 | F78: 2 | G78: =F78*$F$2 -> 76 | H78: =(G78)*$C$85/60 -> 63.33333333 | I78: Espanhol | J78: Sala de aula
A79: Total acumulado de aulas | F79: =SUM(F5:F75)*F2 -> 4408 | G79: =SUM(G5:G78) -> 4560
A80: Total acumulado de horas | F80: =(F79*$C$85)/60 -> 3673.333333 | G80: - | H80: =SUM(F80+#REF!+#REF!) -> #REF!
A81: Carga Horária Total Mínima Obrigatória (Sem estágio) | H81: =H80 -> #REF!
A82: Estágio Supervisionado (optativo) | H82: 150
A83: Pesquisa e extensão | H83: 80
A84: Carga Horária Total Máxima: | H84: =ROUNDDOWN(SUM(H81:H83,H76:H78),0) -> #REF!
A85: Observações: As aulas serão de: | C85: 50 | D85: minutos.
F86: =SUMPRODUCT(H5:H75,E5:E75)/F80 -> 1.198275862

Sheet IntMec (hidden)
A2: Técnico Integrado em Mecânica | D2: Núm. de semanas: | F2: 38
B3: Componente Curricular | C3: Códigos | D3: Teoria/ | E3: Nº | F3: Aulas/semana | G3: Total | H3: Total | I3: Área (docente) | J3: Ambiente
D4: Prática | E4: Prof. | F4: 1º | G4: Aulas | H4: Horas
A5: 1° Ano | B5: Tecnologia dos Materiais | C5: TCM | D5: T | E5: 1 | F5: 2 | G5: =F5*$F$2 -> 76 | H5: =(G5)*$C$64/60 -> 63.33333333 | I5: Mecânica | J5: Sala de aula
B6: Metrologia e Ensaios Mecânicos | C6: MEM | D6: T/P | E6: 2 | F6: 4 | G6: 152 | H6: 126.6666667 | I6: Mecânica | J6: Laboratório existente
B7: Língua Portuguesa e Literatura | C7: LPL | D7: T | E7: 1 | F7: 4 | G7: 152 | H7: 126.6666667 | I7: Português | J7: Sala de aula
B8: Arte | C8: ART | D8: T/P | E8: 1 | F8: 2 | G8: 76 | H8: 63.33333333 | I8: Artes | J8: Sala de aula
B9: Educação Física | C9: EFI | D9: T/P | E9: 1 | F9: 2 | G9: 76 | H9: 63.33333333 | I9: Educação física | J9: Sala de aula
B10: Inglês | C10: ING | D10: T/P | E10: 1 | F10: 2 | G10: 76 | H10: 63.33333333 | I10: Inglês | J10: Sala de aula
B11: Matemática | C11: MAT | D11: T | E11: 1 | F11: 4 | G11: 152 | H11: 126.6666667 | I11: Matemática | J11: Sala de aula
B12: Biologia | C12: BIO | D12: T | E12: 1 | F12: 2 | G12: 76 | H12: 63.33333333 | I12: Biologia | J12: Sala de aula
B13: Física | C13: FIS | D13: T | E13: 1 | F13: 2 | G13: 76 | H13: 63.33333333 | I13: Física | J13: Sala de aula
B14: Química | C14: Qui | D14: T | E14: 1 | F14: 2 | G14: 76 | H14: 63.33333333 | I14: Química | J14: Sala de aula
B15: História | C15: HIS | D15: T | E15: 1 | F15: 2 | G15: 76 | H15: 63.33333333 | I15: História | J15: Sala de aula
B16: Geografia | C16: GEO | D16: T | E16: 1 | F16: 2 | G16: 76 | H16: 63.33333333 | I16: Geografia | J16: Sala de aula
B17: Filosofia | C17: FIL | D17: T | E17: 1 | F17: 2 | G17: 76 | H17: 63.33333333 | I17: Filosofia | J17: Sala de aula
B18: Sociologia | C18: SOC | D18: T | E18: 1 | F18: 2 | G18: 76 | H18: 63.33333333 | I18: Sociologia | J18: Sala de aula
B19: Desenho Mecânico e Assistido por Computador | C19: DTM | D19: T/P | E19: 2 | F19: 4 | G19: 152 | H19: 126.6666667 | I19: Mecânica | J19: Laboratório de informática
B20: Organização e Segurança e Gestão Empresarial | C20: OSG | D20: T | E20: 2 | F20: 2 | G20: 76 | H20: 63.33333333 | I20: Mecânica | J20: Sala de aula
A21: 2º Ano | B21: Processos de Usinagem | C21: USI | D21: T/P | E21: 2 | F21: 4 | G21: 152 | H21: 126.6666667 | I21: Mecânica | J21: Laboratório existente
B22: Processos Metalúrgicos de Fabricação | C22: PMF | D22: T/P | E22: 2 | F22: 2 | G22: 76 | H22: 63.33333333 | I22: Mecânica | J22: Laboratório existente
B23: Língua Portuguesa e Literatura | C23: LPL | D23: T | E23: 1 | F23: 4 | G23: 152 | H23: 126.6666667 | I23: Português | J23: Sala de aula
B24: Arte | C24: ART | D24: T/P | E24: 1 | F24: 2 | G24: 76 | H24: 63.33333333 | I24: Artes | J24: Sala de aula
B25: Educação Física | C25: EFI | D25: T/P | E25: 1 | F25: 2 | G25: 76 | H25: 63.33333333 | I25: Educação física | J25: Sala de aula
B26: Inglês | C26: ING | D26: T/P | E26: 1 | F26: 2 | G26: 76 | H26: 63.33333333 | I26: Inglês | J26: Sala de aula
B27: Matemática | C27: MAT | D27: T | E27: 1 | F27: 4 | G27: 152 | H27: 126.6666667 | I27: Matemática | J27: Sala de aula
B28: Biologia | C28: BIO | D28: T | E28: 1 | F28: 2 | G28: 76 | H28: 63.33333333 | I28: Biologia | J28: Sala de aula
B29: Física | C29: FIS | D29: T | E29: 1 | F29: 2 | G29: 76 | H29: 63.33333333 | I29: Física | J29: Sala de aula
B30: Química | C30: Qui | D30: T | E30: 1 | F30: 2 | G30: 76 | H30: 63.33333333 | I30: Química | J30: Sala de aula
B31: História | C31: HIS | D31: T | E31: 1 | F31: 2 | G31: 76 | H31: 63.33333333 | I31: História | J31: Sala de aula
B32: Geografia | C32: GEO | D32: T | E32: 1 | F32: 2 | G32: 76 | H32: 63.33333333 | I32: Geografia | J32: Sala de aula
B33: Filosofia | C33: FIL | D33: T | E33: 1 | F33: 2 | G33: 76 | H33: 63.33333333 | I33: Filosofia | J33: Sala de aula
B34: Sociologia | C34: SOC | D34: T | E34: 1 | F34: 2 | G34: 76 | H34: 63.33333333 | I34: Sociologia | J34: Sala de aula
B35: Hidráulica e Pneumática | C35: HEP | D35: T/P | E35: 2 | F35: 4 | G35: 152 | H35: 126.6666667 | I35: Mecânica | J35: Laboratório existente
B36: Tratamentos Térmicos e Metalografia | C36: TTM | D36: T/P | E36: 1 | F36: 2 | G36: 76 | H36: 63.33333333 | I36: Mecânica | J36: Laboratório existente
B37: Processo de Soldagem | C37: SOL | D37: T/P | E37: 2 | F37: 2 | G37: 76 | H37: 63.33333333 | I37: Mecânica | J37: Laboratório existente
A38: 3° Ano | B38: Eletrotécnica Industrial e Automação | C38: EIA | D38: T/P | E38: 1 | F38: 2 | G38: 76 | H38: 63.33333333 | I38: Mecânica | J38: Laboratório existente
B39: Comando Numérico Computadorizado | C39: CNC | D39: T/P | E39: 2 | F39: 4 | G39: 152 | H39: 126.6666667 | I39: Mecânica | J39: Laboratório existente
B40: Resistência dos Materiais e Elementos de Máquinas | C40: REM | D40: T | E40: 1 | F40: 4 | G40: 152 | H40: 126.6666667 | I40: Mecânica | J40: Sala de aula
B41: Língua Portuguesa e Literatura | C41: LPL | D41: T | E41: 1 | F41: 4 | G41: 152 | H41: 126.6666667 | I41: Português | J41: Sala de aula
B42: Arte | C42: ART | D42: T/P | E42: 1 | F42: 2 | G42: 76 | H42: 63.33333333 | I42: Artes | J42: Sala de aula
B43: Educação Física | C43: EFI | D43: T/P | E43: 1 | F43: 2 | G43: 76 | H43: 63.33333333 | I43: Educação física | J43: Sala de aula
B44: Inglês | C44: ING | D44: T/P | E44: 1 | F44: 2 | G44: 76 | H44: 63.33333333 | I44: Inglês | J44: Sala de aula
B45: Matemática | C45: MAT | D45: T | E45: 1 | F45: 4 | G45: 152 | H45: 126.6666667 | I45: Matemática | J45: Sala de aula
B46: Biologia | C46: BIO | D46: T | E46: 1 | F46: 2 | G46: 76 | H46: 63.33333333 | I46: Biologia | J46: Sala de aula
B47: Física | C47: FIS | D47: T | E47: 1 | F47: 2 | G47: 76 | H47: 63.33333333 | I47: Física | J47: Sala de aula
B48: Química | C48: Qui | D48: T | E48: 1 | F48: 2 | G48: 76 | H48: 63.33333333 | I48: Química | J48: Sala de aula
B49: História | C49: HIS | D49: T | E49: 1 | F49: 2 | G49: 76 | H49: 63.33333333 | I49: História | J49: Sala de aula
B50: Geografia | C50: GEO | D50: T | E50: 1 | F50: 2 | G50: 76 | H50: 63.33333333 | I50: Geografia | J50: Sala de aula
B51: Filosofia | C51: FIL | D51: T | E51: 1 | F51: 2 | G51: 76 | H51: 63.33333333 | I51: Filosofia | J51: Sala de aula
B52: Sociologia | C52: SOC | D52: T | E52: 1 | F52: 2 | G52: 76 | H52: 63.33333333 | I52: Sociologia | J52: Sala de aula
B53: Robótica/CAE/CAM | C53: RCC | D53: T/P | E53: 2 | F53: 2 | G53: 76 | H53: 63.33333333 | I53: Mecânica | J53: Laboratório de informática
B54: Manutenção e Máquinas Térmicas | C54: MMT | D54: T/P | E54: 1 | F54: 2 | G54: 76 | H54: 63.33333333 | I54: Mecânica | J54: Laboratório existente
B55: Projeto Integrador | C55: PJI | D55: T/P | E55: 2 | F55: 2 | G55: 76 | H55: 63.33333333 | I55: Mecânica | J55: Laboratório existente
A56: LIBRAS (optativo) | C56: LIB | D56: T/P | E56: 1 | G56: 0 | H56: 0 | I56: LIBRAS | J56: Sala de aula
A57: Espanhol (optativo) | C57: ESP | D57: T/P | E57: 1 | G57: 0 | H57: 0 | I57: Espanhol | J57: Sala de aula
A58: Total acumulado de aulas | F58: =SUM(F5:F55) -> 126 | G58: =SUM(G5:G57) -> 4788 | H58: 3990
A59: Total acumulado de horas | F59: =(F58*#REF!*$C$64)/60 -> #REF! | G59: - | H59: =SUM(F59+#REF!+#REF!) -> #REF!
A60: Carga Horária Total Mínima Obrigatória (Sem estágio) | H60: =H59 -> #REF!
A61: Estágio Supervisionado (optativo) | H61: 360
A62: Trabalho de Conclusão de Curso (TCC) (Optativo) | H62: 80
A63: Carga Horária Total Máxima: | H63: =ROUNDDOWN(SUM(H60:H62,H56:H57),0) -> #REF!
A64: Observações: As aulas serão de: | C64: 50 | D64: minutos.

Sheet IntInf (hidden)
A2: Técnico Integrado em Informática | D2: Núm. de semanas: | F2: 38
B3: Componente Curricular | C3: Códigos | D3: Teoria/ | E3: Nº | F3: Aulas/semana | G3: Total | H3: Total | I3: Área (docente) | J3: Ambiente
D4: Prática | E4: Prof. | F4: 1º | G4: Aulas | H4: Horas
A5: 1° Ano | B5: Algoritmos e Programação | C5: ALP | D5: T/P | E5: 2 | F5: 4 | G5: =SUM(F5)*F$2 -> 152 | H5: =(G5)*$C$60/60 -> 126.6666667 | I5: Programação | J5: Laboratório de informática
B6: Organização de Computadores e Sistemas Operacionais | C6: OCS | D6: T/P | E6: 2 | F6: 2 | G6: 76 | H6: 63.33333333 | I6: Redes | J6: Laboratório de informática
B7: Programação para Web I | C7: PWA | D7: T/P | E7: 2 | F7: 2 | G7: 76 | H7: 63.33333333 | I7: Programação | J7: Laboratório de informática
B8: Rede de Computadores | C8: RDC | D8: T/P | E8: 2 | F8: 4 | G8: 152 | H8: 126.6666667 | I8: Redes | J8: Laboratório de informática
B9: Língua Portuguesa e Literatura | C9: LPL | D9: T | E9: 1 | F9: 4 | G9: 152 | H9: 126.6666667 | I9: Português | J9: sala de aula
B10: Arte | C10: ART | D10: T/P | E10: 1 | F10: 2 | G10: 76 | H10: 63.33333333 | I10: Artes | J10: sala de aula
B11: Educação Física | C11: EFI | D11: T/P | E11: 1 | F11: 2 | G11: 76 | H11: 63.33333333 | I11: Educação física | J11: sala de aula
B12: Inglês | C12: ING | D12: T/P | E12: 1 | F12: 2 | G12: 76 | H12: 63.33333333 | I12: Inglês | J12: sala de aula
B13: Matemática | C13: MAT | D13: T | E13: 1 | F13: 4 | G13: 152 | H13: 126.6666667 | I13: Matemática | J13: sala de aula
B14: Biologia | C14: BIO | D14: T | E14: 1 | F14: 2 | G14: 76 | H14: 63.33333333 | I14: Biologia | J14: sala de aula
B15: Física | C15: FIS | D15: T | E15: 1 | F15: 2 | G15: 76 | H15: 63.33333333 | I15: Física | J15: sala de aula
B16: Química | C16: Qui | D16: T | E16: 1 | F16: 2 | G16: 76 | H16: 63.33333333 | I16: Química | J16: sala de aula
B17: História | C17: HIS | D17: T | E17: 1 | F17: 2 | G17: 76 | H17: 63.33333333 | I17: História | J17: sala de aula
B18: Geografia | C18: GEO | D18: T | E18: 1 | F18: 2 | G18: 76 | H18: 63.33333333 | I18: Geografia | J18: sala de aula
B19: Filosofia | C19: FIL | D19: T | E19: 1 | F19: 2 | G19: 76 | H19: 63.33333333 | I19: Filosofia | J19: sala de aula
B20: Sociologia | C20: SOC | D20: T | E20: 1 | F20: 2 | G20: 76 | H20: 63.33333333 | I20: Sociologia | J20: sala de aula
A21: 2º Ano | B21: Banco de Dados | C21: BDD | D21: T/P | E21: 2 | F21: 4 | G21: 152 | H21: 126.6666667 | I21: Programação | J21: Laboratório de informática
B22: Análise e Projetos de Sistemas | C22: APS | D22: T/P | E22: 2 | F22: 4 | G22: 152 | H22: 126.6666667 | I22: Redes | J22: Laboratório de informática
B23: Linguagem de Programação I | C23: LPA | D23: T/P | E23: 2 | F23: 4 | G23: 152 | H23: 126.6666667 | I23: Programação | J23: Laboratório de informática
B24: Programação para Web II | C24: PWB | D24: T/P | E24: 2 | F24: 2 | G24: 76 | H24: 63.33333333 | I24: Programação | J24: Laboratório de informática
B25: Língua Portuguesa e Literatura | C25: LPL | D25: T | E25: 1 | F25: 4 | G25: 152 | H25: 126.6666667 | I25: Português | J25: sala de aula
B26: Arte | C26: ART | D26: T/P | E26: 1 | F26: 2 | G26: 76 | H26: 63.33333333 | I26: Artes | J26: sala de aula
B27: Educação Física | C27: EFI | D27: T/P | E27: 1 | F27: 2 | G27: 76 | H27: 63.33333333 | I27: Educação física | J27: sala de aula
B28: Inglês | C28: ING | D28: T/P | E28: 1 | F28: 2 | G28: 76 | H28: 63.33333333 | I28: Inglês | J28: sala de aula
B29: Matemática | C29: MAT | D29: T | E29: 1 | F29: 4 | G29: 152 | H29: 126.6666667 | I29: Matemática | J29: sala de aula
B30: Biologia | C30: BIO | D30: T | E30: 1 | F30: 2 | G30: 76 | H30: 63.33333333 | I30: Biologia | J30: sala de aula
B31: Física | C31: FIS | D31: T | E31: 1 | F31: 2 | G31: 76 | H31: 63.33333333 | I31: Física | J31: sala de aula
B32: Química | C32: Qui | D32: T | E32: 1 | F32: 2 | G32: 76 | H32: 63.33333333 | I32: Química | J32: sala de aula
B33: História | C33: HIS | D33: T | E33: 1 | F33: 2 | G33: 76 | H33: 63.33333333 | I33: História | J33: sala de aula
B34: Geografia | C34: GEO | D34: T | E34: 1 | F34: 2 | G34: 76 | H34: 63.33333333 | I34: Geografia | J34: sala de aula
B35: Filosofia | C35: FIL | D35: T | E35: 1 | F35: 2 | G35: 76 | H35: 63.33333333 | I35: Filosofia | J35: sala de aula
B36: Sociologia | C36: SOC | D36: T | E36: 1 | F36: 2 | G36: 76 | H36: 63.33333333 | I36: Sociologia | J36: sala de aula
A37: 3° Ano | B37: Linguagem de Programação II | C37: LPB | D37: T/P | E37: 2 | F37: 4 | G37: 152 | H37: 126.6666667 | I37: Programação | J37: Laboratório de informática
B38: Gestão e Empreendedorismo | C38: GEM | D38: T | E38: 1 | F38: 2 | G38: 76 | H38: 63.33333333 | I38: Gestão | J38: sala de aula
B39: Programação para dispositivos móveis | C39: PDM | D39: T/P | E39: 2 | F39: 2 | G39: 76 | H39: 63.33333333 | I39: Programação | J39: Laboratório de informática
B40: Língua Portuguesa e Literatura | C40: LPL | D40: T | E40: 1 | F40: 4 | G40: 152 | H40: 126.6666667 | I40: Português | J40: sala de aula
B41: Projeto Integrador | C41: PJI | D41: T/P | E41: 2 | F41: 4 | G41: 152 | H41: 126.6666667 | I41: Informática | J41: Laboratório de informática
B42: Arte | C42: ART | D42: T/P | E42: 1 | F42: 2 | G42: 76 | H42: 63.33333333 | I42: Artes | J42: sala de aula
B43: Educação Física | C43: EFI | D43: T/P | E43: 1 | F43: 2 | G43: 76 | H43: 63.33333333 | I43: Educação física | J43: sala de aula
B44: Inglês | C44: ING | D44: T/P | E44: 1 | F44: 2 | G44: 76 | H44: 63.33333333 | I44: Inglês | J44: sala de aula
B45: Matemática | C45: MAT | D45: T | E45: 1 | F45: 4 | G45: 152 | H45: 126.6666667 | I45: Matemática | J45: sala de aula
B46: Biologia | C46: BIO | D46: T | E46: 1 | F46: 2 | G46: 76 | H46: 63.33333333 | I46: Biologia | J46: sala de aula
B47: Física | C47: FIS | D47: T | E47: 1 | F47: 2 | G47: 76 | H47: 63.33333333 | I47: Física | J47: sala de aula
B48: Química | C48: Qui | D48: T | E48: 1 | F48: 2 | G48: 76 | H48: 63.33333333 | I48: Química | J48: sala de aula
B49: História | C49: HIS | D49: T | E49: 1 | F49: 2 | G49: 76 | H49: 63.33333333 | I49: História | J49: sala de aula
B50: Geografia | C50: GEO | D50: T | E50: 1 | F50: 2 | G50: 76 | H50: 63.33333333 | I50: Geografia | J50: sala de aula
B51: Filosofia | C51: FIL | D51: T | E51: 1 | F51: 2 | G51: 76 | H51: 63.33333333 | I51: Filosofia | J51: sala de aula
B52: Sociologia | C52: SOC | D52: T | E52: 1 | F52: 2 | G52: 76 | H52: 63.33333333 | I52: Sociologia | J52: sala de aula
A53: LIBRAS (optativo) | C53: LIB | D53: T/P | E53: 1 | F53: 2 | G53: 76 | H53: 63.33333333 | I53: Libras | J53: sala de aula
A54: Espanhol (optativo) | C54: ESP | D54: T/P | E54: 1 | F54: 2 | G54: 76 | H54: 63.33333333 | I54: Espanhol | J54: sala de aula
A55: Total acumulado de aulas | F55: =SUM(F9:F24) -> 42 | G55: =SUM(G9:G41) -> 3268
A56: Total acumulado de horas | F56: =(F55*$F$2*$C$60)/60 -> 1330 | G56: - | H56: =SUM(F56+#REF!+#REF!) -> #REF!
A57: Carga Horária Total Mínima Obrigatória (Sem estágio) | H57: =H56 -> #REF! | I57: =H57/4 -> #REF!
A58: Estágio Supervisionado (optativo) | H58: 360
A59: Carga Horária Total Máxima: | H59: =ROUNDDOWN(SUM(H57:H58,H53:H54),0) -> #REF!
A60: Observações: As aulas serão de: | C60: 50 | D60: minutos.

Sheet IntAut (hidden)
A1: Técnico Concomitante em Eletroeletrônica | D1: Núm. de semanas: | F1: 38
B2: Componente Curricular | C2: Códigos | D2: Teoria/ | E2: Nº | F2: Aulas/semana | G2: Total | H2: Total | I2: Área (docente) | J2: Ambiente
D3: Prática | E3: Prof. | F3: 1º | G3: Aulas | H3: Horas
A4: 1° Ano | B4: Eletricidade | C4: ELE | D4: T/P | E4: 2 | F4: 4 | G4: =SUM(F4)*$F$1 -> 152 | H4: =(G4)*$C$64/60 -> 126.6666667 | I4: Automação | J4: Sala de aula
B5: Eletrônica Digital | C5: ELD | D5: T/P | E5: 2 | F5: 2 | G5: 76 | H5: 63.33333333 | I5: Automação | J5: Laboratório existente
B6: Desenho Técnico | C6: DET | D6: T/P | E6: 2 | F6: 2 | G6: 76 | H6: 63.33333333 | I6: Automação | J6: Sala de aula
B7: Língua Portuguesa e Literatura | C7: LPL | D7: T | E7: 1 | F7: 4 | G7: 152 | H7: 126.6666667 | I7: Português | J7: Sala de aula
B8: Arte | C8: ART | D8: T/P | E8: 1 | F8: 2 | G8: 76 | H8: 63.33333333 | I8: Artes | J8: Sala de aula
B9: Educação Física | C9: EFI | D9: T/P | E9: 1 | F9: 2 | G9: 76 | H9: 63.33333333 | I9: Educação física | J9: Sala de aula
B10: Inglês | C10: ING | D10: T/P | E10: 1 | F10: 2 | G10: 76 | H10: 63.33333333 | I10: Inglês | J10: Sala de aula
B11: Matemática | C11: MAT | D11: T | E11: 1 | F11: 4 | G11: 152 | H11: 126.6666667 | I11: Matemática | J11: Sala de aula
B12: Biologia | C12: BIO | D12: T | E12: 1 | F12: 2 | G12: 76 | H12: 63.33333333 | I12: Biologia | J12: Sala de aula
B13: Física | C13: FIS | D13: T | E13: 1 | F13: 2 | G13: 76 | H13: 63.33333333 | I13: Física | J13: Sala de aula
B14: Química | C14: Qui | D14: T | E14: 1 | F14: 2 | G14: 76 | H14: 63.33333333 | I14: Química | J14: Sala de aula
B15: História | C15: HIS | D15: T | E15: 1 | F15: 2 | G15: 76 | H15: 63.33333333 | I15: História | J15: Sala de aula
B16: Geografia | C16: GEO | D16: T | E16: 1 | F16: 2 | G16: 76 | H16: 63.33333333 | I16: Geografia | J16: Sala de aula
B17: Filosofia | C17: FIL | D17: T | E17: 1 | F17: 2 | G17: 76 | H17: 63.33333333 | I17: Filosofia | J17: Sala de aula
B18: Sociologia | C18: SOC | D18: T | E18: 1 | F18: 2 | G18: 76 | H18: 63.33333333 | I18: Sociologia | J18: Laboratório de informática
A19: 2º Ano | B19: Algoritmos, Fluxogramas e Programação | C19: AFP | D19: T/P | E19: 2 | F19: 2 | G19: 76 | H19: 63.33333333 | I19: Automação | J19: Sala de aula
B20: Instalações Elétricas Prediais | C20: IEP | D20: T/P | E20: 2 | F20: 2 | G20: 76 | H20: 63.33333333 | I20: Automação | J20: Laboratório existente
B21: Eletrônica Analógica | C21: ELA | D21: T/P | E21: 2 | F21: 4 | G21: 152 | H21: 126.6666667 | I21: Automação | J21: Laboratório existente
B22: Instrumentação | C22: INS | D22: T/P | E22: 2 | F22: 4 | G22: 152 | H22: 126.6666667 | I22: Automação | J22: Sala de aula
B23: Máquinas e Comandos Elétricos | C23: MCE | D23: T/P | E23: 2 | F23: 2 | G23: 76 | H23: 63.33333333 | I23: Automação | J23: Sala de aula
B24: Comandos Hidráulico, Pneumático e Eletropineumático | C24: CHP | D24: T/P | E24: 2 | F24: 2 | G24: 76 | H24: 63.33333333 | I24: Automação | J24: Sala de aula
B25: Língua Portuguesa e Literatura | C25: LPL | D25: T | E25: 1 | F25: 4 | G25: 152 | H25: 126.6666667 | I25: Português | J25: Sala de aula
B26: Arte | C26: ART | D26: T/P | E26: 1 | F26: 2 | G26: 76 | H26: 63.33333333 | I26: Artes | J26: Sala de aula
B27: Educação Física | C27: EFI | D27: T/P | E27: 1 | F27: 2 | G27: 76 | H27: 63.33333333 | I27: Educação física | J27: Sala de aula
B28: Inglês | C28: ING | D28: T/P | E28: 1 | F28: 2 | G28: 76 | H28: 63.33333333 | I28: Inglês | J28: Sala de aula
B29: Matemática | C29: MAT | D29: T | E29: 1 | F29: 4 | G29: 152 | H29: 126.6666667 | I29: Matemática | J29: Sala de aula
B30: Biologia | C30: BIO | D30: T | E30: 1 | F30: 2 | G30: 76 | H30: 63.33333333 | I30: Biologia | J30: Sala de aula
B31: Física | C31: FIS | D31: T | E31: 1 | F31: 2 | G31: 76 | H31: 63.33333333 | I31: Física | J31: Sala de aula
B32: Química | C32: Qui | D32: T | E32: 1 | F32: 2 | G32: 76 | H32: 63.33333333 | I32: Química | J32: Sala de aula
B33: História | C33: HIS | D33: T | E33: 1 | F33: 2 | G33: 76 | H33: 63.33333333 | I33: História | J33: Sala de aula
B34: Geografia | C34: GEO | D34: T | E34: 1 | F34: 2 | G34: 76 | H34: 63.33333333 | I34: Geografia | J34: Laboratório existente
B35: Filosofia | C35: FIL | D35: T | E35: 1 | F35: 2 | G35: 76 | H35: 63.33333333 | I35: Filosofia | J35: Laboratório existente
B36: Sociologia | C36: SOC | D36: T | E36: 1 | F36: 2 | G36: 76 | H36: 63.33333333 | I36: Sociologia | J36: Laboratório existente
A37: 3° Ano | B37: Desenho Assistido por Computador | C37: DAC | D37: P | E37: 2 | F37: 2 | G37: 76 | H37: 63.33333333 | I37: Automação | J37: Laboratório de informática
B38: Microcontroladores | C38: MIC | D38: T/P | E38: 2 | F38: 2 | G38: 76 | H38: 63.33333333 | I38: Automação | J38: Laboratório existente
B39: Controle de Processos | C39: COP | D39: T/P | E39: 2 | F39: 2 | G39: 76 | H39: 63.33333333 | I39: Automação | J39: Sala de aula
B40: Redes e Protocolos Industriais | C40: RPI | D40: T/P | E40: 2 | F40: 2 | G40: 76 | H40: 63.33333333 | I40: Automação | J40: Sala de aula
B41: Sistemas Programáveis de Controle | C41: SPC | D41: T/P | E41: 2 | F41: 4 | G41: 152 | H41: 126.6666667 | I41: Automação | J41: Sala de aula
B42: Sistemas Supervisórios | C42: SSP | D42: P | E42: 2 | F42: 2 | G42: 76 | H42: 63.33333333 | I42: Automação | J42: Sala de aula
B43: Projeto Integrador | C43: PJI | D43: P | E43: 2 | F43: 2 | G43: 76 | H43: 63.33333333 | I43: Automação | J43: Sala de aula
B44: Língua Portuguesa e Literatura | C44: LPL | D44: T | E44: 1 | F44: 4 | G44: 152 | H44: 126.6666667 | I44: Português | J44: Sala de aula
B45: Arte | C45: ART | D45: T/P | E45: 1 | F45: 2 | G45: 76 | H45: 63.33333333 | I45: Artes | J45: Sala de aula
B46: Educação Física | C46: EFI | D46: T/P | E46: 1 | F46: 2 | G46: 76 | H46: 63.33333333 | I46: Educação física | J46: Sala de aula
B47: Inglês | C47: ING | D47: T/P | E47: 1 | F47: 2 | G47: 76 | H47: 63.33333333 | I47: Inglês | J47: Sala de aula
B48: Matemática | C48: MAT | D48: T | E48: 1 | F48: 4 | G48: 152 | H48: 126.6666667 | I48: Matemática | J48: Sala de aula
B49: Biologia | C49: BIO | D49: T | E49: 1 | F49: 2 | G49: 76 | H49: 63.33333333 | I49: Biologia | J49: Sala de aula
B50: Física | C50: FIS | D50: T | E50: 1 | F50: 2 | G50: 76 | H50: 63.33333333 | I50: Física | J50: Sala de aula
B51: Química | C51: Qui | D51: T | E51: 1 | F51: 2 | G51: 76 | H51: 63.33333333 | I51: Química | J51: Sala de aula
B52: História | C52: HIS | D52: T | E52: 1 | F52: 2 | G52: 76 | H52: 63.33333333 | I52: História | J52: Laboratório de informática
B53: Geografia | C53: GEO | D53: T | E53: 1 | F53: 2 | G53: 76 | H53: 63.33333333 | I53: Geografia | J53: Laboratório existente
B54: Filosofia | C54: FIL | D54: T | E54: 1 | F54: 2 | G54: 76 | H54: 63.33333333 | I54: Filosofia | J54: Laboratório existente
B55: Sociologia | C55: SOC | D55: T | E55: 1 | F55: 2 | G55: 76 | H55: 63.33333333 | I55: Sociologia | J55: Sala de aula
A56: LIBRAS (optativo) | C56: LIB | D56: T/P | E56: 1 | G56: 0 | H56: 0 | I56: Espanhol | J56: Sala de aula
A57: Espanhol (optativo) | C57: ESP | D57: T/P | E57: 1 | G57: 0 | H57: 0
A58: Gestão da Qualidade e Empreendedorismo | C58: GQE | D58: T | E58: 1 | G58: 0 | H58: 0
A59: Total acumulado de aulas | F59: =SUM(F4:F43) -> 96
A60: Total acumulado de horas | F60: =(F59*#REF!*$C$65)/60 -> #REF! | H60: =SUM(F60+#REF!+#REF!) -> #REF!
A61: Carga Horária Total Mínima Obrigatória (Sem estágio) | H61: =H60 -> #REF!
A62: Estágio Supervisionado (optativo) | H62: 360
A63: Carga Horária Total Máxima: | H63: =ROUNDDOWN(SUM(H61:H62,H56:H58),0) -> #REF!
A64: Observações: As aulas serão de: | C64: 50 | D64: minutos.

Sheet LicMat 2022
A2: Licenciatura em Matemática | D2: Núm. de semanas: | G2: 20
B3: Componente Curricular | C3: Códigos | D3: Teoria/ Prática | E3: Nº Prof. | F3: Aulas/semana | G3: Total Aulas | H3: Total Horas | I3: Área (docente) | J3: Ambiente
F4: 1º
A5: 1º Módulo | B5: Funções | C5: HTOFUNC | D5: T/P | E5: 1 | F5: 5 | G5: =SUM(F5)*$G$2 -> 100 | H5: =(G5)*$C$69/60 -> 83.33333333 | I5: Matemática | J5: Sala de aula | L5: =H5*E5 -> 83.33333333
B6: Geometria Plana e Desenho Geométrico | C6: HTOGPDG | D6: T/P | E6: 1 | F6: 4 | G6: 80 | H6: 66.66666667 | I6: Matemática | J6: sala de aula | L6: 66.66666667
B7: Matrizes, Determinantes e Sistemas | C7: HTOMTDS | D7: T/P | E7: 1 | F7: 2 | G7: 40 | H7: 33.33333333 | I7: Matemática | J7: sala de aula | L7: 33.33333333
B8: Elementos de Lógica e Teoria dos Conjuntos | C8: HTOELTC | D8: T | E8: 1 | F8: 2 | G8: 40 | H8: 33.33333333 | I8: Matemática | J8: sala de aula | L8: 33.33333333
B9: História da Ciência e da Tecnologia | C9: HTOHCTC | D9: T | E9: 1 | F9: 3 | G9: 60 | H9: 50 | I9: Historia | J9: sala de aula | L9: 50
B10: História da Educação | C10: HTOHEDU | D10: T | E10: 1 | F10: 4 | G10: 80 | H10: 66.66666667 | I10: Pedagogia | J10: Sala de aula
B11: Leitura, Interpretação e Produção de Textos I | C11: HTOLIP1 | D11: T | E11: 1 | F11: 2 | G11: 40 | H11: 33.33333333 | I11: Português | J11: sala de aula | L11: =H11*E11 -> 33.33333333
A12: 2º Módulo | B12: Fundamentos da Geometria Analítica | C12: HTOFGAN | D12: T | E12: 1 | F12: 4 | G12: 80 | H12: 66.66666667 | I12: Matemática | J12: sala de aula | L12: 66.66666667
B13: Análise Combinatória e Probabilidade | C13: HTOACPR | D13: T | E13: 1 | F13: 2 | G13: 40 | H13: 33.33333333 | I13: Matemática | J13: sala de aula | L13: 33.33333333
B14: Geometria Espacial | C14: HTOGESP | D14: T/P | E14: 1 | F14: 2 | G14: 40 | H14: 33.33333333 | I14: Matemática | J14: Sala de aula
B15: Trigonometria | C15: HTOTRIG | D15: T | E15: 1 | F15: 2 | G15: 40 | H15: 33.33333333 | I15: Matemática | J15: sala de aula | L15: =H15*E15 -> 33.33333333
B16: Educação e Sociedade | C16: HTOEDSO | D16: T | E16: 1 | F16: 2 | G16: 40 | H16: 33.33333333 | I16: Pedagogia
B17: Psicologia da Educação | C17: HTOPSED | D17: T | E17: 1 | F17: 4 | G17: 80 | H17: 66.66666667 | I17: Pedagogia | J17: sala de aula | L17: =H17*E17 -> 66.66666667
B18: Filosofia da EducaçãoA | C18: HTOFIED | D18: T | E18: 1 | F18: 2 | G18: 40 | H18: 33.33333333 | I18: Pedagogia | J18: sala de aula | L18: 33.33333333
B19: Filosofia da EducaçãoB | C19: HTOFLED | D19: T | E19: 1 | F19: 2 | G19: 40 | H19: 33.33333333 | I19: Pedagogia | J19: sala de aula | L19: 33.33333333
B20: Leitura, Interpretação e Produção de Textos 2 | C20: HTOLIP2 | D20: T | E20: 1 | F20: 2 | G20: 40 | H20: 33.33333333 | I20: Português | J20: sala de aula | L20: 33.33333333
A21: 3º Módulo | B21: Cálculo Diferencial e Integral I | C21: HTOCDI1 | D21: T | E21: 1 | F21: 4 | G21: 80 | H21: 66.66666667 | I21: Matemática | J21: sala de aula | L21: 66.66666667
B22: Polinômios e Números Complexos | C22: HTOPLNC | D22: T | E22: 1 | F22: 2 | G22: 40 | H22: 33.33333333 | I22: Matemática | J22: sala de aula | L22: 33.33333333
B23: Geometria Analítica e Vetores | C23: HTOGEAV | D23: T/P | E23: 1 | F23: 4 | G23: 80 | H23: 66.66666667 | I23: Matemática | J23: Sala de aula
B24: História da Matemática | C24: HTOHISM | D24: T | E24: 1 | F24: 5 | G24: 100 | H24: 83.33333333 | I24: Matemática | J24: Sala de aula
B25: Didática | C25: HTODIDC | D25: T | E25: 1 | F25: 4 | G25: 80 | H25: 66.66666667 | I25: Pedagogia | J25: sala de aula | L25: =H25*E25 -> 66.66666667
B26: Políticas Públicas e Org. da Educação Brasileira | C26: HTOPPEB | D26: T | E26: 1 | F26: 2 | G26: 40 | H26: 33.33333333 | I26: Pedagogia | J26: sala de aula | L26: 33.33333333
A27: 4º Módulo | B27: Cálculo Diferencial e Integral II | C27: HTOCDI2 | D27: T | E27: 1 | F27: 4 | G27: 80 | H27: 66.66666667 | I27: Matemática | J27: sala de aula | L27: 66.66666667
B28: Álgebra Linear | C28: HTOAGLI | D28: T | E28: 1 | F28: 4 | G28: 80 | H28: 66.66666667 | I28: Matemática | J28: sala de aula | L28: 66.66666667
B29: Educação Financeira | C29: HTOEDFI | D29: T | E29: 1 | F29: 2 | G29: 40 | H29: 33.33333333 | I29: Matemática | J29: sala de aula | L29: 33.33333333
B30: Laboratório de Ensino de Matemática | C30: HTOLEMA | D30: T | E30: 1 | F30: 4 | G30: 80 | H30: 66.66666667 | I30: Matemática | J30: sala de aula | L30: 66.66666667
B31: Probabilidade | C31: HTOPROB | D31: T | E31: 1 | F31: 2 | G31: 40 | H31: 33.33333333 | I31: Matemática | J31: sala de aula | L31: 33.33333333
B32: Matemática Aplicada à Física I | C32: HTOFIS1 | D32: T | E32: 1 | F32: 3 | G32: 60 | H32: 50 | I32: Física | J32: Sala de aula
B33: Educação Inclusiva | C33: HTOEINC | D33: T | E33: 1 | F33: 2 | G33: 40 | H33: 33.33333333 | I33: Pedagogia | J33: Sala de aula
A34: 5° Módulo | B34: Cálculo Diferencial e Integral III | C34: HTOCDI3 | D34: T | E34: 1 | F34: 4 | G34: 80 | H34: 66.66666667 | I34: Matemática | J34: sala de aula | L34: =H34*E34 -> 66.66666667
B35: Língua Brasileira de Sinais | C35: HTOLIBR | D35: T | E35: 1 | F35: 2 | G35: 40 | H35: 33.33333333 | I35: Libras | J35: Sala de aula
B36: Metodologia do Trabalho Científico | C36: HTOMTTC | D36: T | E36: 1 | F36: 2 | G36: 40 | H36: 33.33333333 | I36: Biologia | J36: sala de aula | L36: =H36*E36 -> 33.33333333
B37: Prática Docente I | C37: HTOPDO1 | D37: P | E37: 1 | F37: 4 | G37: 80 | H37: 66.66666667 | I37: Matemática | J37: sala de aula | L37: 66.66666667
B38: Estatística | C38: HTOESTA | D38: T | E38: 1 | F38: 2 | G38: 40 | H38: 33.33333333 | I38: Matemática | J38: sala de aula | L38: 33.33333333
B39: Matemática Aplicada à Física II | C39: HTOFIS2 | D39: T | E39: 1 | F39: 3 | G39: 60 | H39: 50 | I39: Física | J39: Sala de aula
B40: Educação Profissional e Tecnológica | C40: HTOEPTC | D40: T | E40: 1 | F40: 2 | G40: 40 | H40: 33.33333333 | I40: Pedagogia | J40: Laboratório inexistente | L40: =H40*E40 -> 33.33333333
B41: Inglês para Fins Específicos I | C41: HTOING1 | D41: T | E41: 1 | F41: 2 | G41: 40 | H41: 33.33333333 | I41: Inglês | J41: sala de aula | L41: 33.33333333
A42: 6° Módulo | B42: Matemática Discreta | C42: HTOMDIS | D42: T | E42: 1 | F42: 4 | G42: 80 | H42: 66.66666667 | I42: Matemática | J42: sala de aula | L42: 66.66666667
B43: Cálculo Diferencial e integral IV | C43: HTOCDI4 | D43: T | E43: 1 | F43: 4 | G43: 80 | H43: 66.66666667 | I43: Matemática | J43: sala de aula | L43: 66.66666667
B44: Prática Docente II | C44: HTOPDO2 | D44: T/P | E44: 1 | F44: 5 | G44: 100 | H44: 83.33333333 | I44: Matemática | J44: sala de aula | L44: 83.33333333
B45: Produção de Trabalhos Científicos | C45: HTOPRTC | D45: T/P | E45: 1 | F45: 2 | G45: 40 | H45: 33.33333333 | I45: Biologia | J45: Laboratório inexistente | L45: 33.33333333
B46: Matemática Aplicada à Física III | C46: HTOFIS3 | D46: T | E46: 1 | F46: 2 | G46: 40 | H46: 33.33333333 | I46: Física | J46: Laboratório de informática | L46: 33.33333333
B47: Inglês para Fins Específicos II | C47: HTOING2 | D47: T | E47: 1 | F47: 2 | G47: 40 | H47: 33.33333333 | I47: Inglês | J47: Sala de aula
B48: Atividades de Extensão 1 | C48: HTOEXT1 | D48: T/P | E48: 1 | F48: 3 | G48: 60 | H48: 50 | I48: Matemática | J48: Sala de aula | N48: =SUM(F42:F48) -> 22
A49: 7° Módulo | B49: Equações Diferenciais | C49: HTOEQDF | D49: T | E49: 1 | F49: 4 | G49: 80 | H49: 66.66666667 | I49: Matemática | J49: sala de aula | L49: =H49*E49 -> 66.66666667
B50: Teoria dos Números | C50: HTOTNUM | D50: T | E50: 1 | F50: 4 | G50: 80 | H50: 66.66666667 | I50: Matemática | J50: sala de aula | L50: 66.66666667
B51: Análise Real | C51: HTOANRE | D51: T | E51: 1 | F51: 4 | G51: 80 | H51: 66.66666667 | I51: Matemática | J51: Sala de aula
B52: Matemática Aplicada à Física IV | C52: HTOFIS4 | D52: T | E52: 1 | F52: 2 | G52: 40 | H52: 33.33333333 | I52: Física | J52: sala de aula | L52: =H52*E52 -> 33.33333333
B53: Prática Docente III | C53: HTOPDO3 | D53: T | E53: 1 | F53: 4 | G53: 80 | H53: 66.66666667 | I53: Matemática | J53: sala de aula | L53: 66.66666667
B54: Atividades de Extensão 2 | C54: HTOEXT2 | D54: T/P | E54: 1 | F54: 3 | G54: 60 | H54: 50 | I54: Matemática | J54: sala de aula | L54: 50 | N54: =SUM(F49:F54) -> 21
A55: 8° Módulo | B55: Cálculo Numérico | C55: HTOCANU | D55: T | E55: 1 | F55: 2 | G55: 40 | H55: 33.33333333 | I55: Matemática | J55: sala de aula | L55: 33.33333333
B56: Álgebra | C56: HTOALGE | D56: T | E56: 1 | F56: 4 | G56: 80 | H56: 66.66666667 | I56: Matemática | J56: sala de aula | L56: 66.66666667
B57: Sequências e Séries | C57: HTOSEQS | D57: T | E57: 1 | F57: 2 | G57: 40 | H57: 33.33333333 | I57: Matemática | J57: sala de aula | L57: 33.33333333
B58: Tecnologias Digitais no Ensino da Matemática | C58: HTOTDEM | D58: T | E58: 1 | F58: 3 | G58: 60 | H58: 50 | I58: Matemática | J58: Sala de aula
B59: Prática Docente IV | C59: HTOPDO4 | D59: T | E59: 1 | F59: 5 | G59: 100 | H59: 83.33333333 | I59: Matemática
B60: Gestão e Currículo | C60: HTOGECR | D60: T/P | E60: 1 | F60: 2 | G60: 40 | H60: 33.33333333 | I60: Pedagogia | J60: sala de aula | L60: =H60*E60 -> 33.33333333 | N60: =SUM(F55:F62) -> 23
B61: Educação em Direitos Humanos | C61: HTOEDHU | D61: T/P | E61: 1 | F61: 2 | G61: 40 | H61: 33.33333333 | I61: Pedagogia | J61: sala de aula | L61: 33.33333333
B62: Programação Matemática | C62: HTOPRMA | D62: T/P | E62: 1 | F62: 3 | G62: 60 | H62: 50 | I62: Matemática | J62: sala de aula | L62: =H48*E48 -> 50
A63: Total acumulado de aulas | F63: =SUM(F5:F62) -> 173 | N63: =SUM(G5:G61) -> 3400
A64: Total acumulado de horas | F64: =(F63*$G$2*$C$69)/60 -> 2883.333333 | O64: =SUM(F64) -> 2883.333333
A65: NEIEC (Núcleo de Estudos Integradores para Enriquecimento Curricular ) | V65: 200
A66: TCC (Trabalho de Conclusão de Curso) | V66: 60
A67: ESTÁGIO CURRICULAR SUPERVISIONADO | V67: 400
A68: Carga Horária Total Mínima Obrigatória | V68: =O64+SUM(V65:V67) -> 3543.333333
A69: Observações: As aulas serão de: | C69: 50 | D69: minutos.
F73: =SUMPRODUCT(H5:H61,E5:E61)/F64 -> 0.9826589595

Sheet ConcMSI (40 vagas) 2022
A2: Técnico Concomitante em Manutenção e Suporte em Informática | F2: 19
B3: Componente Curricular | C3: Códigos | D3: Teoria/ | E3: Nº | F3: Aulas/semana | G3: Total | H3: Total | I3: Área (docente) | J3: Ambiente
D4: Prática | E4: Prof. | F4: 1º | G4: Aulas | H4: Horas
A5: 1º Módulo | B5: Eletricidade Básica para Sistemas Computacionais | C5: HTOELTB | D5: T/P | E5: 1 | F5: 2 | G5: =SUM(F5)*$F$2 -> 38 | H5: =(G5)*$C$28/60 -> 31.66666667 | I5: Automação | J5: Laboratório existente
B6: Manutenção de Computadores I | C6: HTOMAN1 | D6: T/P | E6: 1 | F6: 4 | G6: 76 | H6: 63.33333333 | I6: Redes | J6: Laboratório existente
B7: Introdução à Computação | C7: HTOINCO | D7: T | E7: 1 | F7: 2 | G7: 38 | H7: 31.66666667 | I7: Redes | J7: sala de aula
B8: Informática Básica | C8: HTOINFB | D8: T/P | E8: 1 | F8: 4 | G8: 76 | H8: 63.33333333 | I8: Programação | J8: Laboratório de informática
B9: Introdução aos Sistemas Operacionais | C9: HTOISOP | D9: T/P | E9: 1 | F9: 4 | G9: 76 | H9: 63.33333333 | I9: Redes | J9: Laboratório de informática
B10: Redes de Computadores | C10: HTORDCP | D10: T/P | E10: 1 | F10: 4 | G10: 76 | H10: 63.33333333 | I10: Redes | J10: Laboratório existente
A11: 2º Módulo | B11: Lógica de Programação | C11: HTOLPRG | D11: T/P | E11: 1 | F11: 4 | G11: 76 | H11: 63.33333333 | I11: Programação | J11: Laboratório de informática | L11: =H11*E11 -> 63.33333333
B12: Manutenção de Computadores II | C12: HTOMAN2 | D12: T/P | E12: 1 | F12: 4 | G12: 76 | H12: 63.33333333 | I12: Redes | J12: Laboratório existente | L12: 63.33333333
B13: Banco de Dados | C13: HTOBNCD | D13: T/P | E13: 1 | F13: 2 | G13: 38 | H13: 31.66666667 | I13: Programação | J13: Laboratório de informática | L13: 31.66666667
B14: Projeto Integrador I | C14: HTOPJI1 | D14: T/P | E14: 1 | F14: 4 | G14: 76 | H14: 63.33333333 | I14: Redes | J14: Laboratório de informática | L14: 63.33333333
B15: Suporte e Configuração de Redes | C15: HTOSCRD | D15: T/P | E15: 1 | F15: 4 | G15: 76 | H15: 63.33333333 | I15: Redes | J15: Laboratório existente | L15: 63.33333333
B16: Sistemas Operacionais de Redes | C16: HTOSOPR | D16: T/P | E16: 1 | F16: 4 | G16: 76 | H16: 63.33333333 | I16: Redes | J16: Laboratório de informática | L16: 63.33333333
A17: 3º Módulo | B17: Sistemas Web | C17: HTOSTWE | D17: T/P | E17: 1 | F17: 4 | G17: 76 | H17: 63.33333333 | I17: Programação | J17: Laboratório de informática | L17: 63.33333333
B18: Segurança e Gerenciamento de Informação | C18: HTOSGIN | D18: T/P | E18: 1 | F18: 2 | G18: 38 | H18: 31.66666667 | I18: Redes | J18: Laboratório de informática | L18: 31.66666667
B19: Serviços de Rede Corporativos | C19: HTOSRCP | D19: T/P | E19: 1 | F19: 4 | G19: 76 | H19: 63.33333333 | I19: Redes | J19: Laboratório de informática
B20: Serviços de Rede para a Internet | C20: HTOSRDI | D20: T/P | E20: 1 | F20: 4 | G20: 76 | H20: 63.33333333 | I20: Redes | J20: Laboratório de informática | L20: =H20*E20 -> 63.33333333
B21: Gestão e Empreendedorismo Digital | C21: HTOGEDG | D21: T | E21: 1 | F21: 2 | G21: 38 | H21: 31.66666667 | I21: Programação | J21: sala de aula | L21: 31.66666667
B22: Projeto Integrador II | C22: HTOPJI2 | D22: T/P | E22: 1 | F22: 6 | G22: 114 | H22: 95 | I22: Redes | J22: Laboratório existente | L22: 95
A23: Total acumulado de aulas | F23: =SUM(F5:F22) -> 64 | G23: 1216
A24: Total acumulado de horas | F24: =(F23*$F$2*$C$28)/60 -> 1013.333333 | G24: - | H24: =SUM(H5:H22) -> 1013.333333
A25: Carga Horária Total Mínima Obrigatória (Sem estágio) | H25: =H24 -> 1013.333333
A26: Estágio Supervisionado (optativo) | H26: 360
A27: Carga Horária Total Máxima: | H27: =H25+H26 -> 1373.333333
A28: Observações: As aulas serão de: | C28: 50 | D28: minutos.
F30: =SUMPRODUCT(H5:H21,E5:E21)/F23 -> 14.34895833

Sheet ConcEletroTurmaUnica 2022
A1: Concomitante em Eletroeletrônica - HTO
F2: aulas/sem
B3: Componente Curricular | C3: Código | D3: Teoria/ Prática | E3: Nº Prof. | F3: 1º | G3: Total aulas | H3: Total horas | I3: Área atribuída | J3: Ambiente de ensino
A4: 1º Semestre | B4: Eletricidade CC | C4: HTOELCT | D4: T | E4: 1 | F4: 4 | G4: =$E$34*F4 -> 76 | H4: =ROUND(G4*$C$34/60,1) -> 63.3 | I4: Automação | J4: Sala de aula
B5: Laboratório de Eletricidade CC | C5: HTOELCP | D5: P | E5: 1 | F5: 4 | G5: 76 | H5: 63.3 | I5: Automação | J5: Laboratório existente | L5: =SUM(H4:H9) -> 316.6
B6: Eletrônica Digital | C6: HTOELDT | D6: T | E6: 1 | F6: 4 | G6: 76 | H6: 63.3 | I6: Automação | J6: Sala de aula
B7: Laboratório de Eletrônica Digital | C7: HTOELDP | D7: P | E7: 1 | F7: 4 | G7: 76 | H7: 63.3 | I7: Automação | J7: Laboratório existente
B8: MATEMÁTICA APLICADA | C8: MAPE1 | D8: T | E8: 1 | F8: 2 | G8: 38 | H8: 31.7 | I8: Matemática | J8: Sala de aula
B9: LEITURA, INTERPRETAÇÃO E PRODUÇÃO DE TEXTO | C9: HTOLIPE | D9: T | E9: 1 | F9: 2 | G9: 38 | H9: 31.7 | I9: Português | J9: Sala de aula
A10: 2º Semestre | B10: Eletricidade CA | C10: ELTE1 | D10: T | E10: 1 | F10: 2 | G10: 38 | H10: 31.7 | I10: Automação | J10: Sala de aula
B11: Laboratório de Eletricidade CA | C11: HTOELAP | D11: P | E11: 1 | F11: 2 | G11: 38 | H11: 31.7 | I11: Automação | J11: Laboratório existente
B12: Eletrônica Analógica | C12: HTOEANT | D12: P | E12: 1 | F12: 4 | G12: 76 | H12: 63.3 | I12: Automação | J12: Laboratório de informática
B13: Laboratório de Eletrônica Analógica | C13: HTOEANP | D13: T | E13: 1 | F13: 2 | G13: 38 | H13: 31.7 | I13: Automação | J13: Sala de aula
B14: Programação | C14: HTOPRGE | D14: T | E14: 1 | F14: 2 | G14: 38 | H14: 31.7 | I14: Automação | J14: Sala de aula
B15: Organização e Segurança do Trabalho | C15: OSTE1 | D15: T | E15: 1 | F15: 2 | G15: 38 | H15: 31.7 | I15: Automação | J15: Sala de aula
B16: Inglês para Fins Específicos | C16: HTOINFE | D16: T | E16: 1 | F16: 2 | G16: 38 | H16: 31.7 | I16: Inglês | J16: Sala de aula
B17: Projeto e Montagem de Circuitos Eletrônicos | C17: HTOPJEL | D17: P | E17: 1 | F17: 4 | G17: 76 | H17: 63.3 | I17: Automação | J17: Laboratório existente
A18: 3º Semestre | B18: Máquinas, Comandos e Acionamentos elétricos | C18: HTOMCAE | D18: P | E18: 1 | F18: 4 | G18: 76 | H18: 63.3 | I18: Automação | J18: Laboratório existente
B19: Geração, Transmissão e Distribuição de Energia | C19: HTOGTDE | D19: P | E19: 1 | F19: 2 | G19: 38 | H19: 31.7 | I19: Automação | J19: Laboratório de informática
B20: Instrumentação Eletrônica e Microcontroladores | C20: HTOIEMP | D20: P | E20: 1 | F20: 4 | G20: 76 | H20: 63.3 | I20: Automação | J20: Laboratório existente
B21: Eletrônica de Potência | C21: HTOELPT | D21: T | E21: 1 | F21: 2 | G21: 38 | H21: 31.7 | I21: Automação | J21: Sala de aula
B22: Laboratório de Eletrônica de Potência | C22: HTOELPP | D22: P | E22: 1 | F22: 2 | G22: 38 | H22: 31.7 | I22: Automação | J22: Laboratório existente
B23: Gestão e Empreendedorismo | C23: HTOGEME | D23: P | E23: 1 | F23: 2 | G23: 38 | H23: 31.7 | I23: Gestão | J23: Laboratório existente
B24: Projetos Elétricos Residenciais e Industriais | C24: HTOPJRI | D24: P | E24: 1 | F24: 4 | G24: 76 | H24: 63.3 | I24: Automação | J24: Laboratório de informática
A25: 4º Semestre | B25: Controladores Lógicos Programáveis | C25: COPE4 | D25: P | E25: 1 | F25: 4 | G25: 76 | H25: 63.3 | I25: Automação | J25: Laboratório de informática
B26: Instalações Elétricas | C26: HTOINEL | D26: P | E26: 1 | F26: 4 | G26: 76 | H26: 63.3 | I26: Automação | J26: Laboratório inexistente
B27: Energias Renováveis e Sistemas Fotovoltáicos | C27: HTOERSF | D27: P | E27: 1 | F27: 4 | G27: 76 | H27: 63.3 | I27: Automação | J27: Laboratório de informática
B28: Comandos Eletro-Hidráulicos/Pneumáticos | C28: HTOCEHP | D28: P | E28: 1 | F28: 4 | G28: 76 | H28: 63.3 | I28: Mecânica | J28: Laboratório existente
B29: Projeto Integrador | C29: PRJI4 | D29: P | E29: 1 | F29: 4 | G29: 76 | H29: 63.3 | I29: Automação | J29: Laboratório de informática
A30: Total acumulado de horas | F30: =SUM(F4:F29) -> 80 | G30: 1520 | H30: 1266.6
A31: Carga Horária Total Mínima Obrigatória (Sem estágio) | H31: =H30 -> 1266.6
A32: Estágio Supervisionado (optativo) | H32: 360
A33: Carga Horária Total Máxima: | H33: =SUM(H31+H32) -> 1626.6
A34: Observações: As aulas serão de: | C34: 50 | D34: minutos. | E34: 19

Sheet FabMec 2022
C1: Técnico em Fabricação Mecânica reformulação 2022
A2: Técnico Concomitante em Fabricação Mecânica | D2: Núm. de semanas: | F2: 19
B3: Componente Curricular | C3: Códigos | D3: Teoria/ | E3: Nº | F3: Aulas/semana | G3: Total | H3: Total | I3: Área (docente) | J3: Ambiente
D4: Prática | E4: Prof. | F4: 1º | G4: Aulas | H4: Horas
A5: 1º Módulo | B5: DESENHO TÉCNICO MECÂNICO | C5: HTODTME | D5: T | E5: 1 | F5: 4 | G5: =F5*$F$2 -> 76 | H5: =G5*$C$39/60 -> 63.33333333 | I5: Mecânica | J5: sala de aula
B6: INFORMÁTICA BÁSICA | C6: HTOINFB | D6: T/P | E6: 2 | F6: 2 | G6: 38 | H6: 31.66666667 | I6: Mecânica | J6: Laboratório de informática
B7: MATEMÁTICA APLICADA 1 | C7: HTOMAP1 | D7: T | E7: 1 | F7: 2 | G7: 38 | H7: 31.66666667 | I7: Mecânica | J7: Sala de aula
B8: MATEMÁTICA APLICADA 2 | C8: HTOMAP2 | D8: T | E8: 1 | F8: 2 | G8: 38 | H8: 31.66666667 | I8: Mecânica | J8: sala de aula
B9: METROLOGIA | C9: HTOMETR | D9: T/P | E9: 2 | F9: 2 | G9: 38 | H9: 31.66666667 | I9: Mecânica | J9: Laboratório existente
B10: REDAÇÃO TÉCNICA | C10: HTOREDT | D10: T | E10: 1 | F10: 2 | G10: 38 | H10: 31.66666667 | I10: Português | J10: sala de aula
B11: TECNOLOGIA DOS MATERIAIS | C11: HTOTCMA | D11: T | E11: 1 | F11: 4 | G11: 76 | H11: 63.33333333 | I11: Mecânica | J11: Sala de aula
B12: INTRODUÇÃO À FABRICAÇÃO MECÂNICA | C12: HTOFABM | D12: T/P | E12: 2 | F12: 2 | G12: 38 | H12: 31.66666667 | I12: Mecânica | J12: Laboratório existente
A13: 2º Módulo | B13: DESENHO ASSISTIDO POR COMPUTADOR | C13: HTODACO | D13: T/P | E13: 2 | F13: 4 | G13: 76 | H13: 63.33333333 | I13: Mecânica | J13: Laboratório de informática
B14: ELETROTÉCNICA INDUSTRIAL | C14: HTOELIN | D14: T/P | E14: 2 | F14: 2 | G14: 38 | H14: 31.66666667 | I14: Mecânica | J14: Laboratório existente
B15: ENSAIOS MECÂNICOS | C15: HTOENSM | D15: T/P | E15: 2 | F15: 2 | G15: 38 | H15: 31.66666667 | I15: Mecânica | J15: Laboratório existente
B16: PROCESSOS METALÚRGICOS DE FABRICAÇÃO | C16: HTOPMET | D16: T/P | E16: 1 | F16: 4 | G16: 76 | H16: 63.33333333 | I16: Mecânica | J16: Sala de aula
B17: RESISTÊNCIA DOS MATERIAIS 1 - ESTÁTICA | C17: HTOESTA | D17: T | E17: 1 | F17: 2 | G17: 38 | H17: 31.66666667 | I17: Mecânica | J17: sala de aula
B18: USINAGEM CONVENCIONAL 1 | C18: HTOUSC1 | D18: T/P | E18: 2 | F18: 4 | G18: 76 | H18: 63.33333333 | I18: Mecânica | J18: Laboratório existente
B19: GESTÃO EMPRESARIAL E EMPREENDEDORISMO | C19: HTOGEEM | D19: T | E19: 1 | F19: 2 | G19: 38 | H19: 31.66666667 | I19: Gestão | J19: Sala de aula
A20: 3º Módulo | B20: FUNDAMENTOS DE SOLDAGEM 1 | C20: HTOSOL1 | D20: T | E20: 1 | F20: 2 | G20: 38 | H20: 31.66666667 | I20: Mecânica | J20: Sala de aula
B21: HIDRÁULICA E PNEUMÁTICA | C21: HTOHIPN | D21: T/P | E21: 2 | F21: 4 | G21: 76 | H21: 63.33333333 | I21: Mecânica | J21: Laboratório existente
B22: RESISTÊNCIA DOS MATERIAIS 2 | C22: HTORMAT | D22: T/P | E22: 2 | F22: 2 | G22: 38 | H22: 31.66666667 | I22: Mecânica | J22: Laboratório de informática
B23: TRATAMENTO TÉRMICO E METALOGRAFIA | C23: HTOTTER | D23: T/P | E23: 1 | F23: 2 | G23: 38 | H23: 31.66666667 | I23: Mecânica | J23: Sala de aula
B24: MANUFATURA ADITIVA | C24: HTOADIT | D24: T/P | E24: 2 | F24: 2 | G24: 38 | H24: 31.66666667 | I24: Mecânica | J24: Laboratório de informática
B25: USINAGEM CONVENCIONAL 2 | C25: HTOUSC2 | D25: T/P | E25: 1 | F25: 2 | G25: 38 | H25: 31.66666667 | I25: Mecânica | J25: Laboratório existente
B26: USINAGEM CNC 1 | C26: HTOCNC1 | D26: T/P | E26: 2 | F26: 4 | G26: 76 | H26: 63.33333333 | I26: Mecânica | J26: Laboratório existente
B27: PROJETO INTEGRADOR 1 | C27: HTOPJI1 | D27: T/P | E27: 1 | F27: 2 | G27: 38 | H27: 31.66666667 | I27: Mecânica | J27: Laboratório de informática
A28: 4º Módulo | B28: ELEMENTOS DE MÁQUINAS | C28: HTOELMQ | D28: T | E28: 1 | F28: 2 | G28: 38 | H28: 31.66666667 | I28: Mecânica | J28: Sala de aula
B29: FUNDAMENTOS DE SOLDAGEM 2 | C29: HTOSOL2 | D29: T/P | E29: 1 | F29: 2 | G29: 38 | H29: 31.66666667 | I29: Mecânica | J29: Laboratório existente
B30: MANUTENÇÃO MECÂNICA | C30: HTOMANU | D30: T | E30: 1 | F30: 2 | G30: 38 | H30: 31.66666667 | I30: Mecânica | J30: Sala de aula
B31: MÁQUINAS TÉRMICAS E DE FLUIDOS | C31: HTOMTER | D31: T | E31: 1 | F31: 2 | G31: 38 | H31: 31.66666667 | I31: Mecânica | J31: Sala de aula
B32: PROJETO INTEGRADOR 2 | C32: HTOPJI2 | D32: T/P | E32: 1 | F32: 4 | G32: 76 | H32: 63.33333333 | I32: Mecânica | J32: Laboratório de informática
B33: AUTOMAÇÃO INDUSTRIAL | C33: HTOAUTI | D33: T/P | E33: 1 | F33: 4 | G33: 76 | H33: 63.33333333 | I33: Mecânica | J33: Laboratório existente
B34: USINAGEM CNC 2 | C34: HTOCNC2 | D34: T/P | E34: 1 | F34: 4 | G34: 76 | H34: 63.33333333 | I34: Mecânica | J34: Laboratório existente
A35: Total acumulado de horas | F35: =SUM(F5:F34) -> 80 | G35: - | H35: =SUM(H5:H34) -> 1266.666667
A36: Carga Horária Total Mínima Obrigatória (Sem estágio) | H36: =H35 -> 1266.666667
A37: Estágio Supervisionado (optativo) | H37: 360
A38: Carga Horária Total Máxima: | H38: =SUM(H36+H37) -> 1626.666667
A39: Observações: As aulas serão de: | C39: 50 | D39: minutos.

Sheet EspecEduc 2022
A2: Especialização em humanidades | F2: 19
B3: Componente Curricular | C3: Códigos | D3: Teoria/ | E3: Nº | F3: Aulas/semana | G3: Total | H3: Total | I3: Área (docente) | J3: Ambiente
D4: Prática | G4: Aulas | H4: Horas
A5: 1º Módulo | B5: Educação e teorias de gênero | C5: ETG | D5: T | E5: 1 | F5: 2 | G5: =SUM(F5)*$F$2 -> 38 | H5: =(G5)*$C$22/60 -> 31.66666667 | I5: Educação física | J5: Sala de aula
B6: Educação, arte e cultura | C6: EAC | D6: T | E6: 1 | F6: 2 | G6: 38 | H6: 31.66666667 | I6: Artes
B7: Teorias Pedagógicas Contemporâneas | C7: TPC | D7: T | E7: 1 | F7: 2 | G7: 38 | H7: 31.66666667 | I7: Pedagogia | J7: Sala de aula
B8: História da ciência e letramento científico | C8: HCLC | D8: T | E8: 1 | F8: 2 | G8: 38 | H8: 31.66666667 | I8: História | J8: Sala de aula
A9: 2º Módulo | B9: Políticas educacionais | C9: PE | D9: T | E9: 1 | F9: 2 | G9: 38 | H9: 31.66666667 | I9: Sociologia | J9: Laboratório de informática
B10: Culturas Rítmicas Afro-Brasileiras e Currículo Decolonial | C10: CRA | D10: T | E10: 1 | F10: 2 | G10: 38 | H10: 31.66666667 | I10: Educação física
B11: História e cultura afrobrasileira e indígena | C11: HCAI | D11: T | E11: 1 | F11: 2 | G11: 38 | H11: 31.66666667 | I11: Filosofia
B12: Ensino a distância e suas tecnologias na educação | C12: EDTE | D12: T | E12: 1 | F12: 2 | G12: 38 | H12: 31.66666667 | I12: Química | J12: Sala de aula
A13: 3º Módulo | B13: Saúde e o ensino de ciências | C13: SEC | D13: T | E13: 1 | F13: 2 | G13: 38 | H13: 31.66666667 | I13: Biologia
B14: Práticas docentes com tecnologias e a Escola | C14: PDTE | D14: T | E14: 1 | F14: 2 | G14: 38 | H14: 31.66666667 | I14: Matemática | J14: Sala de aula
B15: Educação e a questão ambiental | C15: EQA | D15: T | E15: 1 | F15: 2 | G15: 38 | H15: 31.66666667 | I15: Geografia | J15: Sala de aula
B16: Metodologias científicas e práticas de pesquisa em educação | C16: MCPPE | D16: T | E16: 1 | F16: 2 | G16: 38 | H16: 31.66666667 | I16: Biologia
A17: 4º Módulo | B17: TCC | D17: T | E17: 1 | F17: 0 | G17: 0 | H17: 0 | I17: Educação física | J17: Sala de aula
A18: Total acumulado de horas | G18: =SUM(G5:G17) -> 456 | H18: 380
A19: Carga Horária Total Mínima Obrigatória (Sem estágio) | H19: =H18 -> 380
A20: Estágio Supervisionado (optativo) | H20: 360
A21: Carga Horária Total Máxima: | H21: =SUM(H19+H20) -> 740
A22: Observações: As aulas serão de: | C22: 50 | D22: minutos. | E22: 19

Sheet EspecLetras 2022
A2: Especialização em estudos da linguagem | F2: 19
B3: Componente Curricular | C3: Códigos | D3: Teoria/ | E3: Nº | F3: Aulas/semana | G3: Total | H3: Total | I3: Área (docente) | J3: Ambiente
D4: Prática | E4: 1 | F4: 4 | G4: Aulas | H4: Horas
A5: 1º Módulo | B5: Literatura, cultura e sociedade | D5: T | E5: 1 | F5: 4 | G5: =SUM(F5)*$F$2 -> 76 | H5: =(G5)*$C$16/60 -> 63.33333333 | I5: Português | J5: EaD
B6: Análise linguística e ensino | D6: T | E6: 1 | F6: 4 | G6: 76 | H6: 63.33333333 | I6: Português | J6: EaD
A7: 2º Módulo | B7: Ensino de literaturas de língua portuguesa | D7: T | E7: 1 | F7: 4 | G7: 76 | H7: 63.33333333 | I7: Português | J7: EaD
B8: Texto e ensino | D8: T | E8: 1 | F8: 4 | G8: 76 | H8: 63.33333333 | I8: Português | J8: EaD
A9: 3º Módulo | B9: Tópicos em linguística aplicada | D9: T | E9: 1 | F9: 4 | G9: 76 | H9: 63.33333333 | I9: Português | J9: EaD
B10: Linguagem e significação | D10: T | E10: 1 | F10: 4 | G10: 76 | H10: 63.33333333 | I10: Português | J10: EaD
A11: 4º Módulo | B11: TCC | D11: T | E11: 1 | F11: 0 | G11: 0 | H11: 0 | I11: Português | J11: EaD
A12: Total acumulado de horas | G12: =SUM(G5:G11) -> 456 | H12: 380
A13: Carga Horária Total Mínima Obrigatória (Sem estágio) | H13: =H12 -> 380
A14: Estágio Supervisionado (optativo) | H14: 360
A15: Carga Horária Total Máxima: | H15: =SUM(H13+H14) -> 740
A16: Observações: As aulas serão de: | C16: 50 | D16: minutos. | E16: 19

Sheet ADS 2022
A2: Análise e Desenvolvimento de Sistemas | D2: Núm. de semanas: | F2: 20
B3: Componente Curricular | C3: Códigos | D3: Teoria/ Prática | E3: Nº Prof. | F3: Aulas/semana | G3: Total Aulas | H3: Total Horas | I3: Área (docente) | J3: Ambiente
F4: 1º
A5: 1º Módulo | B5: Engenharia de Requisitos | C5: HTOENRQ | D5: T | E5: 1 | F5: 2 | G5: =SUM(F5)*$F$2 -> 40 | H5: =(G5)*$C$50/60 -> 33.33333333 | I5: Programação | J5: sala de aula
B6: Interação Humano-Computador | C6: HTOIHCI | D6: T | E6: 1 | F6: 4 | G6: 80 | H6: 66.66666667 | I6: Programação | J6: sala de aula
B7: Linguagem de Programação I | C7: HTOLPR1 | D7: P | E7: 2 | F7: 6 | G7: 120 | H7: 100 | I7: Programação | J7: Laboratório de informática
B8: Desenvolvimento Web | C8: HTODWEB | D8: P | E8: 2 | F8: 4 | G8: 80 | H8: 66.66666667 | I8: Programação | J8: Laboratório de informática
B9: Arquitetura de Computadores | C9: HTOARQC | D9: P | E9: 1 | F9: 2 | G9: 40 | H9: 33.33333333 | I9: Redes | J9: sala de aula
B10: Inglês Técnico | C10: HTOINGT | D10: T | E10: 1 | F10: 2 | G10: 40 | H10: 33.33333333 | I10: Inglês | J10: sala de aula | L10: =SUM(H35:H41) -> 333.3333333
A11: 2º Módulo | B11: Engenharia de Software | C11: HTOENSW | D11: T | E11: 1 | F11: 4 | G11: 80 | H11: 66.66666667 | I11: Programação | J11: sala de aula
B12: Banco de Dados I | C12: HTOBDA1 | D12: P | E12: 2 | F12: 4 | G12: 80 | H12: 66.66666667 | I12: Programação | J12: Laboratório de informática
B13: Linguagem de Programação II | C13: HTOLPR2 | D13: P | E13: 2 | F13: 4 | G13: 80 | H13: 66.66666667 | I13: Programação | J13: Laboratório de informática
B14: Desenvolvimento de Sistemas Web I | C14: HTODSW1 | D14: P | E14: 2 | F14: 2 | G14: 40 | H14: 33.33333333 | I14: Programação | J14: Laboratório de informática | T14: Administração de Redes | U14: Redes | V14: 8
B15: Estruturas de Dados I | C15: HTOESD1 | D15: P | E15: 2 | F15: 4 | G15: 80 | H15: 66.66666667 | I15: Programação | J15: Laboratório de informática | T15: Qualidade de Software | U15: Programação | V15: 4
B16: Comunicação e Expressão | C16: HTOCEEX | D16: T | E16: 1 | F16: 2 | G16: 40 | H16: 33.33333333 | I16: Português | J16: sala de aula | T16: Segurança de Sistemas de Informação | U16: Redes | V16: 4
A17: 3º Módulo | B17: Banco de Dados II | C17: HTOBDA2 | D17: P | E17: 2 | F17: 4 | G17: 80 | H17: 66.66666667 | I17: Programação | J17: Laboratório de informática | T17: Computação Paralela e Distribuída | U17: Redes | V17: 4
B18: Estruturas de Dados II | C18: HTOESD2 | D18: P | E18: 2 | F18: 4 | G18: 80 | H18: 66.66666667 | I18: Programação | J18: Laboratório de informática | T18: Fundamentos em Estatística Aplicada a Análise de Dados | U18: Redes | V18: 4
B19: Linguagem de Programação III | C19: HTOLPR3 | D19: P | E19: 2 | F19: 4 | G19: 80 | H19: 66.66666667 | I19: Programação | J19: Laboratório de informática | T19: Administração | U19: Gestão | V19: 2
B20: Redes de Computadores | C20: HTOREDE | D20: T | E20: 1 | F20: 4 | G20: 80 | H20: 66.66666667 | I20: Redes | J20: sala de aula | T20: Gestão de Projetos | U20: Programação | V20: 4
B21: Práticas em Sociedade e Informática I | C21: HTOPSI1 | D21: P | E21: 1 | F21: 4 | G21: 80 | H21: 66.66666667 | I21: Programação | J21: Laboratório de informática
A22: 4º Módulo | B22: Metodologias Ágeis | C22: HTOAGIL | D22: T | E22: 1 | F22: 2 | G22: 40 | H22: 33.33333333 | I22: Programação | J22: sala de aula
B23: Desenvolvimento de Sistemas Web II | C23: HTODSW2 | D23: P | E23: 2 | F23: 2 | G23: 40 | H23: 33.33333333 | I23: Programação | J23: Laboratório de informática
B24: Desenvolvimento para Dispositivos Móveis | C24: HTODDMO | D24: P | E24: 2 | F24: 4 | G24: 80 | H24: 66.66666667 | I24: Programação | J24: Laboratório de informática
B25: Arquitetura de Software | C25: HTOARQS | D25: T | E25: 1 | F25: 4 | G25: 80 | H25: 66.66666667 | I25: Programação | J25: sala de aula
B26: Sistemas Operacionais | C26: HTOSIOP | D26: T | E26: 1 | F26: 4 | G26: 80 | H26: 66.66666667 | I26: Redes | J26: sala de aula | T26: Desenvolvimento de Sistemas Web III | U26: Programação | V26: 4
B27: Práticas em Sociedade e Informática II | C27: HTOPSI2 | D27: P | E27: 1 | F27: 4 | G27: 80 | H27: 66.66666667 | I27: Programação | J27: Laboratório de informática | T27: Tópicos Especiais | U27: Programação | V27: 2
A28: 5° Módulo | B28: Administração de Redes | C28: HTOADRD | D28: P | E28: 2 | F28: 4 | G28: 80 | H28: 66.66666667 | I28: Redes | J28: Laboratório de informática | N28: =E28*F28 -> 8 | T28: Inteligência Artificial e Aprendizagem de Máquina | U28: Redes | V28: 4
B29: Qualidade de Software | C29: HTOQSWR | D29: P | E29: 1 | F29: 4 | G29: 80 | H29: 66.66666667 | I29: Programação | J29: sala de aula | N29: 4 | T29: Gestão de Tecnologia da Informação | U29: Redes | V29: 4
B30: Segurança de Sistemas de Informação | C30: HTOSGSI | D30: P | E30: 2 | F30: 2 | G30: 40 | H30: 33.33333333 | I30: Redes | J30: Laboratório de informática | N30: 4 | T30: Internet das Coisas | U30: Redes | V30: 4
B31: Computação Paralela e Distribuída | C31: HTOCPDS | D31: P | E31: 2 | F31: 2 | G31: 40 | H31: 33.33333333 | I31: Redes | J31: Laboratório de informática | N31: 4
B32: Fundamentos em Estatística Aplicada a Análise de Dados | C32: HTOEA2D | D32: P | E32: 2 | F32: 2 | G32: 40 | H32: 33.33333333 | I32: Programação | J32: Laboratório de informática | N32: 4 | T32: Práticas em Sociedade e Informática III | U32: Programação | V32: 4
B33: Administração | C33: HTOADMI | D33: T | E33: 1 | F33: 2 | G33: 40 | H33: 33.33333333 | I33: Gestão | J33: sala de aula | N33: 2 | V33: =M33*N33 -> 0
B34: Gestão de Projetos | C34: HTOGSPR | D34: T | E34: 1 | F34: 4 | G34: 80 | H34: 66.66666667 | I34: Programação | J34: sala de aula | N34: 4
A35: 6° Módulo | B35: Desenvolvimento de Sistemas Web III | C35: HTODSW3 | D35: P | E35: 2 | F35: 2 | G35: 40 | H35: 33.33333333 | I35: Programação | J35: Laboratório de informática | N35: 4
B36: Tópicos Especiais | C36: HTOTESP | D36: T | E36: 1 | F36: 2 | G36: 40 | H36: 33.33333333 | I36: Programação | J36: sala de aula | N36: 2
B37: Inteligência Artificial e Aprendizagem de Máquina | C37: HTOIA2M | D37: T | E37: 1 | F37: 4 | G37: 80 | H37: 66.66666667 | I37: Programação | J37: sala de aula | N37: 4
B38: Gestão de Tecnologia da Informação | C38: HTOGSTI | D38: T | E38: 1 | F38: 4 | G38: 80 | H38: 66.66666667 | I38: Redes | J38: sala de aula | N38: 4
B39: Internet das Coisas | C39: HTOIOTS | D39: P | E39: 2 | F39: 2 | G39: 40 | H39: 33.33333333 | I39: Redes | J39: Laboratório de informática | N39: 4
B40: Empreendedorismo | C40: HTOEMPR | D40: T | E40: 1 | F40: 2 | G40: 40 | H40: 33.33333333 | I40: Gestão | J40: sala de aula | N40: 2
B41: Práticas em Sociedade e Informática III | C41: HTOPSI3 | D41: P | E41: 1 | F41: 4 | G41: 80 | H41: 66.66666667 | I41: Redes | J41: Laboratório de informática | N41: 4
A42: LIBRAS (optativo) | C42: HTOLBRS | D42: T/P | E42: 1 | F42: 2 | G42: 40 | H42: 33.33333333 | I42: Libras | J42: sala de aula | N42: 2
A43: Total acumulado de aulas | F43: =SUM(F5:F41) -> 120 | G43: 2400
A44: Total acumulado de horas | F44: =(F43*$F$2*$C$50)/60 -> 2000 | H44: =SUM(F44) -> 2000
A45: Trabalho de Conclusão de Curso (TCC) | H45: 0
A46: Carga Horária Total Mínima Obrigatória (Sem estágio) | H46: =H44+H45 -> 2000
A47: Estágio Supervisionado (não obrigatório) | H47: 360
A48: Atividades Complementares (não obrigatórias) | H48: 80
A49: Carga Horária Total Máxima: | H49: =H46+H42+H47+H48 -> 2473.333333
A50: Observações: As aulas serão de: | C50: 50 | D50: minutos.
E53: =SUMPRODUCT(H5:H41,E5:E41)/F44 -> 1.466666667

Sheet ECA 2022
A1: INSTITUTO FEDERAL DE EDUCAÇÃO, CIÊNCIA E TECNOLOGIA DE SÃO PAULO (Criação Lei nº 11.892, de 29/12/2006) | G1: =CONCAT("Carga horária mínima do curso: ",TEXT(H88,"0,0")," h") -> #N/A
A2: Campus Hortolândia
A3: Estrutura Curricular de Engenharia em
A4: Controle e Automação
A5: Base legal: Lei 9.394/96 e Resolução CNE nº 11/2002
G6: Início do curso:
A7: Resolução de autorização do curso no IFSP: | G7: 1 sem / 2019
B8: Componente Curricular | C8: Código | D8: Teoria/ Prática | E8: Nº Prof. | F8: aulas/sem | G8: Total aulas | H8: Total horas | I8: Área atribuída | J8: Ambiente de ensino
A9: 1º Semestre | B9: CÁLCULO 1 | C9: HTOCAL1 | D9: T | E9: 1 | F9: 6 | G9: =$E$92*F9 -> 120 | H9: =ROUND(G9*$C$92/60,1) -> 100 | I9: Matemática | J9: Laboratório de informática | K9: Redes
B10: ELETRICIDADE | C10: HTOELET | D10: T | E10: 1 | F10: 4 | G10: 80 | H10: 66.7 | I10: Automação | J10: Laboratório de informática
B11: LABORATÓRIO DE ELETRICIDADE | C11: HTOELEP | D11: P | E11: 2 | F11: 2 | G11: 40 | H11: 33.3 | I11: Automação
B12: FUNDAMENTO DA COMPUTAÇÃO | C12: HTOFCOM | D12: P | E12: 2 | F12: 2 | G12: 40 | H12: 33.3 | I12: Mecânica
B13: DESENHO TÉCNICO | C13: HTODTEC | D13: P | E13: 2 | F13: 4 | G13: 80 | H13: 66.7 | I13: Mecânica | J13: Sala de aula
B14: QUÍMICA 1 | C14: HTOQUI1 | D14: T | E14: 1 | F14: 2 | G14: 40 | H14: 33.3 | I14: Química | J14: Sala de aula
B15: ADMINISTRAÇÃO | C15: HTOADMI | D15: T | E15: 1 | F15: 2 | G15: 40 | H15: 33.3 | I15: Gestão | J15: Sala de aula
B16: EDUCAÇÃO PARA AS RELAÇÕES ÉTNICO-RACIAIS: ABORDAGENS FILOSÓFICAS CONTEMPORÂNEAS | C16: HTOERER | D16: T | E16: 1 | F16: 2 | G16: 40 | H16: 33.3 | I16: Filosofia | J16: Laboratório existente
B17: COMUNICAÇÃO E EXPRESSÃO | C17: HTOCEXP | D17: T | E17: 1 | F17: 2 | G17: 40 | H17: 33.3 | I17: Português | J17: Sala de aula
A18: 2º Semestre | B18: CÁLCULO 2 | C18: HTOCAL2 | D18: T | E18: 1 | F18: 6 | G18: 120 | H18: 100 | I18: Mecânica | J18: Sala de aula
B19: GEOMETRIA ANALÍTICA E ÁLGEBRA LINEAR | C19: HTOGAAL | D19: T | E19: 1 | F19: 4 | G19: 80 | H19: 66.7 | I19: Matemática | J19: Sala de aula
B20: CIRCUITOS ELÉTRICOS | C20: HTOCELT | D20: T | E20: 1 | F20: 2 | G20: 40 | H20: 33.3 | I20: Automação | J20: Laboratório existente
B21: LABORATÓRIO DE CIRCUITOS ELÉTRICOS | C21: HTOCELP | D21: P | E21: 2 | F21: 2 | G21: 40 | H21: 33.3 | I21: Automação | J21: Sala de aula
B22: ELETRÔNICA DIGITAL (T) | C22: HTOEDIG | D22: T | E22: 1 | F22: 2 | G22: 40 | H22: 33.3 | I22: Automação | J22: Laboratório existente
B23: ELETRÔNICA DIGITAL (P) | C23: HTOEDIG | D23: P | E23: 2 | F23: 2 | G23: 40 | H23: 33.3 | I23: Automação | J23: Laboratório existente
B24: SISTEMAS DE COMPUTAÇÃO 1 | C24: HTOSCO1 | D24: P | E24: 2 | F24: 2 | G24: 40 | H24: 33.3 | I24: Redes | J24: Sala de aula
B25: PROGRAMAÇÃO DE COMPUTADORES 1 | C25: HTOPRC1 | D25: P | E25: 2 | F25: 4 | G25: 80 | H25: 66.7 | I25: Automação | J25: laboratório de informática | K25: Programação
B26: QUÍMICA 2 | C26: HTOQUI2 | D26: T | E26: 1 | F26: 2 | G26: 40 | H26: 33.3 | I26: Química | J26: Sala de aula
B27: CIÊNCIA, TECNOLOGIA E SOCIEDADE | C27: HTOCTSO | D27: T | E27: 1 | F27: 2 | G27: 40 | H27: 33.3 | I27: História | J27: EaD
A28: 3º Semestre | B28: CÁLCULO 3 | C28: HTOCAL3 | D28: T | E28: 1 | F28: 6 | G28: 120 | H28: 100 | I28: Automação | J28: Sala de aula
B29: ELETRÔNICA ANALÓGICA | C29: HTOEANT | D29: T | E29: 1 | F29: 4 | G29: 80 | H29: 66.7 | I29: Automação | J29: Sala de aula
B30: LABORATÓRIO DE ELETRÔNICA ANALÓGICA | C30: HTOEANP | D30: P | E30: 2 | F30: 2 | G30: 40 | H30: 33.3 | I30: Automação | J30: Laboratório existente
B31: MICROCONTROLADORES (T) | C31: HTOMICR | D31: T | E31: 1 | F31: 2 | G31: 40 | H31: 33.3 | I31: Automação | J31: Laboratório existente
B32: MICROCONTROLADORES (P) | C32: HTOMICR | D32: P | E32: 2 | F32: 2 | G32: 40 | H32: 33.3 | I32: Automação | J32: Laboratório existente
B33: SISTEMAS DE COMPUTAÇÃO 2 | C33: HTOSCO2 | D33: T | E33: 2 | F33: 2 | G33: 40 | H33: 33.3 | I33: Automação | J33: Sala de aula
B34: PROGRAMAÇÃO DE COMPUTADORES 2 | C34: HTOPRC2 | D34: P | E34: 2 | F34: 4 | G34: 80 | H34: 66.7 | I34: Automação | J34: Laboratório existente
B35: MECÂNICA CLÁSSICA | C35: HTOMECL | D35: T | E35: 1 | F35: 4 | G35: 80 | H35: 66.7 | I35: Física | J35: Sala de aula
B36: GESTÃO DE PESSOAS | C36: HTOGPES | D36: P | E36: 1 | F36: 2 | G36: 40 | H36: 33.3 | I36: Gestão | J36: Laboratório de informática | K36: Programação
A37: 4º Semestre | B37: ELETRÔNICA DE POTÊNCIA | C37: HTOEPOT | D37: T | E37: 1 | F37: 2 | G37: 40 | H37: 33.3 | I37: Automação | J37: Sala de aula
B38: LABORATÓRIO DE ELETRÔNICA DE POTÊNCIA | C38: HTOEPOP | D38: P | E38: 2 | F38: 2 | G38: 40 | H38: 33.3 | I38: Automação | J38: Laboratório existente
B39: RESISTÊNCIA DOS MATERIAIS | C39: HTOREMA | D39: T | E39: 1 | F39: 4 | G39: 80 | H39: 66.7 | I39: Mecânica | J39: Sala de aula
B40: CIÊNCIAS DOS MATERIAIS | C40: HTOCIMA | D40: T | E40: 1 | F40: 2 | G40: 40 | H40: 33.3 | I40: Mecânica | J40: Sala de aula
B41: PROGRAMAÇÃO DE COMPUTADORES 3 | C41: HTOPRC3 | D41: P | E41: 2 | F41: 4 | G41: 80 | H41: 66.7 | I41: Automação | J41: Laboratório de informática
B42: OSCILAÇÕES E ONDAS | C42: HTOOSON | D42: T | E42: 1 | F42: 4 | G42: 80 | H42: 66.7 | I42: Mecânica | J42: Sala de aula
B43: CÁLCULO NUMÉRICO | C43: HTOCANU | D43: P | E43: 1 | F43: 4 | G43: 80 | H43: 66.7 | I43: Mecânica | J43: Laboratório de informática
B44: TERMODINÂMICA | C44: HTOTERM | D44: T/P | E44: 1 | F44: 4 | G44: 80 | H44: 66.7 | I44: Mecânica | J44: Sala de aula
B45: SEGURANÇA DO TRABALHO | C45: HTOSTRA | D45: T | E45: 1 | F45: 2 | G45: 40 | H45: 33.3 | I45: Mecânica | J45: Sala de aula
A46: 5° Semestre | B46: COMANDOS ELÉTRICOS | C46: HTOCELE | D46: T/P | E46: 2 | F46: 2 | G46: 40 | H46: 33.3 | I46: Automação | J46: Laboratório existente
B47: MÁQUINAS E INSTALAÇÕES ELÉTRICAS INDUSTRIAIS (T) | C47: HTOMIEI | D47: T | E47: 1 | F47: 2 | G47: 40 | H47: 33.3 | I47: Automação | J47: Laboratório existente
B48: MÁQUINAS E INSTALAÇÕES ELÉTRICAS INDUSTRIAIS (P) | C48: HTOMIEI | D48: P | E48: 2 | F48: 2 | G48: 40 | H48: 33.3 | I48: Automação | J48: Laboratório existente
B49: METROLOGIA APLICADA À INSTRUMENTAÇÃO INDUSTRIAL | C49: HTOMAII | D49: T | E49: 1 | F49: 2 | G49: 40 | H49: 33.3 | I49: Automação | J49: Sala de aula
B50: DINÂMICA | C50: HTODINA | D50: T | E50: 1 | F50: 4 | G50: 80 | H50: 66.7 | I50: Mecânica | J50: Sala de aula
B51: FENÔMENOS DE TRANSPORTE 1 | C51: HTOFTR1 | D51: T | E51: 1 | F51: 4 | G51: 80 | H51: 66.7 | I51: Mecânica | J51: Sala de aula
B52: ECONÔMIA | C52: HTOECON | D52: T | E52: 1 | F52: 2 | G52: 40 | H52: 33.3 | I52: Gestão | J52: Laboratório inexistente
B53: SOCIOLOGIA E SOCIOLOGIA DO TRABALHO | C53: HTOSSTR | D53: T | E53: 1 | F53: 2 | G53: 40 | H53: 33.3 | I53: Sociologia | J53: Sala de aula
B54: ATIVIDADE DE EXTENSÃO 1 | C54: HTOAEX1 | D54: T | E54: 1 | F54: 4 | G54: 80 | H54: 66.7 | I54: Pedagogia | J54: Sala de aula
A55: 6° Semestre | B55: CONTROLADOR LÓGICO PROGRAMÁVEL 1 | C55: HTOCLP1 | D55: P | E55: 2 | F55: 2 | G55: 40 | H55: 33.3 | I55: Automação | J55: Sala de aula
B56: MODELAGEM DE SISTEMAS | C56: HTOMOSI | D56: P | E56: 1 | F56: 2 | G56: 40 | H56: 33.3 | I56: Mecânica | J56: Laboratório existente
B57: PROBABILIDADE | C57: HTOPROB | D57: P | E57: 1 | F57: 2 | G57: 40 | H57: 33.3 | I57: Mecânica | J57: Laboratório de informática
B58: FENÔMENOS DE TRANSPORTE 2 | C58: HTOFTR2 | D58: T | E58: 1 | F58: 4 | G58: 80 | H58: 66.7 | I58: Mecânica | J58: Sala de aula
B59: INSTRUMENTAÇÃO | C59: HTOINST | D59: T | E59: 1 | F59: 2 | G59: 40 | H59: 33.3 | I59: Automação | J59: Sala de aula
B60: LABORATÓRIO DE INSTRUMENTAÇÃO | C60: HTOINSP | D60: P | E60: 2 | F60: 2 | G60: 40 | H60: 33.3 | I60: Automação | J60: Sala de aula
B61: ATIVIDADE DE EXTENSÃO 2 | C61: HTOAEX2 | D61: T | E61: 1 | F61: 4 | G61: 80 | H61: 66.7 | I61: Pedagogia | J61: Sala de aula
A62: 7° Semestre | B62: CONTROLADOR LÓGICO PROGRAMÁVEL 2 | C62: HTOCLP2 | D62: P | E62: 2 | F62: 2 | G62: 40 | H62: 33.3 | I62: Automação | J62: Laboratório existente
B63: CONTROLE LINEAR | C63: HTOCOLI | D63: T | E63: 1 | F63: 4 | G63: 80 | H63: 66.7 | I63: Automação | J63: Sala de aula
B64: HIDRÁULICA E PNEUMÁTICA | C64: HTOHIPE | D64: P | E64: 2 | F64: 4 | G64: 80 | H64: 66.7 | I64: Mecânica | J64: Sala de aula
B65: GESTÃO DA QUALIDADE | C65: HTOGQUA | D65: T | E65: 1 | F65: 2 | G65: 40 | H65: 33.3 | I65: Mecânica | J65: Sala de aula
B66: ESTATÍSTICA | C66: HTOESTA | D66: T | E66: 1 | F66: 2 | G66: 40 | H66: 33.3 | I66: Mecânica | J66: Sala de aula
B67: ATIVIDADE DE EXTENSÃO 3 | C67: HTOAEX3 | D67: T | E67: 1 | F67: 4 | G67: 80 | H67: 66.7 | I67: Automação | J67: Sala de aula
A68: 8° Semestre | B68: SISTEMAS SUPERVISÓRIOS | C68: HTOSSUP | D68: P | E68: 2 | F68: 2 | G68: 40 | H68: 33.3 | I68: Automação | J68: Sala de aula
B69: GERAÇÃO DE ENERGIA E EFICIÊNCIA ENERGÉTICA | C69: HTOGEEE | D69: T/P | E69: 1 | F69: 2 | G69: 40 | H69: 33.3 | I69: Automação | J69: Laboratório existente
B70: AMBIENTE E TERRITÓRIO: AS DIMENSÕES SOCIOAMBIENTAIS DA AUTOMAÇÃO | C70: HTOAMTE | D70: T | E70: 1 | F70: 2 | G70: 40 | H70: 33.3 | I70: Geografia | J70: Sala de aula
B71: PROCESSOS DE FABRICAÇÃO | C71: HTOPFAB | D71: T | E71: 1 | F71: 2 | G71: 40 | H71: 33.3 | I71: Mecânica | J71: Laboratório inexistente
B72: CONTROLE DE PROCESSOS | C72: HTOCPRO | D72: P | E72: 2 | F72: 4 | G72: 80 | H72: 66.7 | I72: Automação | J72: Sala de aula
B73: ATIVIDADE DE EXTENSÃO 4 | C73: HTOAEX4 | D73: T | E73: 1 | F73: 4 | G73: 80 | H73: 66.7 | I73: Automação | J73: Sala de aula
A74: 9° Semestre | B74: CONTROLE AVANÇADO DE PROCESSO | C74: HTOCAPR | D74: T | E74: 1 | F74: 2 | G74: 40 | H74: 33.3 | I74: Automação | J74: Sala de aula
B75: FUNDAMENTOS DE ROBÓTICA | C75: HTPFROB | D75: T | E75: 1 | F75: 2 | G75: 40 | H75: 33.3 | I75: Mecânica | J75: Sala de aula
B76: ELEMENTOS DE MÁQUINAS | C76: HTOEMAQ | D76: T | E76: 1 | F76: 2 | G76: 40 | H76: 33.3 | I76: Mecânica | J76: Sala de aula
B77: EMPREENDEDORISMO E INOVAÇÃO | C77: HTOEMPI | D77: T | E77: 1 | F77: 2 | G77: 40 | H77: 33.3 | I77: Mecânica | J77: Laboratório de informática
B78: SISTEMAS AUTOMATIZADOS DE MANUFATURA | C78: HTOSAMA | D78: T | E78: 1 | F78: 2 | G78: 40 | H78: 33.3 | I78: Mecânica | J78: Sala de aula
B79: ATIVIDADE DE EXTENSÃO 5 | C79: HTOAEX5 | D79: T | E79: 1 | F79: 4 | G79: 80 | H79: 66.7 | I79: Automação | J79: Laboratório existente
A80: 10° Semestre | B80: CONTROLE DIGITAL | C80: HTOCDIG | D80: T | E80: 1 | F80: 4 | G80: 80 | H80: 66.7 | I80: Automação | J80: Sala de aula
B81: REDES INSDUSTRIAIS | C81: HTORIND | D81: T | E81: 1 | F81: 4 | G81: 80 | H81: 66.7 | I81: Automação | J81: Sala de aula
B82: GESTÃO DE PROJETOS | C82: HTOGPRO | D82: T | E82: 1 | F82: 2 | G82: 40 | H82: 33.3 | I82: Mecânica | J82: Sala de aula
B83: MANUFATURA ASSISTIDA POR COMPUTADOR | C83: HTOMACO | D83: T | E83: 1 | F83: 2 | G83: 40 | H83: 33.3 | I83: Mecânica | J83: Sala de aula
A84: TOTAL ACUMULADO DE AULAS | G84: =SUM(G9:G83) -> 4240
A85: TOTAL ACUMULADO DE HORAS | H85: =SUM(H9:H83) -> 3532.6
A86: Trabalho de Conclusão de Curso (obrigatório) | H86: 100
A87: Estágio Supervisionado (obrigatório) | H87: 160
A88: CARGA HORÁRIA TOTAL MÍNIMA | H88: =SUM(H85:H87) -> 3792.6
A89: LIBRAS - Disciplina optativa | C89: LIBS0 | D89: T/P | E89: 1 | F89: 2 | G89: =$E$92*F89 -> 40 | H89: =ROUND(G89*$C$92/60,) -> 33 | I89: Libras
A90: Atividades complementares (facultativas) | H90: 100
A91: CARGA HORÁRIA TOTAL MÁXIMA | H91: =SUM(H88:H90) -> 3925.6
B92: Obs.: Aulas com duração de | C92: 50 | D92: minutos - | E92: 20 | F92: semanas por semestre
E96: =SUMPRODUCT(H5:H83,E5:E83)/H85 -> 1.254684935

Sheet LicMat (real) (hidden)
A2: Licenciatura em Matemática | D2: Núm. de semanas: | G2: 20
B3: Componente Curricular | C3: Códigos | D3: Teoria/ Prática | E3: Nº Prof. | F3: Aulas/semana | G3: Total Aulas | H3: Total Horas | I3: Área (docente) | J3: Ambiente
F4: 1º
A5: 1º Módulo | B5: Funções | C5: FUNM1 | D5: T/P | E5: 1 | F5: 4 | G5: =SUM(F5)*$G$2 -> 80 | H5: =(G5)*$C$63/60 -> 66.66666667 | I5: Matemática | J5: Sala de aula | L5: =H5*E5 -> 66.66666667
B6: Geometria Plana e Desenho Geométrico | C6: GPDM1 | D6: T/P | E6: 1 | F6: 4 | G6: 80 | H6: 66.66666667 | I6: Matemática | J6: sala de aula | L6: 66.66666667
B7: Analise Combinatoria e Probabilidade | C7: ACPM1 | D7: T/P | E7: 1 | F7: 2 | G7: 40 | H7: 33.33333333 | I7: Matemática | J7: sala de aula | L7: 33.33333333
B8: Matrizes, Determinantes e Sistemas | C8: MDSM1 | D8: T/P | E8: 1 | F8: 2 | G8: 40 | H8: 33.33333333 | I8: Matemática | J8: sala de aula | L8: 33.33333333
B9: História da Educação | C9: HTEM1 | D9: T | E9: 1 | F9: 4 | G9: 80 | H9: 66.66666667 | I9: Pedagogia | J9: sala de aula | L9: 66.66666667
B10: História da Ciência e da Tecnologia | C10: HCTM1 | D10: T | E10: 1 | F10: 2 | G10: 40 | H10: 33.33333333 | I10: História | J10: sala de aula | L10: 33.33333333
B11: Leitura, Interpretação e Produção de Textos I | C11: LITM1 | D11: T | E11: 1 | F11: 2 | G11: 40 | H11: 33.33333333 | I11: Português | J11: sala de aula | L11: 33.33333333
A12: 2º Módulo | B12: Polinômios e Números Complexos | C12: PNCM2 | D12: T | E12: 1 | F12: 2 | G12: 40 | H12: 33.33333333 | I12: Matemática | J12: sala de aula | L12: 33.33333333
B13: Geometria Espacial | C13: GEEM2 | D13: T | E13: 1 | F13: 2 | G13: 40 | H13: 33.33333333 | I13: Matemática | J13: sala de aula | L13: 33.33333333
B14: Geometria Análitica | C14: GEAM2 | D14: T | E14: 1 | F14: 4 | G14: 80 | H14: 66.66666667 | I14: Matemática | J14: sala de aula | L14: 66.66666667
B15: Trigonometria | C15: TRIM2 | D15: T | E15: 1 | F15: 2 | G15: 40 | H15: 33.33333333 | I15: Matemática | J15: sala de aula | L15: 33.33333333
B16: Filosofia da Educação | C16: FLEM2 | D16: T | E16: 1 | F16: 4 | G16: 80 | H16: 66.66666667 | I16: Pedagogia | J16: sala de aula | L16: 66.66666667
B17: Leitura, Interpretação e Produção de Textos II | C17: LITM2 | D17: T | E17: 1 | F17: 2 | G17: 40 | H17: 33.33333333 | I17: Português | J17: sala de aula | L17: 33.33333333
B18: Educação e Sociedade | C18: EDSM3 | D18: T | E18: 1 | F18: 2 | G18: 40 | H18: 33.33333333 | I18: Pedagogia | J18: sala de aula | L18: 33.33333333
B19: Políticas Públicas e Org. da Educação Brasileira | C19: PPEM5 | D19: T | E19: 1 | F19: 2 | G19: 40 | H19: 33.33333333 | I19: Pedagogia | J19: sala de aula | L19: 33.33333333
A20: 3º Módulo | B20: Cálculo Diferencial e Integral I | C20: CD1M3 | D20: T | E20: 1 | F20: 4 | G20: 80 | H20: 66.66666667 | I20: Matemática | J20: sala de aula | L20: 66.66666667
B21: Geometria Analítica e Vetores | C21: GAVM3 | D21: T | E21: 1 | F21: 4 | G21: 80 | H21: 66.66666667 | I21: Matemática | J21: sala de aula | L21: 66.66666667
B22: Estatística 1 | C22: ES1M2 | D22: T/P | E22: 1 | F22: 2 | G22: 40 | H22: 33.33333333 | I22: Matemática | J22: sala de aula | L22: 33.33333333
B23: Elementos de Lógica e Teoria dos Conjuntos | C23: ELCM2 | D23: T | E23: 1 | F23: 2 | G23: 40 | H23: 33.33333333 | I23: Matemática | J23: sala de aula | L23: 33.33333333
B24: Didática | C24: DIDM3 | D24: T | E24: 1 | F24: 4 | G24: 80 | H24: 66.66666667 | I24: Pedagogia | J24: sala de aula | L24: 66.66666667
B25: Psicologia da Educaçao | C25: PSIM3 | D25: T | E25: 1 | F25: 4 | G25: 80 | H25: 66.66666667 | I25: Pedagogia | J25: sala de aula | L25: 66.66666667
A26: 4º Módulo | B26: Cálculo Diferencial e Integral II | C26: CD2M4 | D26: T | E26: 1 | F26: 4 | G26: 80 | H26: 66.66666667 | I26: Matemática | J26: sala de aula | L26: 66.66666667
B27: Álgebra Linear | C27: ALIM4 | D27: T | E27: 1 | F27: 4 | G27: 80 | H27: 66.66666667 | I27: Matemática | J27: sala de aula | L27: 66.66666667
B28: Teoria dos Números | C28: TDNM4 | D28: T | E28: 1 | F28: 4 | G28: 80 | H28: 66.66666667 | I28: Matemática | J28: sala de aula | L28: 66.66666667
B29: História da Matemática | C29: HMTM4 | D29: T | E29: 1 | F29: 4 | G29: 80 | H29: 66.66666667 | I29: Matemática | J29: sala de aula | L29: 66.66666667
B30: Educação para a Inclusão | C30: EDIM8 | D30: T | E30: 1 | F30: 2 | G30: 40 | H30: 33.33333333 | I30: Pedagogia | J30: sala de aula | L30: 33.33333333
B31: Língua Brasileira de Sinais | C31: LBSM8 | D31: T | E31: 1 | F31: 2 | G31: 40 | H31: 33.33333333 | I31: Libras | J31: sala de aula | L31: 33.33333333
A32: 5° Módulo | B32: Cálculo Diferencial e Integral III | C32: CD3M5 | D32: T | E32: 1 | F32: 4 | G32: 80 | H32: 66.66666667 | I32: Matemática | J32: sala de aula | L32: 66.66666667
B33: Estatística 2 | C33: ES2M3 | D33: T | E33: 1 | F33: 2 | G33: 40 | H33: 33.33333333 | I33: Matemática | J33: sala de aula | L33: 33.33333333
B34: Laboratório de Ensino de Matemática | C34: LEMM5 | D34: P | E34: 1 | F34: 4 | G34: 80 | H34: 66.66666667 | I34: Matemática | J34: sala de aula | L34: 66.66666667
B35: Prática Docente I | C35: PD1M5 | D35: T/P | E35: 1 | F35: 4 | G35: 80 | H35: 66.66666667 | I35: Matemática | J35: sala de aula | L35: 66.66666667
B36: Matemática Aplicada à Física I | C36: MF1M5 | D36: T/P | E36: 1 | F36: 4 | G36: 80 | H36: 66.66666667 | I36: Física | J36: Laboratório inexistente | L36: 66.66666667
B37: Inglês para Fins Específicos I | C37: IN1M5 | D37: T | E37: 1 | F37: 2 | G37: 40 | H37: 33.33333333 | I37: Inglês | J37: sala de aula | L37: 33.33333333
A38: 6° Módulo | B38: Matemática Discreta | C38: MADM6 | D38: T | E38: 1 | F38: 4 | G38: 80 | H38: 66.66666667 | I38: Matemática | J38: sala de aula | L38: 66.66666667
B39: Cálculo Diferencial e integral IV | C39: CD4M6 | D39: T | E39: 1 | F39: 4 | G39: 80 | H39: 66.66666667 | I39: Matemática | J39: sala de aula | L39: 66.66666667
B40: Prática Docente II | C40: PD2M6 | D40: T/P | E40: 1 | F40: 4 | G40: 80 | H40: 66.66666667 | I40: Matemática | J40: sala de aula | L40: 66.66666667
B41: Matemática Aplicada à Física II | C41: MF2M6 | D41: T/P | E41: 1 | F41: 4 | G41: 80 | H41: 66.66666667 | I41: Física | J41: Laboratório inexistente | L41: 66.66666667
B42: Programação Matemática | C42: PMAM6 | D42: T | E42: 2 | F42: 2 | G42: 40 | H42: 33.33333333 | I42: Física | J42: Laboratório de informática | L42: 66.66666667
B43: Inglês para Fins Específicos II | C43: IN2M6 | D43: T | E43: 1 | F43: 2 | G43: 40 | H43: 33.33333333 | I43: Inglês | J43: sala de aula | L43: 33.33333333
A44: 7° Módulo | B44: Equações Diferenciais | C44: EQDM7 | D44: T | E44: 1 | F44: 4 | G44: 80 | H44: 66.66666667 | I44: Matemática | J44: sala de aula | L44: 66.66666667
B45: Sequências e Séries | C45: SESM7 | D45: T | E45: 1 | F45: 2 | G45: 40 | H45: 33.33333333 | I45: Matemática | J45: sala de aula | L45: 33.33333333
B46: Matemática Financeira | C46: MFIM7 | D46: T | E46: 1 | F46: 2 | G46: 40 | H46: 33.33333333 | I46: Matemática | J46: sala de aula | L46: 33.33333333
B47: Cálculo Numérico | C47: CNUM7 | D47: T | E47: 1 | F47: 2 | G47: 40 | H47: 33.33333333 | I47: Matemática | J47: sala de aula | L47: 33.33333333
B48: Metodologia do Trabalho Científico | C48: MTCM7 | D48: T | E48: 1 | F48: 2 | G48: 40 | H48: 33.33333333 | I48: Biologia | J48: sala de aula | L48: 33.33333333
B49: Prática Docente III | C49: PD3M7 | D49: T/P | E49: 1 | F49: 4 | G49: 80 | H49: 66.66666667 | I49: Matemática | J49: sala de aula | L49: 66.66666667
B50: Matemática Aplicada à Física III | C50: MF3M7 | D50: T/P | E50: 1 | F50: 4 | G50: 80 | H50: 66.66666667 | I50: Física | J50: Laboratório inexistente | L50: 66.66666667
A51: 8° Módulo | B51: Análise Real | C51: AREM8 | D51: T | E51: 1 | F51: 4 | G51: 80 | H51: 66.66666667 | I51: Matemática | J51: sala de aula | L51: 66.66666667
B52: Álgebra | C52: ALGM8 | D52: T | E52: 1 | F52: 4 | G52: 80 | H52: 66.66666667 | I52: Matemática | J52: sala de aula | L52: 66.66666667
B53: Tecnologias da Informação no Ensino da Matemática | C53: TIEM8 | D53: T | E53: 1 | F53: 2 | G53: 40 | H53: 33.33333333 | I53: Matemática | J53: sala de aula | L53: 33.33333333
B54: Prática Docente IV | C54: PD4M8 | D54: T/P | E54: 1 | F54: 4 | G54: 80 | H54: 66.66666667 | I54: Matemática | J54: sala de aula | L54: 66.66666667
B55: Produção de Trabalhos Científicos | C55: PTCM8 | D55: T/P | E55: 1 | F55: 2 | G55: 40 | H55: 33.33333333 | I55: Biologia | J55: sala de aula | L55: 33.33333333
B56: Educação em Direitos Humanos | C56: EDHM4 | D56: T/P | E56: 1 | F56: 4 | G56: 80 | H56: 66.66666667 | I56: Pedagogia | J56: sala de aula | L56: 66.66666667
A57: Total acumulado de aulas | F57: =SUM(F5:F56) -> 160 | N57: =SUM(G5:G56) -> 3200
A58: Total acumulado de horas | F58: =(F57*$G$2*$C$63)/60 -> 2666.666667 | O58: =SUM(F58) -> 2666.666667
A59: NEIEC (Núcleo de Estudos Integradores para Enriquecimento Curricular ) | V59: 200
A60: TCC (Trabalho de Conclusão de Curso) | V60: 60
A61: ESTÁGIO CURRICULAR SUPERVISIONADO | V61: 400
A62: Carga Horária Total Mínima Obrigatória | V62: =O58+SUM(V59:V61) -> 3326.666667
A63: Observações: As aulas serão de: | C63: 50 | D63: minutos.
F67: =SUMPRODUCT(H5:H56,E5:E56)/F58 -> 1.0125

Sheet LicMat (hidden)
A2: Licenciatura em Matemática | D2: Núm. de semanas: | G2: 20
B3: Componente Curricular | C3: Códigos | D3: Teoria/ Prática | E3: Nº Prof. | F3: Aulas/semana | G3: Total Aulas | H3: Total Horas | I3: Área (docente) | J3: Ambiente
F4: 1º
A5: 1º Módulo | B5: Funções | C5: FUNM1 | D5: T/P | E5: 1 | F5: 4 | G5: =SUM(F5)*$G$2 -> 80 | H5: =(G5)*$C$63/60 -> 66.66666667 | I5: Matemática | J5: Sala de aula | L5: =H5*E5 -> 66.66666667
B6: Geometria Plana e Desenho Geométrico | C6: GPDM1 | D6: T/P | E6: 1 | F6: 4 | G6: 80 | H6: 66.66666667 | I6: Matemática | J6: sala de aula | L6: 66.66666667
B7: Analise Combinatoria e Probabilidade | C7: ACPM1 | D7: T/P | E7: 1 | F7: 2 | G7: 40 | H7: 33.33333333 | I7: Matemática | J7: sala de aula | L7: 33.33333333
B8: Matrizes, Determinantes e Sistemas | C8: MDSM1 | D8: T/P | E8: 1 | F8: 2 | G8: 40 | H8: 33.33333333 | I8: Matemática | J8: sala de aula | L8: 33.33333333
B9: História da Educação | C9: HTEM1 | D9: T | E9: 1 | F9: 4 | G9: 80 | H9: 66.66666667 | I9: Pedagogia | J9: sala de aula | L9: 66.66666667
B10: História da Ciência e da Tecnologia | C10: HCTM1 | D10: T | E10: 1 | F10: 2 | G10: 40 | H10: 33.33333333 | I10: História | J10: sala de aula | L10: 33.33333333
B11: Leitura, Interpretação e Produção de Textos I | C11: LITM1 | D11: T | E11: 1 | F11: 2 | G11: 40 | H11: 33.33333333 | I11: Português | J11: sala de aula | L11: 33.33333333
A12: 2º Módulo | B12: Polinômios e Números Complexos | C12: PNCM2 | D12: T | E12: 1 | F12: 2 | G12: 40 | H12: 33.33333333 | I12: Matemática | J12: sala de aula | L12: 33.33333333
B13: Geometria Espacial | C13: GEEM2 | D13: T | E13: 1 | F13: 2 | G13: 40 | H13: 33.33333333 | I13: Matemática | J13: sala de aula | L13: 33.33333333
B14: Geometria Análitica | C14: GEAM2 | D14: T | E14: 1 | F14: 4 | G14: 80 | H14: 66.66666667 | I14: Matemática | J14: sala de aula | L14: 66.66666667
B15: Trigonometria | C15: TRIM2 | D15: T | E15: 1 | F15: 2 | G15: 40 | H15: 33.33333333 | I15: Matemática | J15: sala de aula | L15: 33.33333333
B16: Filosofia da Educação | C16: FLEM2 | D16: T | E16: 1 | F16: 4 | G16: 80 | H16: 66.66666667 | I16: Pedagogia | J16: sala de aula | L16: 66.66666667
B17: Leitura, Interpretação e Produção de Textos II | C17: LITM2 | D17: T | E17: 1 | F17: 2 | G17: 40 | H17: 33.33333333 | I17: Português | J17: sala de aula | L17: 33.33333333
B18: Educação e Sociedade | C18: EDSM3 | D18: T | E18: 1 | F18: 2 | G18: 40 | H18: 33.33333333 | I18: Pedagogia | J18: sala de aula | L18: 33.33333333
B19: Políticas Públicas e Org. da Educação Brasileira | C19: PPEM5 | D19: T | E19: 1 | F19: 2 | G19: 40 | H19: 33.33333333 | I19: Pedagogia | J19: sala de aula | L19: 33.33333333
A20: 3º Módulo | B20: Cálculo Diferencial e Integral I | C20: CD1M3 | D20: T | E20: 1 | F20: 4 | G20: 80 | H20: 66.66666667 | I20: Matemática | J20: sala de aula | L20: 66.66666667
B21: Geometria Analítica e Vetores | C21: GAVM3 | D21: T | E21: 1 | F21: 4 | G21: 80 | H21: 66.66666667 | I21: Matemática | J21: sala de aula | L21: 66.66666667
B22: Estatística 1 | C22: ES1M2 | D22: T/P | E22: 1 | F22: 2 | G22: 40 | H22: 33.33333333 | I22: Matemática | J22: sala de aula | L22: 33.33333333
B23: Elementos de Lógica e Teoria dos Conjuntos | C23: ELCM2 | D23: T | E23: 1 | F23: 2 | G23: 40 | H23: 33.33333333 | I23: Matemática | J23: sala de aula | L23: 33.33333333
B24: Didática | C24: DIDM3 | D24: T | E24: 1 | F24: 4 | G24: 80 | H24: 66.66666667 | I24: Pedagogia | J24: sala de aula | L24: 66.66666667
B25: Psicologia da Educaçao | C25: PSIM3 | D25: T | E25: 1 | F25: 4 | G25: 80 | H25: 66.66666667 | I25: Pedagogia | J25: sala de aula | L25: 66.66666667
A26: 4º Módulo | B26: Cálculo Diferencial e Integral II | C26: CD2M4 | D26: T | E26: 1 | F26: 4 | G26: 80 | H26: 66.66666667 | I26: Matemática | J26: sala de aula | L26: 66.66666667
B27: Álgebra Linear | C27: ALIM4 | D27: T | E27: 1 | F27: 4 | G27: 80 | H27: 66.66666667 | I27: Matemática | J27: sala de aula | L27: 66.66666667
B28: Teoria dos Números | C28: TDNM4 | D28: T | E28: 1 | F28: 4 | G28: 80 | H28: 66.66666667 | I28: Matemática | J28: sala de aula | L28: 66.66666667
B29: História da Matemática | C29: HMTM4 | D29: T | E29: 1 | F29: 4 | G29: 80 | H29: 66.66666667 | I29: Matemática | J29: sala de aula | L29: 66.66666667
B30: Educação para a Inclusão | C30: EDIM8 | D30: T | E30: 1 | F30: 2 | G30: 40 | H30: 33.33333333 | I30: Pedagogia | J30: sala de aula | L30: 33.33333333
B31: Língua Brasileira de Sinais | C31: LBSM8 | D31: T | E31: 1 | F31: 2 | G31: 40 | H31: 33.33333333 | I31: Libras | J31: sala de aula | L31: 33.33333333
A32: 5° Módulo | B32: Cálculo Diferencial e Integral III | C32: CD3M5 | D32: T | E32: 1 | F32: 4 | G32: 80 | H32: 66.66666667 | I32: Matemática | J32: sala de aula | L32: 66.66666667
B33: Estatística 2 | C33: ES2M3 | D33: T | E33: 1 | F33: 2 | G33: 40 | H33: 33.33333333 | I33: Matemática | J33: sala de aula | L33: 33.33333333
B34: Laboratório de Ensino de Matemática | C34: LEMM5 | D34: P | E34: 1 | F34: 4 | G34: 80 | H34: 66.66666667 | I34: Matemática | J34: sala de aula | L34: 66.66666667
B35: Prática Docente I | C35: PD1M5 | D35: T/P | E35: 2 | F35: 4 | G35: 80 | H35: 66.66666667 | I35: Matemática | J35: sala de aula | L35: 133.3333333
B36: Matemática Aplicada à Física I | C36: MF1M5 | D36: T/P | E36: 2 | F36: 4 | G36: 80 | H36: 66.66666667 | I36: Física | J36: Laboratório inexistente | L36: 133.3333333
B37: Inglês para Fins Específicos I | C37: IN1M5 | D37: T | E37: 1 | F37: 2 | G37: 40 | H37: 33.33333333 | I37: Inglês | J37: sala de aula | L37: 33.33333333
A38: 6° Módulo | B38: Matemática Discreta | C38: MADM6 | D38: T | E38: 1 | F38: 4 | G38: 80 | H38: 66.66666667 | I38: Matemática | J38: sala de aula | L38: 66.66666667
B39: Cálculo Diferencial e integral IV | C39: CD4M6 | D39: T | E39: 1 | F39: 4 | G39: 80 | H39: 66.66666667 | I39: Matemática | J39: sala de aula | L39: 66.66666667
B40: Prática Docente II | C40: PD2M6 | D40: T/P | E40: 2 | F40: 4 | G40: 80 | H40: 66.66666667 | I40: Matemática | J40: sala de aula | L40: 133.3333333
B41: Matemática Aplicada à Física II | C41: MF2M6 | D41: T/P | E41: 2 | F41: 4 | G41: 80 | H41: 66.66666667 | I41: Física | J41: Laboratório inexistente | L41: 133.3333333
B42: Programação Matemática | C42: PMAM6 | D42: T | E42: 2 | F42: 2 | G42: 40 | H42: 33.33333333 | I42: Matemática | J42: Laboratório de informática | L42: 66.66666667
B43: Inglês para Fins Específicos II | C43: IN2M6 | D43: T | E43: 1 | F43: 2 | G43: 40 | H43: 33.33333333 | I43: Inglês | J43: sala de aula | L43: 33.33333333
A44: 7° Módulo | B44: Equações Diferenciais | C44: EQDM7 | D44: T | E44: 1 | F44: 4 | G44: 80 | H44: 66.66666667 | I44: Matemática | J44: sala de aula | L44: 66.66666667
B45: Sequências e Séries | C45: SESM7 | D45: T | E45: 1 | F45: 2 | G45: 40 | H45: 33.33333333 | I45: Matemática | J45: sala de aula | L45: 33.33333333
B46: Matemática Financeira | C46: MFIM7 | D46: T | E46: 1 | F46: 2 | G46: 40 | H46: 33.33333333 | I46: Matemática | J46: sala de aula | L46: 33.33333333
B47: Cálculo Numérico | C47: CNUM7 | D47: T | E47: 1 | F47: 2 | G47: 40 | H47: 33.33333333 | I47: Matemática | J47: sala de aula | L47: 33.33333333
B48: Metodologia do Trabalho Científico | C48: MTCM7 | D48: T | E48: 1 | F48: 2 | G48: 40 | H48: 33.33333333 | I48: Biologia | J48: sala de aula | L48: 33.33333333
B49: Prática Docente III | C49: PD3M7 | D49: T/P | E49: 2 | F49: 4 | G49: 80 | H49: 66.66666667 | I49: Matemática | J49: sala de aula | L49: 133.3333333
B50: Matemática Aplicada à Física III | C50: MF3M7 | D50: T/P | E50: 2 | F50: 4 | G50: 80 | H50: 66.66666667 | I50: Física | J50: Laboratório inexistente | L50: 133.3333333
A51: 8° Módulo | B51: Análise Real | C51: AREM8 | D51: T | E51: 1 | F51: 4 | G51: 80 | H51: 66.66666667 | I51: Matemática | J51: sala de aula | L51: 66.66666667
B52: Álgebra | C52: ALGM8 | D52: T | E52: 1 | F52: 4 | G52: 80 | H52: 66.66666667 | I52: Matemática | J52: sala de aula | L52: 66.66666667
B53: Tecnologias da Informação no Ensino da Matemática | C53: TIEM8 | D53: T | E53: 1 | F53: 2 | G53: 40 | H53: 33.33333333 | I53: Matemática | J53: sala de aula | L53: 33.33333333
B54: Prática Docente IV | C54: PD4M8 | D54: T/P | E54: 2 | F54: 4 | G54: 80 | H54: 66.66666667 | I54: Matemática | J54: sala de aula | L54: 133.3333333
B55: Produção de Trabalhos Científicos | C55: PTCM8 | D55: T/P | E55: 2 | F55: 2 | G55: 40 | H55: 33.33333333 | I55: Biologia | J55: sala de aula | L55: 66.66666667
B56: Educação em Direitos Humanos | C56: EDHM4 | D56: T/P | E56: 1 | F56: 4 | G56: 80 | H56: 66.66666667 | I56: Pedagogia | J56: sala de aula | L56: 66.66666667
A57: Total acumulado de aulas | F57: =SUM(F5:F56) -> 160 | N57: =SUM(G5:G56) -> 3200
A58: Total acumulado de horas | F58: =(F57*$G$2*$C$63)/60 -> 2666.666667 | O58: =SUM(F58) -> 2666.666667
A59: NEIEC (Núcleo de Estudos Integradores para Enriquecimento Curricular ) | V59: 200
A60: TCC (Trabalho de Conclusão de Curso) | V60: 60
A61: ESTÁGIO CURRICULAR SUPERVISIONADO | V61: 400
A62: Carga Horária Total Mínima Obrigatória | V62: =O58+SUM(V59:V61) -> 3326.666667
A63: Observações: As aulas serão de: | C63: 50 | D63: minutos.
F67: =SUMPRODUCT(H5:H56,E5:E56)/F58 -> 1.2

Sheet ADS (hidden)
A2: Análise e Desenvolvimento de Sistemas | D2: Núm. de semanas: | F2: 20
B3: Componente Curricular | C3: Códigos | D3: Teoria/ Prática | E3: Nº Prof. | F3: Aulas/semana | G3: Total Aulas | H3: Total Horas | I3: Área (docente) | J3: Ambiente
F4: 1º
A5: 1º Módulo | B5: História da Ciência e da Tecnologia | C5: HCTI1 | D5: T | E5: 1 | F5: 2 | G5: =SUM(F5)*$F$2 -> 40 | H5: =(G5)*$C$50/60 -> 33.33333333 | I5: História | J5: sala de aula
B6: Inglês Técnico | C6: INGI1 | D6: T | E6: 1 | F6: 2 | G6: 40 | H6: 33.33333333 | I6: Inglês | J6: sala de aula
B7: Comunicação e Expressão | C7: CEEI1 | D7: T | E7: 1 | F7: 2 | G7: 40 | H7: 33.33333333 | I7: Português | J7: sala de aula
B8: Matemática | C8: MATI1 | D8: T | E8: 1 | F8: 4 | G8: 80 | H8: 66.66666667 | I8: Matemática | J8: sala de aula
B9: Algoritmos e Programação | C9: APOI1 | D9: P | E9: 2 | F9: 4 | G9: 80 | H9: 66.66666667 | I9: Programação | J9: Laboratório de informática
B10: Arquitetura de Computadores | C10: ARQI1 | D10: T | E10: 1 | F10: 2 | G10: 40 | H10: 33.33333333 | I10: Redes | J10: sala de aula
B11: Linguagem de Programação I | C11: LP1I1 | D11: P | E11: 2 | F11: 4 | G11: 80 | H11: 66.66666667 | I11: Programação | J11: Laboratório de informática
A12: 2º Módulo | B12: Introdução à Administração | C12: ADMI2 | D12: T | E12: 1 | F12: 2 | G12: 40 | H12: 33.33333333 | I12: Gestão | J12: sala de aula
B13: Banco de Dados I | C13: BD1I2 | D13: P | E13: 2 | F13: 4 | G13: 80 | H13: 66.66666667 | I13: Programação | J13: Laboratório de informática
B14: Engenharia de Software | C14: ESWI2 | D14: T | E14: 1 | F14: 4 | G14: 80 | H14: 66.66666667 | I14: Programação | J14: sala de aula
B15: Sistemas Operacionais | C15: SOPI2 | D15: T | E15: 1 | F15: 4 | G15: 80 | H15: 66.66666667 | I15: Programação | J15: sala de aula
B16: Linguagem de Programação II | C16: LP2I2 | D16: P | E16: 2 | F16: 4 | G16: 80 | H16: 66.66666667 | I16: Programação | J16: Laboratório de informática
B17: Inglês Técnico Avançado | C17: IGTI2 | D17: T | E17: 1 | F17: 2 | G17: 40 | H17: 33.33333333 | I17: Inglês | J17: sala de aula
A18: 3º Módulo | B18: Análise Orientada à Objetos | C18: AOOI3 | D18: T | E18: 1 | F18: 4 | G18: 80 | H18: 66.66666667 | I18: Programação | J18: sala de aula
B19: Banco de Dados II | C19: BD2I3 | D19: P | E19: 2 | F19: 4 | G19: 80 | H19: 66.66666667 | I19: Programação | J19: Laboratório de informática
B20: Interação Humano-Computador | C20: IHCI3 | D20: T | E20: 1 | F20: 2 | G20: 40 | H20: 33.33333333 | I20: Programação | J20: sala de aula
B21: Estrutura de Dados I | C21: ED1I3 | D21: P | E21: 2 | F21: 4 | G21: 80 | H21: 66.66666667 | I21: Programação | J21: Laboratório de informática
B22: Linguagem de Programação III | C22: LP3I3 | D22: P | E22: 2 | F22: 4 | G22: 80 | H22: 66.66666667 | I22: Programação | J22: Laboratório de informática
B23: Matemática Financeira | C23: MFII3 | D23: T | E23: 1 | F23: 2 | G23: 40 | H23: 33.33333333 | I23: Matemática | J23: sala de aula
A24: 4º Módulo | B24: Metodologia de Pesquisa Científica e Tecnológica | C24: MPCI4 | D24: T | E24: 1 | F24: 2 | G24: 40 | H24: 33.33333333 | I24: Programação | J24: sala de aula
B25: Estatística | C25: ESTI4 | D25: T | E25: 1 | F25: 2 | G25: 40 | H25: 33.33333333 | I25: Matemática | J25: sala de aula
B26: Estrutura de Dados II | C26: ED2I4 | D26: P | E26: 2 | F26: 4 | G26: 80 | H26: 66.66666667 | I26: Programação | J26: Laboratório de informática
B27: Programação Orientada à Objetos | C27: POOI4 | D27: P | E27: 2 | F27: 4 | G27: 80 | H27: 66.66666667 | I27: Programação | J27: Laboratório de informática
B28: Redes de Computadores | C28: RCOI4 | D28: T | E28: 1 | F28: 4 | G28: 80 | H28: 66.66666667 | I28: Redes | J28: sala de aula
B29: Arquitetura de Software | C29: ASWI4 | D29: T | E29: 1 | F29: 4 | G29: 80 | H29: 66.66666667 | I29: Programação | J29: sala de aula
A30: 5° Módulo | B30: Gestão de Projetos | C30: GPRI5 | D30: T | E30: 1 | F30: 4 | G30: 80 | H30: 66.66666667 | I30: Programação | J30: sala de aula
B31: Desenvolvimento Web | C31: DWEI5 | D31: P | E31: 2 | F31: 4 | G31: 80 | H31: 66.66666667 | I31: Programação | J31: Laboratório de informática
B32: Projeto de Sistemas I | C32: PS1I5 | D32: T | E32: 1 | F32: 2 | G32: 40 | H32: 33.33333333 | I32: Programação | J32: sala de aula
B33: Qualidade de Software | C33: QSWI5 | D33: T | E33: 1 | F33: 4 | G33: 80 | H33: 66.66666667 | I33: Programação | J33: sala de aula
B34: Serviços de Rede | C34: SSRI5 | D34: T | E34: 1 | F34: 4 | G34: 80 | H34: 66.66666667 | I34: Redes | J34: sala de aula
B35: Eletiva I | C35: EL1I5 | D35: T | E35: 1 | F35: 2 | G35: 40 | H35: 33.33333333 | I35: Programação | J35: sala de aula
A36: 6° Módulo | B36: Empreendedorismo | C36: EMPI6 | D36: T | E36: 1 | F36: 2 | G36: 40 | H36: 33.33333333 | I36: Gestão | J36: sala de aula
B37: Tópicos Especiais | C37: TPEI6 | D37: T | E37: 1 | F37: 4 | G37: 80 | H37: 66.66666667 | I37: Programação | J37: sala de aula
B38: Segurança da Informação | C38: SSII6 | D38: T/P | E38: 1 | F38: 4 | G38: 80 | H38: 66.66666667 | I38: Redes | J38: Laboratório de informática
B39: Desenvolvimento de Sistemas Web | C39: DSWI6 | D39: P | E39: 2 | F39: 4 | G39: 80 | H39: 66.66666667 | I39: Programação | J39: Laboratório de informática
B40: Projeto de Sistemas II | C40: PS2I6 | D40: T | E40: 1 | F40: 2 | G40: 40 | H40: 33.33333333 | I40: Programação | J40: sala de aula
B41: Eletiva II | C41: EL2I6 | D41: P | E41: 2 | F41: 4 | G41: 80 | H41: 66.66666667 | I41: Programação | J41: Laboratório de informática
A42: LIBRAS (optativo) | C42: LIB | D42: T/P | E42: 1 | F42: 2 | G42: 40 | H42: 33.33333333 | I42: Libras | J42: sala de aula
A43: Total acumulado de aulas | F43: =SUM(F5:F41) -> 120 | G43: =SUM(G5:G42) -> 2440
A44: Total acumulado de horas | F44: =(F43*$F$2*$C$50)/60 -> 2000 | H44: =SUM(F44) -> 2000
A45: Trabalho de Conclusão de Curso (TCC) | H45: 80
A46: Carga Horária Total Mínima Obrigatória (Sem estágio) | H46: =H44+H45 -> 2080
A47: Estágio Supervisionado (não obrigatório) | H47: 240
A48: Atividades Complementares (não obrigatórias) | H48: 80
A49: Carga Horária Total Máxima: | H49: =H46+H42+H47+H48 -> 2433.333333
A50: Observações: As aulas serão de: | C50: 50 | D50: minutos.
E53: =SUMPRODUCT(H5:H41,E5:E41)/F44 -> 1.4

Sheet MecanicaPira (hidden)
A1: INSTITUTO FEDERAL DE EDUCAÇÃO, CIÊNCIA E TECNOLOGIA DE SÃO PAULO (Criação Lei nº 11.892, de 29/12/2006) | G1: =CONCAT("Carga horária mínima do curso: ",TEXT(H71,"0,0")," h") -> #N/A
A2: Campus Piracicaba
A3: Estrutura Curricular de Engenharia
A4: Mecânica
A5: Base legal: Lei 9.394/96 e Resolução CNE nº 11/2002
G6: Início do curso:
A7: Resolução de autorização do curso no IFSP: | G7: 1 sem / 2019
B8: Componente Curricular | C8: Código | D8: Teoria/ Prática | E8: Nº Prof. | F8: aulas/sem | G8: Total aulas | H8: Total horas | I8: Área atribuída | J8: Ambiente de ensino
A9: 1º Semestre | B9: COMUNICAÇÃO E LINGUAGEM | C9: COLE1 | D9: T | E9: 1 | F9: 2 | G9: =$E$75*F9 -> 40 | H9: =ROUND(G9*$C$75/60,1) -> 33.3 | I9: Português | J9: Laboratório de informática
B10: DESENHO TÉCNICO MECÂNICO | C10: DTME1 | D10: P | E10: 2 | F10: 4 | G10: 80 | H10: 66.7 | I10: Mecânica | J10: Laboratório de informática
B11: GEOMETRIA ANALÍTICA | C11: GEAE1 | D11: T | E11: 1 | F11: 4 | G11: 80 | H11: 66.7 | I11: Mecânica | J11: Sala de aula
B12: INTRODUÇÃO À ENGENHARIA MECÂNICA | C12: INEE1 | D12: T | E12: 1 | F12: 2 | G12: 40 | H12: 33.3 | I12: Mecânica | J12: Sala de aula
B13: INTRODUÇÃO À FÍSICA | C13: INFE1 | D13: T/P | E13: 2 | F13: 4 | G13: 80 | H13: 66.7 | I13: Física | J13: Sala de aula
B14: INTRODUÇÃO AO CÁLCULO | C14: INCE1 | D14: T | E14: 1 | F14: 4 | G14: 80 | H14: 66.7 | I14: Matemática | J14: Laboratório existente
B15: QUÍMICA | C15: QUIE1 | D15: T/P | E15: 2 | F15: 4 | G15: 80 | H15: 66.7 | I15: Química | J15: Sala de aula
A16: 2º Semestre | B16: ÁLGEBRA LINEAR | C16: ALLE2 | D16: T | E16: 1 | F16: 4 | G16: 80 | H16: 66.7 | I16: Matemática | J16: Sala de aula
B17: ALGORÍTMOS E LÓGICA DE PROGRAMAÇÃO | C17: ALPE2 | D17: P | E17: 2 | F17: 2 | G17: 40 | H17: 33.3 | I17: Informática | J17: Sala de aula
B18: CÁLCULO DIFERENCIAL | C18: CADE2 | D18: T | E18: 1 | F18: 4 | G18: 80 | H18: 66.7 | I18: Matemática | J18: Laboratório existente
B19: DESENHO ASSISTIDO POR COMPUTADOR | C19: DEAE2 | D19: P | E19: 2 | F19: 4 | G19: 80 | H19: 66.7 | I19: Mecânica | J19: Sala de aula
B20: FÍSICA GERAL | C20: FIGE2 | D20: T/P | E20: 2 | F20: 4 | G20: 80 | H20: 66.7 | I20: Física | J20: Laboratório existente
B21: MECÂNICA GERAL | C21: MEGE2 | D21: T | E21: 1 | F21: 4 | G21: 80 | H21: 66.7 | I21: Mecânica | J21: Sala de aula
B22: METODOLOGIA CIENTÍFICA | C22: MECE2 | D22: T | E22: 1 | F22: 2 | G22: 40 | H22: 33.3 | I22: Automação | J22: laboratório de informática
A23: 3º Semestre | B23: CÁLCULO DIFERENCIAL INTEGRAL | C23: CADE3 | D23: T | E23: 1 | F23: 4 | G23: 80 | H23: 66.7 | I23: Matemática | J23: Sala de aula
B24: ELETRICIDADE E ELTROMAGNETISMO | C24: ELME3 | D24: T/P | E24: 2 | F24: 4 | G24: 80 | H24: 66.7 | I24: Automação | J24: Sala de aula
B25: ENGENHARIA DO TRABALHO | C25: ENTE3 | D25: T | E25: 1 | F25: 2 | G25: 40 | H25: 33.3 | I25: Mecânica | J25: Laboratório existente
B26: MATERIAIS DE CONSTRUÇÃO MECÂNICA | C26: MACE3 | D26: T/P | E26: 2 | F26: 4 | G26: 80 | H26: 66.7 | I26: Mecânica | J26: Sala de aula
B27: MECÂNICA APLICADA | C27: MECE3 | D27: T | E27: 1 | F27: 4 | G27: 80 | H27: 66.7 | I27: Mecânica | J27: Laboratório existente
B28: METROLOGIA INDUSTRIAL | C28: MEIE3 | D28: T/P | E28: 2 | F28: 4 | G28: 80 | H28: 66.7 | I28: Mecânica | J28: Sala de aula
B29: PROGRAMAÇÃO DE COMPUTADORES | C29: PCOE3 | D29: P | E29: 2 | F29: 2 | G29: 40 | H29: 33.3 | I29: Mecânica | J29: Laboratório de informática
A30: 4º Semestre | B30: ELETROTÉCNICA | C30: ELTE4 | D30: T/P | E30: 2 | F30: 4 | G30: 80 | H30: 66.7 | I30: Automação | J30: Sala de aula
B31: ENGENHARIA E MEIO AMBIENTE | C31: EMAE4 | D31: T | E31: 1 | F31: 2 | G31: 40 | H31: 33.3 | I31: Mecânica | J31: Sala de aula
B32: ESTATÍSTICA | C32: ESTE4 | D32: T | E32: 1 | F32: 4 | G32: 80 | H32: 66.7 | I32: Matemática | J32: Laboratório existente
B33: MATERIAIS PARA ENGENHARIA | C33: MAEE4 | D33: T/P | E33: 2 | F33: 4 | G33: 80 | H33: 66.7 | I33: Mecânica | J33: Sala de aula
B34: MECÂNICA DOS FLUIDOS | C34: MEFE4 | D34: T/P | E34: 2 | F34: 4 | G34: 80 | H34: 66.7 | I34: Mecânica | J34: Sala de aula
B35: MECÂNICA DOS SÓLIDOS | C35: MESE4 | D35: T | E35: 1 | F35: 4 | G35: 80 | H35: 66.7 | I35: Mecânica | J35: Laboratório de informática
B36: MÉTODOS NUMÉRICOS | C36: MNUE4 | D36: T | E36: 1 | F36: 2 | G36: 40 | H36: 33.3 | I36: Mecânica | J36: Sala de aula
A37: 5° Semestre | B37: ELETRÔNICA | C37: ETRE5 | D37: T/P | E37: 2 | F37: 4 | G37: 80 | H37: 66.7 | I37: Automação | J37: Laboratório existente
B38: ÉTICA E TECNOLOGIA | C38: ETTE5 | D38: T | E38: 1 | F38: 2 | G38: 40 | H38: 33.3 | I38: Filosofia | J38: Laboratório existente
B39: FUNDAMENTOS DOS ELEMENTOS DE MÁQUINA | C39: FUEE5 | D39: T | E39: 1 | F39: 4 | G39: 80 | H39: 66.7 | I39: Mecânica | J39: Sala de aula
B40: LABORATÓRIO DE USINAGEM | C40: LABE5 | D40: P | E40: 2 | F40: 4 | G40: 80 | H40: 66.7 | I40: Mecânica | J40: Sala de aula
B41: MECÂNICA DOS SÓLIDOS APLICADA | C41: MSAE5 | D41: T | E41: 1 | F41: 4 | G41: 80 | H41: 66.7 | I41: Mecânica | J41: Sala de aula
B42: TERMODINÂMICA APLICADA | C42: TERE5 | D42: T | E42: 1 | F42: 4 | G42: 80 | H42: 66.7 | I42: Mecânica | J42: Laboratório inexistente
B43: USINAGEM DOS MATERIAIS | C43: USIE5 | D43: T | E43: 1 | F43: 2 | G43: 40 | H43: 33.3 | I43: Mecânica | J43: Sala de aula
A44: 6° Semestre | B44: COMANDO NUMÉRICO COMPUTADORIZADO | C44: CONE6 | D44: T/P | E44: 2 | F44: 4 | G44: 80 | H44: 66.7 | I44: Mecânica | J44: Sala de aula
B45: ELEMENTOS DE MÁQUINAS | C45: ELEE6 | D45: T | E45: 1 | F45: 4 | G45: 80 | H45: 66.7 | I45: Mecânica | J45: Laboratório existente
B46: HIDRÁULICA E PNEUMÁTICA | C46: HIPE6 | D46: T/P | E46: 2 | F46: 4 | G46: 80 | H46: 66.7 | I46: Automação | J46: Laboratório de informática
B47: MECANISMOS | C47: MMOE6 | D47: T | E47: 1 | F47: 4 | G47: 80 | H47: 66.7 | I47: Mecânica | J47: Sala de aula
B48: SISTEMAS TÉRMICOS | C48: SITE6 | D48: T | E48: 1 | F48: 4 | G48: 80 | H48: 66.7 | I48: Mecânica | J48: Sala de aula
B49: TRANSFERÊNCIA DE CALOR E MASSA | C49: TCAE6 | D49: T | E49: 1 | F49: 4 | G49: 80 | H49: 66.7 | I49: Mecânica | J49: Sala de aula
A50: 7° Semestre | B50: FABRICAÇÃO ASSISTIDA POR COMPUTADOR | C50: FAPE7 | D50: T/P | E50: 2 | F50: 4 | G50: 80 | H50: 66.7 | I50: Mecânica | J50: Laboratório existente
B51: INSTRUMENTAÇÃO E CONTROLE | C51: INTE7 | D51: T | E51: 1 | F51: 4 | G51: 80 | H51: 66.7 | I51: Automação | J51: Sala de aula
B52: MÁQUINAS DE FLUXO | C52: MAFE7 | D52: T | E52: 1 | F52: 4 | G52: 80 | H52: 66.7 | I52: Mecânica | J52: Sala de aula
B53: PROCESSOS DE FABRICAÇÃO | C53: PRFE7 | D53: T/P | E53: 2 | F53: 4 | G53: 80 | H53: 66.7 | I53: Mecânica | J53: Sala de aula
B54: PROJETO DE MÁQUINAS | C54: PROE7 | D54: T | E54: 1 | F54: 4 | G54: 80 | H54: 66.7 | I54: Mecânica | J54: Sala de aula
B55: REFRIGERAÇÃO E AR CONDICIONADO | C55: REAE7 | D55: T | E55: 1 | F55: 4 | G55: 80 | H55: 66.7 | I55: Mecânica | J55: Sala de aula
A56: 8° Semestre | B56: ADMINISTRAÇÃO E ECONOMIA PARA ENGENHEIROS | C56: ADEE8 | D56: T | E56: 1 | F56: 2 | G56: 40 | H56: 33.3 | I56: Gestão | J56: Sala de aula
B57: ELABORAÇÃO DE TRABALHOS ACADÊMICOS | C57: ETRE8 | D57: T | E57: 1 | F57: 4 | G57: 80 | H57: 66.7 | I57: Automação | J57: Laboratório existente
B58: GESTÃO DA PRODUÇÃO | C58: GPRE8 | D58: T | E58: 1 | F58: 2 | G58: 40 | H58: 33.3 | I58: Automação | J58: Sala de aula
B59: GESTÃO DA QUALIDADE | C59: GEQE8 | D59: T | E59: 1 | F59: 2 | G59: 40 | H59: 33.3 | I59: Mecânica | J59: Laboratório inexistente
B60: INTRODUÇÃO À MANUFATURA MECÂNICA | C60: IMME8 | D60: T | E60: 1 | F60: 4 | G60: 80 | H60: 66.7 | I60: Mecânica | J60: Sala de aula
B61: MÁQUINAS TÉRMICAS | C61: MATE8 | D61: T/P | E61: 2 | F61: 4 | G61: 80 | H61: 66.7 | I61: Mecânica | J61: Sala de aula
B62: PROJETO INTEGRADO EM ENGENHARIA MECÂNICA 1 | C62: PE1E8 | D62: T/P | E62: 4 | F62: 6 | G62: 120 | H62: 100 | I62: Mecânica | J62: Sala de aula
A63: 9° Semestre | B63: PROJETO INTEGRADO EM ENGENHARIA MECÂNICA 2 | C63: PE2E9 | D63: T/P | E63: 4 | F63: 6 | G63: 120 | H63: 100 | I63: Mecânica | J63: Sala de aula
B64: Elementos de Máquinas | C64: EMQS9 | D64: T | E64: 1 | F64: 0 | G64: 0 | H64: 0 | I64: Mecânica | J64: Sala de aula
A65: 10° Semestre | B65: PROJETO INTEGRADO EM ENGENHARIA MECÂNICA 3 | C65: PE3E0 | D65: T/P | E65: 4 | F65: 6 | G65: 120 | H65: 100 | I65: Mecânica | J65: Sala de aula
B66: Instrumentação Analítica | C66: INAS0 | D66: T | E66: 1 | F66: 0 | G66: 0 | H66: 0 | I66: Mecânica | J66: Sala de aula
A67: TOTAL ACUMULADO DE AULAS | G67: =SUM(G9:G66) -> 4080
A68: TOTAL ACUMULADO DE HORAS | H68: =SUM(H10:H66) -> 3367.6
A69: Trabalho de Conclusão de Curso (obrigatório) | H69: 100
A70: Estágio Supervisionado (obrigatório) | H70: 160
A71: CARGA HORÁRIA TOTAL MÍNIMA | H71: =SUM(H68:H70) -> 3627.6
A72: LIBRAS - Disciplina optativa | C72: LIBS0 | D72: T/P | E72: 1 | F72: 2 | G72: =$E$75*F72 -> 40 | H72: =ROUND(G72*$C$75/60,) -> 33
A73: Atividades complementares (facultativas) | H73: 100
A74: CARGA HORÁRIA TOTAL MÁXIMA | H74: =SUM(H71:H73) -> 3760.6
B75: Obs.: Aulas com duração de | C75: 50 | D75: minutos - | E75: 20 | F75: semanas por semestre

Sheet FabMec (antigo) (hidden)
B1: Semanas | C1: 19
A2: Técnico Concomitante em Fabricação Mecânica | D2: Núm. de semanas:
B3: Componente Curricular | C3: Códigos | D3: Teoria/ | E3: Nº | F3: Aulas/semana | G3: Total | H3: Total | I3: Área (docente) | J3: Ambiente
D4: Prática | E4: Prof. | F4: 1º | G4: Aulas | H4: Horas
A5: 1º Módulo | B5: Tecnologia dos Materiais | C5: TMQG1 | D5: T | E5: 1 | F5: 4 | G5: =SUM(F5)*$C$1 -> 76 | H5: =(G5)*$C$35/60 -> 63.33333333 | I5: Mecânica | J5: sala de aula
B6: Resistência dos Materiais | C6: RMQG1 | D6: T | E6: 1 | F6: 4 | G6: 76 | H6: 63.33333333 | I6: Mecânica | J6: sala de aula
B7: Metrologia | C7: MTQG1 | D7: T/P | E7: 2 | F7: 2 | G7: 38 | H7: 31.66666667 | I7: Mecânica | J7: Laboratório existente
B8: Desenho Técnico Mecânico | C8: DTQG1 | D8: P | E8: 2 | F8: 2 | G8: 38 | H8: 31.66666667 | I8: Mecânica | J8: sala de aula
B9: Matemática Aplicada | C9: MAQG1 | D9: T | E9: 1 | F9: 2 | G9: 38 | H9: 31.66666667 | I9: Matemática | J9: sala de aula
B10: Organização e Segurança no Trabalho | C10: OTQG1 | D10: T | E10: 1 | F10: 2 | G10: 38 | H10: 31.66666667 | I10: Mecânica | J10: sala de aula
B11: Informática e Lógica de Programação | C11: ILQG1 | D11: P | E11: 2 | F11: 4 | G11: 76 | H11: 63.33333333 | I11: Informática | J11: Laboratório de informática
A12: 2º Módulo | B12: Ensaios Mecânicos | C12: EMQG2 | D12: T | E12: 1 | F12: 2 | G12: 38 | H12: 31.66666667 | I12: Mecânica | J12: sala de aula
B13: Técnicas de Usinagem I | C13: TUQG2 | D13: T/P | E13: 2 | F13: 4 | G13: 76 | H13: 63.33333333 | I13: Mecânica | J13: Laboratório existente
B14: Hidráulica e Pneumática | C14: HPQG2 | D14: T/P | E14: 2 | F14: 4 | G14: 76 | H14: 63.33333333 | I14: Mecânica | J14: Laboratório existente
B15: Desenho Técnico Assistido por Computador | C15: DCQG2 | D15: P | E15: 2 | F15: 4 | G15: 76 | H15: 63.33333333 | I15: Mecânica | J15: Laboratório de informática
B16: Elementos de Máquinas | C16: EEQG2 | D16: T/P | E16: 1 | F16: 2 | G16: 38 | H16: 31.66666667 | I16: Mecânica | J16: sala de aula
B17: Eletrotécnica Industrial | C17: EIQG2 | D17: T/P | E17: 2 | F17: 4 | G17: 76 | H17: 63.33333333 | I17: Mecânica | J17: Laboratório existente
A18: 3º Módulo | B18: Comando Numérico Computadorizado I | C18: CNQG3 | D18: T/P | E18: 2 | F18: 4 | G18: 76 | H18: 63.33333333 | I18: Mecânica | J18: Laboratório existente
B19: Fundição | C19: FUQG3 | D19: T | E19: 1 | F19: 4 | G19: 76 | H19: 63.33333333 | I19: Mecânica | J19: sala de aula
B20: Técnicas de Usinagem II | C20: TUQG3 | D20: T/P | E20: 2 | F20: 4 | G20: 76 | H20: 63.33333333 | I20: Mecânica | J20: Laboratório existente
B21: Fundamentos de Soldagem I | C21: FSQG3 | D21: T | E21: 1 | F21: 2 | G21: 38 | H21: 31.66666667 | I21: Mecânica | J21: sala de aula
B22: Ensaios Não Destrutivos | C22: EDQG3 | D22: T | E22: 1 | F22: 2 | G22: 38 | H22: 31.66666667 | I22: Mecânica | J22: sala de aula
B23: Processos de Fabricação | C23: PFQG3 | D23: T | E23: 1 | F23: 4 | G23: 76 | H23: 63.33333333 | I23: Mecânica | J23: sala de aula
A24: 4º Módulo | B24: Gestão Empresarial | C24: GEQG4 | D24: T | E24: 1 | F24: 2 | G24: 38 | H24: 31.66666667 | I24: Gestão | J24: sala de aula
B25: Tratamentos Térmicos e Metalografia | C25: TTQG4 | D25: T | E25: 1 | F25: 2 | G25: 38 | H25: 31.66666667 | I25: Mecânica | J25: sala de aula
B26: Manutenção Mecânica | C26: MMQG4 | D26: T | E26: 1 | F26: 4 | G26: 76 | H26: 63.33333333 | I26: Mecânica | J26: sala de aula
B27: Comando Numérico Computadorizado II | C27: CNQG4 | D27: T/P | E27: 2 | F27: 4 | G27: 76 | H27: 63.33333333 | I27: Mecânica | J27: Laboratório existente
B28: Fundamentos de Soldagem II | C28: FSQG4 | D28: P | E28: 2 | F28: 4 | G28: 76 | H28: 63.33333333 | I28: Mecânica | J28: Laboratório existente
B29: Projeto Integrador | C29: PJMG4 | D29: T | E29: 1 | F29: 4 | G29: 76 | H29: 63.33333333 | I29: Mecânica | J29: sala de aula
A30: Total acumulado de aulas | F30: =SUM(F5:F11) -> 20 | G30: =SUM(G5:G29) -> 1520
A31: Total acumulado de horas | F31: =(F30*#REF!*$C$35)/60 -> #REF! | G31: - | H31: =SUM(F31+#REF!+#REF!+#REF!) -> #REF!
A32: Carga Horária Total Mínima Obrigatória (Sem estágio) | H32: =H31 -> #REF!
A33: Estágio Supervisionado (optativo) | H33: 360
A34: Carga Horária Total Máxima: | H34: =SUM(H32+H33) -> #REF!
A35: Observações: As aulas serão de: | C35: 50 | D35: minutos.

Sheet ECA (hidden)
A1: INSTITUTO FEDERAL DE EDUCAÇÃO, CIÊNCIA E TECNOLOGIA DE SÃO PAULO (Criação Lei nº 11.892, de 29/12/2006) | G1: =CONCAT("Carga horária mínima do curso: ",TEXT(H89,"0,0")," h") -> #N/A
A2: Campus Hortolândia
A3: Estrutura Curricular de Engenharia em
A4: Controle e Automação
A5: Base legal: Lei 9.394/96 e Resolução CNE nº 11/2002
G6: Início do curso:
A7: Resolução de autorização do curso no IFSP: | G7: 1 sem / 2019
B8: Componente Curricular | C8: Código | D8: Teoria/ Prática | E8: Nº Prof. | F8: aulas/sem | G8: Total aulas | H8: Total horas | I8: Área atribuída | J8: Ambiente de ensino
A9: 1º Semestre | B9: Fundamentos da Computação | C9: FDCS1 | D9: T/P | E9: 2 | F9: 2 | G9: =$E$93*F9 -> 40 | H9: =ROUND(G9*$C$93/60,1) -> 33.3 | I9: Redes | J9: Laboratório de informática | K9: Redes
B10: Desenho Técnico | C10: DTMS1 | D10: P | E10: 2 | F10: 4 | G10: 80 | H10: 66.7 | I10: Mecânica | J10: Laboratório de informática
B11: Eletricidade | C11: ELTS1 | D11: T | E11: 1 | F11: 4 | G11: 80 | H11: 66.7 | I11: Automação | J11: Sala de aula
B12: Cálculo 1 | C12: MA1S1 | D12: T | E12: 1 | F12: 6 | G12: 120 | H12: 100 | I12: Mecânica | J12: Sala de aula
B13: Introdução à Automação Industrial | C13: IAIS1 | D13: T/P | E13: 1 | F13: 2 | G13: 40 | H13: 33.3 | I13: Mecânica | J13: Sala de aula
B14: Laboratório de Eletricidade | C14: ELLS1 | D14: P | E14: 2 | F14: 2 | G14: 40 | H14: 33.3 | I14: Automação | J14: Laboratório existente
B15: Química 1 | C15: QU1S1 | D15: T | E15: 1 | F15: 2 | G15: 40 | H15: 33.3 | I15: Química | J15: Sala de aula
A16: 2º Semestre | B16: Cálculo 2 | C16: MA2S2 | D16: T | E16: 1 | F16: 6 | G16: 120 | H16: 100 | I16: Matemática | J16: Sala de aula
B17: Circuitos Elétricos | C17: CETS2 | D17: T | E17: 1 | F17: 2 | G17: 40 | H17: 33.3 | I17: Automação | J17: Sala de aula
B18: Eletrônica Digital | C18: ELDS2 | D18: P | E18: 2 | F18: 4 | G18: 80 | H18: 66.7 | I18: Automação | J18: Laboratório existente
B19: Geometria Analítica e Álgebra Linear | C19: GALS2 | D19: T | E19: 1 | F19: 4 | G19: 80 | H19: 66.7 | I19: Mecânica | J19: Sala de aula
B20: Laboratório de Circuitos Elétricos | C20: CELS2 | D20: P | E20: 2 | F20: 2 | G20: 40 | H20: 33.3 | I20: Automação | J20: Laboratório existente
B21: Cultura e Filosofia | C21: CFIS2 | D21: T | E21: 1 | F21: 2 | G21: 40 | H21: 33.3 | I21: Filosofia | J21: Sala de aula
B22: Programação de Computadores 1 | C22: PR1S2 | D22: P | E22: 2 | F22: 4 | G22: 80 | H22: 66.7 | I22: Redes | J22: laboratório de informática | K22: Programação
B23: Química 2 | C23: QU2S2 | D23: T/P | E23: 1 | F23: 2 | G23: 40 | H23: 33.3 | I23: Química | J23: Sala de aula
B24: Segurança do Trabalho | C24: STRS2 | D24: T | E24: 1 | F24: 1 | G24: 20 | H24: 16.7 | I24: Mecânica | J24: EaD
A25: 3º Semestre | B25: Cálculo 3 | C25: MA3S3 | D25: T | E25: 1 | F25: 6 | G25: 120 | H25: 100 | I25: Automação | J25: Sala de aula
B26: Eletrônica Analógica | C26: ELAS3 | D26: T | E26: 1 | F26: 4 | G26: 80 | H26: 66.7 | I26: Automação | J26: Sala de aula
B27: Laboratório de Eletrônica Analógica | C27: LEAS3 | D27: P | E27: 2 | F27: 2 | G27: 40 | H27: 33.3 | I27: Automação | J27: Laboratório existente
B28: Mecânica Clássica | C28: MCCS3 | D28: T | E28: 1 | F28: 4 | G28: 80 | H28: 66.7 | I28: Mecânica | J28: Sala de aula
B29: Microcontroladores | C29: MICS3 | D29: T/P | E29: 2 | F29: 4 | G29: 80 | H29: 66.7 | I29: Automação | J29: Laboratório existente
B30: Química 3 | C30: QU3S3 | D30: T | E30: 1 | F30: 2 | G30: 40 | H30: 33.3 | I30: Química | J30: Sala de aula
B31: Programação de Computadores 2 | C31: PR2S3 | D31: P | E31: 2 | F31: 4 | G31: 80 | H31: 66.7 | I31: Programação | J31: Laboratório de informática | K31: Programação
A32: 4º Semestre | B32: Eletrônica de Potência | C32: EPTS4 | D32: T | E32: 1 | F32: 2 | G32: 40 | H32: 33.3 | I32: Automação | J32: Sala de aula
B33: Laboratório de Eletrônica de Potência | C33: EPPS4 | D33: P | E33: 2 | F33: 2 | G33: 40 | H33: 33.3 | I33: Automação | J33: Laboratório existente
B34: Ciência dos Materiais | C34: CMAS4 | D34: T | E34: 1 | F34: 2 | G34: 40 | H34: 33.3 | I34: Mecânica | J34: Sala de aula
B35: Eletromagnetismo | C35: EMGS4 | D35: T | E35: 1 | F35: 4 | G35: 80 | H35: 66.7 | I35: Automação | J35: Sala de aula
B36: Programação de Computadores 3 | C36: PR3S4 | D36: P | E36: 2 | F36: 4 | G36: 80 | H36: 66.7 | I36: Programação | J36: Laboratório de informática
B37: Oscilações e Ondas | C37: FIOS4 | D37: T/P | E37: 1 | F37: 2 | G37: 40 | H37: 33.3 | I37: Mecânica | J37: Sala de aula
B38: Termodinâmica | C38: TERS4 | D38: T | E38: 1 | F38: 4 | G38: 80 | H38: 66.7 | I38: Mecânica | J38: Sala de aula
A39: 5° Semestre | B39: Comandos Elétricos | C39: COES5 | D39: T/P | E39: 2 | F39: 2 | G39: 40 | H39: 33.3 | I39: Automação | J39: Laboratório existente
B40: Máquinas e Instalações Elétricas Industriais | C40: MELS5 | D40: T/P | E40: 2 | F40: 4 | G40: 80 | H40: 66.7 | I40: Automação | J40: Laboratório existente
B41: Sociologia e Sociologia do Trabalho | C41: SOCS5 | D41: T | E41: 1 | F41: 2 | G41: 40 | H41: 33.3 | I41: Sociologia | J41: Sala de aula
B42: Dinâmica | C42: DINS5 | D42: T | E42: 1 | F42: 4 | G42: 80 | H42: 66.7 | I42: Mecânica | J42: Sala de aula
B43: Administração | C43: ADMS5 | D43: T | E43: 1 | F43: 2 | G43: 40 | H43: 33.3 | I43: Gestão | J43: Sala de aula
B44: Mecânica dos Fluidos | C44: MFLS5 | D44: T/P | E44: 1 | F44: 2 | G44: 40 | H44: 33.3 | I44: Mecânica | J44: Laboratório inexistente
B45: Processos Industriais | C45: PINS5 | D45: T | E45: 1 | F45: 2 | G45: 40 | H45: 33.3 | I45: Mecânica | J45: Sala de aula
B46: Resistência dos Materiais | C46: RMAS5 | D46: T | E46: 1 | F46: 4 | G46: 80 | H46: 66.7 | I46: Mecânica | J46: Sala de aula
A47: 6° Semestre | B47: Confiabilidade Metrológica aplicada à Instrumentação Industrial | C47: METS6 | D47: T | E47: 1 | F47: 2 | G47: 40 | H47: 33.3 | I47: Mecânica | J47: Sala de aula
B48: Controlador Lógico Programável 1 | C48: CL1S6 | D48: P | E48: 2 | F48: 2 | G48: 40 | H48: 33.3 | I48: Automação | J48: Laboratório existente
B49: Desenho de Instrumentação | C49: DSIS6 | D49: P | E49: 2 | F49: 4 | G49: 80 | H49: 66.7 | I49: Automação | J49: Laboratório de informática
B50: Estado e Política | C50: ESPS6 | D50: T | E50: 1 | F50: 2 | G50: 40 | H50: 33.3 | I50: História | J50: Sala de aula
B51: Elementos Finais de Controle | C51: EFCS6 | D51: T | E51: 1 | F51: 2 | G51: 40 | H51: 33.3 | I51: Mecânica | J51: Sala de aula
B52: Gestão de Pessoas | C52: GPES6 | D52: T | E52: 1 | F52: 2 | G52: 40 | H52: 33.3 | I52: Gestão | J52: Sala de aula
B53: Probabilidade | C53: PROS6 | D53: T | E53: 1 | F53: 2 | G53: 40 | H53: 33.3 | I53: Matemática | J53: Sala de aula
B54: Instrumentação | C54: ISTS6 | D54: T | E54: 1 | F54: 4 | G54: 80 | H54: 66.7 | I54: Automação | J54: Sala de aula
B55: Laboratório de Instrumentação | C55: ISLS6 | D55: P | E55: 2 | F55: 2 | G55: 40 | H55: 33.3 | I55: Automação | J55: Laboratório existente
A56: 7° Semestre | B56: Controlador Lógico Programável 2 | C56: CL2S7 | D56: P | E56: 2 | F56: 2 | G56: 40 | H56: 33.3 | I56: Automação | J56: Laboratório existente
B57: Controle de Processos | C57: CPTS7 | D57: T | E57: 1 | F57: 4 | G57: 80 | H57: 66.7 | I57: Automação | J57: Sala de aula
B58: Docência e Instrutoria | C58: DOCS7 | D58: T | E58: 1 | F58: 2 | G58: 40 | H58: 33.3 | I58: Mecânica | J58: Sala de aula
B59: Fenômenos de Transporte | C59: FTRS7 | D59: T | E59: 1 | F59: 2 | G59: 40 | H59: 33.3 | I59: Mecânica | J59: Sala de aula
B60: Estatística | C60: ETTS7 | D60: T | E60: 1 | F60: 2 | G60: 40 | H60: 33.3 | I60: Matemática | J60: Sala de aula
B61: Comportamento Organizacional | C61: CMOS7 | D61: T | E61: 1 | F61: 2 | G61: 40 | H61: 33.3 | I61: Gestão | J61: Sala de aula
B62: Laboratório de Controle de Processos | C62: CPLS7 | D62: P | E62: 2 | F62: 2 | G62: 40 | H62: 33.3 | I62: Automação | J62: Laboratório existente
B63: Redes Industriais | C63: RIDS7 | D63: T/P | E63: 1 | F63: 4 | G63: 80 | H63: 66.7 | I63: Automação | J63: Laboratório inexistente
A64: 8° Semestre | B64: Cálculo Numérico | C64: CNUS8 | D64: T | E64: 1 | F64: 4 | G64: 80 | H64: 66.7 | I64: Mecânica | J64: Sala de aula
B65: Hidráulica e Pneumática | C65: HPNS8 | D65: T/P | E65: 2 | F65: 4 | G65: 80 | H65: 66.7 | I65: Automação | J65: Laboratório existente
B66: Geração de Energia e Eficiência Energética | C66: GEES8 | D66: T | E66: 1 | F66: 2 | G66: 40 | H66: 33.3 | I66: Automação | J66: Sala de aula
B67: Sistemas Supervisórios | C67: SUPS8 | D67: P | E67: 2 | F67: 2 | G67: 40 | H67: 33.3 | I67: Automação | J67: Laboratório inexistente
B68: Efeitos Econômicos, Sociais e Ambientais da Automação | C68: ESAS8 | D68: T | E68: 1 | F68: 2 | G68: 40 | H68: 33.3 | I68: Geografia | J68: Sala de aula
B69: Gestão da Qualidade | C69: GQLS8 | D69: T | E69: 1 | F69: 2 | G69: 40 | H69: 33.3 | I69: Mecânica | J69: Sala de aula
B70: Processos de Fabricação | C70: FABS8 | D70: T | E70: 1 | F70: 2 | G70: 40 | H70: 33.3 | I70: Mecânica | J70: Sala de aula
B71: Modelagem de Sistemas | C71: MSIS8 | D71: T | E71: 1 | F71: 4 | G71: 80 | H71: 66.7 | I71: Mecânica | J71: Sala de aula
A72: 9° Semestre | B72: Controle Linear | C72: CLTS9 | D72: T | E72: 1 | F72: 4 | G72: 80 | H72: 66.7 | I72: Automação | J72: Sala de aula
B73: Elementos de Máquinas | C73: EMQS9 | D73: T | E73: 1 | F73: 2 | G73: 40 | H73: 33.3 | I73: Mecânica | J73: Sala de aula
B74: Gestão da Produção e Inovação | C74: GPRS9 | D74: T | E74: 1 | F74: 2 | G74: 40 | H74: 33.3 | I74: Mecânica | J74: Sala de aula
B75: Instrumentação Virtual | C75: IVRS9 | D75: P | E75: 2 | F75: 2 | G75: 40 | H75: 33.3 | I75: Automação | J75: Laboratório de informática
B76: Servomecanismos | C76: SVMS9 | D76: T/P | E76: 1 | F76: 4 | G76: 80 | H76: 66.7 | I76: Automação | J76: Sala de aula
B77: Sistemas Automatizados de Manufatura | C77: CNCS9 | D77: P | E77: 2 | F77: 2 | G77: 40 | H77: 33.3 | I77: Mecânica | J77: Laboratório existente
A78: 10° Semestre | B78: Controle Digital | C78: CDIS0 | D78: T | E78: 1 | F78: 4 | G78: 80 | H78: 66.7 | I78: Automação | J78: Sala de aula
B79: Instrumentação Analítica | C79: INAS0 | D79: T | E79: 1 | F79: 2 | G79: 40 | H79: 33.3 | I79: Automação | J79: Sala de aula
B80: Fundamentos de Robótica | C80: FROS0 | D80: T | E80: 1 | F80: 2 | G80: 40 | H80: 33.3 | I80: Mecânica | J80: Sala de aula
B81: Gestão de Projetos | C81: GPJS0 | D81: T | E81: 1 | F81: 2 | G81: 40 | H81: 33.3 | I81: Mecânica | J81: Sala de aula
B82: Manufatura Assistida por Computador | C82: CAMS0 | D82: T/P | E82: 2 | F82: 2 | G82: 40 | H82: 33.3 | I82: Mecânica | J82: Sala de aula
B83: Sistemas Computacionais de Gestão Integrada | C83: SGIS0 | D83: T/P | E83: 2 | F83: 2 | G83: 40 | H83: 33.3 | I83: Automação | J83: Laboratório de informática
B84: Tópicos de Automação Industrial | C84: TAIS0 | D84: T | E84: 1 | F84: 2 | G84: 40 | H84: 33.3 | I84: Mecânica | J84: Sala de aula
A85: TOTAL ACUMULADO DE AULAS | G85: =SUM(G9:G84) -> 4260
A86: TOTAL ACUMULADO DE HORAS | H86: =SUM(H9:H84) -> 3549.3
A87: Trabalho de Conclusão de Curso (obrigatório) | H87: 100
A88: Estágio Supervisionado (obrigatório) | H88: 160
A89: CARGA HORÁRIA TOTAL MÍNIMA | H89: =SUM(H86:H88) -> 3809.3
A90: LIBRAS - Disciplina optativa | C90: LIBS0 | D90: T/P | E90: 1 | F90: 2 | G90: =$E$93*F90 -> 40 | H90: =ROUND(G90*$C$93/60,) -> 33
A91: Atividades complementares (facultativas) | H91: 100
A92: CARGA HORÁRIA TOTAL MÁXIMA | H92: =SUM(H89:H91) -> 3942.3
B93: Obs.: Aulas com duração de | C93: 50 | D93: minutos - | E93: 20 | F93: semanas por semestre
E97: =SUMPRODUCT(H5:H84,E5:E84)/H86 -> 1.309863917

Sheet FabMec (novo) (real) (hidden)
C1: Técnico em Fabricação Mecânica sem turmas divididas a partir do 3º módulo
A2: Técnico Concomitante em Fabricação Mecânica | D2: Núm. de semanas: | F2: 20
B3: Componente Curricular | C3: Códigos | D3: Teoria/ | E3: Nº | F3: Aulas/semana | G3: Total | H3: Total | I3: Área (docente) | J3: Ambiente
D4: Prática | E4: Prof. | F4: 1º | G4: Aulas | H4: Horas
A5: 1º Módulo | B5: Tecnologia dos Materiais | C5: TCMG1 | D5: T | E5: 1 | F5: 4 | G5: =SUM(F5)*$F$2 -> 80 | H5: =(G5)*$C$37/60 -> 66.66666667 | I5: Mecânica | J5: sala de aula
B6: Redação Técnica | C6: RETG1 | D6: T | E6: 1 | F6: 2 | G6: 40 | H6: 33.33333333 | I6: Português | J6: sala de aula
B7: Metrologia | C7: METG1 | D7: T/P | E7: 2 | F7: 2 | G7: 40 | H7: 33.33333333 | I7: Mecânica | J7: Laboratório existente
B8: Desenho Técnico Mecânico | C8: DTMG1 | D8: T/P | E8: 1 | F8: 4 | G8: 80 | H8: 66.66666667 | I8: Mecânica | J8: sala de aula
B9: Matemática Aplicada | C9: MATG1 | D9: T | E9: 1 | F9: 4 | G9: 80 | H9: 66.66666667 | I9: Mecânica | J9: sala de aula
B10: Organização e Segurança no Trabalho | C10: OSAG1 | D10: T | E10: 1 | F10: 2 | G10: 40 | H10: 33.33333333 | I10: Mecânica | J10: sala de aula
B11: Informática Básica | C11: INFG1 | D11: T/P | E11: 2 | F11: 2 | G11: 40 | H11: 33.33333333 | I11: Redes | J11: Laboratório de informática
A12: 2º Módulo | B12: Ensaios Mecânicos | C12: ESMG2 | D12: T/P | E12: 2 | F12: 2 | G12: 40 | H12: 33.33333333 | I12: Mecânica | J12: Laboratório existente
B13: Usinagem Convencional I | C13: USCG2 | D13: T/P | E13: 2 | F13: 4 | G13: 80 | H13: 66.66666667 | I13: Mecânica | J13: Laboratório existente
B14: Processos Metalúrgicos de Fabricação | C14: PMFG2 | D14: T/P | E14: 1 | F14: 4 | G14: 80 | H14: 66.66666667 | I14: Mecânica | J14: Laboratório existente
B15: Desenho Técnico Assistido por Computador | C15: DACG2 | D15: P | E15: 2 | F15: 4 | G15: 80 | H15: 66.66666667 | I15: Mecânica | J15: Laboratório de informática
B16: Tratamento Térmico e Metalografia | C16: TTMG2 | D16: T/P | E16: 1 | F16: 2 | G16: 40 | H16: 33.33333333 | I16: Mecânica | J16: Laboratório existente
B17: Resistência dos Materiais | C17: RESG2 | D17: T | E17: 1 | F17: 4 | G17: 80 | H17: 66.66666667 | I17: Mecânica | J17: sala de aula
A18: 3º Módulo | B18: Usinagem CNC I | C18: CNCG3 | D18: T/P | E18: 1 | F18: 4 | G18: 80 | H18: 66.66666667 | I18: Mecânica | J18: Laboratório existente
B19: Eletrotécnica Industrial | C19: ELIG3 | D19: T/P | E19: 1 | F19: 2 | G19: 40 | H19: 33.33333333 | I19: Mecânica | J19: Laboratório existente
B20: Usinagem Convencional II | C20: USCG3 | D20: T/P | E20: 1 | F20: 4 | G20: 80 | H20: 66.66666667 | I20: Mecânica | J20: Laboratório existente
B21: Fundamentos de Soldagem I | C21: SOLG3 | D21: T | E21: 1 | F21: 2 | G21: 40 | H21: 33.33333333 | I21: Mecânica | J21: sala de aula
B22: Ensaios Não Destrutivos | C22: ENDG3 | D22: T/P | E22: 1 | F22: 2 | G22: 40 | H22: 33.33333333 | I22: Mecânica | J22: Laboratório existente
B23: Hidráulica e Pneumática | C23: HEPG3 | D23: T/P | E23: 1 | F23: 4 | G23: 80 | H23: 66.66666667 | I23: Mecânica | J23: Laboratório existente
B24: Elementos de Máquinas | C24: ELMG3 | D24: T | E24: 1 | F24: 2 | G24: 40 | H24: 33.33333333 | I24: Mecânica | J24: sala de aula
A25: 4º Módulo | B25: Gestão Empresarial e Empreendedorismo | C25: GEPG4 | D25: T | E25: 1 | F25: 2 | G25: 40 | H25: 33.33333333 | I25: Gestão | J25: sala de aula
B26: Robótica Industrial, CAE e CAM | C26: RICG4 | D26: T/P | E26: 1 | F26: 4 | G26: 80 | H26: 66.66666667 | I26: Mecânica | J26: lab. Informática
B27: Manutenção Mecânica | C27: MANG4 | D27: T | E27: 1 | F27: 2 | G27: 40 | H27: 33.33333333 | I27: Mecânica | J27: sala de aula
B28: Usinagem CNC II | C28: CNCG4 | D28: T/P | E28: 1 | F28: 4 | G28: 80 | H28: 66.66666667 | I28: Mecânica | J28: Laboratório existente
B29: Fundamentos de Soldagem II | C29: SOLG4 | D29: P | E29: 1 | F29: 2 | G29: 40 | H29: 33.33333333 | I29: Mecânica | J29: Laboratório existente
B30: Máquinas Térmicas e de Fluidos | C30: MTFG4 | D30: T | E30: 1 | F30: 2 | G30: 40 | H30: 33.33333333 | I30: Mecânica | J30: sala de aula
B31: Projeto Integrador | C31: PJMG4 | D31: T | E31: 1 | F31: 4 | G31: 80 | H31: 66.66666667 | I31: Mecânica | J31: sala de aula
B32: Libras (parte diversificada optativa) | C32: LIBG4 | D32: T | E32: 1 | F32: 2 | G32: 40 | H32: 33.33333333 | I32: Libras | J32: sala de aula
A33: Total acumulado de horas | F33: =SUM(F5:F32) -> 82 | G33: - | H33: =SUM(H5:H32) -> 1366.666667
A34: Carga Horária Total Mínima Obrigatória (Sem estágio) | H34: =H33 -> 1366.666667
A35: Estágio Supervisionado (optativo) | H35: 360
A36: Carga Horária Total Máxima: | H36: =SUM(H34+H35) -> 1726.666667
A37: Observações: As aulas serão de: | C37: 50 | D37: minutos.

Sheet FabMec (novo) (hidden)
A2: Técnico Concomitante em Fabricação Mecânica | D2: Núm. de semanas: | F2: 20 | G2: =SUMPRODUCT(E5:E31,F5:F31) -> 122
B3: Componente Curricular | C3: Códigos | D3: Teoria/ | E3: Nº | F3: Aulas/semana | G3: Total | H3: Total | I3: Área (docente) | J3: Ambiente
D4: Prática | E4: Prof. | F4: 1º | G4: Aulas | H4: Horas
A5: 1º Módulo | B5: Tecnologia dos Materiais | C5: TCMG1 | D5: T | E5: 1 | F5: 4 | G5: =SUM(F5)*$F$2 -> 80 | H5: =(G5)*$C$37/60 -> 66.66666667 | I5: Mecânica | J5: sala de aula
B6: Redação Técnica | C6: RETG1 | D6: T | E6: 1 | F6: 2 | G6: 40 | H6: 33.33333333 | I6: Português | J6: sala de aula
B7: Metrologia | C7: METG1 | D7: T/P | E7: 2 | F7: 2 | G7: 40 | H7: 33.33333333 | I7: Mecânica | J7: Laboratório existente
B8: Desenho Técnico Mecânico | C8: DTMG1 | D8: T/P | E8: 1 | F8: 4 | G8: 80 | H8: 66.66666667 | I8: Mecânica | J8: sala de aula
B9: Matemática Aplicada | C9: MATG1 | D9: T | E9: 1 | F9: 4 | G9: 80 | H9: 66.66666667 | I9: Matemática | J9: sala de aula
B10: Organização e Segurança no Trabalho | C10: OSAG1 | D10: T | E10: 1 | F10: 2 | G10: 40 | H10: 33.33333333 | I10: Mecânica | J10: sala de aula
B11: Informática Básica | C11: INFG1 | D11: T/P | E11: 2 | F11: 2 | G11: 40 | H11: 33.33333333 | I11: Programação | J11: Laboratório de informática
A12: 2º Módulo | B12: Ensaios Mecânicos | C12: ESMG2 | D12: T/P | E12: 2 | F12: 2 | G12: 40 | H12: 33.33333333 | I12: Mecânica | J12: Laboratório existente
B13: Usinagem Convencional I | C13: USCG2 | D13: T/P | E13: 2 | F13: 4 | G13: 80 | H13: 66.66666667 | I13: Mecânica | J13: Laboratório existente
B14: Processos Metalúrgicos de Fabricação | C14: PMFG2 | D14: T/P | E14: 2 | F14: 4 | G14: 80 | H14: 66.66666667 | I14: Mecânica | J14: Laboratório existente
B15: Desenho Técnico Assistido por Computador | C15: DACG2 | D15: P | E15: 2 | F15: 4 | G15: 80 | H15: 66.66666667 | I15: Mecânica | J15: lab. Informática
B16: Tratamento Térmico e Metalografia | C16: TTMG2 | D16: T/P | E16: 1 | F16: 2 | G16: 40 | H16: 33.33333333 | I16: Mecânica | J16: Laboratório existente
B17: Resistência dos Materiais | C17: RESG2 | D17: T | E17: 1 | F17: 4 | G17: 80 | H17: 66.66666667 | I17: Mecânica | J17: sala de aula
A18: 3º Módulo | B18: Usinagem CNC I | C18: CNCG3 | D18: T/P | E18: 2 | F18: 4 | G18: 80 | H18: 66.66666667 | I18: Mecânica | J18: Laboratório existente
B19: Eletrotécnica Industrial | C19: ELIG3 | D19: T/P | E19: 2 | F19: 2 | G19: 40 | H19: 33.33333333 | I19: Mecânica | J19: Laboratório existente
B20: Usinagem Convencional II | C20: USCG3 | D20: T/P | E20: 2 | F20: 4 | G20: 80 | H20: 66.66666667 | I20: Mecânica | J20: Laboratório existente
B21: Fundamentos de Soldagem I | C21: SOLG3 | D21: T | E21: 1 | F21: 2 | G21: 40 | H21: 33.33333333 | I21: Mecânica | J21: sala de aula
B22: Ensaios Não Destrutivos | C22: ENDG3 | D22: T/P | E22: 2 | F22: 2 | G22: 40 | H22: 33.33333333 | I22: Mecânica | J22: Laboratório existente
B23: Hidráulica e Pneumática | C23: HEPG3 | D23: T/P | E23: 2 | F23: 4 | G23: 80 | H23: 66.66666667 | I23: Mecânica | J23: Laboratório existente
B24: Elementos de Máquinas | C24: ELMG3 | D24: T | E24: 1 | F24: 2 | G24: 40 | H24: 33.33333333 | I24: Mecânica | J24: sala de aula
A25: 4º Módulo | B25: Gestão Empresarial e Empreendedorismo | C25: GEPG4 | D25: T | E25: 1 | F25: 2 | G25: 40 | H25: 33.33333333 | I25: Gestão | J25: sala de aula
B26: Robótica Industrial, CAE e CAM | C26: RICG4 | D26: T/P | E26: 1 | F26: 4 | G26: 80 | H26: 66.66666667 | I26: Mecânica | J26: lab. Informática
B27: Manutenção Mecânica | C27: MANG4 | D27: T | E27: 1 | F27: 2 | G27: 40 | H27: 33.33333333 | I27: Mecânica | J27: sala de aula
B28: Usinagem CNC II | C28: CNCG4 | D28: T/P | E28: 2 | F28: 4 | G28: 80 | H28: 66.66666667 | I28: Mecânica | J28: Laboratório existente
B29: Fundamentos de Soldagem II | C29: SOLG4 | D29: P | E29: 2 | F29: 2 | G29: 40 | H29: 33.33333333 | I29: Mecânica | J29: Laboratório existente
B30: Máquinas Térmicas e de Fluidos | C30: MTFG4 | D30: T | E30: 2 | F30: 2 | G30: 40 | H30: 33.33333333 | I30: Mecânica | J30: sala de aula
B31: Projeto Integrador | C31: PJMG4 | D31: T | E31: 1 | F31: 4 | G31: 80 | H31: 66.66666667 | I31: Mecânica | J31: sala de aula
B32: Libras (parte diversificada optativa) | C32: LIBG4 | D32: T | E32: 1 | F32: 2 | G32: 40 | H32: 33.33333333 | I32: Libras | J32: sala de aula
A33: Total acumulado de horas | F33: =(#REF!*$F$2*$C$37)/60 -> #REF! | G33: - | H33: =SUM(F33+#REF!+#REF!+#REF!) -> #REF!
A34: Carga Horária Total Mínima Obrigatória (Sem estágio) | H34: =H33 -> #REF!
A35: Estágio Supervisionado (optativo) | H35: 360
A36: Carga Horária Total Máxima: | H36: =SUM(H34+H35) -> #REF!
A37: Observações: As aulas serão de: | C37: 50 | D37: minutos.

Sheet ConcMecaHto (hidden)
A1: Concomitante em Mecatrônica - Bragança | C1: 19
F2: aulas/sem
B3: Componente Curricular | C3: Código | D3: Teoria/ Prática | E3: Nº Prof. | F3: 1º | G3: Total aulas | H3: Total horas | I3: Área atribuída | J3: Ambiente de ensino
A4: 1º Semestre | B4: Eletricidade Básica | C4: ELEM1 | D4: T/P | E4: 1 | F4: 4 | G4: =F4*$C$1 -> 76 | H4: =G4*$C$43/60 -> 63.33333333 | I4: Automação | J4: Sala de aula | L4: 2
B5: Eletrônica Digital I | C5: ED1M1 | D5: T/P | E5: 1 | F5: 2 | G5: 38 | H5: 31.66666667 | I5: Automação | J5: Laboratório existente | L5: 2
B6: Resistência dos Materiais | C6: RESM1 | D6: T | E6: 1 | F6: 2 | G6: 38 | H6: 31.66666667 | I6: Mecânica | J6: Sala de aula | L6: 1
B7: Tecnologia dos Materiais | C7: TCMM1 | D7: T | E7: 1 | F7: 2 | G7: 38 | H7: 31.66666667 | I7: Mecânica | J7: Laboratório existente | L7: 1
B8: Metrologia | C8: METM1 | D8: T | E8: 1 | F8: 2 | G8: 38 | H8: 31.66666667 | I8: Mecânica | J8: Sala de aula | L8: 1
B9: Desenho Técnico Mecânico | C9: DTMM1 | D9: P | E9: 1 | F9: 2 | G9: 38 | H9: 31.66666667 | I9: Mecânica | J9: Sala de aula | L9: 2
B10: Matemática Aplicada | C10: MATM1 | D10: T | E10: 1 | F10: 2 | G10: 38 | H10: 31.66666667 | I10: Matemática | J10: Sala de aula | L10: 2
B11: Organização e Segurança do Trabalho | C11: OSTM1 | D11: T | E11: 1 | F11: 2 | G11: 38 | H11: 31.66666667 | I11: Mecânica | J11: Sala de aula | L11: 2
B12: Programação I | C12: PR1M1 | D12: T/P | E12: 1 | F12: 2 | G12: 38 | H12: 31.66666667 | I12: Programação | J12: Laboratório de informática | L12: 2
A13: 2º Semestre | B13: Circuitos elétricos | C13: CELm2 | D13: T/P | E13: 1 | F13: 2 | G13: 38 | H13: 31.66666667 | I13: Automação | J13: Sala de aula | L13: 2
B14: Eletrônica Digital II | C14: ED2M2 | D14: T/P | E14: 1 | F14: 2 | G14: 38 | H14: 31.66666667 | I14: Automação | J14: Laboratório existente | L14: 2
B15: Eletrônica Analógica | C15: ELAM2 | D15: T/P | E15: 1 | F15: 4 | G15: 76 | H15: 63.33333333 | I15: Automação | J15: Laboratório de informática | L15: 2
B16: Máquinas Elétricas | C16: MAQM2 | D16: T/P | E16: 1 | F16: 2 | G16: 38 | H16: 31.66666667 | I16: Mecânica | J16: Sala de aula | L16: 2
B17: Ensaios Mecânicos e não destrutivos | C17: ESMM2 | D17: T/P | E17: 1 | F17: 2 | G17: 38 | H17: 31.66666667 | I17: Mecânica | J17: Sala de aula | L17: 2
B18: Mecânica dos Fluidos | C18: MFLM2 | D18: T/P | E18: 1 | F18: 2 | G18: 38 | H18: 31.66666667 | I18: Mecânica | J18: Sala de aula | L18: 2
B19: CAD | C19: DTCM2 | D19: P | E19: 1 | F19: 2 | G19: 38 | H19: 31.66666667 | I19: Mecânica | J19: Sala de aula | L19: 2
B20: Programação II | C20: PR2M2 | D20: P | E20: 1 | F20: 2 | G20: 38 | H20: 31.66666667 | I20: Programação | J20: Laboratório existente | L20: 2
A21: 3º Semestre | B21: Microcontroladores I | C21: MC1M3 | D21: T/P | E21: 1 | F21: 2 | G21: 38 | H21: 31.66666667 | I21: Automação | J21: Laboratório existente | L21: 2
B22: Eletrônica de Potência | C22: ELPM3 | D22: T/P | E22: 1 | F22: 2 | G22: 38 | H22: 31.66666667 | I22: Automação | J22: Laboratório de informática | L22: 2
B23: Comandos elétricos | C23: COEM3 | D23: P | E23: 1 | F23: 2 | G23: 38 | H23: 31.66666667 | I23: Automação | L23: 2
B24: Técnicas de usinagem | C24: TEUM3 | D24: P | E24: 1 | F24: 2 | G24: 38 | H24: 31.66666667 | I24: Mecânica | J24: Laboratório existente | L24: 2
B25: Hidráulica e pneumática | C25: HEPM3 | D25: T/P | E25: 1 | F25: 4 | G25: 76 | H25: 63.33333333 | I25: Mecânica | J25: Sala de aula | L25: 2
B26: Sistemas de manutenção | C26: SIMM3 | D26: T | E26: 1 | F26: 2 | G26: 38 | H26: 31.66666667 | I26: Mecânica | J26: Laboratório existente | L26: 1
B27: Fundamentos de soldagem | C27: FUSM3 | D27: T | E27: 1 | F27: 2 | G27: 38 | H27: 31.66666667 | I27: Mecânica | J27: Laboratório existente | L27: 1
B28: Elementos de máquinas | C28: ELMM3 | D28: T | E28: 1 | F28: 2 | G28: 38 | H28: 31.66666667 | I28: Mecânica | L28: 1
B29: Redes industriais | C29: REIM3 | D29: T | E29: 1 | F29: 2 | G29: 38 | H29: 31.66666667 | I29: Redes | J29: Laboratório de informática | L29: 1
A30: 4º Semestre | B30: Microcontroladores II | C30: MC2M4 | D30: T/P | E30: 1 | F30: 2 | G30: 38 | H30: 31.66666667 | I30: Automação | J30: Laboratório de informática | L30: 2
B31: Robótica industrial | C31: ROBM4 | D31: T | E31: 1 | F31: 2 | G31: 38 | H31: 31.66666667 | I31: Mecânica | J31: Laboratório inexistente | L31: 2
B32: Instrumentação eletrônica | C32: INEM4 | D32: P | E32: 1 | F32: 2 | G32: 38 | H32: 31.66666667 | I32: Automação | L32: 1
B33: Controlador Lógico Programável | C33: CLPM4 | D33: P | E33: 1 | F33: 2 | G33: 38 | H33: 31.66666667 | I33: Automação | L33: 1
B34: Controle de Processos | C34: COPM4 | D34: T/P | E34: 1 | F34: 2 | G34: 38 | H34: 31.66666667 | I34: Mecânica | L34: 2
B35: Instrumentação industrial | C35: INIM4 | D35: T | E35: 1 | F35: 2 | G35: 38 | H35: 31.66666667 | I35: Mecânica | L35: 1
B36: CNC e CIM | C36: CNCM4 | D36: P | E36: 1 | F36: 2 | G36: 38 | H36: 31.66666667 | I36: Mecânica | J36: Laboratório de informática | L36: 2
B37: Gestão da Qualidade e Empreendedorismo | C37: GQEM4 | D37: T | E37: 1 | F37: 2 | G37: 38 | H37: 31.66666667 | I37: Mecânica | J37: Laboratório existente | L37: 1
B38: Projeto Integrador | C38: PRIM4 | D38: P | E38: 1 | F38: 2 | G38: 38 | H38: 31.66666667 | I38: Mecânica | J38: Laboratório de informática | L38: 2
A39: Total acumulado de horas | F39: =(F38*#REF!*$C$44)/60 -> #REF! | G39: - | H39: =SUM(F39+#REF!+#REF!+#REF!) -> #REF!
A40: Carga Horária Total Mínima Obrigatória (Sem estágio) | H40: =H39 -> #REF!
A41: Estágio Supervisionado (optativo) | H41: 360
A42: Carga Horária Total Máxima: | H42: =SUM(H40+H41) -> #REF!
A43: Observações: As aulas serão de: | C43: 50 | D43: minutos.

Sheet ConcMecaBra (hidden)
A1: Concomitante em Mecatrônica - Bragança | C1: 19
F2: aulas/sem
B3: Componente Curricular | C3: Código | D3: Teoria/ Prática | E3: Nº Prof. | F3: 1º | G3: Total aulas | H3: Total horas | I3: Área atribuída | J3: Ambiente de ensino
A4: 1º Semestre | B4: Eletricidade Básica | C4: ELEM1 | D4: T/P | E4: 1 | F4: 4 | G4: =F4*$C$1 -> 76 | H4: =G4*$C$43/60 -> 63.33333333 | I4: Automação | J4: Sala de aula | L4: 2
B5: Eletrônica Digital I | C5: ED1M1 | D5: T/P | E5: 1 | F5: 2 | G5: 38 | H5: 31.66666667 | I5: Automação | J5: Laboratório existente | L5: 2
B6: Resistência dos Materiais | C6: RESM1 | D6: T | E6: 1 | F6: 2 | G6: 38 | H6: 31.66666667 | I6: Mecânica | J6: Sala de aula | L6: 1
B7: Tecnologia dos Materiais | C7: TCMM1 | D7: T | E7: 1 | F7: 2 | G7: 38 | H7: 31.66666667 | I7: Mecânica | J7: Laboratório existente | L7: 1
B8: Metrologia | C8: METM1 | D8: T | E8: 1 | F8: 2 | G8: 38 | H8: 31.66666667 | I8: Mecânica | J8: Sala de aula | L8: 1
B9: Desenho Técnico Mecânico | C9: DTMM1 | D9: P | E9: 1 | F9: 2 | G9: 38 | H9: 31.66666667 | I9: Mecânica | J9: Sala de aula | L9: 2
B10: Matemática Aplicada | C10: MATM1 | D10: T | E10: 1 | F10: 2 | G10: 38 | H10: 31.66666667 | I10: Matemática | J10: Sala de aula | L10: 2
B11: Organização e Segurança do Trabalho | C11: OSTM1 | D11: T | E11: 1 | F11: 2 | G11: 38 | H11: 31.66666667 | I11: Mecânica | J11: Sala de aula | L11: 2
B12: Programação I | C12: PR1M1 | D12: T/P | E12: 1 | F12: 2 | G12: 38 | H12: 31.66666667 | I12: Informática | J12: Laboratório de informática | L12: 2
A13: 2º Semestre | B13: Circuitos elétricos | C13: CELm2 | D13: T/P | E13: 1 | F13: 2 | G13: 38 | H13: 31.66666667 | I13: Automação | J13: Sala de aula | L13: 2
B14: Eletrônica Digital II | C14: ED2M2 | D14: T/P | E14: 1 | F14: 2 | G14: 38 | H14: 31.66666667 | I14: Automação | J14: Laboratório existente | L14: 2
B15: Eletrônica Analógica | C15: ELAM2 | D15: T/P | E15: 1 | F15: 4 | G15: 76 | H15: 63.33333333 | I15: Automação | J15: Laboratório de informática | L15: 2
B16: Máquinas Elétricas | C16: MAQM2 | D16: T/P | E16: 1 | F16: 2 | G16: 38 | H16: 31.66666667 | I16: Automação | J16: Sala de aula | L16: 2
B17: Ensaios Mecânicos e não destrutivos | C17: ESMM2 | D17: T/P | E17: 1 | F17: 2 | G17: 38 | H17: 31.66666667 | I17: Mecânica | J17: Sala de aula | L17: 2
B18: Mecânica dos Fluidos | C18: MFLM2 | D18: T/P | E18: 1 | F18: 2 | G18: 38 | H18: 31.66666667 | I18: Mecânica | J18: Sala de aula | L18: 2
B19: CAD | C19: DTCM2 | D19: P | E19: 1 | F19: 2 | G19: 38 | H19: 31.66666667 | I19: Mecânica | J19: Sala de aula | L19: 2
B20: Programação II | C20: PR2M2 | D20: P | E20: 1 | F20: 2 | G20: 38 | H20: 31.66666667 | I20: Informática | J20: Laboratório existente | L20: 2
A21: 3º Semestre | B21: Microcontroladores I | C21: MC1M3 | D21: T/P | E21: 1 | F21: 2 | G21: 38 | H21: 31.66666667 | I21: Automação | J21: Laboratório existente | L21: 2
B22: Eletrônica de Potência | C22: ELPM3 | D22: T/P | E22: 1 | F22: 2 | G22: 38 | H22: 31.66666667 | I22: Automação | J22: Laboratório de informática | L22: 2
B23: Comandos elétricos | C23: COEM3 | D23: P | E23: 1 | F23: 2 | G23: 38 | H23: 31.66666667 | I23: Automação | L23: 2
B24: Técnicas de usinagem | C24: TEUM3 | D24: P | E24: 1 | F24: 2 | G24: 38 | H24: 31.66666667 | I24: Mecânica | J24: Laboratório existente | L24: 2
B25: Hidráulica e pneumática | C25: HEPM3 | D25: T/P | E25: 1 | F25: 4 | G25: 76 | H25: 63.33333333 | I25: Mecânica | J25: Sala de aula | L25: 2
B26: Sistemas de manutenção | C26: SIMM3 | D26: T | E26: 1 | F26: 2 | G26: 38 | H26: 31.66666667 | I26: Mecânica | J26: Laboratório existente | L26: 1
B27: Fundamentos de soldagem | C27: FUSM3 | D27: T | E27: 1 | F27: 2 | G27: 38 | H27: 31.66666667 | I27: Mecânica | J27: Laboratório existente | L27: 1
B28: Elementos de máquinas | C28: ELMM3 | D28: T | E28: 1 | F28: 2 | G28: 38 | H28: 31.66666667 | I28: Mecânica | L28: 1
B29: Redes industriais | C29: REIM3 | D29: T | E29: 1 | F29: 2 | G29: 38 | H29: 31.66666667 | I29: Automação | J29: Laboratório de informática | L29: 1
A30: 4º Semestre | B30: Microcontroladores II | C30: MC2M4 | D30: T/P | E30: 1 | F30: 2 | G30: 38 | H30: 31.66666667 | I30: Automação | J30: Laboratório de informática | L30: 2
B31: Robótica industrial | C31: ROBM4 | D31: T | E31: 1 | F31: 2 | G31: 38 | H31: 31.66666667 | I31: Mecânica | J31: Laboratório inexistente | L31: 2
B32: Instrumentação eletrônica | C32: INEM4 | D32: P | E32: 1 | F32: 2 | G32: 38 | H32: 31.66666667 | I32: Automação | L32: 1
B33: Controlador Lógico Programável | C33: CLPM4 | D33: P | E33: 1 | F33: 2 | G33: 38 | H33: 31.66666667 | I33: Automação | L33: 1
B34: Controle de Processos | C34: COPM4 | D34: T/P | E34: 1 | F34: 2 | G34: 38 | H34: 31.66666667 | I34: Automação | L34: 2
B35: Instrumentação industrial | C35: INIM4 | D35: T | E35: 1 | F35: 2 | G35: 38 | H35: 31.66666667 | I35: Automação | L35: 1
B36: CNC e CIM | C36: CNCM4 | D36: P | E36: 1 | F36: 2 | G36: 38 | H36: 31.66666667 | I36: Mecânica | J36: Laboratório de informática | L36: 2
B37: Gestão da Qualidade e Empreendedorismo | C37: GQEM4 | D37: T | E37: 1 | F37: 2 | G37: 38 | H37: 31.66666667 | I37: Mecânica | J37: Laboratório existente | L37: 1
B38: Projeto Integrador | C38: PRIM4 | D38: P | E38: 1 | F38: 2 | G38: 38 | H38: 31.66666667 | I38: Mecânica | J38: Laboratório de informática | L38: 2
A39: Total acumulado de horas | F39: =(F38*#REF!*$C$44)/60 -> #REF! | G39: - | H39: =SUM(F39+#REF!+#REF!+#REF!) -> #REF!
A40: Carga Horária Total Mínima Obrigatória (Sem estágio) | H40: =H39 -> #REF!
A41: Estágio Supervisionado (optativo) | H41: 360
A42: Carga Horária Total Máxima: | H42: =SUM(H40+H41) -> #REF!
A43: Observações: As aulas serão de: | C43: 50 | D43: minutos.

Sheet ConcEletro20vagas (hidden)
A1: Concomitante em Eletroeletrônica - HTO
F2: aulas/sem
B3: Componente Curricular | C3: Código | D3: Teoria/ Prática | E3: Nº Prof. | F3: 1º | G3: Total aulas | H3: Total horas | I3: Área atribuída | J3: Ambiente de ensino
A4: 1º Semestre | B4: Eletricidade | D4: T | E4: 1 | F4: 4 | G4: 76 | H4: 63 | I4: Automação | J4: Sala de aula
B5: Laboratório de Eletricidade | D5: P | E5: 1 | F5: 2 | G5: 38 | H5: 32 | I5: Automação | J5: Laboratório existente
B6: Eletrônica Digital | D6: T | E6: 1 | F6: 4 | G6: 76 | H6: 63 | I6: Automação | J6: Sala de aula
B7: Laboratório de Eletrônica Digital | D7: P | E7: 1 | F7: 2 | G7: 38 | H7: 32 | I7: Automação | J7: Laboratório existente
B8: Matemática Aplicada | D8: T | E8: 1 | F8: 4 | G8: 76 | H8: 63 | I8: Matemática | J8: Sala de aula
B9: Inglês para Fins Específicos I | D9: T | E9: 1 | F9: 2 | G9: 38 | H9: 32 | I9: Inglês | J9: Sala de aula
B10: Leitura, Interpretação e Produção de Textos I | D10: T | E10: 1 | F10: 2 | G10: 38 | H10: 32 | I10: Português | J10: Sala de aula
A11: 2º Semestre | B11: Eletrônica Analógica | D11: T | E11: 1 | F11: 4 | G11: 76 | H11: 63 | I11: Automação | J11: Sala de aula
B12: Laboratório de Eletrônica Analógica | D12: P | E12: 1 | F12: 2 | G12: 38 | H12: 32 | I12: Automação | J12: Laboratório existente
B13: Desenho Assistido por Computador | D13: P | E13: 1 | F13: 2 | G13: 38 | H13: 32 | I13: Automação | J13: Laboratório de informática
B14: Geração, Transmissão e Distribuição de Energia | D14: T | E14: 1 | F14: 2 | G14: 38 | H14: 32 | I14: Automação | J14: Sala de aula
B15: Inglês para Fins Específicos 2 | D15: T | E15: 1 | F15: 2 | G15: 38 | H15: 32 | I15: Inglês | J15: Sala de aula
B16: Leitura, Interpretação e Produção de Textos 2 | D16: T | E16: 1 | F16: 2 | G16: 38 | H16: 32 | I16: Português | J16: Sala de aula
B17: Gestão e Empreendedorismo | D17: T | E17: 1 | F17: 2 | G17: 38 | H17: 32 | I17: Gestão | J17: Sala de aula
B18: Projetos de Circuitos Eletrônicos | D18: P | E18: 1 | F18: 4 | G18: 76 | H18: 63 | I18: Automação | J18: Laboratório existente
A19: 3º Semestre | B19: Comandos Elétricos | D19: P | E19: 1 | F19: 4 | G19: 76 | H19: 63 | I19: Automação | J19: Laboratório existente
B20: Progamação | D20: P | E20: 1 | F20: 2 | G20: 38 | H20: 32 | I20: Automação | J20: Laboratório de informática
B21: Sensores Industriais | D21: P | E21: 1 | F21: 2 | G21: 38 | H21: 32 | I21: Automação | J21: Laboratório existente
B22: Eletrônica de Potência | D22: T | E22: 1 | F22: 4 | G22: 76 | H22: 63 | I22: Automação | J22: Sala de aula
B23: Laboratório de Eletrônica de Potência | D23: P | E23: 1 | F23: 2 | G23: 38 | H23: 32 | I23: Automação | J23: Laboratório existente
B24: Máquinas e Acionamentos Elétricos | D24: P | E24: 1 | F24: 4 | G24: 76 | H24: 63 | I24: Automação | J24: Laboratório existente
B25: Projetos Elétricos | D25: P | E25: 1 | F25: 2 | G25: 38 | H25: 32 | I25: Automação | J25: Laboratório de informática
A26: 4º Semestre | B26: Controladores Lógicos Programáveis | D26: P | E26: 1 | F26: 4 | G26: 76 | H26: 63 | I26: Automação | J26: Laboratório de informática
B27: Instalações Elétricas | D27: P | E27: 1 | F27: 4 | G27: 76 | H27: 63 | I27: Automação | J27: Laboratório inexistente
B28: Microcontroladores | D28: P | E28: 1 | F28: 4 | G28: 76 | H28: 63 | I28: Automação | J28: Laboratório de informática
B29: Comandos Eletro-Hidráulicos/Pneumáticos | D29: P | E29: 1 | F29: 4 | G29: 76 | H29: 63 | I29: Automação | J29: Laboratório existente
B30: Projeto Integrador | D30: P | E30: 1 | F30: 4 | G30: 76 | H30: 63 | I30: Automação | J30: Laboratório de informática
A31: Total acumulado de horas | F31: =(F30*#REF!*$C$36)/60 -> #REF! | G31: - | H31: =SUM(F31+#REF!+#REF!+#REF!) -> #REF!
A32: Carga Horária Total Mínima Obrigatória (Sem estágio) | H32: =H31 -> #REF!
A33: Estágio Supervisionado (optativo) | H33: 360
A34: Carga Horária Total Máxima: | H34: =SUM(H32+H33) -> #REF!
A35: Observações: As aulas serão de: | C35: 50 | D35: minutos.

Sheet ConcEletro (hidden)
A1: Concomitante em Eletroeletrônica - HTO
F2: aulas/sem
B3: Componente Curricular | C3: Código | D3: Teoria/ Prática | E3: Nº Prof. | F3: 1º | G3: Total aulas | H3: Total horas | I3: Área atribuída | J3: Ambiente de ensino
A4: 1º Semestre | B4: Eletricidade | D4: T | E4: 1 | F4: 4 | G4: 76 | H4: 63 | I4: Automação | J4: Sala de aula
B5: Laboratório de Eletricidade | D5: P | E5: 2 | F5: 2 | G5: 38 | H5: 32 | I5: Automação | J5: Laboratório existente
B6: Eletrônica Digital | D6: T | E6: 1 | F6: 4 | G6: 76 | H6: 63 | I6: Automação | J6: Sala de aula
B7: Laboratório de Eletrônica Digital | D7: P | E7: 2 | F7: 2 | G7: 38 | H7: 32 | I7: Automação | J7: Laboratório existente
B8: Matemática Aplicada | D8: T | E8: 1 | F8: 4 | G8: 76 | H8: 63 | I8: Matemática | J8: Sala de aula
B9: Inglês para Fins Específicos I | D9: T | E9: 1 | F9: 2 | G9: 38 | H9: 32 | I9: Inglês | J9: Sala de aula
B10: Leitura, Interpretação e Produção de Textos I | D10: T | E10: 1 | F10: 2 | G10: 38 | H10: 32 | I10: Português | J10: Sala de aula
A11: 2º Semestre | B11: Eletrônica Analógica | D11: T | E11: 1 | F11: 4 | G11: 76 | H11: 63 | I11: Automação | J11: Sala de aula
B12: Laboratório de Eletrônica Analógica | D12: P | E12: 2 | F12: 2 | G12: 38 | H12: 32 | I12: Automação | J12: Laboratório existente
B13: Desenho Assistido por Computador | D13: P | E13: 2 | F13: 2 | G13: 38 | H13: 32 | I13: Automação | J13: Laboratório de informática
B14: Geração, Transmissão e Distribuição de Energia | D14: T | E14: 1 | F14: 2 | G14: 38 | H14: 32 | I14: Automação | J14: Sala de aula
B15: Inglês para Fins Específicos 2 | D15: T | E15: 1 | F15: 2 | G15: 38 | H15: 32 | I15: Inglês | J15: Sala de aula
B16: Leitura, Interpretação e Produção de Textos 2 | D16: T | E16: 1 | F16: 2 | G16: 38 | H16: 32 | I16: Português | J16: Sala de aula
B17: Gestão e Empreendedorismo | D17: T | E17: 1 | F17: 2 | G17: 38 | H17: 32 | I17: Gestão | J17: Sala de aula
B18: Projetos de Circuitos Eletrônicos | D18: P | E18: 2 | F18: 4 | G18: 76 | H18: 63 | I18: Automação | J18: Laboratório existente
A19: 3º Semestre | B19: Comandos Elétricos | D19: P | E19: 2 | F19: 4 | G19: 76 | H19: 63 | I19: Automação | J19: Laboratório existente
B20: Programação | D20: P | E20: 2 | F20: 2 | G20: 38 | H20: 32 | I20: Automação | J20: Laboratório de informática
B21: Sensores Industriais | D21: P | E21: 2 | F21: 2 | G21: 38 | H21: 32 | I21: Automação | J21: Laboratório existente
B22: Eletrônica de Potência | D22: T | E22: 1 | F22: 4 | G22: 76 | H22: 63 | I22: Automação | J22: Sala de aula
B23: Laboratório de Eletrônica de Potência | D23: P | E23: 2 | F23: 2 | G23: 38 | H23: 32 | I23: Automação | J23: Laboratório existente
B24: Máquinas e Acionamentos Elétricos | D24: P | E24: 2 | F24: 4 | G24: 76 | H24: 63 | I24: Automação | J24: Laboratório existente
B25: Projetos Elétricos | D25: P | E25: 2 | F25: 2 | G25: 38 | H25: 32 | I25: Automação | J25: Laboratório de informática
A26: 4º Semestre | B26: Controladores Lógicos Programáveis | D26: P | E26: 1 | F26: 4 | G26: 76 | H26: 63 | I26: Automação | J26: Laboratório de informática
B27: Instalações Elétricas | D27: P | E27: 1 | F27: 4 | G27: 76 | H27: 63 | I27: Automação | J27: Laboratório inexistente
B28: Microcontroladores | D28: P | E28: 1 | F28: 4 | G28: 76 | H28: 63 | I28: Automação | J28: Laboratório de informática
B29: Comandos Eletro-Hidráulicos/Pneumáticos | D29: P | E29: 1 | F29: 4 | G29: 76 | H29: 63 | I29: Automação | J29: Laboratório existente
B30: Projeto Integrador | D30: P | E30: 2 | F30: 4 | G30: 76 | H30: 63 | I30: Automação | J30: Laboratório de informática
A31: Total acumulado de horas | F31: =(F30*#REF!*$C$36)/60 -> #REF! | G31: - | H31: =SUM(F31+#REF!+#REF!+#REF!) -> #REF!
A32: Carga Horária Total Mínima Obrigatória (Sem estágio) | H32: =H31 -> #REF!
A33: Estágio Supervisionado (optativo) | H33: 360
A34: Carga Horária Total Máxima: | H34: =SUM(H32+H33) -> #REF!
A35: Observações: As aulas serão de: | C35: 50 | D35: minutos.

Sheet FormacaoNLicenc (hidden)
A2: Técnico Concomitante em Manutenção e Suporte em Informática | F2: 19 | I2: Sociologia | K2: =SUMIF(I5:I21,"=Física",F5:F21) -> 10
B3: Componente Curricular | C3: Códigos | D3: Teoria/ | E3: Nº | F3: Aulas/semana | G3: Total | H3: Total | I3: Área (docente) | J3: Ambiente
D4: Prática | E4: Prof. | F4: 1º | G4: Aulas | H4: Horas
A5: 1º Módulo | B5: Sociologia da educação | D5: T/P | E5: 1 | F5: 4 | G5: =SUM(F5)*$F$2 -> 76 | H5: =(G5)*$C$27/60 -> 63.33333333 | I5: Sociologia | J5: Laboratório existente
B6: Filosofia e história da educação | D6: T/P | E6: 1 | F6: 2 | G6: 38 | H6: 31.66666667 | I6: História | J6: Laboratório existente
B7: Didática | D7: T | E7: 1 | F7: 4 | G7: 76 | H7: 63.33333333 | I7: Pedagogia | J7: sala de aula
B8: Informática na educação e educação inclusiva | D8: T/P | E8: 1 | F8: 4 | G8: 76 | H8: 63.33333333 | I8: Pedagogia | J8: Laboratório de informática
B9: Introdução á licenciatura em física | D9: T | E9: 1 | F9: 2 | G9: 38 | H9: 31.66666667 | I9: Física
B10: LIBRAS | D10: T/P | E10: 1 | F10: 4 | G10: 76 | H10: 63.33333333 | I10: LIBRAS | J10: Laboratório de informática
A11: 2º Módulo | B11: Alfabetização | D11: T/P | E11: 1 | F11: 4 | G11: 76 | H11: 63.33333333 | I11: Pedagogia | J11: Laboratório de informática | L11: =H11*E11 -> 63.33333333
B12: Educação matemática | D12: T/P | E12: 1 | F12: 4 | G12: 76 | H12: 63.33333333 | I12: Matemática | J12: Laboratório existente | L12: 63.33333333
B13: História dos povos indíginas e afrodescendentes | D13: T/P | E13: 1 | F13: 2 | G13: 38 | H13: 31.66666667 | I13: História | J13: Laboratório de informática | L13: 31.66666667
B14: Projeto de ensino | D14: T/P | E14: 1 | F14: 2 | G14: 38 | H14: 31.66666667 | I14: Pedagogia | J14: Laboratório de informática | L14: 31.66666667
B15: Instrumentos de avaliação | D15: T | E15: 1 | F15: 2 | G15: 38 | H15: 31.66666667 | I15: Pedagogia | L15: 31.66666667
B16: Organização da Educação Básica | D16: T/P | E16: 1 | F16: 2 | G16: 38 | H16: 31.66666667 | I16: Pedagogia | J16: Laboratório existente | L16: 31.66666667
B17: Planejamento escolar | D17: T/P | E17: 1 | F17: 2 | G17: 38 | H17: 31.66666667 | I17: Pedagogia | J17: Laboratório de informática | L17: 31.66666667
A18: 3º Módulo | B18: Programação Web | D18: T/P | E18: 1 | F18: 4 | G18: 76 | H18: 63.33333333 | I18: Física | J18: Laboratório de informática | L18: 63.33333333
B19: Planejamento de aulas de laboratório | D19: T/P | E19: 1 | F19: 4 | G19: 76 | H19: 63.33333333 | I19: Física | J19: Laboratório de informática | L19: 63.33333333
B20: Teoria e prática na educação profissional | D20: T/P | E20: 1 | F20: 4 | G20: 76 | H20: 63.33333333 | I20: Pedagogia | J20: Laboratório de informática | L20: 63.33333333
B21: Estágio | D21: T/P | E21: 1 | F21: 20 | G21: 380 | H21: 316.6666667 | J21: Laboratório existente | L21: 316.6666667
A22: Total acumulado de aulas | F22: =SUM(F5:F21) -> 70 | G22: 1330 | H22: 1108.333333
A23: Total acumulado de horas | F23: =(F22*$F$2*$C$27)/60 -> 1108.333333 | G23: - | H23: =SUM(F23+#REF!+#REF!) -> #REF!
A24: Carga Horária Total Mínima Obrigatória (Sem estágio) | H24: =H23 -> #REF!
A25: Estágio Supervisionado (optativo) | H25: 360
A26: Carga Horária Total Máxima: | H26: =H24+H25 -> #REF!
A27: Observações: As aulas serão de: | C27: 50 | D27: minutos.

Sheet ConcMSI (25 vagas) (hidden)
A2: Técnico Concomitante em Manutenção e Suporte em Informática | F2: 19
B3: Componente Curricular | C3: Códigos | D3: Teoria/ | E3: Nº | F3: Aulas/semana | G3: Total | H3: Total | I3: Área (docente) | J3: Ambiente
D4: Prática | E4: Prof. | F4: 1º | G4: Aulas | H4: Horas
A5: 1º Módulo | B5: Eletricidade Básica | C5: ELES1 | D5: T/P | E5: 1 | F5: 2 | G5: =SUM(F5)*$F$2 -> 38 | H5: =(G5)*$C$27/60 -> 31.66666667 | I5: Automação | J5: Laboratório existente
B6: Manutenção de Computadores 1 | C6: MN1S1 | D6: T/P | E6: 1 | F6: 4 | G6: 76 | H6: 63.33333333 | I6: Redes | J6: Laboratório existente
B7: Inglês Instrumental | C7: INGS1 | D7: T | E7: 1 | F7: 2 | G7: 38 | H7: 31.66666667 | I7: Inglês | J7: sala de aula
B8: Informática Básica | C8: INBS1 | D8: T/P | E8: 1 | F8: 4 | G8: 76 | H8: 63.33333333 | I8: Redes | J8: Laboratório de informática
B9: Introdução aos Sistemas Operacionais | C9: ISOS1 | D9: T/P | E9: 1 | F9: 4 | G9: 76 | H9: 63.33333333 | I9: Redes | J9: Laboratório de informática
B10: Redes de Computadores | C10: RDCS1 | D10: T/P | E10: 1 | F10: 4 | G10: 76 | H10: 63.33333333 | I10: Redes | J10: Laboratório existente
A11: 2º Módulo | B11: Lógica de Programação | C11: LPRS2 | D11: T/P | E11: 1 | F11: 4 | G11: 76 | H11: 63.33333333 | I11: Programação | J11: Laboratório de informática | L11: =H11*E11 -> 63.33333333
B12: Manutenção de Computadores 2 | C12: MN2S2 | D12: T/P | E12: 1 | F12: 4 | G12: 76 | H12: 63.33333333 | I12: Redes | J12: Laboratório existente | L12: 63.33333333
B13: Banco de Dados | C13: BNDS2 | D13: T/P | E13: 1 | F13: 2 | G13: 38 | H13: 31.66666667 | I13: Programação | J13: Laboratório de informática | L13: 31.66666667
B14: Introdução à Web | C14: IWES2 | D14: T/P | E14: 1 | F14: 2 | G14: 38 | H14: 31.66666667 | I14: Programação | J14: Laboratório de informática | L14: 31.66666667
B15: Projeto e Configuração de Redes | C15: PCRS2 | D15: T/P | E15: 1 | F15: 4 | G15: 76 | H15: 63.33333333 | I15: Redes | J15: Laboratório existente | L15: 63.33333333
B16: Sistemas Operacionais de Redes | C16: SORS2 | D16: T/P | E16: 1 | F16: 4 | G16: 76 | H16: 63.33333333 | I16: Redes | J16: Laboratório de informática | L16: 63.33333333
A17: 3º Módulo | B17: Programação Web | C17: PRWS3 | D17: T/P | E17: 1 | F17: 4 | G17: 76 | H17: 63.33333333 | I17: Programação | J17: Laboratório de informática | L17: 63.33333333
B18: Administração de Serviços de Rede | C18: ASRS3 | D18: T/P | E18: 1 | F18: 4 | G18: 76 | H18: 63.33333333 | I18: Redes | J18: Laboratório de informática | L18: 63.33333333
B19: Administração de Infraestrutura de Redes | C19: AIRS3 | D19: T/P | E19: 1 | F19: 6 | G19: 114 | H19: 95 | I19: Redes | J19: Laboratório de informática | L19: 95
B20: Empreendedorismo e Técnicas de Gestão | C20: ETGS3 | D20: T | E20: 1 | F20: 2 | G20: 38 | H20: 31.66666667 | I20: Gestão | J20: sala de aula | L20: 31.66666667
B21: Projeto Integrador | C21: PJIS3 | D21: T/P | E21: 1 | F21: 8 | G21: 152 | H21: 126.6666667 | I21: Redes | J21: Laboratório existente | L21: 126.6666667
A22: Total acumulado de aulas | F22: =SUM(F5:F21) -> 64 | G22: 1216
A23: Total acumulado de horas | F23: =(F22*$F$2*$C$27)/60 -> 1013.333333 | G23: - | H23: =SUM(F23+#REF!+#REF!) -> #REF!
A24: Carga Horária Total Mínima Obrigatória (Sem estágio) | H24: =H23 -> #REF!
A25: Estágio Supervisionado (optativo) | H25: 360
A26: Carga Horária Total Máxima: | H26: =H24+H25 -> #REF!
A27: Observações: As aulas serão de: | C27: 50 | D27: minutos.
F30: =SUMPRODUCT(H5:H21,E5:E21)/F23 -> 1

Sheet ConcMSI (hidden)
A2: Técnico Concomitante em Manutenção e Suporte em Informática | F2: 19
B3: Componente Curricular | C3: Códigos | D3: Teoria/ | E3: Nº | F3: Aulas/semana | G3: Total | H3: Total | I3: Área (docente) | J3: Ambiente
D4: Prática | E4: Prof. | F4: 1º | G4: Aulas | H4: Horas
A5: 1º Módulo | B5: Eletricidade Básica | C5: ELES1 | D5: T/P | E5: 2 | F5: 2 | G5: =SUM(F5)*$F$2 -> 38 | H5: =(G5)*$C$27/60 -> 31.66666667 | I5: Automação | J5: Laboratório existente
B6: Manutenção de Computadores 1 | C6: MN1S1 | D6: T/P | E6: 2 | F6: 4 | G6: 76 | H6: 63.33333333 | I6: Redes | J6: Laboratório existente
B7: Inglês Instrumental | C7: INGS1 | D7: T | E7: 1 | F7: 2 | G7: 38 | H7: 31.66666667 | I7: Inglês | J7: sala de aula
B8: Informática Básica | C8: INBS1 | D8: T/P | E8: 2 | F8: 4 | G8: 76 | H8: 63.33333333 | I8: Redes | J8: Laboratório de informática
B9: Introdução aos Sistemas Operacionais | C9: ISOS1 | D9: T/P | E9: 2 | F9: 4 | G9: 76 | H9: 63.33333333 | I9: Redes | J9: Laboratório de informática
B10: Redes de Computadores | C10: RDCS1 | D10: T/P | E10: 2 | F10: 4 | G10: 76 | H10: 63.33333333 | I10: Redes | J10: Laboratório existente
A11: 2º Módulo | B11: Lógica de Programação | C11: LPRS2 | D11: T/P | E11: 2 | F11: 4 | G11: 76 | H11: 63.33333333 | I11: Programação | J11: Laboratório de informática | L11: =H11*E11 -> 126.6666667
B12: Manutenção de Computadores 2 | C12: MN2S2 | D12: T/P | E12: 2 | F12: 4 | G12: 76 | H12: 63.33333333 | I12: Redes | J12: Laboratório existente | L12: 126.6666667
B13: Banco de Dados | C13: BNDS2 | D13: T/P | E13: 2 | F13: 2 | G13: 38 | H13: 31.66666667 | I13: Programação | J13: Laboratório de informática | L13: 63.33333333
B14: Introdução à Web | C14: IWES2 | D14: T/P | E14: 2 | F14: 2 | G14: 38 | H14: 31.66666667 | I14: Programação | J14: Laboratório de informática | L14: 63.33333333
B15: Projeto e Configuração de Redes | C15: PCRS2 | D15: T/P | E15: 2 | F15: 4 | G15: 76 | H15: 63.33333333 | I15: Redes | J15: Laboratório existente | L15: 126.6666667
B16: Sistemas Operacionais de Redes | C16: SORS2 | D16: T/P | E16: 2 | F16: 4 | G16: 76 | H16: 63.33333333 | I16: Redes | J16: Laboratório de informática | L16: 126.6666667
A17: 3º Módulo | B17: Programação Web | C17: PRWS3 | D17: T/P | E17: 2 | F17: 4 | G17: 76 | H17: 63.33333333 | I17: Programação | J17: Laboratório de informática | L17: 126.6666667
B18: Administração de Serviços de Rede | C18: ASRS3 | D18: T/P | E18: 2 | F18: 4 | G18: 76 | H18: 63.33333333 | I18: Redes | J18: Laboratório de informática | L18: 126.6666667
B19: Administração de Infraestrutura de Redes | C19: AIRS3 | D19: T/P | E19: 2 | F19: 6 | G19: 114 | H19: 95 | I19: Redes | J19: Laboratório de informática | L19: 190
B20: Empreendedorismo e Técnicas de Gestão | C20: ETGS3 | D20: T | E20: 1 | F20: 2 | G20: 38 | H20: 31.66666667 | I20: Gestão | J20: sala de aula | L20: 31.66666667
B21: Projeto Integrador | C21: PJIS3 | D21: T/P | E21: 2 | F21: 8 | G21: 152 | H21: 126.6666667 | I21: Redes | J21: Laboratório existente | L21: 253.3333333
A22: Total acumulado de aulas | F22: =SUM(F5:F21) -> 64 | G22: 1216
A23: Total acumulado de horas | F23: =(F22*$F$2*$C$27)/60 -> 1013.333333 | G23: - | H23: =SUM(F23+#REF!+#REF!) -> #REF!
A24: Carga Horária Total Mínima Obrigatória (Sem estágio) | H24: =H23 -> #REF!
A25: Estágio Supervisionado (optativo) | H25: 360
A26: Carga Horária Total Máxima: | H26: =H24+H25 -> #REF!
A27: Observações: As aulas serão de: | C27: 50 | D27: minutos.
F30: =SUMPRODUCT(H5:H21,E5:E21)/F23 -> 1.9375

Sheet ConcEletroTurmaUnica (hidden)
A1: Concomitante em Eletroeletrônica - HTO
F2: aulas/sem
B3: Componente Curricular | C3: Código | D3: Teoria/ Prática | E3: Nº Prof. | F3: 1º | G3: Total aulas | H3: Total horas | I3: Área atribuída | J3: Ambiente de ensino
A4: 1º Semestre | B4: Eletricidade | D4: T | E4: 1 | F4: 4 | G4: 76 | H4: 63 | I4: Automação | J4: Sala de aula
B5: Laboratório de Eletricidade | D5: P | E5: 1 | F5: 2 | G5: 38 | H5: 32 | I5: Automação | J5: Laboratório existente
B6: Eletrônica Digital | D6: T | E6: 1 | F6: 4 | G6: 76 | H6: 63 | I6: Automação | J6: Sala de aula
B7: Laboratório de Eletrônica Digital | D7: P | E7: 1 | F7: 2 | G7: 38 | H7: 32 | I7: Automação | J7: Laboratório existente
B8: Matemática Aplicada | D8: T | E8: 1 | F8: 4 | G8: 76 | H8: 63 | I8: Matemática | J8: Sala de aula
B9: Inglês para Fins Específicos I | D9: T | E9: 1 | F9: 2 | G9: 38 | H9: 32 | I9: Inglês | J9: Sala de aula
B10: Leitura, Interpretação e Produção de Textos I | D10: T | E10: 1 | F10: 2 | G10: 38 | H10: 32 | I10: Português | J10: Sala de aula
A11: 2º Semestre | B11: Eletrônica Analógica | D11: T | E11: 1 | F11: 4 | G11: 76 | H11: 63 | I11: Automação | J11: Sala de aula
B12: Laboratório de Eletrônica Analógica | D12: P | E12: 1 | F12: 2 | G12: 38 | H12: 32 | I12: Automação | J12: Laboratório existente
B13: Desenho Assistido por Computador | D13: P | E13: 1 | F13: 2 | G13: 38 | H13: 32 | I13: Automação | J13: Laboratório de informática
B14: Geração, Transmissão e Distribuição de Energia | D14: T | E14: 1 | F14: 2 | G14: 38 | H14: 32 | I14: Automação | J14: Sala de aula
B15: Inglês para Fins Específicos 2 | D15: T | E15: 1 | F15: 2 | G15: 38 | H15: 32 | I15: Inglês | J15: Sala de aula
B16: Leitura, Interpretação e Produção de Textos 2 | D16: T | E16: 1 | F16: 2 | G16: 38 | H16: 32 | I16: Português | J16: Sala de aula
B17: Gestão e Empreendedorismo | D17: T | E17: 1 | F17: 2 | G17: 38 | H17: 32 | I17: Gestão | J17: Sala de aula
B18: Projetos de Circuitos Eletrônicos | D18: P | E18: 1 | F18: 4 | G18: 76 | H18: 63 | I18: Automação | J18: Laboratório existente
A19: 3º Semestre | B19: Comandos Elétricos | D19: P | E19: 1 | F19: 4 | G19: 76 | H19: 63 | I19: Automação | J19: Laboratório existente
B20: Programação | D20: P | E20: 1 | F20: 2 | G20: 38 | H20: 32 | I20: Automação | J20: Laboratório de informática
B21: Sensores Industriais | D21: P | E21: 1 | F21: 2 | G21: 38 | H21: 32 | I21: Automação | J21: Laboratório existente
B22: Eletrônica de Potência | D22: T | E22: 1 | F22: 4 | G22: 76 | H22: 63 | I22: Automação | J22: Sala de aula
B23: Laboratório de Eletrônica de Potência | D23: P | E23: 1 | F23: 2 | G23: 38 | H23: 32 | I23: Automação | J23: Laboratório existente
B24: Máquinas e Acionamentos Elétricos | D24: P | E24: 1 | F24: 4 | G24: 76 | H24: 63 | I24: Automação | J24: Laboratório existente
B25: Projetos Elétricos | D25: P | E25: 1 | F25: 2 | G25: 38 | H25: 32 | I25: Automação | J25: Laboratório de informática
A26: 4º Semestre | B26: Controladores Lógicos Programáveis | D26: P | E26: 1 | F26: 4 | G26: 76 | H26: 63 | I26: Automação | J26: Laboratório de informática
B27: Instalações Elétricas | D27: P | E27: 1 | F27: 4 | G27: 76 | H27: 63 | I27: Automação | J27: Laboratório inexistente
B28: Microcontroladores | D28: P | E28: 1 | F28: 4 | G28: 76 | H28: 63 | I28: Automação | J28: Laboratório de informática
B29: Comandos Eletro-Hidráulicos/Pneumáticos | D29: P | E29: 1 | F29: 4 | G29: 76 | H29: 63 | I29: Automação | J29: Laboratório existente
B30: Projeto Integrador | D30: P | E30: 1 | F30: 4 | G30: 76 | H30: 63 | I30: Automação | J30: Laboratório de informática
A31: Total acumulado de horas | F31: =(F30*#REF!*$C$36)/60 -> #REF! | G31: - | H31: =SUM(F31+#REF!+#REF!+#REF!) -> #REF!
A32: Carga Horária Total Mínima Obrigatória (Sem estágio) | H32: =H31 -> #REF!
A33: Estágio Supervisionado (optativo) | H33: 360
A34: Carga Horária Total Máxima: | H34: =SUM(H32+H33) -> #REF!
A35: Observações: As aulas serão de: | C35: 50 | D35: minutos.

Sheet EJAFICInfo (hidden)
A2: Curso de formação em auxiliar de usinagem | F2: 19
B3: Componente Curricular | C3: Códigos | D3: Teoria/ | E3: Nº | F3: Aulas/semana | G3: Total | H3: Total | I3: Área (docente) | J3: Ambiente
D4: Prática | E4: Prof. | F4: 1º | G4: Aulas | H4: Horas
A5: 1º Módulo | B5: Disciplina 1 | D5: T/P | E5: 1 | F5: 1 | G5: =SUM(F5)*$F$2 -> 19 | H5: =(G5)*$C$13/60 -> 15.83333333 | I5: Redes | J5: Laboratório de informática
B6: Disciplina 2 | D6: T/P | E6: 1 | F6: 2 | G6: 38 | H6: 31.66666667 | I6: Redes | J6: Laboratório de informática
A7: 2º Módulo | B7: Disciplina 3 | D7: T/P | E7: 1 | F7: 1 | G7: 19 | H7: 15.83333333 | I7: Redes | J7: Laboratório de informática
B8: Disciplina 4 | D8: T/P | E8: 1 | F8: 2 | G8: 38 | H8: 31.66666667 | I8: Redes | J8: Laboratório de informática
A9: 3º Módulo | B9: Disciplina 5 | D9: T/P | E9: 1 | F9: 3 | G9: 57 | H9: 47.5 | I9: Redes | J9: Laboratório de informática
A11: 4º Módulo | B11: Disciplina 6 | D11: T/P | E11: 1 | F11: 3 | G11: =SUM(F11)*$F$2 -> 57 | H11: =(G11)*$C$13/60 -> 47.5 | I11: Redes | J11: Laboratório de informática
A13: Total acumulado de horas | C13: 50 | D13: minutos.
A14: Carga Horária Total Mínima Obrigatória (Sem estágio)
A15: Estágio Supervisionado (optativo)
A16: Carga Horária Total Máxima:
A17: Observações: As aulas serão de:

Sheet EspecEduc (hidden)
A2: Especialização em humanidades | F2: 19
B3: Componente Curricular | C3: Códigos | D3: Teoria/ | E3: Nº | F3: Aulas/semana | G3: Total | H3: Total | I3: Área (docente) | J3: Ambiente
D4: Prática | E4: Prof. | F4: 1º | G4: Aulas | H4: Horas
A5: 1º Módulo | B5: Corpo, Cultura e Educação | D5: T | E5: 1 | F5: 2 | G5: =SUM(F5)*$F$2 -> 38 | H5: =(G5)*$C$20/60 -> 31.66666667 | I5: Educação física | J5: Sala de aula
B6: Educação Arte e Cultura | D6: T | E6: 1 | F6: 2 | G6: 38 | H6: 31.66666667 | I6: Artes | J6: Sala de aula
B7: Disciplina a ser proposta Mariana Miguel (provisório) | D7: T | E7: 1 | F7: 2 | G7: 38 | H7: 31.66666667 | I7: Biologia | J7: Sala de aula
B8: Didática | D8: T | E8: 1 | F8: 2 | G8: 38 | H8: 31.66666667 | I8: Pedagogia | J8: Sala de aula
A9: 2º Módulo | B9: Políticas educadionais | D9: T | E9: 1 | F9: 2 | G9: 38 | H9: 31.66666667 | I9: Sociologia | J9: Laboratório de informática
B10: Teorias de gênero | D10: T | E10: 1 | F10: 2 | G10: 38 | H10: 31.66666667 | I10: Educação física | J10: Sala de aula
B11: História da Ciência e Letramento Científico | D11: T | E11: 1 | F11: 2 | G11: 38 | H11: 31.66666667 | I11: História
B12: Disciplina a ser proposta Luciana (educação ambiental como tema transversal, meio ambiente, ações de pesquisa na educação básica e participação em competições científicas) (provisório) | D12: T | E12: 1 | F12: 2 | G12: 38 | H12: 31.66666667 | I12: Biologia | J12: Sala de aula
B13: Ensino a distância e suas tecnologias de educação (provisório) | D13: T/P | E13: 1 | F13: 2 | G13: 38 | H13: 31.66666667 | I13: Química | J13: Sala de aula
A14: 3º Módulo | B14: História e Cultura afro-brasileira e indígena | D14: T | E14: 1 | F14: 2 | G14: 38 | H14: 31.66666667 | I14: Filosofia | J14: Sala de aula
B15: Educação e a Questão Ambiental | D15: T | E15: 1 | F15: 2 | G15: 38 | H15: 31.66666667 | I15: Geografia | J15: Sala de aula
B16: Metodologias científicas e práticas na pesquisa | D16: T | E16: 1 | F16: 2 | G16: 38 | H16: 31.66666667 | I16: Biologia | J16: Sala de aula
B17: Disciplina a ser proposta pela Matemática (tecnologias educacionais) (provisório) | D17: T/P | E17: 1 | F17: 2 | G17: 38 | H17: 31.66666667 | I17: Matemática | J17: Sala de aula
A18: 4º Módulo
B19: TCC | D19: T | E19: 1 | F19: 0 | G19: =SUM(F19)*$F$2 -> 0 | H19: =(G19)*$C$20/60 -> 0 | I19: Educação física | J19: Sala de aula
A20: Total acumulado de horas | C20: 50 | D20: minutos.
A21: Carga Horária Total Mínima Obrigatória (Sem estágio)
A22: Estágio Supervisionado (optativo)
A23: Carga Horária Total Máxima:
A24: Observações: As aulas serão de:

Sheet EspecLetras (hidden)
A2: Especialização em estudos da linguagem | F2: 19
B3: Componente Curricular | C3: Códigos | D3: Teoria/ | E3: Nº | F3: Aulas/semana | G3: Total | H3: Total | I3: Área (docente) | J3: Ambiente
D4: Prática | E4: Prof. | F4: 1º | G4: Aulas | H4: Horas
A5: 1º Módulo | B5: Literatura, cultura e sociedade | D5: T | E5: 1 | F5: 4 | G5: =SUM(F5)*$F$2 -> 76 | H5: =(G5)*$C$12/60 -> 63.33333333 | I5: Português | J5: Sala de aula
B6: Análise linguística e ensino | D6: T | E6: 1 | F6: 4 | G6: 76 | H6: 63.33333333 | I6: Português | J6: Sala de aula
A7: 2º Módulo | B7: Ensino de literaturas de língua portuguesa | D7: T | E7: 1 | F7: 4 | G7: 76 | H7: 63.33333333 | I7: Português | J7: Sala de aula
B8: Texto e ensino | D8: T | E8: 1 | F8: 4 | G8: 76 | H8: 63.33333333 | I8: Português | J8: Sala de aula
A9: 3º Módulo | B9: Linguagem e significação | D9: T | E9: 1 | F9: 4 | G9: 76 | H9: 63.33333333 | I9: Português | J9: Sala de aula
B10: Tópicos em linguística aplicada | D10: T | E10: 1 | F10: 4 | G10: 76 | H10: 63.33333333 | I10: Português | J10: Sala de aula
A11: 4º Módulo | B11: TCC | D11: T | E11: 1 | F11: 0 | G11: 0 | H11: 0 | I11: Português | J11: Sala de aula
A12: Total acumulado de horas | C12: 50 | D12: minutos.
A13: Carga Horária Total Mínima Obrigatória (Sem estágio)
A14: Estágio Supervisionado (optativo)
A15: Carga Horária Total Máxima:
A16: Observações: As aulas serão de:

Sheet EJAFICUsinagem
A2: Curso de formação em auxiliar de usinagem | F2: 19
B3: Componente Curricular | C3: Códigos | D3: Teoria/ | E3: Nº | F3: Aulas/semana | G3: Total | H3: Total | I3: Área (docente) | J3: Ambiente
D4: Prática | E4: Prof. | F4: 1º | G4: Aulas | H4: Horas
A5: 1º Módulo | B5: Higiene e segurança do trabalho | D5: T | E5: 1 | F5: 1 | G5: =SUM(F5)*$F$2 -> 19 | H5: =(G5)*$C$13/60 -> 15.83333333 | I5: Mecânica | J5: Sala de aula
B6: Noções de metrologia e desenho técnico | D6: T | E6: 1 | F6: 2 | G6: 38 | H6: 31.66666667 | I6: Mecânica | J6: Sala de aula
A7: 2º Módulo | B7: Noções de tecnologia dos materiais | D7: T | E7: 1 | F7: 1 | G7: 19 | H7: 15.83333333 | I7: Mecânica | J7: Sala de aula
B8: Teoria de usinagem | D8: T | E8: 1 | F8: 2 | G8: 38 | H8: 31.66666667 | I8: Mecânica | J8: Sala de aula
A9: 3º Módulo | B9: Teoria e prática de usinagem - torneamento e furação | D9: T/P | E9: 1 | F9: 3 | G9: 57 | H9: 47.5 | I9: Mecânica | J9: Laboratório existente
A11: 4º Módulo | B11: Teoria e prática de usinagem - fresamento e retificação | D11: T/P | E11: 1 | F11: 3 | G11: =SUM(F11)*$F$2 -> 57 | H11: =(G11)*$C$13/60 -> 47.5 | I11: Mecânica | J11: Laboratório existente
A13: Total acumulado de horas | C13: 50 | D13: minutos.
A14: Carga Horária Total Mínima Obrigatória (Sem estágio)
A15: Estágio Supervisionado (optativo)
A16: Carga Horária Total Máxima:
A17: Observações: As aulas serão de:

Sheet EJAFICQuali
A2: Curso de formação em auxiliar de inspetor de qualidade | F2: 19
B3: Componente Curricular | C3: Códigos | D3: Teoria/ | E3: Nº | F3: Aulas/semana | G3: Total | H3: Total | I3: Área (docente) | J3: Ambiente
D4: Prática | E4: Prof. | F4: 1º | G4: Aulas | H4: Horas
A5: 1º Módulo | B5: Higiene e segurança do trabalho | D5: T | E5: 1 | F5: 1 | G5: =SUM(F5)*$F$2 -> 19 | H5: =(G5)*$C$13/60 -> 15.83333333 | I5: Mecânica | J5: Sala de aula
B6: Noções de metrologia e desenho técnico | D6: T | E6: 1 | F6: 2 | G6: 38 | H6: 31.66666667 | I6: Mecânica | J6: Sala de aula
A7: 2º Módulo | B7: Fundamentos de eletricidade | D7: T | E7: 1 | F7: 2 | G7: 38 | H7: 31.66666667 | I7: Mecânica | J7: Sala de aula
B8: Teoria de soldagem | D8: T | E8: 1 | F8: 1 | G8: 19 | H8: 15.83333333 | I8: Mecânica | J8: Sala de aula
A9: 3º Módulo | B9: Teoria e prática de soldagem com eletrodo | D9: T/P | E9: 1 | F9: 3 | G9: 57 | H9: 47.5 | I9: Mecânica | J9: Laboratório existente
A11: 4º Módulo | B11: Teoria e prática de soldagem MIG/MAG | D11: T/P | E11: 1 | F11: 3 | G11: =SUM(F11)*$F$2 -> 57 | H11: =(G11)*$C$13/60 -> 47.5 | I11: Mecânica | J11: Laboratório existente
A13: Total acumulado de horas | C13: 50 | D13: minutos.
A14: Carga Horária Total Mínima Obrigatória (Sem estágio)
A15: Estágio Supervisionado (optativo)
A16: Carga Horária Total Máxima:
A17: Observações: As aulas serão de:

Sheet Taquara (hidden)
A2: Curso de extensão Taquara Branca | F2: 10
B3: Componente Curricular | C3: Códigos | D3: Teoria/ | E3: Nº | F3: Aulas/semana | G3: Total | H3: Total | I3: Área (docente) | J3: Ambiente
D4: Prática | E4: Prof. | F4: 1º | G4: Aulas | H4: Horas
A5: 1º Módulo | B5: Mecânica | D5: T | E5: 2 | F5: 2 | G5: =SUM(F5)*$F$2 -> 20 | H5: =(G5)*$C$9/60 -> 16.66666667 | I5: Mecânica | J5: Laboratório existente
B6: Gestão | D6: T | E6: 1 | F6: 2 | G6: 20 | H6: 16.66666667 | I6: Gestão | J6: Sala de aula
A7: 2º Módulo | B7: Automação | D7: T | E7: 1 | F7: 2 | G7: 20 | H7: 16.66666667 | I7: Automação | J7: Laboratório existente
B8: Informática | D8: T | E8: 2 | F8: 2 | G8: 20 | H8: 16.66666667 | I8: Redes | J8: Laboratório de informática
A9: Total acumulado de horas | C9: 50 | D9: minutos.
A10: Carga Horária Total Mínima Obrigatória (Sem estágio)
A11: Estágio Supervisionado (optativo)
A12: Carga Horária Total Máxima:
A13: Observações: As aulas serão de:

Sheet MecaIFC (hidden)
A1: Engenharia Mecatrônica - IFC
F2: aulas/sem
B3: Componente Curricular | C3: Código | D3: Teoria/ Prática | E3: Nº Prof. | G3: Total aulas | H3: Total horas | I3: Área atribuída | J3: Ambiente de ensino
A4: 1º Semestre | B4: Introdução ao Cálculo | E4: 1 | F4: 4 | G4: =$E$75*F4 -> 76 | H4: =ROUND(G4*$C$75/60,) -> 63 | I4: Matemática | J4: Sala de aula
B5: Desenho Técnico | E5: 2 | F5: 3 | G5: 57 | H5: 48 | I5: Mecânica | J5: Sala de aula
B6: Geometria Analítica | E6: 1 | F6: 4 | G6: 76 | H6: 63 | I6: Matemática | J6: Sala de aula
B7: Metodologia Científica | E7: 1 | F7: 2 | G7: 38 | H7: 32 | I7: Filosofia | J7: Sala de aula
B8: Fundamentos de Química | E8: 1 | F8: 3 | G8: 57 | H8: 48 | I8: Química | J8: Sala de aula
B9: Introdução à Engenharia Mecatrônica | E9: 1 | F9: 2 | G9: 38 | H9: 32 | I9: Mecânica | J9: Sala de aula
B10: Projeto Integrador I | E10: 1 | F10: 5 | G10: 95 | H10: 79 | I10: Mecânica | J10: Sala de aula
A11: 2º Semestre | B11: Cálculo I | E11: 1 | F11: 4 | G11: 76 | H11: 63 | I11: Matemática | J11: Sala de aula
B12: Fundamentos de Física em Mecânica | E12: 1 | F12: 5 | G12: 95 | H12: 79 | I12: Física | J12: Sala de aula
B13: Álgebra Linear | E13: 1 | F13: 4 | G13: 76 | H13: 63 | I13: Matemática | J13: Sala de aula
B14: Algoritmos I | E14: 2 | F14: 6 | G14: 114 | H14: 95 | I14: Informática | J14: Laboratório de informática
B15: Lógica de Programação Aplicada | E15: 2 | F15: 2 | G15: 38 | H15: 32 | I15: Informática | J15: Laboratório de informática
B16: Engenharia e Sustentabilidade | E16: 1 | F16: 2 | G16: 38 | H16: 32 | I16: Mecânica | J16: Sala de aula
B17: Tecnologia e Sociedade | E17: 1 | F17: 2 | G17: 38 | H17: 32 | I17: História | J17: Sala de aula
A18: 3º Semestre | B18: Cálculo II | E18: 1 | F18: 4 | G18: 76 | H18: 63 | I18: Matemática | J18: Sala de aula
B19: Fundamentos de Física em Termodinâmica e Ondas | E19: 1 | F19: 5 | G19: 95 | H19: 79 | I19: Física | J19: Sala de aula
B20: Ciência e Tecnologia dos Materiais | E20: 1 | F20: 3 | G20: 57 | H20: 48 | I20: Mecânica | J20: Sala de aula
B21: Estatística e Probabilidade | E21: 1 | F21: 4 | G21: 76 | H21: 63 | I21: Matemática | J21: Sala de aula
B22: Metrologia e Instrumentação | E22: 1 | F22: 5 | G22: 95 | H22: 79 | I22: Mecânica | J22: Laboratório específico existente
B23: Programação I | E23: 2 | F23: 2 | G23: 38 | H23: 32 | I23: Informática | J23: Laboratório de informática
B24: Fundamentos Mecânicos para Mecatrônica | E24: 1 | F24: 2 | G24: 38 | H24: 32 | I24: Mecânica | J24: Sala de aula
A25: 4º Semestre | B25: Cálculo III | E25: 1 | F25: 4 | G25: 76 | H25: 63 | I25: Matemática | J25: Sala de aula
B26: Fundamentos da Física em Eletricidade | E26: 1 | F26: 5 | G26: 95 | H26: 79 | I26: Física | J26: Sala de aula
B27: Ergonomia e Segurança do Trabalho | E27: 1 | F27: 2 | G27: 38 | H27: 32 | I27: Mecânica | J27: Sala de aula
B28: Eletricidade e Instalações Elétricas | E28: 1 | F28: 5 | G28: 95 | H28: 79 | I28: Automação | J28: Laboratório específico existente
B29: Processos de Fabricação I | E29: 1 | F29: 5 | G29: 95 | H29: 79 | I29: Mecânica | J29: Laboratório específico existente
B30: Programação II | E30: 1 | F30: 3 | G30: 57 | H30: 48 | I30: Automação | J30: Laboratório de informática
A31: 5° Semestre | B31: Análise de Circuitos | E31: 1 | F31: 5 | G31: 95 | H31: 79 | I31: Automação | J31: Laboratório específico existente
B32: Desenho Mecânico Assistido por Computador | E32: 2 | F32: 5 | G32: 95 | H32: 79 | I32: Mecânica | J32: Laboratório de informática
B33: Elementos de Máquina | E33: 1 | F33: 5 | G33: 95 | H33: 79 | I33: Mecânica | J33: Sala de aula
B34: Processos de Fabricação II | E34: 1 | F34: 5 | G34: 95 | H34: 79 | I34: Mecânica | J34: Laboratório específico existente
B35: Projeto Integrador II | E35: 1 | F35: 5 | G35: 95 | H35: 79 | I35: Mecânica | J35: Laboratório específico existente
A36: 6° Semestre | B36: Eletrônica Digital I | E36: 1 | F36: 5 | G36: 95 | H36: 79 | I36: Automação | J36: Laboratório específico existente
B37: Eletrônica Analógica e Simulação de Circuitos | E37: 2 | F37: 7 | G37: 133 | H37: 111 | I37: Automação | J37: Laboratório de informática
B38: Projeto de Mecanismos | E38: 1 | F38: 5 | G38: 95 | H38: 79 | I38: Mecânica | J38: Sala de aula
B39: Desenvolvimento de Produtos | E39: 1 | F39: 3 | G39: 57 | H39: 48 | I39: Mecânica | J39: Sala de aula
B40: Projeto Integrador III | E40: 1 | F40: 5 | G40: 95 | H40: 79 | I40: Automação | J40: Laboratório específico existente
A41: 7° Semestre | B41: Eletrônica Digital II | E41: 1 | F41: 5 | G41: 95 | H41: 79 | I41: Automação | J41: Laboratório específico existente
B42: Máquinas e Acionamentos Eletromecânicos | E42: 1 | F42: 5 | G42: 95 | H42: 79 | I42: Automação | J42: Laboratório específico existente
B43: Informática Industrial I | E43: 1 | F43: 5 | G43: 95 | H43: 79 | I43: Informática | J43: Laboratório de informática
B44: Controle de Processos | E44: 1 | F44: 5 | G44: 95 | H44: 79 | I44: Mecânica | J44: Laboratório específico existente
B45: Projeto Integrador IV | E45: 1 | F45: 5 | G45: 95 | H45: 79 | I45: Automação | J45: Laboratório específico existente
A46: 8° Semestre | B46: Sistemas Hidráulicos e Pneumáticos | E46: 2 | F46: 5 | G46: 95 | H46: 79 | I46: Mecânica | J46: Laboratório específico existente
B47: Sistemas Embarcados | E47: 1 | F47: 5 | G47: 95 | H47: 79 | I47: Automação | J47: Laboratório específico existente
B48: Gestão e Inovação para Mecatrônica | E48: 1 | F48: 5 | G48: 95 | H48: 79 | I48: Gestão | J48: Sala de aula
B49: Informática Industrial II | E49: 1 | F49: 5 | G49: 95 | H49: 79 | I49: Informática | J49: Laboratório de informática
B50: Projeto Integrador V | E50: 1 | F50: 5 | G50: 95 | H50: 79 | I50: Mecânica | J50: Laboratório específico existente
A51: 9° Semestre | B51: Comando Numérico Computadorizado | E51: 1 | F51: 5 | G51: 95 | H51: 79 | I51: Mecânica | J51: Laboratório específico existente
B52: Robótica Industrial | E52: 1 | F52: 5 | G52: 95 | H52: 79 | I52: Automação | J52: Laboratório específico existente
B53: Automação dos Processos de Soldagem | E53: 1 | F53: 3 | G53: 57 | H53: 48 | I53: Mecânica | J53: Laboratório específico existente
B54: Trabalho de Conclusão de Curso I | E54: 1 | F54: 2 | G54: 38 | H54: 32 | I54: Mecânica | J54: Laboratório específico existente
B55: Gestão da Manutenção | E55: 1 | F55: 5 | G55: 95 | H55: 79 | I55: Mecânica | J55: Sala de aula
B56: Projeto Integrador VI | E56: 1 | F56: 5 | G56: 95 | H56: 79 | I56: Automação | J56: Laboratório específico existente
A57: 10° Semestre | B57: Optativa I | E57: 1 | F57: 4 | G57: 76 | H57: 63 | I57: Automação | J57: Sala de aula
B58: Optativa II | E58: 1 | F58: 4 | G58: 76 | H58: 63 | I58: Mecânica | J58: Sala de aula
B59: Optativa III | E59: 1 | F59: 4 | G59: 76 | H59: 63 | I59: Mecânica | J59: Sala de aula
B60: Trabalho de Conclusão de Curso II | E60: 1 | F60: 8 | G60: 152 | H60: 127 | I60: Mecânica | J60: Laboratório específico existente
C75: 50 | E75: 19

Sheet MecaEESC (hidden)
A1: Engenharia Mecatrônica - USP
F2: aulas/sem
B3: Componente Curricular | C3: Código | D3: Teoria/ Prática | E3: Nº Prof. | G3: Total aulas | H3: Total horas | I3: Área atribuída | J3: Ambiente de ensino
A4: 1º Semestre | B4: Física I | E4: 1 | F4: 5 | G4: =$E$86*F4 -> 95 | H4: =ROUND(G4*$C$86/60,) -> 79 | I4: Física | J4: Sala de aula
B5: Laboratório de Física Geral I | E5: 2 | F5: 2 | G5: 38 | H5: 32 | I5: Física | J5: Laboratório inexistente
B6: Introdução à Engenharia Mecatrônica | E6: 1 | F6: 1 | G6: 19 | H6: 16 | I6: Mecânica | J6: Sala de aula
B7: Desenho Técnico Mecânico I | E7: 2 | F7: 4 | G7: 76 | H7: 63 | I7: Mecânica | J7: Sala de aula
B8: Geometria Analítica | E8: 1 | F8: 4 | G8: 76 | H8: 63 | I8: Matemática | J8: Sala de aula
B9: Cálculo I | E9: 1 | F9: 4 | G9: 76 | H9: 63 | I9: Matemática | J9: Sala de aula
B10: Química Geral e Experimental | E10: 2 | F10: 4 | G10: 76 | H10: 63 | I10: Química | J10: Laboratório inexistente
B11: Introdução à Programação para Engenharias | E11: 1 | F11: 4 | G11: 76 | H11: 63 | I11: Automação | J11: Laboratório de informática
A12: 2º Semestre | B12: Física II | E12: 1 | F12: 5 | G12: 95 | H12: 79 | I12: Física | J12: Sala de aula
B13: Laboratório de Física Geral II | E13: 2 | F13: 2 | G13: 38 | H13: 32 | I13: Física | J13: Laboratório inexistente
B14: Estática Aplicada às Máquinas | E14: 1 | F14: 4 | G14: 76 | H14: 63 | I14: Mecânica | J14: Sala de aula
B15: Problemas de Engenharia Mecatrônica I | E15: 1 | F15: 1 | G15: 19 | H15: 16 | I15: Mecânica | J15: Sala de aula
B16: Desenho Técnico Mecânico II | E16: 2 | F16: 2 | G16: 38 | H16: 32 | I16: Mecânica | J16: Sala de aula
B17: Tópicos em Computação | E17: 1 | F17: 2 | G17: 38 | H17: 32 | I17: Informática | J17: Sala de aula
B18: Práticas de Tópicos em Computação | E18: 2 | F18: 1 | G18: 19 | H18: 16 | I18: Informática | J18: Laboratório de informática
B19: Álgebra Linear | E19: 1 | F19: 4 | G19: 76 | H19: 63 | I19: Matemática | J19: Sala de aula
B20: Cálculo II | E20: 1 | F20: 4 | G20: 76 | H20: 63 | I20: Matemática | J20: Sala de aula
A21: 3º Semestre | B21: Dinâmica Aplicada às Máquinas | E21: 1 | F21: 4 | G21: 76 | H21: 63 | I21: Mecânica | J21: Sala de aula
B22: Problemas de Engenharia Mecatrônica II | E22: 1 | F22: 1 | G22: 19 | H22: 16 | I22: Automação | J22: Sala de aula
B23: Mecânica dos Sólidos I | E23: 1 | F23: 4 | G23: 76 | H23: 63 | I23: Mecânica | J23: Sala de aula
B24: Cálculo III | E24: 1 | F24: 4 | G24: 76 | H24: 63 | I24: Matemática | J24: Sala de aula
B25: Cálculo Numérico | E25: 1 | F25: 4 | G25: 76 | H25: 63 | I25: Mecânica | J25: Sala de aula
B26: Equações Diferenciais Ordinárias | E26: 1 | F26: 4 | G26: 76 | H26: 63 | I26: Matemática | J26: Sala de aula
B27: Engenharia e Ciência dos Materiais I | E27: 1 | F27: 4 | G27: 76 | H27: 63 | I27: Mecânica | J27: Sala de aula
A28: 4º Semestre | B28: Humanidades e Ciências Sociais | E28: 1 | F28: 2 | G28: 38 | H28: 32 | I28: História | J28: Sala de aula
B29: Eletricidade e Magnetismo | E29: 1 | F29: 4 | G29: 76 | H29: 63 | I29: Automação | J29: Sala de aula
B30: Mecanismos | E30: 1 | F30: 3 | G30: 57 | H30: 48 | I30: Mecânica | J30: Sala de aula
B31: Problemas de Engenharia Mecatrônica III | E31: 1 | F31: 1 | G31: 19 | H31: 16 | I31: Mecânica | J31: Sala de aula
B32: Mecânica dos Sólidos II | E32: 1 | F32: 4 | G32: 76 | H32: 63 | I32: Mecânica | J32: Sala de aula
B33: Cálculo IV | E33: 1 | F33: 4 | G33: 76 | H33: 63 | I33: Matemática | J33: Sala de aula
B34: Estatística I | E34: 1 | F34: 4 | G34: 76 | H34: 63 | I34: Matemática | J34: Sala de aula
B35: Engenharia e Ciência dos Materiais II | E35: 1 | F35: 4 | G35: 76 | H35: 63 | I35: Mecânica | J35: Sala de aula
A36: 5° Semestre | B36: Princípios de Eletrônica | E36: 1 | F36: 4 | G36: 76 | H36: 63 | I36: Automação | J36: Sala de aula
B37: Introdução aos Sistemas Digitais | E37: 1 | F37: 4 | G37: 76 | H37: 63 | I37: Automação | J37: Sala de aula
B38: Termodinâmica I | E38: 1 | F38: 4 | G38: 76 | H38: 63 | I38: Mecânica | J38: Sala de aula
B39: Princípios de Metrologia Industrial | E39: 1 | F39: 4 | G39: 76 | H39: 63 | I39: Mecânica | J39: Sala de aula
B40: Problemas de Engenharia Mecatrônica IV | E40: 1 | F40: 1 | G40: 19 | H40: 16 | I40: Automação | J40: Sala de aula
B41: Modelagem e Simulação de Sistemas Dinâmicos I | E41: 1 | F41: 4 | G41: 76 | H41: 63 | I41: Mecânica | J41: Sala de aula
B42: Projeto Mecânico de Elementos de Máquinas | E42: 1 | F42: 4 | G42: 76 | H42: 63 | I42: Mecânica | J42: Sala de aula
A43: 6° Semestre | B43: Introdução à Organização de Computadores | E43: 1 | F43: 2 | G43: 38 | H43: 32 | I43: Informática | J43: Sala de aula
B44: Vibrações Mecânicas | E44: 1 | F44: 4 | G44: 76 | H44: 63 | I44: Mecânica | J44: Sala de aula
B45: Fundamentos da Mecânica dos Fluidos | E45: 1 | F45: 4 | G45: 76 | H45: 63 | I45: Mecânica | J45: Sala de aula
B46: Modelagem e Simulação de Sistemas Dinâmicos II | E46: 1 | F46: 2 | G46: 38 | H46: 32 | I46: Mecânica | J46: Sala de aula
B47: Sistemas de Controle I | E47: 1 | F47: 4 | G47: 76 | H47: 63 | I47: Automação | J47: Sala de aula
B48: Problemas de Engenharia Mecatrônica V | E48: 1 | F48: 1 | G48: 19 | H48: 16 | I48: Mecânica | J48: Sala de aula
B49: Processos de Fabricação | E49: 1 | F49: 4 | G49: 76 | H49: 63 | I49: Mecânica | J49: Sala de aula
B50: Práticas em Modelagem e Simulação de Sistemas Dinâmicos | E50: 1 | F50: 1 | G50: 19 | H50: 16 | I50: Mecânica | J50: Sala de aula
A51: 7° Semestre | B51: Aplicação de Microprocessadores I | E51: 2 | F51: 2 | G51: 38 | H51: 32 | I51: Automação | J51: Sala de aula
B52: Eletricidade II | E52: 1 | F52: 4 | G52: 76 | H52: 63 | I52: Automação | J52: Sala de aula
B53: Sistemas de Controle II | E53: 1 | F53: 4 | G53: 76 | H53: 63 | I53: Automação | J53: Sala de aula
B54: Instrumentação e Sistemas de Medidas | E54: 1 | F54: 4 | G54: 76 | H54: 63 | I54: Automação | J54: Sala de aula
B55: Projeto de Sistemas Mecatrônicos I | E55: 1 | F55: 4 | G55: 76 | H55: 63 | I55: Automação | J55: Sala de aula
B56: Transferência de Calor e Massa | E56: 1 | F56: 4 | G56: 76 | H56: 63 | I56: Mecânica | J56: Sala de aula
B57: Gestão Ambiental para Engenheiros | E57: 1 | F57: 2 | G57: 38 | H57: 32 | I57: Mecânica | J57: Sala de aula
A58: 8° Semestre | B58: Dinâmica e Controle de Sistemas Robóticos I | E58: 1 | F58: 4 | G58: 76 | H58: 63 | I58: Automação | J58: Sala de aula
B59: Interfaces Eletromecânicas | E59: 1 | F59: 4 | G59: 76 | H59: 63 | I59: Automação | J59: Sala de aula
B60: Elementos de Automação | E60: 1 | F60: 4 | G60: 76 | H60: 63 | I60: Automação | J60: Sala de aula
B61: Projeto de Sistemas Mecatrônicos II | E61: 1 | F61: 4 | G61: 76 | H61: 63 | I61: Mecânica | J61: Sala de aula
B62: Sistemas Térmicos e Fluídicos | E62: 1 | F62: 3 | G62: 57 | H62: 48 | I62: Mecânica | J62: Sala de aula
B63: Gestão e Organização | E63: 1 | F63: 2 | G63: 38 | H63: 32 | I63: Gestão | J63: Sala de aula
B64: Princípios de Economia | E64: 1 | F64: 2 | G64: 38 | H64: 32 | I64: Gestão | J64: Sala de aula
A65: 9° Semestre | B65: Estágio Supervisionado | E65: 1 | F65: 14 | G65: 266 | H65: 222 | I65: Mecânica | J65: Sala de aula
B66: Trabalho de Conclusão de Curso I | E66: 1 | F66: 10 | G66: 190 | H66: 158 | I66: Automação | J66: Sala de aula
B67: Disciplinas Eletivas | E67: 1 | F67: 8 | G67: 152 | H67: 127 | I67: Mecânica | J67: Sala de aula
B68: Sistemas Embarcados | E68: 1 | F68: 4 | G68: 76 | H68: 63 | I68: Automação | J68: Sala de aula
A69: 10° Semestre | B69: Trabalho de Conclusão de Curso II | E69: 1 | F69: 10 | G69: 190 | H69: 158 | I69: Automação | J69: Sala de aula
B70: Disciplinas Eletivas | E70: 1 | F70: 3 | G70: 57 | H70: 48 | I70: Automação | J70: Sala de aula
B71: Gerenciamento de Projetos | E71: 1 | F71: 3 | G71: 57 | H71: 48 | I71: Gestão | J71: Sala de aula
C86: 50 | E86: 19

Sheet ProejaIntMec (hidden)
A2: Técnico Integrado em Mecânica (grade 2019+) | D2: Núm. de semanas: | F2: 38 | I2: =SUMIF(I5:I36,"="&J2,#REF!) -> #N/A | J2: Gestão
B3: Componente Curricular | C3: Códigos | D3: Teoria/ | E3: Nº | F3: Aulas/semana | G3: Total | H3: Total | I3: Área (docente) | J3: Ambiente
D4: Prática | E4: Prof. | F4: 1º | G4: Aulas | H4: Horas
A5: 1º Ano | B5: Língua Portuguesa e Literatura | C5: LPL | D5: T | E5: 1 | F5: 4 | G5: =F5*$F$2 -> 152 | H5: =(G5)*$C$46/60 -> 126.6666667 | I5: Português | J5: Sala de aula
B6: Corpo e Arte | C6: CPA | D6: T/P | E6: 1 | F6: 2 | G6: 76 | H6: 63.33333333 | I6: Artes | J6: Ginásio
B7: Matemática B | C7: MAB | D7: T | E7: 1 | F7: 2 | G7: 76 | H7: 63.33333333 | I7: Matemática | J7: Sala de aula
B8: Biologia e Programa da Saúde | C8: BIO | D8: T | E8: 1 | F8: 2 | G8: 76 | H8: 63.33333333 | I8: Biologia | J8: Sala de aula
B9: Física | C9: FIS | D9: T | E9: 1 | F9: 2 | G9: 76 | H9: 63.33333333 | I9: Física | J9: Sala de aula
B10: Estudos sobre o Trabalho | C10: EST | D10: T | E10: 1 | F10: 2 | G10: 76 | H10: 63.33333333 | I10: História | J10: Sala de aula
B11: Segurança do trabalho | C11: EFT | D11: T | E11: 1 | F11: 2 | G11: 76 | H11: 63.33333333 | I11: Mecânica | J11: Sala de aula
B12: Siderurgia e fundição | C12: SEF | D12: T | E12: 1 | F12: 2 | G12: 76 | H12: 63.33333333 | I12: Mecânica | J12: Sala de aula
B13: Metrologia e lógica de programação | C13: MEM | D13: T/P | E13: 2 | F13: 2 | G13: 76 | H13: 63.33333333 | I13: Mecânica | J13: Laboratório existente
B14: Desenho Técnico Mecânico, CAD e Prototipagem | C14: DTP | D14: T/P | E14: 2 | F14: 4 | G14: 152 | H14: 126.6666667 | I14: Mecânica | J14: Laboratório de informática
A15: 2º Ano | B15: Língua Portuguesa e Literatura | C15: LPL | D15: T | E15: 1 | F15: 4 | G15: 152 | H15: 126.6666667 | I15: Português | J15: Sala de aula
B16: Educação Física e Esportes | C16: EFE | D16: T/P | E16: 1 | F16: 2 | G16: 76 | H16: 63.33333333 | I16: Educação física | J16: Ginásio
B17: Matemática B | C17: MAB | D17: T | E17: 1 | F17: 2 | G17: 76 | H17: 63.33333333 | I17: Matemática | J17: Sala de aula
B18: Química | C18: QUI | D18: T | E18: 1 | F18: 2 | G18: 76 | H18: 63.33333333 | I18: Química | J18: Sala de aula
B19: Estudos sobre o Trabalho | C19: EST | D19: T | E19: 1 | F19: 2 | G19: 76 | H19: 63.33333333 | I19: Sociologia | J19: Sala de aula
B20: Processos de usinagem | C20: USI | D20: T/P | E20: 2 | F20: 4 | G20: 152 | H20: 126.6666667 | I20: Mecânica | J20: Sala de aula
B21: Conformação mecânica e tratamentos térmicos | C21: CMT | D21: T | E21: 1 | F21: 2 | G21: 76 | H21: 63.33333333 | I21: Mecânica | J21: Sala de aula
B22: Ensaios Mecânicos | C22: ESM | D22: T/P | E22: 1 | F22: 2 | G22: 76 | H22: 63.33333333 | I22: Mecânica | J22: Laboratório existente
B23: Hidráulica e pneumática | C23: HEP | D23: T/P | E23: 2 | F23: 4 | G23: 152 | H23: 126.6666667 | I23: Mecânica | J23: Laboratório existente
B24: Processos de soldagem | C24: SOL | D24: T/P | E24: 2 | F24: 2 | G24: 76 | H24: 63.33333333 | I24: Mecânica | J24: Laboratório existente
B25: História | C25: HIS | D25: T | E25: 1 | F25: 2 | G25: 76 | H25: 63.33333333 | I25: História | J25: Sala de aula
B26: Inglês | C26: ING | D26: T/P | E26: 1 | F26: 2 | G26: 76 | H26: 63.33333333 | I26: Inglês | J26: Sala de aula
B27: Matemática B | C27: MAB | D27: T | E27: 1 | F27: 2 | G27: 76 | H27: 63.33333333 | I27: Matemática | J27: Sala de aula
B28: Biologia e Programa da Saúde | C28: BIO | D28: T | E28: 1 | F28: 2 | G28: 76 | H28: 63.33333333 | I28: Biologia | J28: Sala de aula
B29: Física | C29: FIS | D29: T | E29: 1 | F29: 2 | G29: 76 | H29: 63.33333333 | I29: Física | J29: Sala de aula
B30: Química | C30: QUI | D30: T | E30: 1 | F30: 2 | G30: 76 | H30: 63.33333333 | I30: Química | J30: Sala de aula
B31: CNC e CAM | C31: CNC | D31: T/P | E31: 2 | F31: 2 | G31: 76 | H31: 63.33333333 | I31: Mecânica | J31: Sala de aula
B32: Automação e Robótica | C32: ERA | D32: T/P | E32: 2 | F32: 2 | G32: 76 | H32: 63.33333333 | I32: Mecânica | J32: Laboratório de informática
B33: Manutenção Mecânica e Máquinas Térmicas | C33: MMT | D33: T | E33: 1 | F33: 2 | G33: 76 | H33: 63.33333333 | I33: Mecânica | J33: Sala de aula
B34: Resistência dos Materiais, Elementos de Máquinas e CAE | C34: REM | D34: T | E34: 1 | F34: 2 | G34: 76 | H34: 63.33333333 | I34: Mecânica | J34: Sala de aula
B35: Gestão e empreendedorismo | C35: GEP | D35: T | E35: 1 | F35: 2 | G35: 76 | H35: 63.33333333 | I35: Gestão | J35: Sala de aula
B36: Projeto Integrador | C36: PJI | D36: T/P | E36: 1 | F36: 4 | G36: 152 | H36: 126.6666667 | I36: Mecânica | J36: Laboratório de informática
A37: LIBRAS (optativo) | C37: LIB | D37: T | E37: 1 | F37: 2 | G37: 76 | H37: 63.33333333 | I37: LIBRAS | J37: Sala de aula
A38: Inglês (optativo) | C38: INP | D38: T | E38: 1 | F38: 2 | G38: 76 | H38: 63.33333333
A39: Espanhol (optativo) | C39: ESP | D39: T | E39: 1 | F39: 2 | G39: 76 | H39: 63.33333333 | I39: Espanhol | J39: Sala de aula
A40: Total acumulado de aulas | F40: =SUM(F5:F36)*F2 -> 2888 | G40: =SUM(G5:G39) -> 3116 | H40: =SUM(H5:H36) -> 2406.666667
A41: Total acumulado de horas | F41: =(F40*$C$46)/60 -> 2406.666667 | G41: - | H41: =SUM(F41+#REF!+#REF!) -> #REF!
A42: Carga Horária Total Mínima Obrigatória (Sem estágio) | H42: =H41 -> #REF!
A43: Estágio Supervisionado (optativo) | H43: 150
A44: Pesquisa e extensão | H44: 80
A45: Carga Horária Total Máxima: | H45: =ROUNDDOWN(SUM(H42:H44,H37:H39),0) -> #REF!
A46: Observações: As aulas serão de: | C46: 50 | D46: minutos.

Sheet IntMec (mínimo) (hidden)
A2: Técnico Integrado em Mecânica (grade 2019+) | D2: Núm. de semanas: | F2: 38
B3: Componente Curricular | C3: Códigos | D3: Teoria/ | E3: Nº | F3: Aulas/semana | G3: Total | H3: Total | I3: Área (docente) | J3: Ambiente
D4: Prática | E4: Prof. | F4: 1º | G4: Aulas | H4: Horas
A5: 1º Ano | B5: Língua Portuguesa e Literatura | C5: LPL | D5: T | E5: 1 | F5: 4 | G5: =F5*$F$2 -> 152 | H5: =(G5)*$C$85/60 -> 126.6666667 | I5: Português | J5: Sala de aula
B6: Artes | C6: ART | D6: T/P | E6: 1 | F6: 2 | G6: 76 | H6: 63.33333333 | I6: Artes | J6: Sala de aula
B7: Corpo e Arte | C7: CPA | D7: T/P | E7: 1 | F7: 2 | G7: 76 | H7: 63.33333333 | I7: Educação física | J7: Ginásio
B8: Educação Física e Esportes | C8: EFE | D8: T/P | E8: 1 | F8: 2 | G8: 76 | H8: 63.33333333 | I8: Educação física | J8: Ginásio
B9: Inglês | C9: ING | D9: T/P | E9: 1 | F9: 2 | G9: 76 | H9: 63.33333333 | I9: Inglês | J9: Sala de aula
B10: Matemática A | C10: MAA | D10: T | E10: 1 | F10: 2 | G10: 76 | H10: 63.33333333 | I10: Matemática | J10: Sala de aula
B11: Matemática B | C11: MAB | D11: T | E11: 1 | F11: 2 | G11: 76 | H11: 63.33333333 | I11: Matemática | J11: Sala de aula
B12: Métodos científicos | C12: MTC | D12: T | E12: 1 | F12: 2 | G12: 76 | H12: 63.33333333 | I12: Química | J12: Sala de aula
B13: Biologia e Programa da Saúde | C13: BIO | D13: T | E13: 1 | F13: 0 | G13: 0 | H13: 0 | I13: Biologia | J13: Sala de aula
B14: Física | C14: FIS | D14: T | E14: 1 | F14: 2 | G14: 76 | H14: 63.33333333 | I14: Física | J14: Sala de aula
B15: Química | C15: QUI | D15: T | E15: 1 | F15: 0 | G15: 0 | H15: 0 | I15: Química | J15: Sala de aula
B16: História | C16: HIS | D16: T | E16: 1 | F16: 0 | G16: 0 | H16: 0 | I16: História | J16: Sala de aula
B17: Geografia | C17: GEO | D17: T | E17: 1 | F17: 0 | G17: 0 | H17: 0 | I17: Geografia | J17: Sala de aula
B18: Filosofia | C18: FIL | D18: T | E18: 1 | F18: 0 | G18: 0 | H18: 0 | I18: Filosofia | J18: Sala de aula
B19: Sociologia | C19: SOC | D19: T | E19: 1 | F19: 0 | G19: 0 | H19: 0 | I19: Sociologia | J19: Sala de aula
B20: Inglês para fins específicos | C20: IFE | D20: T | E20: 1 | F20: 0 | G20: 0 | H20: 0 | I20: Inglês | J20: Sala de aula
B21: Estudos sobre o Trabalho | C21: EST | D21: T | E21: 1 | F21: 0 | G21: 0 | H21: 0 | I21: História | J21: Sala de aula
B22: Tópicos em Matemática e Ciências da Natureza Aplicados à Mecânica | C22: TMC | D22: T | E22: 1 | F22: 2 | G22: 76 | H22: 63.33333333 | I22: Mecânica | J22: Sala de aula
B23: Educação física, saúde e segurança do trabalhador | C23: EFT | D23: T | E23: 1 | F23: 0 | G23: 0 | H23: 0 | I23: Educação física | J23: Sala de aula
B24: Siderurgia e fundição | C24: SEF | D24: T | E24: 1 | F24: 2 | G24: 76 | H24: 63.33333333 | I24: Mecânica | J24: Sala de aula
B25: Metrologia e lógica de programação | C25: MEM | D25: T/P | E25: 2 | F25: 2 | G25: 76 | H25: 63.33333333 | I25: Mecânica | J25: Laboratório existente
B26: Desenho Técnico Mecânico, CAD e Prototipagem | C26: DTP | D26: T/P | E26: 2 | F26: 4 | G26: 152 | H26: 126.6666667 | I26: Mecânica | J26: Laboratório de informática
B27: Ensaios Mecânicos | C27: ESM | D27: T/P | E27: 1 | F27: 2 | G27: 76 | H27: 63.33333333 | I27: Mecânica | J27: Laboratório existente
A28: 2º Ano | B28: Língua Portuguesa e Literatura | C28: LPL | D28: T | E28: 1 | F28: 4 | G28: 152 | H28: 126.6666667 | I28: Português | J28: Sala de aula
B29: Artes | C29: ART | D29: T/P | E29: 1 | F29: 2 | G29: 76 | H29: 63.33333333 | I29: Artes | J29: Sala de aula
B30: Corpo e Arte | C30: CPA | D30: T/P | E30: 1 | F30: 0 | G30: 0 | H30: 0 | I30: Educação física | J30: Ginásio
B31: Educação Física e Esportes | C31: EFE | D31: T/P | E31: 1 | F31: 0 | G31: 0 | H31: 0 | I31: Educação física | J31: Ginásio
B32: Inglês | C32: ING | D32: T/P | E32: 1 | F32: 0 | G32: 0 | H32: 0 | I32: Inglês | J32: Sala de aula
B33: Matemática A | C33: MAA | D33: T | E33: 1 | F33: 2 | G33: 76 | H33: 63.33333333 | I33: Matemática | J33: Sala de aula
B34: Matemática B | C34: MAB | D34: T | E34: 1 | F34: 2 | G34: 76 | H34: 63.33333333 | I34: Matemática | J34: Sala de aula
B35: Métodos científicos | C35: MTC | D35: T | E35: 1 | F35: 0 | G35: 0 | H35: 0 | I35: Química | J35: Sala de aula
B36: Biologia e Programa da Saúde | C36: BIO | D36: T | E36: 1 | F36: 2 | G36: 76 | H36: 63.33333333 | I36: Biologia | J36: Sala de aula
B37: Física | C37: FIS | D37: T | E37: 1 | F37: 2 | G37: 76 | H37: 63.33333333 | I37: Física | J37: Sala de aula
B38: Química | C38: QUI | D38: T | E38: 1 | F38: 2 | G38: 76 | H38: 63.33333333 | I38: Química | J38: Sala de aula
B39: História | C39: HIS | D39: T | E39: 1 | F39: 2 | G39: 76 | H39: 63.33333333 | I39: História | J39: Sala de aula
B40: Geografia | C40: GEO | D40: T | E40: 1 | F40: 2 | G40: 76 | H40: 63.33333333 | I40: Geografia | J40: Sala de aula
B41: Filosofia | C41: FIL | D41: T | E41: 1 | F41: 2 | G41: 76 | H41: 63.33333333 | I41: Filosofia | J41: Sala de aula
B42: Sociologia | C42: SOC | D42: T | E42: 1 | F42: 2 | G42: 76 | H42: 63.33333333 | I42: Sociologia | J42: Sala de aula
B43: Inglês para fins específicos | C43: IFE | D43: T | E43: 1 | F43: 0 | G43: 0 | H43: 0 | I43: Inglês | J43: Sala de aula
B44: Estudos sobre o Trabalho | C44: EST | D44: T | E44: 1 | F44: 2 | G44: 76 | H44: 63.33333333 | I44: História | J44: Sala de aula
B45: Tópicos em Matemática e Ciências da Natureza Aplicados à Mecânica | C45: TMC | D45: T | E45: 1 | F45: 0 | G45: 0 | H45: 0 | I45: Mecânica | J45: Sala de aula
B46: Educação física, saúde e segurança do trabalhador | C46: EFT | D46: T | E46: 1 | F46: 0 | G46: 0 | H46: 0 | I46: Educação física | J46: Sala de aula
B47: Processos de usinagem | C47: USI | D47: T/P | E47: 2 | F47: 4 | G47: 152 | H47: 126.6666667 | I47: Mecânica | J47: Sala de aula
B48: Conformação mecânica e tratamentos térmicos | C48: CMT | D48: T | E48: 1 | F48: 2 | G48: 76 | H48: 63.33333333 | I48: Mecânica | J48: Sala de aula
B49: Hidráulica e pneumática | C49: HEP | D49: T/P | E49: 2 | F49: 4 | G49: 152 | H49: 126.6666667 | I49: Mecânica | J49: Laboratório existente
B50: Gestão e empreendedorismo | C50: GEP | D50: T | E50: 1 | F50: 2 | G50: 76 | H50: 63.33333333 | I50: Gestão | J50: Sala de aula
B51: Processos de soldagem | C51: SOL | D51: T/P | E51: 2 | F51: 2 | G51: 76 | H51: 63.33333333 | I51: Mecânica | J51: Laboratório existente
A52: 3º Ano | B52: Língua Portuguesa e Literatura | C52: LPL | D52: T | E52: 1 | F52: 4 | G52: 152 | H52: 126.6666667 | I52: Português | J52: Sala de aula
B53: Artes | C53: ART | D53: T/P | E53: 1 | F53: 2 | G53: 76 | H53: 63.33333333 | I53: Artes | J53: Sala de aula
B54: Corpo e Arte | C54: CPA | D54: T/P | E54: 1 | F54: 2 | G54: 76 | H54: 63.33333333 | I54: Educação física | J54: Ginásio
B55: Educação Física e Esportes | C55: EFE | D55: T/P | E55: 1 | F55: 0 | G55: 0 | H55: 0 | I55: Educação física | J55: Ginásio
B56: Inglês | C56: ING | D56: T/P | E56: 1 | F56: 2 | G56: 76 | H56: 63.33333333 | I56: Inglês | J56: Sala de aula
B57: Matemática A | C57: MAA | D57: T | E57: 1 | F57: 2 | G57: 76 | H57: 63.33333333 | I57: Matemática | J57: Sala de aula
B58: Matemática B | C58: MAB | D58: T | E58: 1 | F58: 2 | G58: 76 | H58: 63.33333333 | I58: Matemática | J58: Sala de aula
B59: Métodos científicos | C59: MTC | D59: T | E59: 1 | F59: 0 | G59: 0 | H59: 0 | I59: Química | J59: Sala de aula
B60: Biologia e Programa da Saúde | C60: BIO | D60: T | E60: 1 | F60: 2 | G60: 76 | H60: 63.33333333 | I60: Biologia | J60: Sala de aula
B61: Física | C61: FIS | D61: T | E61: 1 | F61: 2 | G61: 76 | H61: 63.33333333 | I61: Física | J61: Sala de aula
B62: Química | C62: QUI | D62: T | E62: 1 | F62: 2 | G62: 76 | H62: 63.33333333 | I62: Química | J62: Sala de aula
B63: História | C63: HIS | D63: T | E63: 1 | F63: 2 | G63: 76 | H63: 63.33333333 | I63: História | J63: Sala de aula
B64: Geografia | C64: GEO | D64: T | E64: 1 | F64: 0 | G64: 0 | H64: 0 | I64: Geografia | J64: Sala de aula
B65: Filosofia | C65: FIL | D65: T | E65: 1 | F65: 2 | G65: 76 | H65: 63.33333333 | I65: Filosofia | J65: Sala de aula
B66: Sociologia | C66: SOC | D66: T | E66: 1 | F66: 2 | G66: 76 | H66: 63.33333333 | I66: Sociologia | J66: Sala de aula
B67: Inglês para fins específicos | C67: IFE | D67: T | E67: 1 | F67: 2 | G67: 76 | H67: 63.33333333 | I67: Inglês | J67: Sala de aula
B68: Estudos sobre o Trabalho | C68: EST | D68: T | E68: 1 | F68: 0 | G68: 0 | H68: 0 | I68: História | J68: Sala de aula
B69: Tópicos em Matemática e Ciências da Natureza Aplicados à Mecânica | C69: TMC | D69: T | E69: 1 | F69: 0 | G69: 0 | H69: 0 | I69: Mecânica | J69: Sala de aula
B70: Educação física, saúde e segurança do trabalhador | C70: EFT | D70: T | E70: 1 | F70: 0 | G70: 0 | H70: 0 | I70: Educação física | J70: Sala de aula
B71: CNC e CAM | C71: CNC | D71: T/P | E71: 2 | F71: 2 | G71: 76 | H71: 63.33333333 | I71: Mecânica | J71: Sala de aula
B72: Automação e Robótica | C72: ERA | D72: T/P | E72: 2 | F72: 2 | G72: 76 | H72: 63.33333333 | I72: Mecânica | J72: Laboratório de informática
B73: Manutenção Mecânica e Máquinas Térmicas | C73: MMT | D73: T | E73: 1 | F73: 2 | G73: 76 | H73: 63.33333333 | I73: Mecânica | J73: Sala de aula
B74: Resistência dos Materiais, Elementos de Máquinas e CAE | C74: REM | D74: T | E74: 1 | F74: 2 | G74: 76 | H74: 63.33333333 | I74: Mecânica | J74: Sala de aula
B75: Projeto Integrador | C75: PJI | D75: T/P | E75: 2 | F75: 2 | G75: 76 | H75: 63.33333333 | I75: Mecânica | J75: Laboratório de informática
A76: LIBRAS (optativo) | C76: LIB | D76: T | E76: 1 | F76: 2 | G76: 76 | H76: 63.33333333 | I76: LIBRAS | J76: Sala de aula
A77: Inglês (optativo) | C77: INP | D77: T | E77: 1 | F77: 2 | G77: 76 | H77: 63.33333333
A78: Espanhol (optativo) | C78: ESP | D78: T | E78: 1 | F78: 2 | G78: 76 | H78: 63.33333333 | I78: Espanhol | J78: Sala de aula
A79: Total acumulado de aulas | F79: =SUM(F5:F75)*F2 -> 4180 | G79: =SUM(G5:G78) -> 4408
A80: Total acumulado de horas | F80: =(F79*$C$85)/60 -> 3483.333333 | G80: - | H80: =SUM(F80+#REF!+#REF!) -> #REF!
A81: Carga Horária Total Mínima Obrigatória (Sem estágio) | H81: =H80 -> #REF!
A82: Estágio Supervisionado (optativo) | H82: 150
A83: Pesquisa e extensão | H83: 80
A84: Carga Horária Total Máxima: | H84: =ROUNDDOWN(SUM(H81:H83,H76:H78),0) -> #REF!
A85: Observações: As aulas serão de: | C85: 50 | D85: minutos.
F86: =SUMPRODUCT(H5:H75,E5:E75)/F80 -> 1.2
F90: =3200*1.075 -> 3440

Sheet EJAFICELETRO
A1: INSTITUTO FEDERAL DE EDUCAÇÃO, CIÊNCIA E TECNOLOGIA DE SÃO PAULO (Criação Lei nº 11.892, de 29/12/2006) | G1: =CONCAT("Carga horária mínima do curso: ",TEXT(H21,"0,0")," h") -> #N/A
A2: Campus Hortolândia
A3: Estrutura Curricular de Engenharia em
A4: Controle e Automação
A5: Base legal: Lei 9.394/96 e Resolução CNE nº 11/2002
G6: Início do curso:
A7: Resolução de autorização do curso no IFSP: | G7: 1 sem / 2020
B8: Componente Curricular | C8: Código | D8: Teoria/ Prática | E8: Nº Prof. | F8: aulas/sem | G8: Total aulas | H8: Total horas | I8: Área atribuída | J8: Ambiente de ensino
A9: 1º Semestre | B9: Fundamentos de Eletricidade e Segurança do Trabalho | C9: FDES1 | D9: T/P | E9: 1 | F9: 3 | G9: =$E$23*F9 -> 57 | H9: =ROUND(G9*$C$23/60,1) -> 47.5 | I9: Automação | J9: Laboratório existente
A11: 2 | B11: Equipamentos e medidas elétricas | C11: EQUS2 | D11: P | E11: 1 | F11: 3 | G11: =$E$23*F11 -> 57 | H11: =ROUND(G11*$C$23/60,1) -> 47.5 | I11: Automação | J11: Laboratório existente
A13: 3 | B13: Instalações elétricas 1 | C13: INSTS3 | D13: P | E13: 1 | F13: 3 | G13: =$E$23*F13 -> 57 | H13: =ROUND(G13*$C$23/60,1) -> 47.5 | I13: Automação | J13: Laboratório existente
A15: 4 | B15: Instalações elétricas 2 | C15: INSTS4 | D15: P | E15: 1 | F15: 3 | G15: =$E$23*F15 -> 57 | H15: =ROUND(G15*$C$23/60,1) -> 47.5 | I15: Automação | J15: Laboratório existente
A17: TOTAL ACUMULADO DE AULAS | G17: =SUM(G9:G16) -> 228
A18: TOTAL ACUMULADO DE HORAS | H18: =SUM(H9:H16) -> 190
A19: Trabalho de Conclusão de Curso (obrigatório) | H19: 0
A20: Estágio Supervisionado (obrigatório) | H20: 0
A21: CARGA HORÁRIA TOTAL MÍNIMA | H21: =SUM(H18:H20) -> 190
A22: CARGA HORÁRIA TOTAL MÁXIMA | H22: =SUM(H21) -> 190
B23: Obs.: Aulas com duração de | C23: 50 | D23: minutos - | E23: 19 | F23: semanas por semestre

Sheet IntMec 2022
A2: Técnico Integrado em Mecânica (2022) | D2: Núm. de semanas: | F2: 36
B3: Componente Curricular | C3: Códigos | D3: Teoria/ | E3: Nº | F3: Aulas/semana | G3: Total | H3: Total | I3: Área (docente) | J3: Ambiente
D4: Prática | E4: Prof. | F4: 1º | G4: Aulas | H4: Horas
A5: 1º Ano | B5: Língua Portuguesa e literatura | C5: HTOMLP1 | D5: T | E5: 1 | F5: 4 | G5: =F5*$F$2 -> 144 | H5: =(G5)*$C$66/60 -> 120 | I5: Português | J5: Sala de aula
B6: Corpo e Arte | C6: HTOMCA1 | D6: T/P | E6: 1 | F6: 2 | G6: 72 | H6: 60 | I6: Educação física | J6: Sala de aula
B7: Educação Física e esporte | C7: HTOMEE1 | D7: T/P | E7: 1 | F7: 2 | G7: 72 | H7: 60 | I7: Educação física | J7: Ginásio
B8: Língua Inglesa | C8: HTOMIN1 | D8: T/P | E8: 1 | F8: 2 | G8: 72 | H8: 60 | I8: Inglês | J8: Ginásio
B9: Matemática 1 | C9: HTOMMA1 | D9: T/P | E9: 1 | F9: 2 | G9: 72 | H9: 60 | I9: Matemática | J9: Sala de aula
B10: Matemática, Metrologia e Lógica de Programação | C10: HTOMMB3 | D10: T | E10: 1 | F10: 2 | G10: 72 | H10: 60 | I10: Matemática | J10: Sala de aula
B11: Biologia 1 | C11: HTOMBI1 | D11: T | E11: 1 | F11: 2 | G11: 72 | H11: 60 | I11: Biologia | J11: Sala de aula
B12: Física 1 | C12: HTOMFI1 | D12: T | E12: 1 | F12: 2 | G12: 72 | H12: 60 | I12: Física | J12: Sala de aula
B13: Estudos sobre o trabalho - seção A | C13: HTOMETA | D13: T | E13: 1 | F13: 2 | G13: 72 | H13: 60 | I13: História | J13: Sala de aula
B14: Estudos sobre o trabalho - seção B | C14: HTOMETB | D14: T | E14: 1 | F14: 2 | G14: 72 | H14: 60 | I14: História | J14: Sala de aula
B15: Química 1 | C15: HTOMTMA | D15: T | E15: 2 | F15: 2 | G15: 72 | H15: 60 | I15: Química | J15: Sala de aula
B16: Siderurgia e Fundição | C16: HTOMSIF | D16: T | E16: 1 | F16: 2 | G16: 72 | H16: 60 | I16: Mecânica | J16: Sala de aula
B17: Matemática, Metrologia e Lógica de Programação | C17: HTOMMLP | D17: T | E17: 2 | F17: 2 | G17: 72 | H17: 60 | I17: Mecânica | J17: Sala de aula
B18: Tecnologia e Ensaios dos Materiais | C18: HTOMEMS | D18: T | E18: 1 | F18: 2 | G18: 72 | H18: 60 | I18: Mecânica | J18: Sala de aula
B19: Desenho Técnico Mecânico, CAD e Prototipagem | C19: HTOMDTM | D19: T | E19: 2 | F19: 4 | G19: 144 | H19: 120 | I19: Mecânica | J19: Sala de aula
B20: Tecnologia e Ensaios dos Materiais | C20: HTOMESM | D20: T | E20: 2 | F20: 2 | G20: 72 | H20: 60 | I20: Mecânica | J20: Sala de aula
A21: 2º Ano | B21: Língua Portuguesa e literatura | C21: HTOMLP2 | D21: T | E21: 1 | F21: 4 | G21: 144 | H21: 120 | I21: Português | J21: Sala de aula
B22: Arte | C22: HTOMAR2 | D22: T/P | E22: 1 | F22: 2 | G22: 72 | H22: 60 | I22: Artes | J22: Sala de aula
B23: Educação Física e Saúde | C23: HTOMES2 | D23: T/P | E23: 1 | F23: 2 | G23: 72 | H23: 60 | I23: Educação física | J23: Ginásio
B24: Língua Inglesa | C24: HTOMIN2 | D24: T/P | E24: 1 | F24: 2 | G24: 72 | H24: 60 | I24: Inglês | J24: Ginásio
B25: Matemática - seção A | C25: HTOMMA2 | D25: T/P | E25: 1 | F25: 2 | G25: 72 | H25: 60 | I25: Matemática | J25: Sala de aula
B26: Matemática - seção B | C26: HTOMMB2 | D26: T | E26: 1 | F26: 2 | G26: 72 | H26: 60 | I26: Matemática | J26: Sala de aula
B27: Biologia | C27: HTOMBI2 | D27: T | E27: 1 | F27: 2 | G27: 72 | H27: 60 | I27: Biologia | J27: Sala de aula
B28: Química | C28: HTOMQU2 | D28: T | E28: 1 | F28: 2 | G28: 72 | H28: 60 | I28: Química | J28: Sala de aula
B29: História | C29: HTOMHI2 | D29: T | E29: 1 | F29: 2 | G29: 72 | H29: 60 | I29: História | J29: Sala de aula
B30: Geografia | C30: HTOMGE2 | D30: T | E30: 1 | F30: 2 | G30: 72 | H30: 60 | I30: Geografia | J30: Sala de aula
B31: Sociologia | C31: HTOMSC2 | D31: T | E31: 1 | F31: 2 | G31: 72 | H31: 60 | I31: Sociologia | J31: Sala de aula
B32: Filosofia | C32: HTOMFL2 | D32: T | E32: 1 | F32: 2 | G32: 72 | H32: 60 | I32: Filosofia | J32: Sala de aula
B33: Física e Máquinas Térmicas | C33: HTOMFMA | D33: T | E33: 1 | F33: 2 | G33: 72 | H33: 60 | I33: Física | J33: Sala de aula
B34: Física e Máquinas Térmicas | C34: HTOMFMA | D34: T | E34: 2 | F34: 2 | G34: 72 | H34: 60 | I34: Mecânica | J34: Sala de aula
B35: Processos de Usinagem | C35: HTOMUSI | D35: T | E35: 2 | F35: 3 | G35: 108 | H35: 90 | I35: Mecânica | J35: Sala de aula
B36: Conformação Mecânica e Tratamentos Térmicos | C36: HTOMCMT | D36: T | E36: 1 | F36: 2 | G36: 72 | H36: 60 | I36: Mecânica | J36: Sala de aula
B37: Hidráulica e Pneumática | C37: HTOMHEP | D37: T | E37: 2 | F37: 3 | G37: 108 | H37: 90 | I37: Mecânica | J37: Sala de aula
B38: Processos de Soldagem | C38: HTOMSOL | D38: T | E38: 2 | F38: 2 | G38: 72 | H38: 60 | I38: Mecânica | J38: Sala de aula
A39: 3º Ano | B39: Língua Portuguesa e literatura | C39: HTOMLP3 | D39: T | E39: 1 | F39: 4 | G39: 144 | H39: 120 | I39: Português | J39: Sala de aula
B40: Arte | C40: HTOMAR3 | D40: T/P | E40: 1 | F40: 2 | G40: 72 | H40: 60 | I40: Artes | J40: Sala de aula
B41: Corpo e Arte | C41: HTOMCA3 | D41: T/P | E41: 1 | F41: 2 | G41: 72 | H41: 60 | I41: Educação física | J41: Ginásio
B42: Língua Inglesa | C42: HTOMIN3 | D42: T/P | E42: 1 | F42: 2 | G42: 72 | H42: 60 | I42: Inglês | J42: Ginásio
B43: Matemática - seção A | C43: HTOMMA3 | D43: T/P | E43: 1 | F43: 2 | G43: 72 | H43: 60 | I43: Matemática | J43: Sala de aula
B44: Matemática - seção B | C44: HTOMMB3 | D44: T | E44: 1 | F44: 2 | G44: 72 | H44: 60 | I44: Matemática | J44: Sala de aula
B45: Biologia | C45: HTOMBI3 | D45: T | E45: 1 | F45: 2 | G45: 72 | H45: 60 | I45: Biologia | J45: Sala de aula
B46: Física | C46: HTOMFI3 | D46: T | E46: 1 | F46: 2 | G46: 72 | H46: 60 | I46: Física | J46: Sala de aula
B47: Química | C47: HTOMQU3 | D47: T | E47: 1 | F47: 2 | G47: 72 | H47: 60 | I47: Química | J47: Sala de aula
B48: História | C48: HTOMHI3 | D48: T | E48: 1 | F48: 2 | G48: 72 | H48: 60 | I48: História | J48: Sala de aula
B49: Geografia | C49: HTOMGE3 | D49: T | E49: 1 | F49: 2 | G49: 72 | H49: 60 | I49: Geografia | J49: Sala de aula
B50: Sociologia | C50: HTOMSC3 | D50: T | E50: 1 | F50: 2 | G50: 72 | H50: 60 | I50: Sociologia | J50: Sala de aula
B51: Filosofia | C51: HTOMFL3 | D51: T | E51: 1 | F51: 2 | G51: 72 | H51: 60 | I51: Filosofia | J51: Sala de aula
B52: Administração e empreendedorismo | C52: HTOMAEM | D52: T | E52: 1 | F52: 2 | G52: 72 | H52: 60 | I52: Gestão | J52: Sala de aula
B53: CNC e CAM | C53: HTOMCNC | D53: T | E53: 2 | F53: 3 | G53: 108 | H53: 90 | I53: Mecânica | J53: Sala de aula
B54: Automação e robótica | C54: HTOMAUT | D54: T | E54: 2 | F54: 2 | G54: 72 | H54: 60 | I54: Mecânica | J54: Sala de aula
B55: Resistência dos Materiais, Elementos de Máquinas e CAE | C55: HTOMRES | D55: T | E55: 1 | F55: 3 | G55: 108 | H55: 90 | I55: Mecânica | J55: Sala de aula
B56: Projeto Integrador | C56: HTOMPJI | D56: T | E56: 2 | F56: 2 | G56: 72 | H56: 60 | I56: Mecânica | J56: Sala de aula
A57: LIBRAS (optativo) | C57: LIB | D57: T | E57: 1 | F57: 2 | G57: 72 | H57: 60 | I57: LIBRAS | J57: Sala de aula
A59: Espanhol (optativo) | C59: ESP | D59: T | E59: 1 | F59: 2 | G59: =F59*$F$2 -> 72 | H59: =(G59)*$C$66/60 -> 60 | I59: Espanhol | J59: Sala de aula
A60: Total acumulado de aulas | F60: =SUM(F5:F56)*F2 -> 4176 | G60: =SUM(G5:G59) -> 4320
A61: Total acumulado de horas | F61: =(F60*$C$66)/60 -> 3480 | G61: - | H61: =SUM(F61+#REF!+#REF!) -> #REF!
A62: Carga Horária Total Mínima Obrigatória (Sem estágio) | H62: =H61 -> #REF!
A63: Estágio Supervisionado (optativo) | H63: 150
A64: Pesquisa e extensão | H64: 80
A65: Carga Horária Total Máxima: | H65: =ROUNDDOWN(SUM(H62:H64,H57:H59),0) -> #REF!
A66: Observações: As aulas serão de: | C66: 50 | D66: minutos.
F67: =SUMPRODUCT(H5:H56,E5:E56)/F61 -> 1.232758621

Sheet IntAuto (mínimo) (hidden)
A2: Técnico Integrado em Automação Industrial (grade 2019+) | D2: Núm. de semanas: | F2: 38
B3: Componente Curricular | C3: Códigos | D3: Teoria/ | E3: Nº | F3: Aulas/semana | G3: Total | H3: Total | I3: Área (docente) | J3: Ambiente
D4: Prática | E4: Prof. | F4: 1º | G4: Aulas | H4: Horas
A5: 1º Ano | B5: Língua Portuguesa e Literaturas | C5: LPL | D5: T | E5: 1 | F5: 4 | G5: =F5*$F$2 -> 152 | H5: =(G5)*$C$101/60 -> 126.6666667 | I5: Português | J5: Sala de aula
B6: Língua Estrangeira Moderna - Inglês | C6: ING | D6: T/P | E6: 1 | F6: 2 | G6: 76 | H6: 63.33333333 | I6: Inglês | J6: Sala de aula
B7: Artes | C7: ART | D7: T/P | E7: 1 | F7: 0 | G7: 0 | H7: 0 | I7: Artes | J7: Ginásio
B8: Corpo e Arte | C8: CPA | D8: T/P | E8: 1 | F8: 2 | G8: 76 | H8: 63.33333333 | I8: Educação física | J8: Ginásio
B9: Educação Física e Saúde | C9: EFS | D9: T/P | E9: 1 | F9: 0 | G9: 0 | H9: 0 | I9: Educação física | J9: Ginásio
B10: Educação Física e Esportes | C10: EFE | D10: T/P | E10: 1 | F10: 2 | G10: 76 | H10: 63.33333333 | I10: Educação física | J10: Sala de aula
B11: Matemática A | C11: MAA | D11: T | E11: 1 | F11: 2 | G11: 76 | H11: 63.33333333 | I11: Matemática | J11: Sala de aula
B12: Matemática B | C12: MAB | D12: T | E12: 1 | F12: 2 | G12: 76 | H12: 63.33333333 | I12: Matemática | J12: Sala de aula
B13: Métodos Cientificos | C13: MCN | D13: T | E13: 1 | F13: 2 | G13: 76 | H13: 63.33333333 | I13: Biologia | J13: Sala de aula
B14: Biologia | C14: BIO | D14: T | E14: 1 | F14: 0 | G14: 0 | H14: 0 | I14: Biologia | J14: Sala de aula
B15: Física | C15: FIS | D15: T | E15: 1 | F15: 2 | G15: 76 | H15: 63.33333333 | I15: Física | J15: Sala de aula | O15: Língua Portuguesa e Literaturas | P15: LPL | Q15: T | R15: 1 | S15: 4
B16: Química | C16: QUI | D16: T | E16: 1 | F16: 2 | G16: 76 | H16: 63.33333333 | I16: Química | J16: Sala de aula | O16: Língua Estrangeira Moderna - Inglês | P16: ING | Q16: T/P | R16: 1 | S16: 2
B17: História | C17: HIS | D17: T | E17: 1 | F17: 0 | G17: 0 | H17: 0 | I17: História | J17: Sala de aula | O17: Artes | P17: ART | Q17: T/P | R17: 1 | S17: 0
B18: Geografia | C18: GEO | D18: T | E18: 1 | F18: 0 | G18: 0 | H18: 0 | I18: Geografia | J18: Sala de aula | O18: Corpo e Arte | P18: CPA | Q18: T/P | R18: 1 | S18: 2
B19: Filosofia | C19: FIL | D19: T | E19: 1 | F19: 0 | G19: 0 | H19: 0 | I19: Filosofia | J19: Sala de aula | O19: Educação Física e Saúde | P19: EFS | Q19: T/P | R19: 1 | S19: 0
B20: Sociologia | C20: SOC | D20: T | E20: 1 | F20: 2 | G20: 76 | H20: 63.33333333 | I20: Sociologia | J20: Sala de aula | O20: Educação Física e Esportes | P20: EFE | Q20: T/P | R20: 1 | S20: 2
B21: Estudos sobre o trabalho A | C21: ETA | D21: T | E21: 1 | F21: 0 | G21: 0 | H21: 0 | I21: História | J21: Sala de aula | O21: Matemática A | P21: MAA | Q21: T | R21: 1 | S21: 2
B22: Inglês para fins específicos | C22: IFE | D22: T | E22: 1 | F22: 0 | G22: 0 | H22: 0 | I22: Inglês | J22: Sala de aula | O22: Matemática B | P22: MAB | Q22: T | R22: 1 | S22: 2
B23: Gestão e empreendedorismo | C23: GEM | D23: T | E23: 1 | F23: 0 | G23: 0 | H23: 0 | I23: Gestão | J23: Sala de aula | O23: Métodos Cientificos | P23: MCN | Q23: T | R23: 1 | S23: 2
B24: Eletricidade teórica | C24: ELT | D24: T | E24: 1 | F24: 2 | G24: 76 | H24: 63.33333333 | I24: Automação | J24: Sala de aula
B25: Eletricidade prática | C25: ELP | D25: P | E25: 2 | F25: 2 | G25: 76 | H25: 63.33333333 | I25: Automação | J25: Laboratório existente
B26: Física | C26: FIS | D26: T | E26: 1 | F26: 0 | G26: 0 | H26: 0 | I26: Automação | J26: Sala de aula
B27: Metrologia e processos industriais | C27: MPI | D27: T | E27: 1 | F27: 2 | G27: 76 | H27: 63.33333333 | I27: Automação | J27: Sala de aula
B28: Projeto integrador | C28: PJI | D28: P | E28: 2 | F28: 0 | G28: 0 | H28: 0 | I28: Automação | J28: Sala de aula
B29: Estudos sobre o trabalho B | C29: ETB | D29: T | E29: 1 | F29: 2 | G29: 76 | H29: 63.33333333 | I29: História | J29: Sala de aula | O29: Biologia | P29: BIO | Q29: T | R29: 1 | S29: 0
B30: Sistemas digitais | C30: ELD | D30: T/P | E30: 2 | F30: 2 | G30: 76 | H30: 63.33333333 | I30: Automação | J30: Laboratório existente | O30: Física | P30: FIS | Q30: T | R30: 1 | S30: 2
B31: Algoritmos e programação | C31: AFP | D31: T/P | E31: 2 | F31: 2 | G31: 76 | H31: 63.33333333 | I31: Automação | J31: Laboratório de informática | O31: Química | P31: QUI | Q31: T | R31: 1 | S31: 2
B32: Comandos hidráulico, elétrico e pneumático | C32: CHP | D32: T/P | E32: 2 | F32: 2 | G32: 76 | H32: 63.33333333 | I32: Automação | J32: Laboratório de informática | O32: História | P32: HIS | Q32: T | R32: 1 | S32: 0
A33: 2º Ano | B33: Língua Portuguesa e Literaturas | C33: LPL | D33: T | E33: 1 | F33: 4 | G33: 152 | H33: 126.6666667 | I33: Português | J33: Sala de aula | O33: Filosofia | P33: FIL | Q33: T | R33: 1 | S33: 0
B34: Língua Estrangeira Moderna - Inglês | C34: ING | D34: T/P | E34: 1 | F34: 0 | G34: 0 | H34: 0 | I34: Inglês | J34: Sala de aula | O34: Sociologia | P34: SOC | Q34: T | R34: 1 | S34: 0
B35: Artes | C35: ART | D35: T/P | E35: 1 | F35: 2 | G35: 76 | H35: 63.33333333 | I35: Artes | J35: Sala de aula | O35: Estudos sobre o trabalho A | P35: ETA | Q35: T | R35: 1 | S35: 2
B36: Corpo e Arte | C36: CPA | D36: T/P | E36: 1 | F36: 0 | G36: 0 | H36: 0 | I36: Educação física | J36: Ginásio
B37: Educação Física e Saúde | C37: EFS | D37: T/P | E37: 1 | F37: 0 | G37: 0 | H37: 0 | I37: Educação física | J37: Ginásio
B38: Educação Física e Esportes | C38: EFE | D38: T/P | E38: 1 | F38: 0 | G38: 0 | H38: 0 | I38: Educação física | J38: Sala de aula
B39: Matemática A | C39: MAA | D39: T | E39: 1 | F39: 2 | G39: 76 | H39: 63.33333333 | I39: Matemática | J39: Sala de aula
B40: Matemática B | C40: MAB | D40: T | E40: 1 | F40: 2 | G40: 76 | H40: 63.33333333 | I40: Matemática | J40: Sala de aula
B41: Métodos Cientificos | C41: MCN | D41: T | E41: 1 | F41: 0 | G41: 0 | H41: 0 | I41: Biologia | J41: Sala de aula
B42: Biologia | C42: BIO | D42: T | E42: 1 | F42: 2 | G42: 76 | H42: 63.33333333 | I42: Biologia | J42: Sala de aula
B43: Física | C43: FIS | D43: T | E43: 1 | F43: 2 | G43: 76 | H43: 63.33333333 | I43: Física | J43: Sala de aula
B44: Química | C44: QUI | D44: T | E44: 1 | F44: 2 | G44: 76 | H44: 63.33333333 | I44: Química | J44: Sala de aula
B45: História | C45: HIS | D45: T | E45: 1 | F45: 2 | G45: 76 | H45: 63.33333333 | I45: História | J45: Sala de aula
B46: Geografia | C46: GEO | D46: T | E46: 1 | F46: 0 | G46: 0 | H46: 0 | I46: Geografia | J46: Sala de aula
B47: Filosofia | C47: FIL | D47: T | E47: 1 | F47: 2 | G47: 76 | H47: 63.33333333 | I47: Filosofia | J47: Sala de aula
B48: Sociologia | C48: SOC | D48: T | E48: 1 | F48: 2 | G48: 76 | H48: 63.33333333 | I48: Sociologia | J48: Sala de aula
B49: Estudos sobre o trabalho A | C49: ETA | D49: T | E49: 1 | F49: 0 | G49: 0 | H49: 0 | I49: História | J49: Sala de aula
B50: Inglês para fins específicos | C50: IFE | D50: T | E50: 1 | F50: 0 | G50: 0 | H50: 0 | I50: Inglês | J50: Sala de aula
B51: Gestão e empreendedorismo | C51: GEM | D51: T | E51: 1 | F51: 0 | G51: 0 | H51: 0 | I51: Gestão | J51: Sala de aula
B52: Eletricidade teórica | C52: ELT | D52: T | E52: 1 | F52: 0 | G52: 0 | H52: 0 | I52: Automação | J52: Sala de aula
B53: Eletricidade prática | C53: ELP | D53: P | E53: 2 | F53: 0 | G53: 0 | H53: 0 | I53: Automação | J53: Laboratório existente
B54: Física | C54: FIS | D54: T | E54: 1 | F54: 0 | G54: 0 | H54: 0 | I54: Automação | J54: Sala de aula
B55: Metrologia e processos industriais | C55: MPI | D55: T | E55: 1 | F55: 0 | G55: 0 | H55: 0 | I55: Automação | J55: Sala de aula
B56: Projeto integrador | C56: PJI | D56: P | E56: 2 | F56: 0 | G56: 0 | H56: 0 | I56: Automação | J56: Sala de aula
B57: Estudos sobre o trabalho B | C57: ETB | D57: T | E57: 1 | F57: 0 | G57: 0 | H57: 0 | I57: História | J57: Sala de aula
B58: Instalações industriais teórica | C58: IET | D58: T | E58: 1 | F58: 2 | G58: 76 | H58: 63.33333333 | I58: Automação | J58: Sala de aula
B59: Instalações industriais prática | C59: IEP | D59: P | E59: 2 | F59: 2 | G59: 76 | H59: 63.33333333 | I59: Automação | J59: Laboratório existente
B60: Eletrônica analógica | C60: EAT | D60: T | E60: 1 | F60: 2 | G60: 76 | H60: 63.33333333 | I60: AUtomação | J60: Sala de aula
B61: Eletrônica analógica prática | C61: EAP | D61: P | E61: 2 | F61: 2 | G61: 76 | H61: 63.33333333 | I61: Automação | J61: Laboratório existente
B62: Instrumentação | C62: INS | D62: T/P | E62: 2 | F62: 2 | G62: 76 | H62: 63.33333333 | I62: Automação | J62: Laboratório inexistente
B63: Microcontroladores | C63: MIC | D63: T/P | E63: 2 | F63: 2 | G63: 76 | H63: 63.33333333 | I63: Automação | J63: Laboratório de informática
A64: 3º Ano | B64: Língua Portuguesa e Literaturas | C64: LPL | D64: T | E64: 1 | F64: 4 | G64: 152 | H64: 126.6666667 | I64: Português | J64: Sala de aula
B65: Língua Estrangeira Moderna - Inglês | C65: ING | D65: T/P | E65: 1 | F65: 0 | G65: 0 | H65: 0 | I65: Inglês | J65: Sala de aula
B66: Artes | C66: ART | D66: T/P | E66: 1 | F66: 2 | G66: 76 | H66: 63.33333333 | I66: Artes | J66: Sala de aula
B67: Corpo e Arte | C67: CPA | D67: T/P | E67: 1 | F67: 2 | G67: 76 | H67: 63.33333333 | I67: Educação física | J67: Ginásio
B68: Educação Física e Saúde | C68: EFS | D68: T/P | E68: 1 | F68: 0 | G68: 0 | H68: 0 | I68: Educação física | J68: Ginásio
B69: Educação Física e Esportes | C69: EFE | D69: T/P | E69: 1 | F69: 2 | G69: 76 | H69: 63.33333333 | I69: Educação física | J69: Sala de aula
B70: Matemática A | C70: MAA | D70: T | E70: 1 | F70: 2 | G70: 76 | H70: 63.33333333 | I70: Matemática | J70: Sala de aula
B71: Matemática B | C71: MAB | D71: T | E71: 1 | F71: 2 | G71: 76 | H71: 63.33333333 | I71: Matemática | J71: Sala de aula
B72: Métodos Cientificos | C72: MCN | D72: T | E72: 1 | F72: 0 | G72: 0 | H72: 0 | I72: Biologia | J72: Sala de aula
B73: Biologia | C73: BIO | D73: T | E73: 1 | F73: 2 | G73: 76 | H73: 63.33333333 | I73: Biologia | J73: Sala de aula
B74: Física | C74: FIS | D74: T | E74: 1 | F74: 0 | G74: 0 | H74: 0 | I74: Física | J74: Sala de aula
B75: Química | C75: QUI | D75: T | E75: 1 | F75: 2 | G75: 76 | H75: 63.33333333 | I75: Química | J75: Sala de aula
B76: História | C76: HIS | D76: T | E76: 1 | F76: 2 | G76: 76 | H76: 63.33333333 | I76: História | J76: Sala de aula
B77: Geografia | C77: GEO | D77: T | E77: 1 | F77: 2 | G77: 76 | H77: 63.33333333 | I77: Geografia | J77: Sala de aula
B78: Filosofia | C78: FIL | D78: T | E78: 1 | F78: 0 | G78: 0 | H78: 0 | I78: Filosofia | J78: Sala de aula
B79: Sociologia | C79: SOC | D79: T | E79: 1 | F79: 2 | G79: 76 | H79: 63.33333333 | I79: Sociologia | J79: Sala de aula
B80: Estudos sobre o trabalho A | C80: ETA | D80: T | E80: 1 | F80: 0 | G80: 0 | H80: 0 | I80: História | J80: Sala de aula
B81: Inglês para fins específicos | C81: IFE | D81: T | E81: 1 | F81: 2 | G81: 76 | H81: 63.33333333 | I81: Inglês | J81: Sala de aula
B82: Gestão e empreendedorismo | C82: GEM | D82: T | E82: 1 | F82: 2 | G82: 76 | H82: 63.33333333 | I82: Gestão | J82: Sala de aula
B83: Eletricidade teórica | C83: ELT | D83: T | E83: 1 | F83: 0 | G83: 0 | H83: 0 | I83: Automação | J83: Sala de aula
B84: Eletricidade prática | C84: ELP | D84: P | E84: 2 | F84: 0 | G84: 0 | H84: 0 | I84: Automação | J84: Laboratório existente
B85: Física | C85: FIS | D85: T | E85: 1 | F85: 2 | G85: 76 | H85: 63.33333333 | I85: Física | J85: Sala de aula
B86: Metrologia e processos industriais | C86: MPI | D86: T | E86: 1 | F86: 0 | G86: 0 | H86: 0 | I86: Automação | J86: Sala de aula
B87: Projeto integrador | C87: PJI | D87: P | E87: 2 | F87: 2 | G87: 76 | H87: 63.33333333 | I87: Automação | J87: Sala de aula
B88: Estudos sobre o trabalho B | C88: ETB | D88: T | E88: 1 | F88: 0 | G88: 0 | H88: 0 | I88: História | J88: Sala de aula
B89: Controle de processos | C89: COP | D89: T/P | E89: 2 | F89: 2 | G89: 76 | H89: 63.33333333 | I89: Automação | J89: Laboratório de informática
B90: Redes s sistemas supervisórios | C90: RPI | D90: T/P | E90: 2 | F90: 2 | G90: 76 | H90: 63.33333333 | I90: Automação | J90: Laboratório de informática
B91: Sistemas programáveis de controle | C91: SPC | D91: T/P | E91: 2 | F91: 2 | G91: 76 | H91: 63.33333333 | I91: Automação | J91: Laboratório de informática
A92: LIBRAS (optativo) | C92: LIB | D92: T | E92: 1 | F92: 2 | G92: 76 | H92: 63.33333333 | I92: LIBRAS | J92: Sala de aula
A93: Inglês (optativo) | C93: INP | D93: T | E93: 1 | F93: 2 | G93: 76 | H93: 63.33333333 | I93: Inglês | J93: Sala de aula
A94: Espanhol (optativo) | C94: ESP | D94: T | E94: 1 | F94: 2 | G94: 76 | H94: 63.33333333 | I94: Espanhol | J94: Sala de aula
A95: Total acumulado de aulas | F95: =SUM(F5:F91)*F2 -> 4104 | G95: =SUM(G5:G94) -> 4332
A96: Total acumulado de horas | F96: =(F95*$C$101)/60 -> 3420 | G96: - | H96: =SUM(F96+#REF!+#REF!) -> #REF!
A97: Carga Horária Total Mínima Obrigatória (Sem estágio) | H97: =H96 -> #REF!
A98: Estágio Supervisionado (optativo) | H98: 150
A99: Pesquisa e extensão | H99: 80
A100: Carga Horária Total Máxima: | H100: =ROUNDDOWN(SUM(H97:H99,H92:H94),0) -> #REF!
A101: Observações: As aulas serão de: | C101: 50 | D101: minutos.
F103: =SUMPRODUCT(H5:H91,E5:E91)/F96 -> 1.222222222
F105: =3200*1.075 -> 3440

Sheet IntAuto 2022
A2: Técnico Integrado em Automação Industrial (2022) | D2: Núm. de semanas: | F2: 36
B3: Componente Curricular | C3: Códigos | D3: Teoria/ | E3: Nº | F3: Aulas/semana | G3: Total | H3: Total | I3: Área (docente) | J3: Ambiente
D4: Prática | E4: Prof. | F4: 1º | G4: Aulas | H4: Horas
A5: 1º Ano | B5: Língua Portuguesa e Literatura | C5: HTOALP1 | D5: T | E5: 1 | F5: 4 | G5: =F5*$F$2 -> 144 | H5: =(G5)*$C$66/60 -> 120 | I5: Português | J5: Sala de aula
B6: Língua Inglesa | C6: HTOAIN1 | D6: T/P | E6: 1 | F6: 2 | G6: 72 | H6: 60 | I6: Inglês | J6: Sala de aula
B7: Corpo e Arte | C7: HTOACA1 | D7: T/P | E7: 1 | F7: 2 | G7: 72 | H7: 60 | I7: Educação física | J7: Ginásio
B8: Educação Física e Esporte | C8: HTOAEE1 | D8: T/P | E8: 1 | F8: 2 | G8: 72 | H8: 60 | I8: Educação física | J8: Ginásio
B9: Matemática - seção A | C9: HTOAMA1 | D9: T/P | E9: 1 | F9: 2 | G9: 72 | H9: 60 | I9: Matemática | J9: Ginásio
B10: Matemática - seção B | C10: HTOAMB1 | D10: T/P | E10: 1 | F10: 2 | G10: 72 | H10: 60 | I10: Matemática | J10: Sala de aula
B11: Biologia | C11: HTOABI1 | D11: T | E11: 1 | F11: 2 | G11: 72 | H11: 60 | I11: Biologia | J11: Sala de aula
B12: Física | C12: HTOAFI1 | D12: T | E12: 1 | F12: 2 | G12: 72 | H12: 60 | I12: Física | J12: Sala de aula
B13: Química | C13: HTOAQU1 | D13: T | E13: 1 | F13: 2 | G13: 72 | H13: 60 | I13: Química | J13: Sala de aula
B14: Estudos sobre o Trabalho - seção A | C14: HTOAETA | D14: T | E14: 1 | F14: 2 | G14: 72 | H14: 60 | I14: História | J14: Sala de aula
B15: Estudos sobre o Trabalho - seção B | C15: HTOAETB | D15: T | E15: 1 | F15: 2 | G15: 72 | H15: 60 | I15: História | J15: Sala de aula | O15: Língua Portuguesa e Literaturas | P15: LPL | Q15: T | R15: 1 | S15: 4
B16: Sistemas Digitais | C16: HTOASDI | D16: T | E16: 1 | F16: 2 | G16: 72 | H16: 60 | I16: Automação | J16: Sala de aula | O16: Língua Estrangeira Moderna - Inglês | P16: ING | Q16: T/P | R16: 1 | S16: 2
B17: Práticas em Sistemas Digitais | C17: HTOAPSD | D17: T | E17: 2 | F17: 2 | G17: 72 | H17: 60 | I17: Automação | J17: Sala de aula | O17: Artes | P17: ART | Q17: T/P | R17: 1 | S17: 0
B18: Fundamentos da Eletricidade | C18: HTOAFEL | D18: T | E18: 1 | F18: 2 | G18: 72 | H18: 60 | I18: Automação | J18: Sala de aula | O18: Corpo e Arte | P18: CPA | Q18: T/P | R18: 1 | S18: 2
B19: Práticas em Eletricidade | C19: HTOAPEL | D19: T | E19: 2 | F19: 2 | G19: 72 | H19: 60 | I19: Automação | J19: Sala de aula | O19: Educação Física e Saúde | P19: EFS | Q19: T/P | R19: 1 | S19: 0
B20: Desenho Auxiliado por Computador | C20: HTOADAC | D20: T/P | E20: 2 | F20: 2 | G20: 72 | H20: 60 | I20: Mecânica | J20: Sala de aula | O20: Educação Física e Esportes | P20: EFE | Q20: T/P | R20: 1 | S20: 2
A21: 2º Ano | B21: Língua Portuguesa e Literatura 2 | C21: HTOALP2 | D21: T | E21: 1 | F21: 4 | G21: 144 | H21: 120 | I21: Português | J21: Sala de aula | O21: Filosofia | P21: FIL | Q21: T | R21: 1 | S21: 0
B22: Língua Inglesa 2 | C22: HTOAIN2 | D22: T/P | E22: 1 | F22: 2 | G22: 72 | H22: 60 | I22: Inglês | J22: Sala de aula | O22: Sociologia | P22: SOC | Q22: T | R22: 1 | S22: 0
B23: Arte 1 | C23: HTOAAR2 | D23: T/P | E23: 1 | F23: 2 | G23: 72 | H23: 60 | I23: Artes | J23: Sala de aula | O23: Estudos sobre o trabalho A | P23: ETA | Q23: T | R23: 1 | S23: 2
B24: Educação Física e Saúde | C24: HTOAES2 | D24: T/P | E24: 1 | F24: 2 | G24: 72 | H24: 60 | I24: Educação física | J24: Ginásio
B25: Matemática 2 | C25: HTOAMA2 | D25: T/P | E25: 1 | F25: 2 | G25: 72 | H25: 60 | I25: Matemática | J25: Ginásio
B26: Matemática Aplicada à Automação Industrial | C26: HTOAMAI | D26: T | E26: 1 | F26: 2 | G26: 72 | H26: 60 | I26: Matemática | J26: Sala de aula
B27: Biologia | C27: HTOABI2 | D27: T | E27: 1 | F27: 2 | G27: 72 | H27: 60 | I27: Biologia | J27: Sala de aula
B28: Física | C28: HTOAFI2 | D28: T | E28: 1 | F28: 2 | G28: 72 | H28: 60 | I28: Física | J28: Sala de aula
B29: Geografia | C29: HTOAGE2 | D29: T | E29: 1 | F29: 2 | G29: 72 | H29: 60 | I29: Geografia | J29: Sala de aula
B30: Filosofia | C30: HTOAFL2 | D30: T | E30: 1 | F30: 2 | G30: 72 | H30: 60 | I30: Filosofia | J30: Sala de aula
B31: História | C31: HTOAHI2 | D31: T | E31: 1 | F31: 2 | G31: 72 | H31: 60 | I31: História | J31: Sala de aula
B32: Sociologia | C32: HTOASC2 | D32: T | E32: 1 | F32: 2 | G32: 72 | H32: 60 | I32: Sociologia | J32: Sala de aula
B33: Química e Instrumentação aplicadas à Automação 1 | C33: HTOAQIA | D33: T | E33: 1 | F33: 2 | G33: 72 | H33: 60 | I33: Química | J33: Sala de aula
B34: Química e Instrumentação aplicadas à Automação 2 | C34: HTOAQIA | D34: T | E34: 1 | F34: 2 | G34: 72 | H34: 60 | I34: Automação | J34: Sala de aula
B35: Algoritmos e Programação | C35: HTOAAPR | D35: T | E35: 2 | F35: 2 | G35: 72 | H35: 60 | I35: Automação | J35: Sala de aula
B36: Comandos hidráulico, pneumático e | C36: HTOACHP | D36: T | E36: 2 | F36: 2 | G36: 72 | H36: 60 | I36: Automação | J36: Sala de aula
B37: Máquinas e Comandos Elétricos | C37: HTOAMCE | D37: T | E37: 2 | F37: 2 | G37: 72 | H37: 60 | I37: Automação | J37: Sala de aula
B38: Matemática Aplicada à Automação Industrial | C38: HTOAMAI | D38: T | E38: 1 | F38: 2 | G38: 72 | H38: 60 | I38: Automação | J38: Sala de aula
B39: Laboratório de Eletrônica Analógica | C39: HTOALEA | D39: T/P | E39: 2 | F39: 2 | G39: 72 | H39: 60 | I39: Automação | J39: Sala de aula
B40: Língua Portuguesa e Literatura | C40: HTOALP3 | D40: T/P | E40: 1 | F40: 4 | G40: 144 | H40: 120 | I40: Português | J40: Sala de aula | K40: 1 | L40: 4
B41: Arte | C41: HTOAAR3 | D41: T/P | E41: 1 | F41: 2 | G41: 72 | H41: 60 | I41: Artes | J41: Ginásio | K41: 1 | L41: 2
B42: Corpo e Arte | C42: HTOACA3 | D42: T/P | E42: 1 | F42: 2 | G42: 72 | H42: 60 | I42: Educação física | J42: Ginásio | K42: 1 | L42: 2
B43: Matemática - seção A | C43: HTOAMA3 | D43: T/P | E43: 1 | F43: 2 | G43: 72 | H43: 60 | I43: Matemática | J43: Sala de aula | K43: 1 | L43: 2
B44: Matemática - seção B | C44: HTOAMB3 | D44: T | E44: 1 | F44: 2 | G44: 72 | H44: 60 | I44: Matemática | J44: Sala de aula | K44: 1 | L44: 2
B45: Biologia | C45: HTOABI3 | D45: T | E45: 1 | F45: 2 | G45: 72 | H45: 60 | I45: Biologia | J45: Sala de aula | K45: 1 | L45: 2
B46: Química | C46: HTOAQU3 | D46: T | E46: 1 | F46: 2 | G46: 72 | H46: 60 | I46: Química | J46: Sala de aula | K46: 1 | L46: 2
B47: Geografia | C47: HTOAGE3 | D47: T | E47: 1 | F47: 2 | G47: 72 | H47: 60 | I47: Geografia | J47: Sala de aula | K47: 1 | L47: 2
B48: Filosofia | C48: HTOAFL3 | D48: T | E48: 1 | F48: 2 | G48: 72 | H48: 60 | I48: Filosofia | J48: Sala de aula | K48: 1 | L48: 2
B49: História | C49: HTOAHI3 | D49: T | E49: 1 | F49: 2 | G49: 72 | H49: 60 | I49: História | J49: Sala de aula | K49: 1 | L49: 2
B50: Sociologia | C50: HTOASC3 | D50: T | E50: 1 | F50: 2 | G50: 72 | H50: 60 | I50: Sociologia | J50: Sala de aula | K50: 1 | L50: 2
B51: Física e Controle Programável aplicados à Automação de Processos | C51: HTOAFCP | D51: T | E51: 1 | F51: 2 | G51: 72 | H51: 60 | I51: Física | J51: Sala de aula
B52: Física e Controle Programável aplicados à Automação de Processos | C52: HTOAFCP | D52: T | E52: 2 | F52: 4 | G52: 144 | H52: 120 | I52: Automação | J52: Sala de aula
B53: Administração e Empreendedorismo | C53: HTOAADM | D53: T | E53: 1 | F53: 2 | G53: 72 | H53: 60 | I53: Gestão | J53: Sala de aula
B54: Inglês para Fins Específicos | C54: HTOAIFE | D54: T | E54: 2 | F54: 2 | G54: 72 | H54: 60 | I54: Inglês | J54: Sala de aula
B55: Projeto Integrador | C55: HTOAPJI | D55: T | E55: 2 | F55: 4 | G55: 144 | H55: 120 | I55: Automação | J55: Sala de aula
B56: Sistemas Microcontrolados e Supervisórios | C56: HTOAMIC | D56: T | E56: 2 | F56: 2 | G56: 72 | H56: 60 | I56: Automação | J56: Sala de aula
A57: LIBRAS (optativo) | C57: LIB | D57: T | E57: 1 | F57: 2 | G57: 72 | H57: 60 | I57: LIBRAS | J57: Sala de aula
A59: Espanhol (optativo) | C59: ESP | D59: T | E59: 1 | F59: 2 | G59: =F59*$F$2 -> 72 | H59: =(G59)*$C$66/60 -> 60 | I59: Espanhol | J59: Sala de aula
A60: Total acumulado de aulas | F60: =SUM(F5:F56)*F2 -> 4104 | G60: =SUM(G5:G59) -> 4248
A61: Total acumulado de horas | F61: =(F60*$C$66)/60 -> 3420 | G61: - | H61: =SUM(F61+#REF!+#REF!) -> #REF!
A62: Carga Horária Total Mínima Obrigatória (Sem estágio) | H62: =H61 -> #REF!
A63: Estágio Supervisionado (optativo) | H63: 150
A64: Pesquisa e extensão | H64: 80
A65: Carga Horária Total Máxima: | H65: =ROUNDDOWN(SUM(H62:H64,H57:H59),0) -> #REF!
A66: Observações: As aulas serão de: | C66: 50 | D66: minutos.
F68: =SUMPRODUCT(H5:H56,E5:E56)/F61 -> 0.4385964912

Sheet IntInfo (mínimo) (hidden)
A2: Técnico Integrado em Informática (grade 2019+) | D2: Núm. de semanas: | F2: 38
B3: Componente Curricular | C3: Códigos | D3: Teoria/ | E3: Nº | F3: Aulas/semana | G3: Total | H3: Total | I3: Área (docente) | J3: Ambiente
D4: Prática | E4: Prof. | F4: 1º | G4: Aulas | H4: Horas
A5: 1º Ano | B5: Língua Portuguesa e Literatura | C5: LPL | D5: T | E5: 1 | F5: 4 | G5: =F5*$F$2 -> 152 | H5: =(G5)*$C$86/60 -> 126.6666667 | I5: Português | J5: Sala de aula
B6: Artes | C6: ART | D6: T/P | E6: 1 | F6: 0 | G6: 0 | H6: 0 | I6: Artes | J6: Sala de aula
B7: Corpo e Arte | C7: CPA | D7: T/P | E7: 1 | F7: 0 | G7: 0 | H7: 0 | I7: Educação física | J7: Ginásio
B8: Educação Física e Esportes | C8: EFE | D8: T/P | E8: 1 | F8: 2 | G8: 76 | H8: 63.33333333 | I8: Educação física | J8: Ginásio
B9: Educação física e saúde | C9: EFS | D9: T/P | E9: 1 | F9: 0 | G9: 0 | H9: 0 | I9: Educação física | J9: Ginásio
B10: Inglês | C10: ING | D10: T/P | E10: 1 | F10: 2 | G10: 76 | H10: 63.33333333 | I10: Inglês | J10: Sala de aula
B11: Matemática A | C11: MAA | D11: T | E11: 1 | F11: 2 | G11: 76 | H11: 63.33333333 | I11: Matemática | J11: Sala de aula
B12: Matemática B | C12: MAB | D12: T | E12: 1 | F12: 2 | G12: 76 | H12: 63.33333333 | I12: Matemática | J12: Sala de aula
B13: Biologia | C13: BIO | D13: T | E13: 1 | F13: 0 | G13: 0 | H13: 0 | I13: Biologia | J13: Sala de aula
B14: Física | C14: FIS | D14: T | E14: 1 | F14: 2 | G14: 76 | H14: 63.33333333 | I14: Física | J14: Sala de aula
B15: Química | C15: QUI | D15: T | E15: 1 | F15: 2 | G15: 76 | H15: 63.33333333 | I15: Química | J15: Sala de aula
B16: História | C16: HIS | D16: T | E16: 1 | F16: 0 | G16: 0 | H16: 0 | I16: História | J16: Sala de aula
B17: Geografia | C17: GEO | D17: T | E17: 1 | F17: 0 | G17: 0 | H17: 0 | I17: Geografia | J17: Sala de aula
B18: Filosofia | C18: FIL | D18: T | E18: 1 | F18: 0 | G18: 0 | H18: 0 | I18: Filosofia | J18: Sala de aula
B19: Sociologia | C19: SOC | D19: T | E19: 1 | F19: 0 | G19: 0 | H19: 0 | I19: Sociologia | J19: Sala de aula
B20: Estudos sobre o Trabalho - Frente A | C20: ETA | D20: T | E20: 1 | F20: 2 | G20: 76 | H20: 63.33333333 | I20: História | J20: Sala de aula
B21: Métodos científicos | C21: MCN | D21: T | E21: 1 | F21: 2 | G21: 76 | H21: 63.33333333 | I21: Química | J21: Sala de aula
B22: Estudos sobre o Trabalho - Frente B | C22: ETB | D22: T | E22: 1 | F22: 0 | G22: 0 | H22: 0 | I22: História | J22: Sala de aula
B23: Gestão e empreendedorismo | C23: GEM | D23: T | E23: 1 | F23: 0 | G23: 0 | H23: 0 | I23: Gestão | J23: Sala de aula
B24: Inglês para fins específicos | C24: IFE | D24: T | E24: 1 | F24: 0 | G24: 0 | H24: 0 | I24: Inglês | J24: Sala de aula
B25: Algortimos e programação | C25: ALP | D25: T/P | E25: 2 | F25: 4 | G25: 152 | H25: 126.6666667 | I25: Programação | J25: Laboratório de informática | L25: =H25*E25 -> 253.3333333
B26: Organização de computadores e sistemas operacionais | C26: OCS | D26: T/P | E26: 2 | F26: 4 | G26: 152 | H26: 126.6666667 | I26: Redes | J26: Laboratório de informática | L26: 253.3333333
B27: Programação para Web I | C27: PWA | D27: T/P | E27: 2 | F27: 2 | G27: 76 | H27: 63.33333333 | I27: Programação | J27: Laboratório de informática | L27: 126.6666667
B28: Rede de computadores | C28: RDC | D28: T/P | E28: 2 | F28: 2 | G28: 76 | H28: 63.33333333 | I28: Redes | J28: Laboratório de informática | L28: 126.6666667
A29: 2º Ano | B29: Língua Portuguesa e Literatura | C29: LPL | D29: T | E29: 1 | F29: 4 | G29: 152 | H29: 126.6666667 | I29: Português | J29: Sala de aula
B30: Artes | C30: ART | D30: T/P | E30: 1 | F30: 0 | G30: 0 | H30: 0 | I30: Artes | J30: Sala de aula
B31: Corpo e Arte | C31: CPA | D31: T/P | E31: 1 | F31: 0 | G31: 0 | H31: 0 | I31: Educação física | J31: Ginásio
B32: Educação Física e Esportes | C32: EFE | D32: T/P | E32: 1 | F32: 0 | G32: 0 | H32: 0 | I32: Educação física | J32: Ginásio
B33: Educação física e saúde | C33: EFS | D33: T/P | E33: 1 | F33: 2 | G33: 76 | H33: 63.33333333 | I33: Educação física | J33: Ginásio
B34: Inglês | C34: ING | D34: T/P | E34: 1 | F34: 0 | G34: 0 | H34: 0 | I34: Inglês | J34: Sala de aula
B35: Matemática A | C35: MAA | D35: T | E35: 1 | F35: 2 | G35: 76 | H35: 63.33333333 | I35: Matemática | J35: Sala de aula
B36: Matemática B | C36: MAB | D36: T | E36: 1 | F36: 2 | G36: 76 | H36: 63.33333333 | I36: Matemática | J36: Sala de aula
B37: Biologia e Programa da Saúde | C37: BIO | D37: T | E37: 1 | F37: 2 | G37: 76 | H37: 63.33333333 | I37: Biologia | J37: Sala de aula
B38: Física | C38: FIS | D38: T | E38: 1 | F38: 2 | G38: 76 | H38: 63.33333333 | I38: Física | J38: Sala de aula
B39: Química | C39: QUI | D39: T | E39: 1 | F39: 2 | G39: 76 | H39: 63.33333333 | I39: Química | J39: Sala de aula
B40: História | C40: HIS | D40: T | E40: 1 | F40: 2 | G40: 76 | H40: 63.33333333 | I40: História | J40: Sala de aula
B41: Geografia | C41: GEO | D41: T | E41: 1 | F41: 0 | G41: 0 | H41: 0 | I41: Geografia | J41: Sala de aula
B42: Filosofia | C42: FIL | D42: T | E42: 1 | F42: 2 | G42: 76 | H42: 63.33333333 | I42: Filosofia | J42: Sala de aula
B43: Sociologia | C43: SOC | D43: T | E43: 1 | F43: 2 | G43: 76 | H43: 63.33333333 | I43: Sociologia | J43: Sala de aula
B44: Estudos sobre o Trabalho - Frente A | C44: ETA | D44: T | E44: 1 | F44: 0 | G44: 0 | H44: 0 | I44: História | J44: Sala de aula
B45: Métodos científicos | C45: MCN | D45: T | E45: 1 | F45: 0 | G45: 0 | H45: 0 | I45: Química | J45: Sala de aula
B46: Estudos sobre o Trabalho - Frente B | C46: ETB | D46: T | E46: 1 | F46: 2 | G46: 76 | H46: 63.33333333 | I46: História | J46: Sala de aula
B47: Gestão e empreendedorismo | C47: GEM | D47: T | E47: 1 | F47: 0 | G47: 0 | H47: 0 | I47: Gestão | J47: Sala de aula
B48: Inglês para fins específicos | C48: IFE | D48: T | E48: 1 | F48: 0 | G48: 0 | H48: 0 | I48: Inglês | J48: Sala de aula
B49: Banco de dados | C49: BDD | D49: T/P | E49: 2 | F49: 2 | G49: 76 | H49: 63.33333333 | I49: Programação | J49: Laboratório de informática | L49: =H49*E49 -> 126.6666667
B50: Análise e projeto de sistemas | C50: APS | D50: T/P | E50: 2 | F50: 2 | G50: 76 | H50: 63.33333333 | I50: Programação | J50: Laboratório de informática | L50: 126.6666667
B51: Linguagem de programação I | C51: LPA | D51: T/P | E51: 2 | F51: 4 | G51: 152 | H51: 126.6666667 | I51: Programação | J51: Laboratório de informática | L51: 253.3333333
B52: Programação para Web II | C52: PWB | D52: T | E52: 2 | F52: 2 | G52: 76 | H52: 63.33333333 | I52: Programação | J52: Laboratório de informática | L52: 126.6666667
B53: Projeto integrador | C53: PJT | D53: T/P | E53: 2 | F53: 2 | G53: 76 | H53: 63.33333333 | I53: Programação | J53: Laboratório de informática | L53: 126.6666667
A54: 3º Ano | B54: Língua Portuguesa e Literatura | C54: LPL | D54: T | E54: 1 | F54: 4 | G54: 152 | H54: 126.6666667 | I54: Português | J54: Sala de aula
B55: Artes | C55: ART | D55: T/P | E55: 1 | F55: 2 | G55: 76 | H55: 63.33333333 | I55: Artes | J55: Sala de aula
B56: Corpo e Arte | C56: CPA | D56: T/P | E56: 1 | F56: 2 | G56: 76 | H56: 63.33333333 | I56: Educação física | J56: Ginásio
B57: Educação Física e Esportes | C57: EFE | D57: T/P | E57: 1 | F57: 0 | G57: 0 | H57: 0 | I57: Educação física | J57: Ginásio
B58: Educação física e saúde | C58: EFS | D58: T/P | E58: 1 | F58: 2 | G58: 76 | H58: 63.33333333 | I58: Educação física | J58: Ginásio
B59: Inglês | C59: ING | D59: T/P | E59: 1 | F59: 0 | G59: 0 | H59: 0 | I59: Inglês | J59: Sala de aula
B60: Matemática A | C60: MAA | D60: T | E60: 1 | F60: 2 | G60: 76 | H60: 63.33333333 | I60: Matemática | J60: Sala de aula
B61: Matemática B | C61: MAB | D61: T | E61: 1 | F61: 2 | G61: 76 | H61: 63.33333333 | I61: Matemática | J61: Sala de aula
B62: Biologia e Programa da Saúde | C62: BIO | D62: T | E62: 1 | F62: 2 | G62: 76 | H62: 63.33333333 | I62: Biologia | J62: Sala de aula
B63: Física | C63: FIS | D63: T | E63: 1 | F63: 2 | G63: 76 | H63: 63.33333333 | I63: Física | J63: Sala de aula
B64: Química | C64: QUI | D64: T | E64: 1 | F64: 2 | G64: 76 | H64: 63.33333333 | I64: Química | J64: Sala de aula
B65: História | C65: HIS | D65: T | E65: 1 | F65: 2 | G65: 76 | H65: 63.33333333 | I65: História | J65: Sala de aula
B66: Geografia | C66: GEO | D66: T | E66: 1 | F66: 2 | G66: 76 | H66: 63.33333333 | I66: Geografia | J66: Sala de aula
B67: Filosofia | C67: FIL | D67: T | E67: 1 | F67: 2 | G67: 76 | H67: 63.33333333 | I67: Filosofia | J67: Sala de aula
B68: Sociologia | C68: SOC | D68: T | E68: 1 | F68: 2 | G68: 76 | H68: 63.33333333 | I68: Sociologia | J68: Sala de aula
B69: Estudos sobre o Trabalho - Frente A | C69: ETA | D69: T | E69: 1 | F69: 0 | G69: 0 | H69: 0 | I69: História | J69: Sala de aula
B70: Métodos científicos | C70: MCN | D70: T | E70: 1 | F70: 0 | G70: 0 | H70: 0 | I70: Química | J70: Sala de aula
B71: Estudos sobre o Trabalho - Frente B | C71: ETB | D71: T | E71: 1 | F71: 0 | G71: 0 | H71: 0 | I71: História | J71: Sala de aula
